Workbook

Sheet Cover
A2: RIIO-3 Business Plan Financial Model (BPFM)
B3: Gas Transmission
C4: Model Version | G4: =MID(CELL("filename"),SEARCH("[",CELL("filename"))+1,SEARCH("]",CELL("filename"))-SEARCH("[",CELL("filename"))-1) -> 
B7: Model key
E9: Sample | G9: Calculated value | I9: Sample | K9: Information and interface
E10: Sample | G10: Import | I10: Sample | K10: Fixed input value
E11: Sample | G11: Export | I11: Sample | K11: Ofgem annual update input (outturn value)
E12: Sample | G12: Named range | I12: Sample | K12: Ofgem annual update input (forecasted value)
E13: Sample | G13: Formula change in cells to the right | I13: Sample | K13: Other annual update input (outturn value)
I14: Sample | K14: Other annual update input (forecasted value)
I15: Sample | K15: Input linked from annual update
I16: Sample | K16: Notes and instructions
I17: Sample | K17: Check
B19: Contents
E21: INTERFACE > | I21: GENERAL INPUT SHEETS >
E22: Cover | G22: Model key and content directory | I22: Annual Inflation | K22: Derivation of annual inflation rates and price indices
E23: UserInterface | G23: Model operation | I23: Monthly Inflation | K23: Dataset and derivation of monthly inflation rates and price indices
E25: INPUT SELECTION > | I25: COMPANY SPECIFIC INPUT SHEETS >
E26: Extension | G26: Controls for timeline extension macro | I26: NGGT TO | K26: Inputs for NGGT TO
E27: Scenarios | G27: Inputs for selected licensee | I27: NGGT SO | K27: Inputs for NGGT SO
E28: MainInputs | G28: Arranging inputs for use in model
I29: DEBT SHEETS >
E30: CALCULATION > | I30: F1 - Debt for BPFM | K30: Outputs for actual debt data, mirrored from BPDT
E31: Totex | G31: Totex allowance and actuals | I31: F2a - Financial Summary (TWA) | K31: Summary of information on actual debt and equity, mirrored from BPDT
E32: TIM | G32: Totex Incentive Mechanism and capitalisation | I32: F2b - Financial Summary (YE) | K32: Derives embedded and new debt volumes at the atart and end of each year, mirrored from BPDT
E33: Depn | G33: Gas distribution regulatory depreciation | I33: F3 - Fixed Rate Debt | K33: Aggregates fixed rate debt instruments from F6, mirrored from BPDT
E34: FuelPoor | G34: Fuel poor RAV calculations | I34: F4 - Floating Rate Debt | K34: Aggregates floating rate debt instruments from F6, mirrored from BPDT
E35: Return&RAV | G35: RAV and return calculations | I35: F5 - Inflation Linked Debt | K35: Aggregates inflation linked debt instruments from F6, mirrored from BPDT
E36: NonCore | G36: NonCore RAV calculations | I36: F6 - Debt Dataset | K36: Inputs for actual debt data, mirrored from BPDT
E37: SystemOperator | G37: SystemOperator revenue calculations | I37: F7 - Data Validation | K37: Stores definitions of drop-down validation lists in F6, mirrored from BPDT
E38: TaxPools | G38: Tax pools and capital allowances
E39: Finance&Tax | G39: Net debt, equity issuance, financing costs and tax | I39: SHEETS NOT UESD IN BPFM>
E40: Revenue | G40: Summary of calculated revenue | I40: Tax Trigger Deadbands | K40: Calculates tax trigger deadbands - unused in BPFM
I41: ReturnAdj | K41: Calculations for the Return Adjustment - unused in BPFM
E42: FINANCIAL & OUTPUT ANALYSIS SHEETS > | I42: AR | K42: Derivation of allowed revenue - unused in BPFM
E43: FinInput | G43: Arranging inputs for use in financeability tabs | I43: LiveResults | K43: Results for selected company - unused in BPFM
E44: RevenueSummary | G44: Revenue buildup for notional and actual companies | I44: SavedResults | K44: Saved results for all companies - unused in BPFM
E45: Finance&Tax(actual) | G45: Net debt, equity issuance, financing costs and tax for actual company | I45: RIIO-1 | K45: RIIO-1 revenue & domestic charges input data - unused in BPFM
E46: FinancialStatements | G46: Financial statements for selected company
E47: FinancialRatios | G47: Financial ratios for selected company
E48: FinRatios RoRE decomposition | G48: Decomposition of RoRE, as derived in the FinancialRatios tab
E49: RatingSimulator | G49: Credit rating estimation tool
E50: PowerQuery | G50: Tabulating data for OutputSummary's use
E51: OutputSummary | G51: For use in exporting dashboard data
E52: ScenarioRun_AllOutputData | G52: For use in exporting scenario modelling outputs
E53: FBPOutputs | G53: Output tables for use in FBP submissions
E54: Bills | G54: Calculations of approximated bills
B58: End of sheet

Sheet UserInterface
A1: User Interface
B3: Model operation
C5: PCFM year t
C6: Instruction: Use the following drop-down list to identify year t in the model. Year t is identified here by its end date.
E8: Year t selection:
E10: Year t selected: | G10: =INDEX(NumberofYear,m_PCFM_year_t) -> 2025-03-31
C12: Active company
C13: Instruction: Use the following drop-down list to select the active company in the model.
E15: Company selection:
E17: Selected company: | G17: =INDEX(E51:E51, E52) -> NGGT
C19: RIIO extension
C20: Instruction: Use the following drop-down list to select the RIIO period to extend the model.
E22: RIIO period selection
E24: Selected RIIO period: | G24: =INDEX(RIIO, E68) -> RIIO4
C26: Run scenario output
C27: Instruction: Run an export to a new sheet for all licensees and scenarios selected on ScenarioRun_AllOutpuData tab
C32: Align model calculation debt with actual debt for selected licensee
C33: Instruction: Align actual debt data for the selected licensee based on BPDT values, for output on Finance&Tax(actual) tab
C38: Run scenario output
C39: Instruction: Extend the timeline of the model based on parameters set on Extension tab
B44: User selection lists
B45: Note: The lists below drive the drop-down lists above.
B46: Using the drop-down lists above returns an integer in the "cell link" positioned below their "source list."
B47: The number returned in the cell link corresponds to the position of the selected item in the source list.
B48: The company selection output is set as a "named range." This gives a stable anchor point for the "RunForAll" macro to change the company.
E50: ="Source for ''"&C12&"'' drop-down list" -> Source for ''Active company'' drop-down list | G50: ="Source for ''"&C5&"'' drop-down list" -> Source for ''PCFM year t'' drop-down list
E51: NGGT | G51: 2022-03-31
E52: 1 | G52: 2023-03-31
E53: Adjacent named range: m_identity | G53: 2024-03-31
E54: =INDEX(NumberofOperators,m_identity) -> NGGT | G54: 2025-03-31
E55: Adjacent named range: n_identity | G55: 2026-03-31
G56: 2027-03-31
E57: ="Source for ''"&C19&"'' drop-down list" -> Source for ''RIIO extension'' drop-down list | G57: 2028-03-31
E58: =RIIO -> RIIO4 | G58: 4
E59: RIIO5 | G59: Adjacent named range: m_PCFM_year_t
E60: RIIO6
E61: RIIO7
E62: RIIO8
E63: RIIO9
E64: RIIO10
E65: RIIO11
E66: RIIO12
E67: RIIO13
E68: 1
B70: End of sheet
E75: 1

Sheet Checks
A1: Model checks | I1: Checks not met:
B2: =UserInterface!G17 -> NGGT | I2: =SUMPRODUCT(($I$9:$I$67 <> TRUE) * 1) - SUMPRODUCT(($I$9:$I$67 = "") * 1) -> 12
E3: Parameter | G3: Units | I3: Constant | AP3: Annual values
E4: PCFM year ending | I4: =UserInterface!$G$10 -> 2025-03-31 | K4: 1991-03-31 | L4: 1992-03-31 | M4: 1993-03-31 | N4: 1994-03-31 | O4: 1995-03-31 | P4: 1996-03-31 | Q4: 1997-03-31 | R4: 1998-03-31 | S4: 1999-03-31 | T4: 2000-03-31 | U4: 2001-03-31 | V4: 2002-03-31 | W4: 2003-03-31 | X4: 2004-03-31 | Y4: 2005-03-31 | Z4: 2006-03-31 | AA4: 2007-03-31 | AB4: 2008-03-31 | AC4: 2009-03-31 | AD4: 2010-03-31 | AE4: 2011-03-31 | AF4: 2012-03-31 | AG4: 2013-03-31 | AH4: 2014-03-31 | AI4: 2015-03-31 | AJ4: 2016-03-31 | AK4: 2017-03-31 | AL4: 2018-03-31 | AM4: 2019-03-31 | AN4: 2020-03-31 | AO4: 2021-03-31 | AP4: 2022-03-31 | AQ4: 2023-03-31 | AR4: 2024-03-31 | AS4: 2025-03-31 | AT4: 2026-03-31 | AU4: 2027-03-31 | AV4: 2028-03-31 | AW4: 2029-03-31 | AX4: 2030-03-31 | AY4: =EOMONTH(AX4,12) -> 2031-03-31
AP5: 2 | AQ5: 2 | AR5: 2 | AS5: 2 | AT5: 2 | AU5: 3 | AV5: 3 | AW5: 3 | AX5: 3 | AY5: 3
B7: Financial statements - checks are not balanced if Revenue Profiling scenario option set to "Revenues"
E9: Equity | I9: =ABS(SUM(AP9:AY9) - 0) < 0.00000001 -> FALSE | AU9: =FinancialStatements!AU50 -> 45.9724487 | AV9: =FinancialStatements!AV50 -> 69.44437447 | AW9: =FinancialStatements!AW50 -> 69.44437447 | AX9: =FinancialStatements!AX50 -> 40.33166903 | AY9: =FinancialStatements!AY50 -> -16.08277845
E10: Closing RAV | I10: =ABS(SUM(AP10:AY10) - 0) < 0.00000001 -> TRUE | AP10: =FinancialStatements!AP65 -> 0 | AQ10: =FinancialStatements!AQ65 -> 0 | AR10: =FinancialStatements!AR65 -> 0 | AS10: =FinancialStatements!AS65 -> 0 | AT10: =FinancialStatements!AT65 -> 0 | AU10: =FinancialStatements!AU65 -> 0 | AV10: =FinancialStatements!AV65 -> 0 | AW10: =FinancialStatements!AW65 -> 0 | AX10: =FinancialStatements!AX65 -> 0 | AY10: =FinancialStatements!AY65 -> 0
E11: Net cash flow | I11: FALSE | AP11: =FinancialStatements!AP95 -> 3.410605132e-13 | AQ11: =FinancialStatements!AQ95 -> 1.421085472e-13 | AR11: =FinancialStatements!AR95 -> 0 | AS11: =FinancialStatements!AS95 -> -5.684341886e-14 | AT11: =FinancialStatements!AT95 -> -4.547473509e-13 | AU11: =FinancialStatements!AU95 -> 45.9724487 | AV11: =FinancialStatements!AV95 -> 23.47192577 | AW11: =FinancialStatements!AW95 -> 4.547473509e-13 | AX11: =FinancialStatements!AX95 -> -29.11270544 | AY11: =FinancialStatements!AY95 -> -56.41444748
E12: Change in net debt | I12: FALSE | AP12: =FinancialStatements!AP160 -> 0 | AQ12: =FinancialStatements!AQ160 -> 0 | AR12: =FinancialStatements!AR160 -> 0 | AS12: =FinancialStatements!AS160 -> 0 | AT12: =FinancialStatements!AT160 -> 0 | AU12: =FinancialStatements!AU160 -> -45.9725 | AV12: =FinancialStatements!AV160 -> -23.4719 | AW12: =FinancialStatements!AW160 -> 0 | AX12: =FinancialStatements!AX160 -> 29.1127 | AY12: =FinancialStatements!AY160 -> 56.4144
B14: FinRatios RoRE decomposition - checks are not balanced if Revenue Profiling scenario option set to "Revenues"
E16: Total revenue | I16: =ABS(SUM(AP16:AY16) - 0) < 0.00000001 -> FALSE | AP16: ='FinRatios RoRE decomposition'!AP54 -> 0 | AQ16: ='FinRatios RoRE decomposition'!AQ54 -> 0 | AR16: ='FinRatios RoRE decomposition'!AR54 -> 0 | AS16: ='FinRatios RoRE decomposition'!AS54 -> 0 | AT16: ='FinRatios RoRE decomposition'!AT54 -> 0 | AU16: ='FinRatios RoRE decomposition'!AU54 -> 42 | AV16: ='FinRatios RoRE decomposition'!AV54 -> 21 | AW16: ='FinRatios RoRE decomposition'!AW54 -> 0 | AX16: ='FinRatios RoRE decomposition'!AX54 -> -25 | AY16: ='FinRatios RoRE decomposition'!AY54 -> -47.45433542
E17: Retained earnings | I17: FALSE | AP17: ='FinRatios RoRE decomposition'!AP55 -> 7.815970093e-14 | AQ17: ='FinRatios RoRE decomposition'!AQ55 -> 0 | AR17: ='FinRatios RoRE decomposition'!AR55 -> 1.563194019e-13 | AS17: ='FinRatios RoRE decomposition'!AS55 -> 3.055333764e-13 | AT17: ='FinRatios RoRE decomposition'!AT55 -> 3.126388037e-13 | AU17: ='FinRatios RoRE decomposition'!AU55 -> 42 | AV17: ='FinRatios RoRE decomposition'!AV55 -> 21 | AW17: ='FinRatios RoRE decomposition'!AW55 -> 1.705302566e-13 | AX17: ='FinRatios RoRE decomposition'!AX55 -> -25 | AY17: ='FinRatios RoRE decomposition'!AY55 -> -47.45433542
E18: EBITDA | I18: FALSE | AP18: ='FinRatios RoRE decomposition'!AP56 -> 0 | AQ18: ='FinRatios RoRE decomposition'!AQ56 -> 0 | AR18: ='FinRatios RoRE decomposition'!AR56 -> 0 | AS18: ='FinRatios RoRE decomposition'!AS56 -> 0 | AT18: ='FinRatios RoRE decomposition'!AT56 -> 0 | AU18: ='FinRatios RoRE decomposition'!AU56 -> 42 | AV18: ='FinRatios RoRE decomposition'!AV56 -> 21 | AW18: ='FinRatios RoRE decomposition'!AW56 -> 0 | AX18: ='FinRatios RoRE decomposition'!AX56 -> -25 | AY18: ='FinRatios RoRE decomposition'!AY56 -> -47.45433542
E19: PAT | I19: FALSE | AP19: ='FinRatios RoRE decomposition'!AP57 -> 3.836930773e-13 | AQ19: ='FinRatios RoRE decomposition'!AQ57 -> 1.119104809e-13 | AR19: ='FinRatios RoRE decomposition'!AR57 -> 0 | AS19: ='FinRatios RoRE decomposition'!AS57 -> 0 | AT19: ='FinRatios RoRE decomposition'!AT57 -> 0 | AU19: ='FinRatios RoRE decomposition'!AU57 -> 42 | AV19: ='FinRatios RoRE decomposition'!AV57 -> 21 | AW19: ='FinRatios RoRE decomposition'!AW57 -> 2.842170943e-13 | AX19: ='FinRatios RoRE decomposition'!AX57 -> -25 | AY19: ='FinRatios RoRE decomposition'!AY57 -> -47.45433542
E20: FFO | I20: FALSE | AP20: ='FinRatios RoRE decomposition'!AP58 -> 0 | AQ20: ='FinRatios RoRE decomposition'!AQ58 -> 0 | AR20: ='FinRatios RoRE decomposition'!AR58 -> 0 | AS20: ='FinRatios RoRE decomposition'!AS58 -> 0 | AT20: ='FinRatios RoRE decomposition'!AT58 -> 0 | AU20: ='FinRatios RoRE decomposition'!AU58 -> 42 | AV20: ='FinRatios RoRE decomposition'!AV58 -> 21 | AW20: ='FinRatios RoRE decomposition'!AW58 -> 0 | AX20: ='FinRatios RoRE decomposition'!AX58 -> -25 | AY20: ='FinRatios RoRE decomposition'!AY58 -> -47.45433542
E21: RCF | I21: FALSE | AP21: ='FinRatios RoRE decomposition'!AP59 -> 4.547473509e-13 | AQ21: ='FinRatios RoRE decomposition'!AQ59 -> 0 | AR21: ='FinRatios RoRE decomposition'!AR59 -> 0 | AS21: ='FinRatios RoRE decomposition'!AS59 -> 0 | AT21: ='FinRatios RoRE decomposition'!AT59 -> 0 | AU21: ='FinRatios RoRE decomposition'!AU59 -> 42 | AV21: ='FinRatios RoRE decomposition'!AV59 -> 21 | AW21: ='FinRatios RoRE decomposition'!AW59 -> 0 | AX21: ='FinRatios RoRE decomposition'!AX59 -> -25 | AY21: ='FinRatios RoRE decomposition'!AY59 -> -47.45433542
E22: RoRE (NPV-neutral equity) | I22: FALSE | AP22: ='FinRatios RoRE decomposition'!AP123 -> 1.318389842e-16 | AQ22: ='FinRatios RoRE decomposition'!AQ123 -> 0 | AR22: ='FinRatios RoRE decomposition'!AR123 -> 0 | AS22: ='FinRatios RoRE decomposition'!AS123 -> 0 | AT22: ='FinRatios RoRE decomposition'!AT123 -> 0 | AU22: ='FinRatios RoRE decomposition'!AU123 -> 0.01419385589 | AV22: ='FinRatios RoRE decomposition'!AV123 -> 0.006938710335 | AW22: ='FinRatios RoRE decomposition'!AW123 -> 0 | AX22: ='FinRatios RoRE decomposition'!AX123 -> -0.008079615266 | AY22: ='FinRatios RoRE decomposition'!AY123 -> -0.01551562154
E23: RoRE (closing equity) | I23: FALSE | AP23: ='FinRatios RoRE decomposition'!AP142 -> 1.110223025e-16 | AQ23: ='FinRatios RoRE decomposition'!AQ142 -> 0 | AR23: ='FinRatios RoRE decomposition'!AR142 -> 0 | AS23: ='FinRatios RoRE decomposition'!AS142 -> 0 | AT23: ='FinRatios RoRE decomposition'!AT142 -> 0 | AU23: ='FinRatios RoRE decomposition'!AU142 -> 0.0136306513 | AV23: ='FinRatios RoRE decomposition'!AV142 -> 0.006659252284 | AW23: ='FinRatios RoRE decomposition'!AW142 -> 0 | AX23: ='FinRatios RoRE decomposition'!AX142 -> -0.007882374498 | AY23: ='FinRatios RoRE decomposition'!AY142 -> -0.01514933029
E24: PAT | I24: TRUE | AP24: ='FinRatios RoRE decomposition'!AP147 -> 0 | AQ24: ='FinRatios RoRE decomposition'!AQ147 -> 6.75015599e-14 | AR24: ='FinRatios RoRE decomposition'!AR147 -> -1.421085472e-13 | AS24: ='FinRatios RoRE decomposition'!AS147 -> 0 | AT24: ='FinRatios RoRE decomposition'!AT147 -> -2.273736754e-13 | AU24: ='FinRatios RoRE decomposition'!AU147 -> 2.842170943e-13 | AV24: ='FinRatios RoRE decomposition'!AV147 -> 0 | AW24: ='FinRatios RoRE decomposition'!AW147 -> -2.273736754e-13 | AX24: ='FinRatios RoRE decomposition'!AX147 -> 0 | AY24: ='FinRatios RoRE decomposition'!AY147 -> 0
E25: PAT / Regulated equity | I25: TRUE | AP25: ='FinRatios RoRE decomposition'!AP164 -> 0 | AQ25: ='FinRatios RoRE decomposition'!AQ164 -> 0 | AR25: ='FinRatios RoRE decomposition'!AR164 -> 0 | AS25: ='FinRatios RoRE decomposition'!AS164 -> 0 | AT25: ='FinRatios RoRE decomposition'!AT164 -> 0 | AU25: ='FinRatios RoRE decomposition'!AU164 -> 0 | AV25: ='FinRatios RoRE decomposition'!AV164 -> 0 | AW25: ='FinRatios RoRE decomposition'!AW164 -> 0 | AX25: ='FinRatios RoRE decomposition'!AX164 -> 0 | AY25: ='FinRatios RoRE decomposition'!AY164 -> 0
B27: FinInput
E29: BPDT gearing target import in base case | I29: =ABS(SUM(AP29:AY29) - 0) < 0.05 -> TRUE | AP29: =FinInput!AP98 -> 0 | AQ29: =FinInput!AQ98 -> 0 | AR29: =FinInput!AR98 -> 0 | AS29: =FinInput!AS98 -> 0 | AT29: =FinInput!AT98 -> 0 | AU29: =FinInput!AU98 -> 0 | AV29: =FinInput!AV98 -> 0 | AW29: =FinInput!AW98 -> 0 | AX29: =FinInput!AX98 -> 0 | AY29: =FinInput!AY98 -> 0
B31: Output summary
E33: Closing RAV
E34: Calculated revenue (without DRS adjustment)
E35: Operating revenue (as used in Financial Statements)
E36: Total revenue for charges
B38: Totex and TIM
E40: Actual totex | I40: =ABS(SUM(AP40:AY40) - 0) < 0.00000001 -> TRUE | AP40: =(Totex!AP88 - SUM(MainInputs!AP238,MainInputs!AP247))*Totex!AP56 -> 0 | AQ40: =(Totex!AQ88 - SUM(MainInputs!AQ238,MainInputs!AQ247))*Totex!AQ56 -> 0 | AR40: =(Totex!AR88 - SUM(MainInputs!AR238,MainInputs!AR247))*Totex!AR56 -> 0 | AS40: =(Totex!AS88 - SUM(MainInputs!AS238,MainInputs!AS247))*Totex!AS56 -> 0 | AT40: =(Totex!AT88 - SUM(MainInputs!AT238,MainInputs!AT247))*Totex!AT56 -> -2.273736754e-13 | AU40: =(Totex!AU88 - SUM(MainInputs!AU238,MainInputs!AU247))*Totex!AU56 -> 0 | AV40: =(Totex!AV88 - SUM(MainInputs!AV238,MainInputs!AV247))*Totex!AV56 -> 0 | AW40: =(Totex!AW88 - SUM(MainInputs!AW238,MainInputs!AW247))*Totex!AW56 -> 0 | AX40: =(Totex!AX88 - SUM(MainInputs!AX238,MainInputs!AX247))*Totex!AX56 -> 0 | AY40: =(Totex!AY88 - SUM(MainInputs!AY238,MainInputs!AY247))*Totex!AY56 -> 0
E41: Actual totex (from totex summary) | I41: TRUE | AP41: =TIM!AP113 -> 0 | AQ41: =TIM!AQ113 -> 0 | AR41: =TIM!AR113 -> 0 | AS41: =TIM!AS113 -> 0 | AT41: =TIM!AT113 -> 0 | AU41: =TIM!AU113 -> 0 | AV41: =TIM!AV113 -> 0 | AW41: =TIM!AW113 -> 0 | AX41: =TIM!AX113 -> 0 | AY41: =TIM!AY113 -> 0
E42: Allowed totex | I42: TRUE | AP42: =Totex!AP49 - SUM(MainInputs!AP46, MainInputs!AP494) -> 0 | AQ42: =Totex!AQ49 - SUM(MainInputs!AQ46, MainInputs!AQ494) -> 0 | AR42: =Totex!AR49 - SUM(MainInputs!AR46, MainInputs!AR494) -> 0 | AS42: =Totex!AS49 - SUM(MainInputs!AS46, MainInputs!AS494) -> 0 | AT42: =Totex!AT49 - SUM(MainInputs!AT46, MainInputs!AT494) -> 0 | AU42: =Totex!AU49 - SUM(MainInputs!AU46, MainInputs!AU494) -> 0 | AV42: =Totex!AV49 - SUM(MainInputs!AV46, MainInputs!AV494) -> 0 | AW42: =Totex!AW49 - SUM(MainInputs!AW46, MainInputs!AW494) -> 0 | AX42: =Totex!AX49 - SUM(MainInputs!AX46, MainInputs!AX494) -> 0 | AY42: =Totex!AY49 - SUM(MainInputs!AY46, MainInputs!AY494) -> 0
E43: Actual totex (from capitalisation buckets) | I43: TRUE | AP43: =SUM(TIM!AP27, TIM!AP37) - Totex!AP88 -> 0 | AQ43: =SUM(TIM!AQ27, TIM!AQ37) - Totex!AQ88 -> 0 | AR43: =SUM(TIM!AR27, TIM!AR37) - Totex!AR88 -> 0 | AS43: =SUM(TIM!AS27, TIM!AS37) - Totex!AS88 -> 0 | AT43: =SUM(TIM!AT27, TIM!AT37) - Totex!AT88 -> 0 | AU43: =SUM(TIM!AU27, TIM!AU37) - Totex!AU88 -> 0 | AV43: =SUM(TIM!AV27, TIM!AV37) - Totex!AV88 -> 0 | AW43: =SUM(TIM!AW27, TIM!AW37) - Totex!AW88 -> 0 | AX43: =SUM(TIM!AX27, TIM!AX37) - Totex!AX88 -> 0 | AY43: =SUM(TIM!AY27, TIM!AY37) - Totex!AY88 -> 0
E44: Allowed totex (from capitalisation buckets) | I44: TRUE | AP44: =SUM(TIM!AP28, TIM!AP38) + SUM(MainInputs!AP46, MainInputs!AP494) -> 0 | AQ44: =SUM(TIM!AQ28, TIM!AQ38) + SUM(MainInputs!AQ46, MainInputs!AQ494) -> 0 | AR44: =SUM(TIM!AR28, TIM!AR38) + SUM(MainInputs!AR46, MainInputs!AR494) -> 0 | AS44: =SUM(TIM!AS28, TIM!AS38) + SUM(MainInputs!AS46, MainInputs!AS494) -> 0 | AT44: =SUM(TIM!AT28, TIM!AT38) + SUM(MainInputs!AT46, MainInputs!AT494) -> 0 | AU44: =SUM(TIM!AU28, TIM!AU38) + SUM(MainInputs!AU46, MainInputs!AU494) -> 0 | AV44: =SUM(TIM!AV28, TIM!AV38) + SUM(MainInputs!AV46, MainInputs!AV494) -> 0 | AW44: =SUM(TIM!AW28, TIM!AW38) + SUM(MainInputs!AW46, MainInputs!AW494) -> 0 | AX44: =SUM(TIM!AX28, TIM!AX38) + SUM(MainInputs!AX46, MainInputs!AX494) -> 0 | AY44: =SUM(TIM!AY28, TIM!AY38) + SUM(MainInputs!AY46, MainInputs!AY494) -> 0
B46: Return & RAV
E48: Inflation options' calculation of real WACC equal to MainInputs | I48: =ABS(SUM(AP48:AY48) - 0) < 0.00000001 -> TRUE | AP48: ='Return&RAV'!AP42 -> 0 | AQ48: ='Return&RAV'!AQ42 -> 0 | AR48: ='Return&RAV'!AR42 -> 0 | AS48: ='Return&RAV'!AS42 -> 0 | AT48: ='Return&RAV'!AT42 -> 0 | AU48: ='Return&RAV'!AU42 -> 0 | AV48: ='Return&RAV'!AV42 -> 0 | AW48: ='Return&RAV'!AW42 -> 0 | AX48: ='Return&RAV'!AX42 -> 0 | AY48: ='Return&RAV'!AY42 -> 0
B50: Depreciation
E52: Post-vesting assets fully depreciated | I52: =Depn!J495 -> TRUE
B54: Input
E56: Variant allowed totex (TO) | I56: =ABS(SUM(AP56:AY56) - 0) < 0.00000001 -> TRUE | AP56: =MainInputs!AP495 -> 0 | AQ56: =MainInputs!AQ495 -> 0 | AR56: =MainInputs!AR495 -> 0 | AS56: =MainInputs!AS495 -> 0 | AT56: =MainInputs!AT495 -> 0 | AU56: =MainInputs!AU495 -> 0 | AV56: =MainInputs!AV495 -> 0 | AW56: =MainInputs!AW495 -> 0 | AX56: =MainInputs!AX495 -> 0 | AY56: =MainInputs!AY495 -> 0
E57: Variant allowed totex subcategory allocations (TO) | I57: =ABS(SUM(AP57:AY57) - 0) < 0.00000001 -> TRUE | AP57: =MainInputs!AP496 -> 0 | AQ57: =MainInputs!AQ496 -> 0 | AR57: =MainInputs!AR496 -> 0 | AS57: =MainInputs!AS496 -> 0 | AT57: =MainInputs!AT496 -> 0 | AU57: =MainInputs!AU496 -> 0 | AV57: =MainInputs!AV496 -> 0 | AW57: =MainInputs!AW496 -> 0 | AX57: =MainInputs!AX496 -> 0 | AY57: =MainInputs!AY496 -> 0
E58: Variant allowed totex (SO) | I58: TRUE | AP58: =SystemOperator!AP306 -> 0 | AQ58: =SystemOperator!AQ306 -> 0 | AR58: =SystemOperator!AR306 -> 0 | AS58: =SystemOperator!AS306 -> 0 | AT58: =SystemOperator!AT306 -> 0 | AU58: =SystemOperator!AU306 -> 0 | AV58: =SystemOperator!AV306 -> 0 | AW58: =SystemOperator!AW306 -> 0 | AX58: =SystemOperator!AX306 -> 0 | AY58: =SystemOperator!AY306 -> 0
E59: Variant allowed totex subcategory allocations (SO) | I59: TRUE | AP59: =SystemOperator!AP307 -> 0 | AQ59: =SystemOperator!AQ307 -> 0 | AR59: =SystemOperator!AR307 -> 0 | AS59: =SystemOperator!AS307 -> 0 | AT59: =SystemOperator!AT307 -> 0 | AU59: =SystemOperator!AU307 -> 0 | AV59: =SystemOperator!AV307 -> 0 | AW59: =SystemOperator!AW307 -> 0 | AX59: =SystemOperator!AX307 -> 0 | AY59: =SystemOperator!AY307 -> 0
E60: RPE non-variant allowances
E61: RPE PCDs
E62: RPE UMs
B64: Company tabs
E66: Totex allocations to tax pools | G66: NGGT TO | I66: =SUMPRODUCT((AP66:AY66 = 1) * 1) = 10 -> FALSE | AP66: =INDIRECT("'"&$G66&"'!"&ADDRESS($BA66, $BC66 + YEAR(AP$4) - YEAR($AP$4))) + INDIRECT("'"&$G66&"'!"&ADDRESS($BB66, $BC66 + YEAR(AP$4) - YEAR($AP$4))) -> 1 | AQ66: =INDIRECT("'"&$G66&"'!"&ADDRESS($BA66, $BC66 + YEAR(AQ$4) - YEAR($AP$4))) + INDIRECT("'"&$G66&"'!"&ADDRESS($BB66, $BC66 + YEAR(AQ$4) - YEAR($AP$4))) -> 1 | AR66: =INDIRECT("'"&$G66&"'!"&ADDRESS($BA66, $BC66 + YEAR(AR$4) - YEAR($AP$4))) + INDIRECT("'"&$G66&"'!"&ADDRESS($BB66, $BC66 + YEAR(AR$4) - YEAR($AP$4))) -> 1 | AS66: =INDIRECT("'"&$G66&"'!"&ADDRESS($BA66, $BC66 + YEAR(AS$4) - YEAR($AP$4))) + INDIRECT("'"&$G66&"'!"&ADDRESS($BB66, $BC66 + YEAR(AS$4) - YEAR($AP$4))) -> 1 | AT66: =INDIRECT("'"&$G66&"'!"&ADDRESS($BA66, $BC66 + YEAR(AT$4) - YEAR($AP$4))) + INDIRECT("'"&$G66&"'!"&ADDRESS($BB66, $BC66 + YEAR(AT$4) - YEAR($AP$4))) -> 1 | AU66: =INDIRECT("'"&$G66&"'!"&ADDRESS($BA66, $BC66 + YEAR(AU$4) - YEAR($AP$4))) + INDIRECT("'"&$G66&"'!"&ADDRESS($BB66, $BC66 + YEAR(AU$4) - YEAR($AP$4))) -> 0.99997 | AV66: =INDIRECT("'"&$G66&"'!"&ADDRESS($BA66, $BC66 + YEAR(AV$4) - YEAR($AP$4))) + INDIRECT("'"&$G66&"'!"&ADDRESS($BB66, $BC66 + YEAR(AV$4) - YEAR($AP$4))) -> 1 | AW66: =INDIRECT("'"&$G66&"'!"&ADDRESS($BA66, $BC66 + YEAR(AW$4) - YEAR($AP$4))) + INDIRECT("'"&$G66&"'!"&ADDRESS($BB66, $BC66 + YEAR(AW$4) - YEAR($AP$4))) -> 0.99997 | AX66: =INDIRECT("'"&$G66&"'!"&ADDRESS($BA66, $BC66 + YEAR(AX$4) - YEAR($AP$4))) + INDIRECT("'"&$G66&"'!"&ADDRESS($BB66, $BC66 + YEAR(AX$4) - YEAR($AP$4))) -> 1 | AY66: =INDIRECT("'"&$G66&"'!"&ADDRESS($BA66, $BC66 + YEAR(AY$4) - YEAR($AP$4))) + INDIRECT("'"&$G66&"'!"&ADDRESS($BB66, $BC66 + YEAR(AY$4) - YEAR($AP$4))) -> 1 | BA66: =ROW('NGGT TO'!AP1159) -> 1159 | BB66: =ROW('NGGT TO'!AU733) -> 733 | BC66: =COLUMN('NGGT TO'!AP1159) -> 42
E67: Total non-baseline totex (in "Cost Assessment interface") | G67: NGGT
B69: Tax trigger deadbands
E71: Final proposals base revenue - live operator
E72: Impact of corporation tax rate change - live operator
E73: Tax trigger deadbands in operator tabs | G73: NGGT | I73: =ABS(SUM(AP73:AT73) - 0) < 0.00000001 -> TRUE | AP73: ='TaxTrigger Deadbands'!AP44 -> 0 | AQ73: ='TaxTrigger Deadbands'!AQ44 -> 0 | AR73: ='TaxTrigger Deadbands'!AR44 -> 0 | AS73: ='TaxTrigger Deadbands'!AS44 -> 0 | AT73: ='TaxTrigger Deadbands'!AT44 -> 0 | AU73: ='TaxTrigger Deadbands'!AU44 -> 3.933178895 | AV73: ='TaxTrigger Deadbands'!AV44 -> 4.059179833 | AW73: ='TaxTrigger Deadbands'!AW44 -> 4.147026862 | AX73: ='TaxTrigger Deadbands'!AX44 -> 4.082946673 | AY73: ='TaxTrigger Deadbands'!AY44 -> 4.139850361
B75: RIIO-1 revenue and charges
E77: Consumers by network
E78: Consumers by company
B80: End of sheet

Sheet Extension
A1: Extension Dashboard
B2: Disclaimer: The calculations for RIIO4 and beyond are intended solely for analytical purposes. Ofgem provides no assurance of the extended model outputs.
B3: Extension
G4: Note: Please wait 30 mins after clicking the "Run RIIO Extension to New Workbook" button
C5: End Period
C6: End Year | D6: =INDEX(RIIO_End_Period,MATCH(UserInterface!$G$24,RIIO,0)) -> 2036-03-31
B9: Totex Declining Factor
C11: Scenario Model | E11: RIIO3
C13: Totex Profile | E13: Base
C15: Increase/Decrease value | E15: -0.05
C16: End Year for steady decline | E16: 2028
B22: RAV Chart
B47: Source for drop-down lists
C49: Source for "Extension Year" drop-down list | H49: Source for "Scenario RIIO Selection" drop-down list
D51: 2036-03-31 | E51: RIIO4 | I51: ScenarioModel | J51: =INDEX(J52:J53,MATCH(E11,ModelRIIO,0)) -> 3
D52: 2041-03-31 | E52: RIIO5 | I52: RIIO3 | J52: 3
D53: 2046-03-31 | E53: RIIO6 | I53: RIIO4 | J53: 4
D54: 2051-03-31 | E54: RIIO7
D55: 2056-03-31 | E55: RIIO8
D56: 2061-03-31 | E56: RIIO9
D57: 2066-03-31 | E57: RIIO10
D58: 2071-03-31 | E58: RIIO11
D59: 2076-03-31 | E59: RIIO12
D60: 2081-03-31 | E60: RIIO13 | H60: Source for "Totex Profile" drop-down list
I61: Totex Profile | K61: =INDEX(K62:K64,MATCH(E13,I62:I64,0)) -> 1
I62: Base | K62: 1
C63: Year Calculation | I63: Increase/Decrease | K63: 2
D64: No. of Years | F64: =YEAR(D6)-2031 -> 5 | I64: Steady Decline | K64: 3

Sheet Scenarios
A1: Scenarios | BL1: `
B2: =UserInterface!G17 -> NGGT | AP2: =AP10 -> Base case | AQ2: =AQ10 -> High interest rate | AR2: Low interest rate | AS2: High inflation | AT2: Low inflation | AU2: High CPIH inflation divergence | AV2: Low CPIH inflation divergence | AW2: High RPI inflation divergence | AX2: Low RPI inflation divergence | AY2: Totex outperformance | AZ2: Totex underperformance | BA2: High RoRE | BB2: Low RoRE | BC2: High index-linked debt | BD2: Low index-linked debt | BE2: Financeability example: BPDT | BF2: Financeability example: % dividend | BG2: Financeability example: cash flow dividend | BH2: Financeability example: User defined | BI2: Option 1 off | BJ2: High totex + RoRE -2% | BK2: High totex + overspend | BL2: High totex + Low CPIH | BM2: Scenario 24 | BN2: Scenario 25 | BO2: Scenario 26 | BP2: Scenario 27 | BQ2: Scenario 28 | BR2: Scenario 29 | BS2: Scenario 30
E3: Parameter | F3: Licence condition | G3: Units | H3: Term | I3: Constant | AP3: Annual values
E4: PCFM year ending | F4: =Cover!C4 -> Model Version | I4: =UserInterface!$G$10 -> 2025-03-31 | K4: 1991-03-31 | L4: 1992-03-31 | M4: 1993-03-31 | N4: 1994-03-31 | O4: 1995-03-31 | P4: 1996-03-31 | Q4: 1997-03-31 | R4: 1998-03-31 | S4: 1999-03-31 | T4: 2000-03-31 | U4: 2001-03-31 | V4: 2002-03-31 | W4: 2003-03-31 | X4: 2004-03-31 | Y4: 2005-03-31 | Z4: 2006-03-31 | AA4: 2007-03-31 | AB4: 2008-03-31 | AC4: 2009-03-31 | AD4: 2010-03-31 | AE4: 2011-03-31 | AF4: 2012-03-31 | AG4: 2013-03-31 | AH4: 2014-03-31 | AI4: 2015-03-31 | AJ4: 2016-03-31 | AK4: 2017-03-31 | AL4: 2018-03-31 | AM4: 2019-03-31 | AN4: 2020-03-31 | AO4: 2021-03-31 | AP4: 2022-03-31 | AQ4: 2023-03-31 | AR4: 2024-03-31 | AS4: 2025-03-31 | AT4: 2026-03-31 | AU4: 2027-03-31 | AV4: 2028-03-31 | AW4: 2029-03-31 | AX4: 2030-03-31 | AY4: =EOMONTH(AX4,12) -> 2031-03-31
AP5: 2 | AQ5: 2 | AR5: 2 | AS5: 2 | AT5: 2 | AU5: 3 | AV5: 3 | AW5: 3 | AX5: 3 | AY5: 3
B7: Scenario definition
E9: Scenario number | AP9: 1 | AQ9: =AP9+1 -> 2 | AR9: =AQ9+1 -> 3 | AS9: 4 | AT9: 5 | AU9: 6 | AV9: 7 | AW9: 8 | AX9: 9 | AY9: 10 | AZ9: =AY9+1 -> 11 | BA9: =AZ9+1 -> 12 | BB9: 13 | BC9: 14 | BD9: 15 | BE9: 16 | BF9: =BE9+1 -> 17 | BG9: 18 | BH9: 19 | BI9: =BH9+1 -> 20 | BJ9: =BI9+1 -> 21 | BK9: =BJ9+1 -> 22 | BL9: =BK9+1 -> 23 | BM9: =BL9+1 -> 24 | BN9: =BM9+1 -> 25 | BO9: =BN9+1 -> 26 | BP9: =BO9+1 -> 27 | BQ9: =BP9+1 -> 28 | BR9: =BQ9+1 -> 29 | BS9: 30
E10: Scenario name | AP10: Base case | AQ10: High interest rate | AR10: Low interest rate | AS10: High inflation | AT10: Low inflation | AU10: High CPIH inflation divergence | AV10: Low CPIH inflation divergence | AW10: High RPI inflation divergence | AX10: Low RPI inflation divergence | AY10: Totex outperformance | AZ10: Totex underperformance | BA10: High RoRE | BB10: Low RoRE | BC10: High index-linked debt | BD10: Low index-linked debt | BE10: Financeability example: BPDT | BF10: Financeability example: % dividend | BG10: Financeability example: cash flow dividend | BH10: Financeability example: User defined | BI10: Option 1 off | BJ10: High totex + RoRE -2% | BK10: High totex + overspend | BL10: High totex + Low CPIH | BM10: Scenario 24 | BN10: Scenario 25 | BO10: Scenario 26 | BP10: Scenario 27 | BQ10: Scenario 28 | BR10: Scenario 29 | BS10: Scenario 30
C12: Notional modelling
D13: Input data selection
E14: Price base year (2024 for RIIO3, 2019 for RIIO2) | F14: =INDEX(AP14:BS14,,m_scenario) -> 2024 | G14: ="£m "&F14-2001&"/"&F14-2000&" prices" -> £m 23/24 prices | AP14: 2024 | AQ14: 2024 | AR14: 2024 | AS14: 2024 | AT14: 2024 | AU14: 2024 | AV14: 2024 | AW14: 2024 | AX14: 2024 | AY14: 2024 | AZ14: 2024 | BA14: 2024 | BB14: 2024 | BC14: 2024 | BD14: 2024 | BE14: 2024 | BF14: 2024 | BG14: 2024 | BH14: 2024 | BI14: 2024 | BJ14: 2024 | BK14: 2024 | BL14: 2024
D16: Totex, TIM and capitalisation
E17: User multiplier for allowed totex | F17: =INDEX(AP17:BS17,,m_scenario) -> 1 | AP17: 1 | AQ17: 1 | AR17: 1 | AS17: 1 | AT17: 1 | AU17: 1 | AV17: 1 | AW17: 1 | AX17: 1 | AY17: 1 | AZ17: 1 | BA17: 1 | BB17: 1 | BC17: 1 | BD17: 1 | BI17: 1 | BJ17: 1.1 | BK17: 1.1 | BL17: 1.1
E18: User multiplier for actual totex (applied on top of allowed totex) | F18: =INDEX(AP18:BS18,,m_scenario) -> 1 | AP18: 1 | AQ18: 1 | AR18: 1 | AS18: 1 | AT18: 1 | AU18: 1 | AV18: 1 | AW18: 1 | AX18: 1 | AY18: 0.9 | AZ18: 1.1 | BA18: 1 | BB18: 1 | BC18: 1 | BD18: 1 | BI18: 1 | BJ18: 1 | BK18: 1.1 | BL18: 1
E19: TIM incentive rate | F19: =INDEX(AP19:BS19,,m_scenario) -> 0.39 | AP19: 0.39 | AQ19: 0.39 | AR19: 0.39 | AS19: 0.39 | AT19: 0.39 | AU19: 0.39 | AV19: 0.39 | AW19: 0.39 | AX19: 0.39 | AY19: 0.39 | AZ19: 0.39 | BA19: 0.39 | BB19: 0.39 | BC19: 0.39 | BD19: 0.39 | BI19: 0.39 | BJ19: 0.39 | BK19: 0.39 | BL19: 0.39
E20: RIIO-3 cap rates from Scenarios or Licensee inputs? | F20: =INDEX(AP20:BS20,,m_scenario) -> Licensee inputs | AP20: Licensee inputs | AQ20: Licensee inputs | AR20: Licensee inputs | AS20: Licensee inputs | AT20: Licensee inputs | AU20: Licensee inputs | AV20: Licensee inputs | AW20: Licensee inputs | AX20: Licensee inputs | AY20: Licensee inputs | AZ20: Licensee inputs | BA20: Licensee inputs | BB20: Licensee inputs | BC20: Licensee inputs | BD20: Licensee inputs | BI20: Licensee inputs | BJ20: Licensee inputs | BK20: Licensee inputs | BL20: Licensee inputs
E21: If Scenarios, Bucket 1 cap rate (TO) | F21: =INDEX(AP21:BS21,,m_scenario) -> 0.6319282824 | AP21: =AVERAGE(TIM!$AU$120:$AY$120) -> 0.6319282824 | AQ21: =AVERAGE(TIM!$AU$120:$AY$120) -> 0.6319282824 | AR21: =AVERAGE(TIM!$AU$120:$AY$120) -> 0.6319282824 | AS21: =AVERAGE(TIM!$AU$120:$AY$120) -> 0.6319282824 | AT21: =AVERAGE(TIM!$AU$120:$AY$120) -> 0.6319282824 | AU21: =AVERAGE(TIM!$AU$120:$AY$120) -> 0.6319282824 | AV21: =AVERAGE(TIM!$AU$120:$AY$120) -> 0.6319282824 | AW21: =AVERAGE(TIM!$AU$120:$AY$120) -> 0.6319282824 | AX21: =AVERAGE(TIM!$AU$120:$AY$120) -> 0.6319282824 | AY21: =AVERAGE(TIM!$AU$120:$AY$120) -> 0.6319282824 | AZ21: =AVERAGE(TIM!$AU$120:$AY$120) -> 0.6319282824 | BA21: =AVERAGE(TIM!$AU$120:$AY$120) -> 0.6319282824 | BB21: =AVERAGE(TIM!$AU$120:$AY$120) -> 0.6319282824 | BC21: =AVERAGE(TIM!$AU$120:$AY$120) -> 0.6319282824 | BD21: =AVERAGE(TIM!$AU$120:$AY$120) -> 0.6319282824 | BI21: =AVERAGE(TIM!$AU$120:$AY$120) -> 0.6319282824 | BJ21: =AVERAGE(TIM!$AU$120:$AY$120) -> 0.6319282824 | BK21: =AVERAGE(TIM!$AU$120:$AY$120) -> 0.6319282824 | BL21: =AVERAGE(TIM!$AU$120:$AY$120) -> 0.6319282824
E22: If Scenarios, Bucket 2 cap rate (TO) | F22: =INDEX(AP22:BS22,,m_scenario) -> 0.9 | AP22: 0.9 | AQ22: 0.9 | AR22: 0.9 | AS22: 0.9 | AT22: 0.9 | AU22: 0.9 | AV22: 0.9 | AW22: 0.9 | AX22: 0.9 | AY22: 0.9 | AZ22: 0.9 | BA22: 0.9 | BB22: 0.9 | BC22: 0.9 | BD22: 0.9 | BI22: 0.9 | BJ22: 0.9 | BK22: 0.9 | BL22: 0.9
E23: If Scenarios, cap rate (SO) | F23: =INDEX(AP23:BS23,,m_scenario) -> 0.3922954491 | AP23: =AVERAGE(SystemOperator!$AU$619:$AY$619) -> 0.3922954491 | AQ23: =AVERAGE(SystemOperator!$AU$619:$AY$619) -> 0.3922954491 | AR23: =AVERAGE(SystemOperator!$AU$619:$AY$619) -> 0.3922954491 | AS23: =AVERAGE(SystemOperator!$AU$619:$AY$619) -> 0.3922954491 | AT23: =AVERAGE(SystemOperator!$AU$619:$AY$619) -> 0.3922954491 | AU23: =AVERAGE(SystemOperator!$AU$619:$AY$619) -> 0.3922954491 | AV23: =AVERAGE(SystemOperator!$AU$619:$AY$619) -> 0.3922954491 | AW23: =AVERAGE(SystemOperator!$AU$619:$AY$619) -> 0.3922954491 | AX23: =AVERAGE(SystemOperator!$AU$619:$AY$619) -> 0.3922954491 | AY23: =AVERAGE(SystemOperator!$AU$619:$AY$619) -> 0.3922954491 | AZ23: =AVERAGE(SystemOperator!$AU$619:$AY$619) -> 0.3922954491 | BA23: =AVERAGE(SystemOperator!$AU$619:$AY$619) -> 0.3922954491 | BB23: =AVERAGE(SystemOperator!$AU$619:$AY$619) -> 0.3922954491 | BC23: =AVERAGE(SystemOperator!$AU$619:$AY$619) -> 0.3922954491 | BD23: =AVERAGE(SystemOperator!$AU$619:$AY$619) -> 0.3922954491 | BI23: =AVERAGE(SystemOperator!$AU$619:$AY$619) -> 0.3922954491 | BJ23: =AVERAGE(SystemOperator!$AU$619:$AY$619) -> 0.3922954491 | BK23: =AVERAGE(SystemOperator!$AU$619:$AY$619) -> 0.3922954491 | BL23: =AVERAGE(SystemOperator!$AU$619:$AY$619) -> 0.3922954491
D25: Depreciation
E26: Pre- & post-vesting acceleration factor option | F26: =INDEX(AP26:BS26,,m_scenario) -> Base case | AP26: Base case | AQ26: Base case | AR26: Base case | AS26: Base case | AT26: Base case | AU26: Base case | AV26: Base case | AW26: Base case | AX26: Base case | AY26: Base case | AZ26: Base case | BA26: Base case | BB26: Base case | BC26: Base case | BD26: Base case | BI26: Base case | BJ26: Base case | BK26: Base case | BL26: Base case
E27: RIIO-3 treatment: asset life input or custom profile? | F27: =INDEX(AP27:BS27,,m_scenario) -> Asset life input | AP27: Asset life input | AQ27: Asset life input | AR27: Asset life input | AS27: Asset life input | AT27: Asset life input | AU27: Asset life input | AV27: Asset life input | AW27: Asset life input | AX27: Asset life input | AY27: Asset life input | AZ27: Asset life input | BA27: Asset life input | BB27: Asset life input | BC27: Asset life input | BD27: Asset life input | BI27: Asset life input | BJ27: Asset life input | BK27: Asset life input | BL27: Asset life input
E28: If asset life input: Sum of Digits or Straight Line? | F28: =INDEX(AP28:BS28,,m_scenario) -> Sum of Digits | AP28: Sum of Digits | AQ28: Sum of Digits | AR28: Sum of Digits | AS28: Sum of Digits | AT28: Sum of Digits | AU28: Sum of Digits | AV28: Sum of Digits | AW28: Sum of Digits | AX28: Sum of Digits | AY28: Sum of Digits | AZ28: Sum of Digits | BA28: Sum of Digits | BB28: Sum of Digits | BC28: Sum of Digits | BD28: Sum of Digits | BI28: Sum of Digits | BJ28: Sum of Digits | BK28: Sum of Digits | BL28: Sum of Digits
E29: If asset life input: base case or terminate? | F29: =INDEX(AP29:BS29,,m_scenario) -> Base case | AP29: Base case | AQ29: Base case | AR29: Base case | AS29: Base case | AT29: Base case | AU29: Base case | AV29: Base case | AW29: Base case | AX29: Base case | AY29: Base case | AZ29: Base case | BA29: Base case | BB29: Base case | BC29: Base case | BD29: Base case | BI29: Base case | BJ29: Base case | BK29: Base case | BL29: Base case
E30: If base case, RIIO-3 additions asset life | F30: =INDEX(AP30:BS30,,m_scenario) -> 45 | AP30: 45 | AQ30: 45 | AR30: 45 | AS30: 45 | AT30: 45 | AU30: 45 | AV30: 45 | AW30: 45 | AX30: 45 | AY30: 45 | AZ30: 45 | BA30: 45 | BB30: 45 | BC30: 45 | BD30: 45 | BI30: 45 | BJ30: 45 | BK30: 45 | BL30: 45
E31: If terminate, input year of final depreciation | F31: =INDEX(AP31:BS31,,m_scenario) -> 2050 | G31: =IF(F29="Terminate", "Active", "Inactive") -> Inactive | AP31: 2050 | AQ31: 2050 | AR31: 2050 | AS31: 2050 | AT31: 2050 | AU31: 2050 | AV31: 2050 | AW31: 2050 | AX31: 2050 | AY31: 2050 | AZ31: 2050 | BA31: 2050 | BB31: 2050 | BC31: 2050 | BD31: 2050 | BI31: 2050 | BJ31: 2050 | BK31: 2050 | BL31: 2050
E32: Post-vesting treatment: status quo, accelerate or terminate? | F32: =INDEX(AP32:BS32,,m_scenario) -> Status quo | AP32: Status quo | AQ32: Status quo | AR32: Status quo | AS32: Status quo | AT32: Status quo | AU32: Status quo | AV32: Status quo | AW32: Status quo | AX32: Status quo | AY32: Status quo | AZ32: Status quo | BA32: Status quo | BB32: Status quo | BC32: Status quo | BD32: Status quo | BI32: Status quo | BJ32: Status quo | BK32: Status quo | BL32: Status quo
E33: If accelerate, pre-RIIO-3 additions accelerated asset life | F33: =INDEX(AP33:BS33,,m_scenario) -> 45 | G33: =IF(OR(F32="Status quo",F32="RIIO3 reset"), "Inactive", "Active") -> Inactive | AP33: 45 | AQ33: 45 | AR33: 45 | AS33: 45 | AT33: 45 | AU33: 45 | AV33: 45 | AW33: 45 | AX33: 45 | AY33: 45 | AZ33: 45 | BA33: 45 | BB33: 45 | BC33: 45 | BD33: 45 | BI33: 45 | BJ33: 45 | BK33: 45 | BL33: 45
E34: If terminate, input year of final depreciation | F34: =INDEX(AP34:BS34,,m_scenario) -> 2060 | G34: =IF(OR(F32="Terminate",F32="RIIO3 reset"), "Active", "Inactive") -> Inactive | AP34: 2060 | AQ34: 2060 | AR34: 2060 | AS34: 2060 | AT34: 2060 | AU34: 2060 | AV34: 2060 | AW34: 2060 | AX34: 2060 | AY34: 2060 | AZ34: 2060 | BA34: 2060 | BB34: 2060 | BC34: 2060 | BD34: 2060 | BI34: 2060 | BJ34: 2060 | BK34: 2060 | BL34: 2060
E35: Pre-vesting treatment: status quo or terminate? | F35: =INDEX(AP35:BS35,,m_scenario) -> Status quo | AP35: Status quo | AQ35: Status quo | AR35: Status quo | AS35: Status quo | AT35: Status quo | AU35: Status quo | AV35: Status quo | AW35: Status quo | AX35: Status quo | AY35: Status quo | AZ35: Status quo | BA35: Status quo | BB35: Status quo | BC35: Status quo | BD35: Status quo | BI35: Status quo | BJ35: Status quo | BK35: Status quo | BL35: Status quo
E36: If terminate, input year of final depreciation | F36: =INDEX(AP36:BS36,,m_scenario) -> 2060 | G36: =IF(F35="Status quo", "Inactive", "Active") -> Inactive | AP36: 2060 | AQ36: 2060 | AR36: 2060 | AS36: 2060 | AT36: 2060 | AU36: 2060 | AV36: 2060 | AW36: 2060 | AX36: 2060 | AY36: 2060 | AZ36: 2060 | BA36: 2060 | BB36: 2060 | BC36: 2060 | BD36: 2060 | BI36: 2060 | BJ36: 2060 | BK36: 2060 | BL36: 2060
D38: Allowed Cost of capital
E39: Allowed cost of Debt input: scenario input or Licensee inputs? | F39: =INDEX(AP39:BS39,,m_scenario) -> Licensee inputs | AP39: Licensee inputs | AQ39: Scenario input | AR39: Scenario input | AS39: Licensee inputs | AT39: Licensee inputs | AU39: Licensee inputs | AV39: Licensee inputs | AW39: Licensee inputs | AX39: Licensee inputs | AY39: Licensee inputs | AZ39: Licensee inputs | BA39: Licensee inputs | BB39: Licensee inputs | BC39: Licensee inputs | BD39: Licensee inputs | BI39: Licensee inputs | BJ39: Licensee inputs | BK39: Licensee inputs | BL39: Licensee inputs
E40: If scenario input, CoD figures to use | F40: =INDEX(AP40:BS40,,m_scenario) -> Base | AP40: Base | AQ40: High (+2%) | AR40: Low (-2%) | AS40: Base | AT40: Base | AU40: Base | AV40: Base | AW40: Base | AX40: Base | AY40: Base | AZ40: Base | BA40: Base | BB40: Base | BC40: Base | BD40: Base | BI40: Base | BJ40: Base | BK40: Base | BL40: Base
E41: Allowed cost of Equity input: scenario input or Licensee inputs? | F41: =INDEX(AP41:BS41,,m_scenario) -> Licensee inputs | AP41: Licensee inputs | AQ41: Scenario input | AR41: Scenario input | AS41: Licensee inputs | AT41: Licensee inputs | AU41: Licensee inputs | AV41: Licensee inputs | AW41: Licensee inputs | AX41: Licensee inputs | AY41: Licensee inputs | AZ41: Licensee inputs | BA41: Licensee inputs | BB41: Licensee inputs | BC41: Licensee inputs | BD41: Licensee inputs | BI41: Licensee inputs | BJ41: Licensee inputs | BK41: Licensee inputs | BL41: Licensee inputs
E42: If scenario input, CoE figures to use | F42: =INDEX(AP42:BS42,,m_scenario) -> Base | AP42: Base | AQ42: High (+2%) | AR42: Low (-2%) | AS42: Base | AT42: Base | AU42: Base | AV42: Base | AW42: Base | AX42: Base | AY42: Base | AZ42: Base | BA42: Base | BB42: Base | BC42: Base | BD42: Base | BI42: Base | BJ42: Base | BK42: Base | BL42: Base
E43: Notional gearing | F43: =INDEX(AP43:BS43,,m_scenario) -> 0.6 | AP43: 0.6 | AQ43: 0.6 | AR43: 0.6 | AS43: 0.6 | AT43: 0.6 | AU43: 0.6 | AV43: 0.6 | AW43: 0.6 | AX43: 0.6 | AY43: 0.6 | AZ43: 0.6 | BA43: 0.6 | BB43: 0.6 | BC43: 0.6 | BD43: 0.6 | BI43: 0.6 | BJ43: 0.6 | BK43: 0.6 | BL43: 0.6
D45: Finance
E46: Forecast near-term RPI debt inflation | F46: =INDEX(AP46:BS46,,m_scenario) -> Mar'25 OBR (financial year) | AP46: Mar'25 OBR (financial year) | AQ46: Mar'25 OBR (financial year) | AR46: Mar'25 OBR (financial year) | AS46: High additional increment (FY) | AT46: Low additional increment (FY) | AU46: Mar'25 OBR (financial year) | AV46: Mar'25 OBR (financial year) | AW46: High diverg +0.5% additional increment (FY) | AX46: Low diverg -0.5% additional increment (FY) | AY46: Mar'25 OBR (financial year) | AZ46: Mar'25 OBR (financial year) | BA46: Mar'25 OBR (financial year) | BB46: Low additional increment (FY) | BC46: Mar'25 OBR (financial year) | BD46: Mar'25 OBR (financial year) | BI46: Mar'25 OBR (financial year) | BJ46: Mar'25 OBR (financial year) | BL46: Mar'25 OBR (financial year)
E47: Forecast near-term CPIH debt inflation | F47: =INDEX(AP47:BS47,,m_scenario) -> Mar'25 OBR (financial year) | AP47: Mar'25 OBR (financial year) | AQ47: Mar'25 OBR (financial year) | AR47: Mar'25 OBR (financial year) | AS47: High additional increment (FY) | AT47: High additional increment (FY) | AU47: High diverg +0.5% additional increment (FY) | AV47: Low diverg -0.5% additional increment (FY) | AW47: Mar'25 OBR (financial year) | AX47: Mar'25 OBR (financial year) | AY47: Mar'25 OBR (financial year) | AZ47: Mar'25 OBR (financial year) | BA47: Mar'25 OBR (financial year) | BB47: Low additional increment (FY) | BC47: Mar'25 OBR (financial year) | BD47: Mar'25 OBR (financial year) | BI47: Mar'25 OBR (financial year) | BJ47: Mar'25 OBR (financial year) | BL47: Mar'25 OBR (financial year)
E48: Minimum equity issuance threshold | F48: =INDEX(AP48:BS48,,m_scenario) -> Zero | AP48: Zero | AQ48: Zero | AR48: Zero | AS48: Zero | AT48: Zero | AU48: Zero | AV48: Zero | AW48: Zero | AX48: Zero | AY48: Zero | AZ48: Zero | BA48: Zero | BB48: Zero | BC48: Zero | BD48: Zero | BI48: Zero | BJ48: Zero | BK48: Zero | BL48: Zero
E49: Equity issuance costs | F49: =INDEX(AP49:BS49,,m_scenario) -> 0.05 | AP49: 0.05 | AQ49: 0.05 | AR49: 0.05 | AS49: 0.05 | AT49: 0.05 | AU49: 0.05 | AV49: 0.05 | AW49: 0.05 | AX49: 0.05 | AY49: 0.05 | AZ49: 0.05 | BA49: 0.05 | BB49: 0.05 | BC49: 0.05 | BD49: 0.05 | BI49: 0.05 | BJ49: 0.05 | BK49: 0.05 | BL49: 0.05
E50: Assumed dividends as % of equity | F50: =INDEX(AP50:BS50,,m_scenario) -> 0.03 | AP50: 0.03 | AQ50: 0.03 | AR50: 0.03 | AS50: 0.03 | AT50: 0.03 | AU50: 0.03 | AV50: 0.03 | AW50: 0.03 | AX50: 0.03 | AY50: 0.03 | AZ50: 0.03 | BA50: 0.03 | BB50: 0.03 | BC50: 0.03 | BD50: 0.03 | BI50: 0.03 | BJ50: 0.03 | BK50: 0.03 | BL50: 0.03
E51: Assumed return of capital as % of equity | F51: =INDEX(AP51:BS51,,m_scenario) -> Off | AP51: Off | AQ51: Off | AR51: Off | AS51: Off | AT51: Off | AU51: Off | AV51: Off | AW51: Off | AX51: Off | AY51: Off | AZ51: Off | BA51: Off | BB51: Off | BC51: Off | BD51: Off | BI51: Off | BJ51: Off | BK51: Off | BL51: Off
E52: Equity issuance gearing target | F52: =INDEX(AP52:BS52,,m_scenario) -> 0.6 | AP52: 0.6 | AQ52: 0.6 | AR52: 0.6 | AS52: 0.6 | AT52: 0.6 | AU52: 0.6 | AV52: 0.6 | AW52: 0.6 | AX52: 0.6 | AY52: 0.6 | AZ52: 0.6 | BA52: 0.6 | BB52: 0.6 | BC52: 0.6 | BD52: 0.6 | BI52: 0.6 | BJ52: 0.6 | BK52: 0.6 | BL52: 0.6
E53: CPIH index-linked debt as a percentage of net debt | F53: =INDEX(AP53:BS53,,m_scenario) -> 0.3 | AP53: 0.3 | AQ53: 0.3 | AR53: 0.3 | AS53: 0.3 | AT53: 0.3 | AU53: 0.3 | AV53: 0.3 | AW53: 0.3 | AX53: 0.3 | AY53: 0.3 | AZ53: 0.3 | BA53: 0.3 | BB53: 0.3 | BC53: 0.4 | BD53: 0.2 | BI53: 0.3 | BJ53: 0.3 | BK53: 0.3 | BL53: 0.3
E54: Annual interest rate inputs for actual debt | F54: =INDEX(AP54:BS54,,m_scenario) -> Base case | AP54: Base case | AQ54: High case (+2%) | AR54: Low case (-2%) | AS54: Base case | AT54: Base case | AU54: Base case | AV54: Base case | AW54: Base case | AX54: Base case | AY54: Base case | AZ54: Base case | BA54: Base case | BB54: Base case | BC54: Base case | BD54: Base case | BI54: Base case | BJ54: Base case | BK54: Base case | BL54: Base case
E55: SSMD cost of debt inflation approach | F55: =INDEX(AP55:BS55,,m_scenario) -> Option 1 | AP55: Option 1 | AQ55: Option 1 | AR55: Option 1 | AS55: Option 1 | AT55: Option 1 | AU55: Option 1 | AV55: Option 1 | AW55: Option 1 | AX55: Option 1 | AY55: Option 1 | AZ55: Option 1 | BA55: Option 1 | BB55: Option 1 | BC55: Option 1 | BD55: Option 1 | BI55: Status quo | BJ55: Option 1 | BK55: Option 1 | BL55: Option 1
E56: RPE Enabled? | F56: =INDEX(AP56:BS56,,m_scenario) -> TRUE | AP56: TRUE | AQ56: TRUE | AR56: TRUE | AS56: TRUE | AT56: TRUE | AU56: TRUE | AV56: TRUE | AW56: TRUE | AX56: TRUE | AY56: TRUE | AZ56: TRUE | BA56: TRUE | BB56: TRUE | BC56: TRUE | BD56: TRUE | BI56: TRUE | BJ56: TRUE | BK56: TRUE | BL56: TRUE
E57: Equity issuance timing | F57: =INDEX(AP57:BS57,,m_scenario) -> Late | AP57: Late | AQ57: Late | AR57: Late | AS57: Late | AT57: Late | AU57: Late | AV57: Late | AW57: Late | AX57: Late | AY57: Late | AZ57: Late | BA57: Late | BB57: Late | BC57: Late | BD57: Late | BI57: Late | BJ57: Late | BK57: Late | BL57: Late
E58: Constant gearing dividends | F58: =INDEX(AP58:BS58,,m_scenario) -> TRUE | AP58: TRUE | AQ58: TRUE | AR58: TRUE | AS58: TRUE | AT58: TRUE | AU58: TRUE | AV58: TRUE | AW58: TRUE | AX58: TRUE | AY58: TRUE | AZ58: TRUE | BA58: TRUE | BB58: TRUE | BC58: TRUE | BD58: TRUE | BI58: TRUE | BJ58: TRUE | BK58: TRUE | BL58: TRUE
E59: Net off debt headroom from notional interest (delete to switch off) | F59: =INDEX(AP59:BS59,,m_scenario) -> 0
E60: Apply revenue profiling adjustments for revenues or finaceability | F60: =INDEX(AP60:BS60,,m_scenario) -> Revenues | AP60: Revenues | AQ60: Off | AR60: Off | AS60: Off | AT60: Off | AU60: Off | AV60: Off | AW60: Off | AX60: Off | AY60: Off | AZ60: Off | BA60: Off | BB60: Off | BC60: Off | BD60: Off | BE60: Off | BF60: Off | BG60: Off | BH60: Off | BI60: Off | BJ60: Off | BK60: Off | BL60: Off
D61: Tax
E62: Corporation tax rate | F62: =INDEX(AP62:BS62,,m_scenario) -> 0.25 | AP62: 0.25 | AQ62: 0.25 | AR62: 0.25 | AS62: 0.25 | AT62: 0.25 | AU62: 0.25 | AV62: 0.25 | AW62: 0.25 | AX62: 0.25 | AY62: 0.25 | AZ62: 0.25 | BA62: 0.25 | BB62: 0.25 | BC62: 0.25 | BD62: 0.25 | BI62: 0.25 | BJ62: 0.25 | BK62: 0.25 | BL62: 0.25
... 58 more rows

Sheet MainInputs
A1: Input
B2: =UserInterface!G17 -> NGGT
E3: Parameter | F3: Licence condition | G3: Units | H3: Term | I3: Constant | AP3: Annual values
E4: PCFM year ending | F4: =Cover!C4 -> Model Version | I4: =UserInterface!$G$10 -> 2025-03-31 | K4: 1991-03-31 | L4: 1992-03-31 | M4: 1993-03-31 | N4: 1994-03-31 | O4: 1995-03-31 | P4: 1996-03-31 | Q4: 1997-03-31 | R4: 1998-03-31 | S4: 1999-03-31 | T4: 2000-03-31 | U4: 2001-03-31 | V4: 2002-03-31 | W4: 2003-03-31 | X4: 2004-03-31 | Y4: 2005-03-31 | Z4: 2006-03-31 | AA4: 2007-03-31 | AB4: 2008-03-31 | AC4: 2009-03-31 | AD4: 2010-03-31 | AE4: 2011-03-31 | AF4: 2012-03-31 | AG4: 2013-03-31 | AH4: 2014-03-31 | AI4: 2015-03-31 | AJ4: 2016-03-31 | AK4: 2017-03-31 | AL4: 2018-03-31 | AM4: 2019-03-31 | AN4: 2020-03-31 | AO4: 2021-03-31 | AP4: 2022-03-31 | AQ4: 2023-03-31 | AR4: 2024-03-31 | AS4: 2025-03-31 | AT4: 2026-03-31 | AU4: 2027-03-31 | AV4: 2028-03-31 | AW4: 2029-03-31 | AX4: 2030-03-31 | AY4: =EOMONTH(AX4,12) -> 2031-03-31
AP5: 2 | AQ5: 2 | AR5: 2 | AS5: 2 | AT5: 2 | AU5: 3 | AV5: 3 | AW5: 3 | AX5: 3 | AY5: 3
C7: Price control timeline
E9: Pre-RIIO-2 year | G9: flag | K9: =Scenarios!K$119 -> 1 | L9: =Scenarios!L$119 -> 1 | M9: =Scenarios!M$119 -> 1 | N9: =Scenarios!N$119 -> 1 | O9: =Scenarios!O$119 -> 1 | P9: =Scenarios!P$119 -> 1 | Q9: =Scenarios!Q$119 -> 1 | R9: =Scenarios!R$119 -> 1 | S9: =Scenarios!S$119 -> 1 | T9: =Scenarios!T$119 -> 1 | U9: =Scenarios!U$119 -> 1 | V9: =Scenarios!V$119 -> 1 | W9: =Scenarios!W$119 -> 1 | X9: =Scenarios!X$119 -> 1 | Y9: =Scenarios!Y$119 -> 1 | Z9: =Scenarios!Z$119 -> 1 | AA9: =Scenarios!AA$119 -> 1 | AB9: =Scenarios!AB$119 -> 1 | AC9: =Scenarios!AC$119 -> 1 | AD9: =Scenarios!AD$119 -> 1 | AE9: =Scenarios!AE$119 -> 1 | AF9: =Scenarios!AF$119 -> 1 | AG9: =Scenarios!AG$119 -> 1 | AH9: =Scenarios!AH$119 -> 1 | AI9: =Scenarios!AI$119 -> 1 | AJ9: =Scenarios!AJ$119 -> 1 | AK9: =Scenarios!AK$119 -> 1 | AL9: =Scenarios!AL$119 -> 1 | AM9: =Scenarios!AM$119 -> 1 | AN9: =Scenarios!AN$119 -> 1 | AO9: =Scenarios!AO$119 -> 1 | AP9: =Scenarios!AP$119 -> 0 | AQ9: =Scenarios!AQ$119 -> 0 | AR9: =Scenarios!AR$119 -> 0 | AS9: =Scenarios!AS$119 -> 0 | AT9: =Scenarios!AT$119 -> 0 | AU9: =Scenarios!AU$119 -> 0 | AV9: =Scenarios!AV$119 -> 0 | AW9: =Scenarios!AW$119 -> 0 | AX9: =Scenarios!AX$119 -> 0 | AY9: =Scenarios!AY$119 -> 0
E10: RIIO-2 year | G10: flag | K10: =Scenarios!K$120 -> 0 | L10: =Scenarios!L$120 -> 0 | M10: =Scenarios!M$120 -> 0 | N10: =Scenarios!N$120 -> 0 | O10: =Scenarios!O$120 -> 0 | P10: =Scenarios!P$120 -> 0 | Q10: =Scenarios!Q$120 -> 0 | R10: =Scenarios!R$120 -> 0 | S10: =Scenarios!S$120 -> 0 | T10: =Scenarios!T$120 -> 0 | U10: =Scenarios!U$120 -> 0 | V10: =Scenarios!V$120 -> 0 | W10: =Scenarios!W$120 -> 0 | X10: =Scenarios!X$120 -> 0 | Y10: =Scenarios!Y$120 -> 0 | Z10: =Scenarios!Z$120 -> 0 | AA10: =Scenarios!AA$120 -> 0 | AB10: =Scenarios!AB$120 -> 0 | AC10: =Scenarios!AC$120 -> 0 | AD10: =Scenarios!AD$120 -> 0 | AE10: =Scenarios!AE$120 -> 0 | AF10: =Scenarios!AF$120 -> 0 | AG10: =Scenarios!AG$120 -> 0 | AH10: =Scenarios!AH$120 -> 0 | AI10: =Scenarios!AI$120 -> 0 | AJ10: =Scenarios!AJ$120 -> 0 | AK10: =Scenarios!AK$120 -> 0 | AL10: =Scenarios!AL$120 -> 0 | AM10: =Scenarios!AM$120 -> 0 | AN10: =Scenarios!AN$120 -> 0 | AO10: =Scenarios!AO$120 -> 0 | AP10: =Scenarios!AP$120 -> 1 | AQ10: =Scenarios!AQ$120 -> 1 | AR10: =Scenarios!AR$120 -> 1 | AS10: =Scenarios!AS$120 -> 1 | AT10: =Scenarios!AT$120 -> 1 | AU10: =Scenarios!AU$120 -> 0 | AV10: =Scenarios!AV$120 -> 0 | AW10: =Scenarios!AW$120 -> 0 | AX10: =Scenarios!AX$120 -> 0 | AY10: =Scenarios!AY$120 -> 0
E11: RIIO-3 year | G11: flag | K11: =Scenarios!K$121 -> 0 | L11: =Scenarios!L$121 -> 0 | M11: =Scenarios!M$121 -> 0 | N11: =Scenarios!N$121 -> 0 | O11: =Scenarios!O$121 -> 0 | P11: =Scenarios!P$121 -> 0 | Q11: =Scenarios!Q$121 -> 0 | R11: =Scenarios!R$121 -> 0 | S11: =Scenarios!S$121 -> 0 | T11: =Scenarios!T$121 -> 0 | U11: =Scenarios!U$121 -> 0 | V11: =Scenarios!V$121 -> 0 | W11: =Scenarios!W$121 -> 0 | X11: =Scenarios!X$121 -> 0 | Y11: =Scenarios!Y$121 -> 0 | Z11: =Scenarios!Z$121 -> 0 | AA11: =Scenarios!AA$121 -> 0 | AB11: =Scenarios!AB$121 -> 0 | AC11: =Scenarios!AC$121 -> 0 | AD11: =Scenarios!AD$121 -> 0 | AE11: =Scenarios!AE$121 -> 0 | AF11: =Scenarios!AF$121 -> 0 | AG11: =Scenarios!AG$121 -> 0 | AH11: =Scenarios!AH$121 -> 0 | AI11: =Scenarios!AI$121 -> 0 | AJ11: =Scenarios!AJ$121 -> 0 | AK11: =Scenarios!AK$121 -> 0 | AL11: =Scenarios!AL$121 -> 0 | AM11: =Scenarios!AM$121 -> 0 | AN11: =Scenarios!AN$121 -> 0 | AO11: =Scenarios!AO$121 -> 0 | AP11: =Scenarios!AP$121 -> 0 | AQ11: =Scenarios!AQ$121 -> 0 | AR11: =Scenarios!AR$121 -> 0 | AS11: =Scenarios!AS$121 -> 0 | AT11: =Scenarios!AT$121 -> 0 | AU11: =Scenarios!AU$121 -> 1 | AV11: =Scenarios!AV$121 -> 1 | AW11: =Scenarios!AW$121 -> 1 | AX11: =Scenarios!AX$121 -> 1 | AY11: =Scenarios!AY$121 -> 1
E13: Price conversion: RIIO2 inputs to base price | G13: scalar | I13: =INDEX('Annual Inflation'!$AH$41:$AY$41,,MATCH('Annual Inflation'!$I$22,'Annual Inflation'!$AH$4:$AY$4,0))/'Annual Inflation'!AM41 -> 1.245415245
E14: Price conversion: RIIO3 inputs to base price | G14: scalar | I14: =INDEX('Annual Inflation'!$AH$41:$AY$41,,MATCH('Annual Inflation'!$I$22,'Annual Inflation'!$AH$4:$AY$4,0))/'Annual Inflation'!AR41 -> 1
C16: Scenario operators
E18: Allowed cost of debt input | G18: % | I18: =Scenarios!F39 -> Licensee inputs | AU18: =Scenarios!AU137 -> 0.02943603764 | AV18: =Scenarios!AV137 -> 0.03037696394 | AW18: =Scenarios!AW137 -> 0.03128527444 | AX18: =Scenarios!AX137 -> 0.03249896211 | AY18: =Scenarios!AY137 -> 0.03379126065
E19: Allowed cost of equity input | G19: % | I19: =Scenarios!F41 -> Licensee inputs | AU19: =Scenarios!AU144 -> 0.06118 | AV19: =Scenarios!AV144 -> 0.06118 | AW19: =Scenarios!AW144 -> 0.06118 | AX19: =Scenarios!AX144 -> 0.06118 | AY19: =Scenarios!AY144 -> 0.06118
E20: Notional gearing | G20: % | AU20: =Scenarios!$F43 -> 0.6 | AV20: =Scenarios!$F43 -> 0.6 | AW20: =Scenarios!$F43 -> 0.6 | AX20: =Scenarios!$F43 -> 0.6 | AY20: =Scenarios!$F43 -> 0.6
E22: Minimum equity issuance threshold | G22: % | AU22: =Scenarios!AU168 -> 0 | AV22: =Scenarios!AV168 -> 0 | AW22: =Scenarios!AW168 -> 0 | AX22: =Scenarios!AX168 -> 0 | AY22: =Scenarios!AY168 -> 0
E23: Equity issuance costs | G23: % | AU23: =Scenarios!AU183 -> 0.05 | AV23: =Scenarios!AV183 -> 0.05 | AW23: =Scenarios!AW183 -> 0.05 | AX23: =Scenarios!AX183 -> 0.05 | AY23: =Scenarios!AY183 -> 0.05
E24: Assumed dividends as % of equity | G24: % | AU24: =Scenarios!AU173 -> 0.03 | AV24: =Scenarios!AV173 -> 0.03 | AW24: =Scenarios!AW173 -> 0.03 | AX24: =Scenarios!AX173 -> 0.03 | AY24: =Scenarios!AY173 -> 0.03
E25: Assumed return of capital as % of equity | G25: % | AU25: =Scenarios!AU178 -> 0 | AV25: =Scenarios!AV178 -> 0 | AW25: =Scenarios!AW178 -> 0 | AX25: =Scenarios!AX178 -> 0 | AY25: =Scenarios!AY178 -> 0
E26: Equity issuance gearing target | G26: % | AU26: =Scenarios!AU185 -> 0.6 | AV26: =Scenarios!AV185 -> 0.6 | AW26: =Scenarios!AW185 -> 0.6 | AX26: =Scenarios!AX185 -> 0.6 | AY26: =Scenarios!AY185 -> 0.6
E27: CPIH index-linked debt as a percentage of net debt | G27: % | AU27: =Scenarios!AU186 -> 0.3 | AV27: =Scenarios!AV186 -> 0.3 | AW27: =Scenarios!AW186 -> 0.3 | AX27: =Scenarios!AX186 -> 0.3 | AY27: =Scenarios!AY186 -> 0.3
E29: RIIO-3 Funding Adjustment Rate ('sharing factor') | G29: % | I29: =Scenarios!$F19 -> 0.39
E31: Corporation tax rate | G31: % | AU31: =Scenarios!$F62 -> 0.25 | AV31: =Scenarios!$F62 -> 0.25 | AW31: =Scenarios!$F62 -> 0.25 | AX31: =Scenarios!$F62 -> 0.25 | AY31: =Scenarios!$F62 -> 0.25
E33: Incentive revenue based on Scenario input of % RoRE performance | G33: =price_label -> £m 23/24 prices | AU33: =Scenarios!AU257 -> 0 | AV33: =Scenarios!AV257 -> 0 | AW33: =Scenarios!AW257 -> 0 | AX33: =Scenarios!AX257 -> 0 | AY33: =Scenarios!AY257 -> 0
B35: Totex allowance
C37: Non-variant allowances (net of disposals)
C38: Note: Disposals net sales proceeds are deducted from non-variant "other capex".
E40: Non-variant allowed load related capex expenditure | G40: =price_label -> £m 23/24 prices | AP40: =AP$10*$I$13*'NGGT TO'!AP1015+AP$11*$I$14*'NGGT TO'!AP13 -> 0.3941752247 | AQ40: =AQ$10*$I$13*'NGGT TO'!AQ1015+AQ$11*$I$14*'NGGT TO'!AQ13 -> 1.577478362 | AR40: =AR$10*$I$13*'NGGT TO'!AR1015+AR$11*$I$14*'NGGT TO'!AR13 -> 0.8831721952 | AS40: =AS$10*$I$13*'NGGT TO'!AS1015+AS$11*$I$14*'NGGT TO'!AS13 -> 0.3970519155 | AT40: =AT$10*$I$13*'NGGT TO'!AT1015+AT$11*$I$14*'NGGT TO'!AT13 -> 0 | AU40: =AU$10*$I$13*'NGGT TO'!AU1015+AU$11*$I$14*'NGGT TO'!AU13 -> 0 | AV40: =AV$10*$I$13*'NGGT TO'!AV1015+AV$11*$I$14*'NGGT TO'!AV13 -> 0 | AW40: =AW$10*$I$13*'NGGT TO'!AW1015+AW$11*$I$14*'NGGT TO'!AW13 -> 0 | AX40: =AX$10*$I$13*'NGGT TO'!AX1015+AX$11*$I$14*'NGGT TO'!AX13 -> 0 | AY40: =AY$10*$I$13*'NGGT TO'!AY1015+AY$11*$I$14*'NGGT TO'!AY13 -> 0
E41: Non-variant allowed asset replacement capex expenditure | G41: £m 23/24 prices | AP41: =AP$10*$I$13*'NGGT TO'!AP1016+AP$11*$I$14*'NGGT TO'!AP14 -> 16.98726832 | AQ41: =AQ$10*$I$13*'NGGT TO'!AQ1016+AQ$11*$I$14*'NGGT TO'!AQ14 -> 6.666784304 | AR41: =AR$10*$I$13*'NGGT TO'!AR1016+AR$11*$I$14*'NGGT TO'!AR14 -> 20.08181016 | AS41: =AS$10*$I$13*'NGGT TO'!AS1016+AS$11*$I$14*'NGGT TO'!AS14 -> 19.89385421 | AT41: =AT$10*$I$13*'NGGT TO'!AT1016+AT$11*$I$14*'NGGT TO'!AT14 -> 13.74281294 | AU41: =AU$10*$I$13*'NGGT TO'!AU1016+AU$11*$I$14*'NGGT TO'!AU14 -> 46.74204902 | AV41: =AV$10*$I$13*'NGGT TO'!AV1016+AV$11*$I$14*'NGGT TO'!AV14 -> 28.67696037 | AW41: =AW$10*$I$13*'NGGT TO'!AW1016+AW$11*$I$14*'NGGT TO'!AW14 -> 34.68030112 | AX41: =AX$10*$I$13*'NGGT TO'!AX1016+AX$11*$I$14*'NGGT TO'!AX14 -> 27.35693481 | AY41: =AY$10*$I$13*'NGGT TO'!AY1016+AY$11*$I$14*'NGGT TO'!AY14 -> 39.30657426
E42: Non-variant allowed other capex expenditure (net of disposals) | G42: £m 23/24 prices | AP42: =AP$10*($I$13*'NGGT TO'!AP1017-AP1568)+AP$11*$I$14*'NGGT TO'!AP15 -> 0.7792047556 | AQ42: =AQ$10*($I$13*'NGGT TO'!AQ1017-AQ1568)+AQ$11*$I$14*'NGGT TO'!AQ15 -> 3.085977649 | AR42: =AR$10*($I$13*'NGGT TO'!AR1017-AR1568)+AR$11*$I$14*'NGGT TO'!AR15 -> 3.669036699 | AS42: =AS$10*($I$13*'NGGT TO'!AS1017-AS1568)+AS$11*$I$14*'NGGT TO'!AS15 -> 3.991347134 | AT42: =AT$10*($I$13*'NGGT TO'!AT1017-AT1568)+AT$11*$I$14*'NGGT TO'!AT15 -> 2.411691371 | AU42: =AU$10*($I$13*'NGGT TO'!AU1017-AU1568)+AU$11*$I$14*'NGGT TO'!AU15 -> 0 | AV42: =AV$10*($I$13*'NGGT TO'!AV1017-AV1568)+AV$11*$I$14*'NGGT TO'!AV15 -> 0 | AW42: =AW$10*($I$13*'NGGT TO'!AW1017-AW1568)+AW$11*$I$14*'NGGT TO'!AW15 -> 0 | AX42: =AX$10*($I$13*'NGGT TO'!AX1017-AX1568)+AX$11*$I$14*'NGGT TO'!AX15 -> 0 | AY42: =AY$10*($I$13*'NGGT TO'!AY1017-AY1568)+AY$11*$I$14*'NGGT TO'!AY15 -> 0
E43: Non-variant allowed non-load (opex) | G43: £m 23/24 prices | AP43: =AP$10*$I$13*'NGGT TO'!AP1018+AP$11*$I$14*'NGGT TO'!AP16 -> 52.74937003 | AQ43: =AQ$10*$I$13*'NGGT TO'!AQ1018+AQ$11*$I$14*'NGGT TO'!AQ16 -> 52.48123839 | AR43: =AR$10*$I$13*'NGGT TO'!AR1018+AR$11*$I$14*'NGGT TO'!AR16 -> 52.26821282 | AS43: =AS$10*$I$13*'NGGT TO'!AS1018+AS$11*$I$14*'NGGT TO'!AS16 -> 54.47577893 | AT43: =AT$10*$I$13*'NGGT TO'!AT1018+AT$11*$I$14*'NGGT TO'!AT16 -> 50.11787919 | AU43: =AU$10*$I$13*'NGGT TO'!AU1018+AU$11*$I$14*'NGGT TO'!AU16 -> 60.71686234 | AV43: =AV$10*$I$13*'NGGT TO'!AV1018+AV$11*$I$14*'NGGT TO'!AV16 -> 60.83820063 | AW43: =AW$10*$I$13*'NGGT TO'!AW1018+AW$11*$I$14*'NGGT TO'!AW16 -> 60.99013793 | AX43: =AX$10*$I$13*'NGGT TO'!AX1018+AX$11*$I$14*'NGGT TO'!AX16 -> 61.35390375 | AY43: =AY$10*$I$13*'NGGT TO'!AY1018+AY$11*$I$14*'NGGT TO'!AY16 -> 61.42372626
E44: Non-variant allowed indirects (opex) | G44: £m 23/24 prices | AP44: =AP$10*$I$13*'NGGT TO'!AP1019+AP$11*$I$14*'NGGT TO'!AP17 -> 77.99236308 | AQ44: =AQ$10*$I$13*'NGGT TO'!AQ1019+AQ$11*$I$14*'NGGT TO'!AQ17 -> 79.42685971 | AR44: =AR$10*$I$13*'NGGT TO'!AR1019+AR$11*$I$14*'NGGT TO'!AR17 -> 77.4454776 | AS44: =AS$10*$I$13*'NGGT TO'!AS1019+AS$11*$I$14*'NGGT TO'!AS17 -> 67.34743463 | AT44: =AT$10*$I$13*'NGGT TO'!AT1019+AT$11*$I$14*'NGGT TO'!AT17 -> 65.07256822 | AU44: =AU$10*$I$13*'NGGT TO'!AU1019+AU$11*$I$14*'NGGT TO'!AU17 -> 125.9033258 | AV44: =AV$10*$I$13*'NGGT TO'!AV1019+AV$11*$I$14*'NGGT TO'!AV17 -> 126.801682 | AW44: =AW$10*$I$13*'NGGT TO'!AW1019+AW$11*$I$14*'NGGT TO'!AW17 -> 126.047227 | AX44: =AX$10*$I$13*'NGGT TO'!AX1019+AX$11*$I$14*'NGGT TO'!AX17 -> 121.210277 | AY44: =AY$10*$I$13*'NGGT TO'!AY1019+AY$11*$I$14*'NGGT TO'!AY17 -> 116.8742659
E45: Non-variant allowed non-operational capex | G45: £m 23/24 prices | AP45: =AP$10*$I$13*'NGGT TO'!AP1020+AP$11*$I$14*'NGGT TO'!AP18 -> 32.5029471 | AQ45: =AQ$10*$I$13*'NGGT TO'!AQ1020+AQ$11*$I$14*'NGGT TO'!AQ18 -> 30.58925522 | AR45: =AR$10*$I$13*'NGGT TO'!AR1020+AR$11*$I$14*'NGGT TO'!AR18 -> 27.44994071 | AS45: =AS$10*$I$13*'NGGT TO'!AS1020+AS$11*$I$14*'NGGT TO'!AS18 -> 24.88445962 | AT45: =AT$10*$I$13*'NGGT TO'!AT1020+AT$11*$I$14*'NGGT TO'!AT18 -> 23.4950685 | AU45: =AU$10*$I$13*'NGGT TO'!AU1020+AU$11*$I$14*'NGGT TO'!AU18 -> 72.02038467 | AV45: =AV$10*$I$13*'NGGT TO'!AV1020+AV$11*$I$14*'NGGT TO'!AV18 -> 69.61083843 | AW45: =AW$10*$I$13*'NGGT TO'!AW1020+AW$11*$I$14*'NGGT TO'!AW18 -> 44.22689203 | AX45: =AX$10*$I$13*'NGGT TO'!AX1020+AX$11*$I$14*'NGGT TO'!AX18 -> 32.66063179 | AY45: =AY$10*$I$13*'NGGT TO'!AY1020+AY$11*$I$14*'NGGT TO'!AY18 -> 33.47696181
E46: Total | G46: £m 23/24 prices | AP46: =SUM(AP40:AP45) -> 181.4053285 | AQ46: 173.8275936 | AR46: 181.7976502 | AS46: 170.9899264 | AT46: 154.8400202 | AU46: 305.3826218 | AV46: 285.9276814 | AW46: 265.9445581 | AX46: 242.5817473 | AY46: 251.0815283
C48: Variant allowances (including Real Price Effects)
C49: Note: In the table below RPEs are aggregated in three groups: RPE non-variant allowances, PCDs and UMs. This allows to apply the correct capitalisation rate to each group.
E51: ='NGGT TO'!E23 -> Baseline Network Risk Output | F51: SpC 3.1 | G51: =price_label -> £m 23/24 prices | H51: NARMt | AP51: =AP$10*$I$13*'NGGT TO'!AP1025 + AP$11*$I$14*'NGGT TO'!AP23 -> 87.87268175 | AQ51: =AQ$10*$I$13*'NGGT TO'!AQ1025 + AQ$11*$I$14*'NGGT TO'!AQ23 -> 116.5708806 | AR51: =AR$10*$I$13*'NGGT TO'!AR1025 + AR$11*$I$14*'NGGT TO'!AR23 -> 99.35425704 | AS51: =AS$10*$I$13*'NGGT TO'!AS1025 + AS$11*$I$14*'NGGT TO'!AS23 -> 62.079914 | AT51: =AT$10*$I$13*'NGGT TO'!AT1025 + AT$11*$I$14*'NGGT TO'!AT23 -> 75.53170667 | AU51: =AU$10*$I$13*'NGGT TO'!AU1025 + AU$11*$I$14*'NGGT TO'!AU23 -> 97.27428896 | AV51: =AV$10*$I$13*'NGGT TO'!AV1025 + AV$11*$I$14*'NGGT TO'!AV23 -> 100.9962127 | AW51: =AW$10*$I$13*'NGGT TO'!AW1025 + AW$11*$I$14*'NGGT TO'!AW23 -> 113.6717918 | AX51: =AX$10*$I$13*'NGGT TO'!AX1025 + AX$11*$I$14*'NGGT TO'!AX23 -> 116.7290648 | AY51: =AY$10*$I$13*'NGGT TO'!AY1025 + AY$11*$I$14*'NGGT TO'!AY23 -> 146.6695059
E52: ='NGGT TO'!E24 -> NARM Asset Health Re-opener | F52: SpC 3.4 | G52: £m 23/24 prices | H52: PSUPt | AP52: =AP$10*$I$13*'NGGT TO'!AP1026 + AP$11*$I$14*'NGGT TO'!AP24 -> 11.95349687 | AQ52: =AQ$10*$I$13*'NGGT TO'!AQ1026 + AQ$11*$I$14*'NGGT TO'!AQ24 -> 18.55822809 | AR52: =AR$10*$I$13*'NGGT TO'!AR1026 + AR$11*$I$14*'NGGT TO'!AR24 -> 1.277495813 | AS52: =AS$10*$I$13*'NGGT TO'!AS1026 + AS$11*$I$14*'NGGT TO'!AS24 -> 0 | AT52: =AT$10*$I$13*'NGGT TO'!AT1026 + AT$11*$I$14*'NGGT TO'!AT24 -> 0 | AU52: =AU$10*$I$13*'NGGT TO'!AU1026 + AU$11*$I$14*'NGGT TO'!AU24 -> 0 | AV52: =AV$10*$I$13*'NGGT TO'!AV1026 + AV$11*$I$14*'NGGT TO'!AV24 -> 0 | AW52: =AW$10*$I$13*'NGGT TO'!AW1026 + AW$11*$I$14*'NGGT TO'!AW24 -> 0 | AX52: =AX$10*$I$13*'NGGT TO'!AX1026 + AX$11*$I$14*'NGGT TO'!AX24 -> 0 | AY52: =AY$10*$I$13*'NGGT TO'!AY1026 + AY$11*$I$14*'NGGT TO'!AY24 -> 0
E53: ='NGGT TO'!E25 -> Cyber resilience term Price Control Deliverable | F53: SpC 3.10 | G53: £m 23/24 prices | H53: BTRt | AP53: =AP$10*$I$13*'NGGT TO'!AP1027 + AP$11*$I$14*'NGGT TO'!AP25 -> 8.874858729 | AQ53: =AQ$10*$I$13*'NGGT TO'!AQ1027 + AQ$11*$I$14*'NGGT TO'!AQ25 -> 4.201636121 | AR53: =AR$10*$I$13*'NGGT TO'!AR1027 + AR$11*$I$14*'NGGT TO'!AR25 -> 0 | AS53: =AS$10*$I$13*'NGGT TO'!AS1027 + AS$11*$I$14*'NGGT TO'!AS25 -> 0 | AT53: =AT$10*$I$13*'NGGT TO'!AT1027 + AT$11*$I$14*'NGGT TO'!AT25 -> 0 | AU53: =AU$10*$I$13*'NGGT TO'!AU1027 + AU$11*$I$14*'NGGT TO'!AU25 -> 57.66719933 | AV53: =AV$10*$I$13*'NGGT TO'!AV1027 + AV$11*$I$14*'NGGT TO'!AV25 -> 60.45607397 | AW53: =AW$10*$I$13*'NGGT TO'!AW1027 + AW$11*$I$14*'NGGT TO'!AW25 -> 57.00628663 | AX53: =AX$10*$I$13*'NGGT TO'!AX1027 + AX$11*$I$14*'NGGT TO'!AX25 -> 48.05465879 | AY53: =AY$10*$I$13*'NGGT TO'!AY1027 + AY$11*$I$14*'NGGT TO'!AY25 -> 44.2990629
E54: ='NGGT TO'!E26 -> Cyber resilience Re-Opener | F54: SpC 3.12 | G54: £m 23/24 prices | H54: KLSt | AP54: =AP$10*$I$13*'NGGT TO'!AP1028 + AP$11*$I$14*'NGGT TO'!AP26 -> 0.4770715956 | AQ54: =AQ$10*$I$13*'NGGT TO'!AQ1028 + AQ$11*$I$14*'NGGT TO'!AQ26 -> 0 | AR54: =AR$10*$I$13*'NGGT TO'!AR1028 + AR$11*$I$14*'NGGT TO'!AR26 -> 0 | AS54: =AS$10*$I$13*'NGGT TO'!AS1028 + AS$11*$I$14*'NGGT TO'!AS26 -> 0 | AT54: =AT$10*$I$13*'NGGT TO'!AT1028 + AT$11*$I$14*'NGGT TO'!AT26 -> 0 | AU54: =AU$10*$I$13*'NGGT TO'!AU1028 + AU$11*$I$14*'NGGT TO'!AU26 -> 0 | AV54: =AV$10*$I$13*'NGGT TO'!AV1028 + AV$11*$I$14*'NGGT TO'!AV26 -> 0 | AW54: =AW$10*$I$13*'NGGT TO'!AW1028 + AW$11*$I$14*'NGGT TO'!AW26 -> 0 | AX54: =AX$10*$I$13*'NGGT TO'!AX1028 + AX$11*$I$14*'NGGT TO'!AX26 -> 0 | AY54: =AY$10*$I$13*'NGGT TO'!AY1028 + AY$11*$I$14*'NGGT TO'!AY26 -> 0
E55: ='NGGT TO'!E27 -> Cyber Use it or lose it allowance | F55: SpC 3.15 | G55: £m 23/24 prices | H55: NLAt | AP55: =AP$10*$I$13*'NGGT TO'!AP1029 + AP$11*$I$14*'NGGT TO'!AP27 -> 9.287420102 | AQ55: =AQ$10*$I$13*'NGGT TO'!AQ1029 + AQ$11*$I$14*'NGGT TO'!AQ27 -> 12.28069783 | AR55: =AR$10*$I$13*'NGGT TO'!AR1029 + AR$11*$I$14*'NGGT TO'!AR27 -> 14.84574017 | AS55: =AS$10*$I$13*'NGGT TO'!AS1029 + AS$11*$I$14*'NGGT TO'!AS27 -> 9.610809991 | AT55: =AT$10*$I$13*'NGGT TO'!AT1029 + AT$11*$I$14*'NGGT TO'!AT27 -> 11.75052315 | AU55: =AU$10*$I$13*'NGGT TO'!AU1029 + AU$11*$I$14*'NGGT TO'!AU27 -> 5.009285226 | AV55: =AV$10*$I$13*'NGGT TO'!AV1029 + AV$11*$I$14*'NGGT TO'!AV27 -> 5.440016462 | AW55: =AW$10*$I$13*'NGGT TO'!AW1029 + AW$11*$I$14*'NGGT TO'!AW27 -> 7.374744689 | AX55: =AX$10*$I$13*'NGGT TO'!AX1029 + AX$11*$I$14*'NGGT TO'!AX27 -> 0 | AY55: =AY$10*$I$13*'NGGT TO'!AY1029 + AY$11*$I$14*'NGGT TO'!AY27 -> 0
E56: ='NGGT TO'!E28 -> Resilience Activity Re-opener | F56: SpC 3.11 | G56: £m 23/24 prices | H56: CEPt | AP56: =AP$10*$I$13*'NGGT TO'!AP1030 + AP$11*$I$14*'NGGT TO'!AP28 -> 10.43931988 | AQ56: =AQ$10*$I$13*'NGGT TO'!AQ1030 + AQ$11*$I$14*'NGGT TO'!AQ28 -> 42.98273533 | AR56: =AR$10*$I$13*'NGGT TO'!AR1030 + AR$11*$I$14*'NGGT TO'!AR28 -> 74.10279255 | AS56: =AS$10*$I$13*'NGGT TO'!AS1030 + AS$11*$I$14*'NGGT TO'!AS28 -> 25.49958931 | AT56: =AT$10*$I$13*'NGGT TO'!AT1030 + AT$11*$I$14*'NGGT TO'!AT28 -> 1.253240997 | AU56: =AU$10*$I$13*'NGGT TO'!AU1030 + AU$11*$I$14*'NGGT TO'!AU28 -> 0.9963322 | AV56: =AV$10*$I$13*'NGGT TO'!AV1030 + AV$11*$I$14*'NGGT TO'!AV28 -> 1.4944983 | AW56: =AW$10*$I$13*'NGGT TO'!AW1030 + AW$11*$I$14*'NGGT TO'!AW28 -> 1.4944983 | AX56: =AX$10*$I$13*'NGGT TO'!AX1030 + AX$11*$I$14*'NGGT TO'!AX28 -> 2.98899658 | AY56: =AY$10*$I$13*'NGGT TO'!AY1030 + AY$11*$I$14*'NGGT TO'!AY28 -> 2.98899658
E57: ='NGGT TO'!E29 -> Physical Security Price Control Deliverable | F57: SpC 3.16 | G57: £m 23/24 prices | H57: RAt | AP57: =AP$10*$I$13*'NGGT TO'!AP1031 + AP$11*$I$14*'NGGT TO'!AP29 -> 3.944867484 | AQ57: =AQ$10*$I$13*'NGGT TO'!AQ1031 + AQ$11*$I$14*'NGGT TO'!AQ29 -> 24.50585172 | AR57: =AR$10*$I$13*'NGGT TO'!AR1031 + AR$11*$I$14*'NGGT TO'!AR29 -> 26.14092829 | AS57: =AS$10*$I$13*'NGGT TO'!AS1031 + AS$11*$I$14*'NGGT TO'!AS29 -> 16.01089306 | AT57: =AT$10*$I$13*'NGGT TO'!AT1031 + AT$11*$I$14*'NGGT TO'!AT29 -> 21.33928047 | AU57: =AU$10*$I$13*'NGGT TO'!AU1031 + AU$11*$I$14*'NGGT TO'!AU29 -> 29.81197787 | AV57: =AV$10*$I$13*'NGGT TO'!AV1031 + AV$11*$I$14*'NGGT TO'!AV29 -> 33.5950039 | AW57: =AW$10*$I$13*'NGGT TO'!AW1031 + AW$11*$I$14*'NGGT TO'!AW29 -> 25.69773748 | AX57: =AX$10*$I$13*'NGGT TO'!AX1031 + AX$11*$I$14*'NGGT TO'!AX29 -> 24.87203452 | AY57: =AY$10*$I$13*'NGGT TO'!AY1031 + AY$11*$I$14*'NGGT TO'!AY29 -> 21.1690557
E58: ='NGGT TO'!E30 -> Physical Security Price Control Deliverable - Re-Opener Element | F58: SpC 3.13 | G58: £m 23/24 prices | H58: FIOCt | AP58: =AP$10*$I$13*'NGGT TO'!AP1032 + AP$11*$I$14*'NGGT TO'!AP30 -> 0 | AQ58: =AQ$10*$I$13*'NGGT TO'!AQ1032 + AQ$11*$I$14*'NGGT TO'!AQ30 -> 0 | AR58: =AR$10*$I$13*'NGGT TO'!AR1032 + AR$11*$I$14*'NGGT TO'!AR30 -> 0 | AS58: =AS$10*$I$13*'NGGT TO'!AS1032 + AS$11*$I$14*'NGGT TO'!AS30 -> 0 | AT58: =AT$10*$I$13*'NGGT TO'!AT1032 + AT$11*$I$14*'NGGT TO'!AT30 -> 0 | AU58: =AU$10*$I$13*'NGGT TO'!AU1032 + AU$11*$I$14*'NGGT TO'!AU30 -> 0 | AV58: =AV$10*$I$13*'NGGT TO'!AV1032 + AV$11*$I$14*'NGGT TO'!AV30 -> 0 | AW58: =AW$10*$I$13*'NGGT TO'!AW1032 + AW$11*$I$14*'NGGT TO'!AW30 -> 0 | AX58: =AX$10*$I$13*'NGGT TO'!AX1032 + AX$11*$I$14*'NGGT TO'!AX30 -> 0 | AY58: =AY$10*$I$13*'NGGT TO'!AY1032 + AY$11*$I$14*'NGGT TO'!AY30 -> 0
E59: ='NGGT TO'!E31 -> Small Decarbonisation Projects Re-opener | F59: SpC 3.2 | G59: £m 23/24 prices | H59: CROTt | AP59: =AP$10*$I$13*'NGGT TO'!AP1033 + AP$11*$I$14*'NGGT TO'!AP31 -> 31.02313072 | AQ59: =AQ$10*$I$13*'NGGT TO'!AQ1033 + AQ$11*$I$14*'NGGT TO'!AQ31 -> 65.39657388 | AR59: =AR$10*$I$13*'NGGT TO'!AR1033 + AR$11*$I$14*'NGGT TO'!AR31 -> 107.7533688 | AS59: =AS$10*$I$13*'NGGT TO'!AS1033 + AS$11*$I$14*'NGGT TO'!AS31 -> 157.8184381 | AT59: =AT$10*$I$13*'NGGT TO'!AT1033 + AT$11*$I$14*'NGGT TO'!AT31 -> 145.0911552 | AU59: =AU$10*$I$13*'NGGT TO'!AU1033 + AU$11*$I$14*'NGGT TO'!AU31 -> 45.08 | AV59: =AV$10*$I$13*'NGGT TO'!AV1033 + AV$11*$I$14*'NGGT TO'!AV31 -> 25.06 | AW59: =AW$10*$I$13*'NGGT TO'!AW1033 + AW$11*$I$14*'NGGT TO'!AW31 -> 25.06 | AX59: =AX$10*$I$13*'NGGT TO'!AX1033 + AX$11*$I$14*'NGGT TO'!AX31 -> 0 | AY59: =AY$10*$I$13*'NGGT TO'!AY1033 + AY$11*$I$14*'NGGT TO'!AY31 -> 0
E60: ='NGGT TO'!E32 -> Decarbonisation Project Development Fund UIOLI | F60: SpC 3.3 | G60: £m 23/24 prices | H60: CRITt | AP60: =AP$10*$I$13*'NGGT TO'!AP1034 + AP$11*$I$14*'NGGT TO'!AP32 -> 4.406781458 | AQ60: =AQ$10*$I$13*'NGGT TO'!AQ1034 + AQ$11*$I$14*'NGGT TO'!AQ32 -> 2.602739644 | AR60: =AR$10*$I$13*'NGGT TO'!AR1034 + AR$11*$I$14*'NGGT TO'!AR32 -> 4.42122412 | AS60: =AS$10*$I$13*'NGGT TO'!AS1034 + AS$11*$I$14*'NGGT TO'!AS32 -> 1.668856428 | AT60: =AT$10*$I$13*'NGGT TO'!AT1034 + AT$11*$I$14*'NGGT TO'!AT32 -> 0 | AU60: =AU$10*$I$13*'NGGT TO'!AU1034 + AU$11*$I$14*'NGGT TO'!AU32 -> 0 | AV60: =AV$10*$I$13*'NGGT TO'!AV1034 + AV$11*$I$14*'NGGT TO'!AV32 -> 0 | AW60: =AW$10*$I$13*'NGGT TO'!AW1034 + AW$11*$I$14*'NGGT TO'!AW32 -> 0 | AX60: =AX$10*$I$13*'NGGT TO'!AX1034 + AX$11*$I$14*'NGGT TO'!AX32 -> 0 | AY60: =AY$10*$I$13*'NGGT TO'!AY1034 + AY$11*$I$14*'NGGT TO'!AY32 -> 0
E61: ='NGGT TO'!E33 -> Decarbonisation and Environmental Policy Re-Opener | F61: SpC 3.5 | G61: £m 23/24 prices | H61: RDFt | AP61: =AP$10*$I$13*'NGGT TO'!AP1035 + AP$11*$I$14*'NGGT TO'!AP33 -> 2.067389307 | AQ61: =AQ$10*$I$13*'NGGT TO'!AQ1035 + AQ$11*$I$14*'NGGT TO'!AQ33 -> 2.067389307 | AR61: =AR$10*$I$13*'NGGT TO'!AR1035 + AR$11*$I$14*'NGGT TO'!AR33 -> 2.067389307 | AS61: =AS$10*$I$13*'NGGT TO'!AS1035 + AS$11*$I$14*'NGGT TO'!AS33 -> 2.067389307 | AT61: =AT$10*$I$13*'NGGT TO'!AT1035 + AT$11*$I$14*'NGGT TO'!AT33 -> 2.067389307 | AU61: =AU$10*$I$13*'NGGT TO'!AU1035 + AU$11*$I$14*'NGGT TO'!AU33 -> 113.4689995 | AV61: =AV$10*$I$13*'NGGT TO'!AV1035 + AV$11*$I$14*'NGGT TO'!AV33 -> 67.14421896 | AW61: =AW$10*$I$13*'NGGT TO'!AW1035 + AW$11*$I$14*'NGGT TO'!AW33 -> 35.42918388 | AX61: =AX$10*$I$13*'NGGT TO'!AX1035 + AX$11*$I$14*'NGGT TO'!AX33 -> 5.45173131 | AY61: =AY$10*$I$13*'NGGT TO'!AY1035 + AY$11*$I$14*'NGGT TO'!AY33 -> 0
E62: ='NGGT TO'!E34 -> Spare PCD 1 | F62: 0 | G62: £m 23/24 prices | H62: 0 | AP62: =AP$10*$I$13*'NGGT TO'!AP1036 + AP$11*$I$14*'NGGT TO'!AP34 -> 0 | AQ62: =AQ$10*$I$13*'NGGT TO'!AQ1036 + AQ$11*$I$14*'NGGT TO'!AQ34 -> 0 | AR62: =AR$10*$I$13*'NGGT TO'!AR1036 + AR$11*$I$14*'NGGT TO'!AR34 -> 0 | AS62: =AS$10*$I$13*'NGGT TO'!AS1036 + AS$11*$I$14*'NGGT TO'!AS34 -> 0 | AT62: =AT$10*$I$13*'NGGT TO'!AT1036 + AT$11*$I$14*'NGGT TO'!AT34 -> 0 | AU62: =AU$10*$I$13*'NGGT TO'!AU1036 + AU$11*$I$14*'NGGT TO'!AU34 -> 0 | AV62: =AV$10*$I$13*'NGGT TO'!AV1036 + AV$11*$I$14*'NGGT TO'!AV34 -> 0 | AW62: =AW$10*$I$13*'NGGT TO'!AW1036 + AW$11*$I$14*'NGGT TO'!AW34 -> 0 | AX62: =AX$10*$I$13*'NGGT TO'!AX1036 + AX$11*$I$14*'NGGT TO'!AX34 -> 0 | AY62: =AY$10*$I$13*'NGGT TO'!AY1036 + AY$11*$I$14*'NGGT TO'!AY34 -> 0
... 75 more rows

Sheet Totex
A1: Totex
B2: =UserInterface!G17 -> NGGT
E3: Parameter | G3: Units | I3: Constant | AP3: Annual values
E4: PCFM year ending | I4: =UserInterface!$G$10 -> 2025-03-31 | K4: 1991-03-31 | L4: 1992-03-31 | M4: 1993-03-31 | N4: 1994-03-31 | O4: 1995-03-31 | P4: 1996-03-31 | Q4: 1997-03-31 | R4: 1998-03-31 | S4: 1999-03-31 | T4: 2000-03-31 | U4: 2001-03-31 | V4: 2002-03-31 | W4: 2003-03-31 | X4: 2004-03-31 | Y4: 2005-03-31 | Z4: 2006-03-31 | AA4: 2007-03-31 | AB4: 2008-03-31 | AC4: 2009-03-31 | AD4: 2010-03-31 | AE4: 2011-03-31 | AF4: 2012-03-31 | AG4: 2013-03-31 | AH4: 2014-03-31 | AI4: 2015-03-31 | AJ4: 2016-03-31 | AK4: 2017-03-31 | AL4: 2018-03-31 | AM4: 2019-03-31 | AN4: 2020-03-31 | AO4: 2021-03-31 | AP4: 2022-03-31 | AQ4: 2023-03-31 | AR4: 2024-03-31 | AS4: 2025-03-31 | AT4: 2026-03-31 | AU4: 2027-03-31 | AV4: 2028-03-31 | AW4: 2029-03-31 | AX4: 2030-03-31 | AY4: =EOMONTH(AX4,12) -> 2031-03-31
AP5: 2 | AQ5: 2 | AR5: 2 | AS5: 2 | AT5: 2 | AU5: 3 | AV5: 3 | AW5: 3 | AX5: 3 | AY5: 3
C7: Price control timeline
E9: Pre-RIIO-2 year | G9: flag | K9: =Scenarios!K$119 -> 1 | L9: =Scenarios!L$119 -> 1 | M9: =Scenarios!M$119 -> 1 | N9: =Scenarios!N$119 -> 1 | O9: =Scenarios!O$119 -> 1 | P9: =Scenarios!P$119 -> 1 | Q9: =Scenarios!Q$119 -> 1 | R9: =Scenarios!R$119 -> 1 | S9: =Scenarios!S$119 -> 1 | T9: =Scenarios!T$119 -> 1 | U9: =Scenarios!U$119 -> 1 | V9: =Scenarios!V$119 -> 1 | W9: =Scenarios!W$119 -> 1 | X9: =Scenarios!X$119 -> 1 | Y9: =Scenarios!Y$119 -> 1 | Z9: =Scenarios!Z$119 -> 1 | AA9: =Scenarios!AA$119 -> 1 | AB9: =Scenarios!AB$119 -> 1 | AC9: =Scenarios!AC$119 -> 1 | AD9: =Scenarios!AD$119 -> 1 | AE9: =Scenarios!AE$119 -> 1 | AF9: =Scenarios!AF$119 -> 1 | AG9: =Scenarios!AG$119 -> 1 | AH9: =Scenarios!AH$119 -> 1 | AI9: =Scenarios!AI$119 -> 1 | AJ9: =Scenarios!AJ$119 -> 1 | AK9: =Scenarios!AK$119 -> 1 | AL9: =Scenarios!AL$119 -> 1 | AM9: =Scenarios!AM$119 -> 1 | AN9: =Scenarios!AN$119 -> 1 | AO9: =Scenarios!AO$119 -> 1 | AP9: =Scenarios!AP$119 -> 0 | AQ9: =Scenarios!AQ$119 -> 0 | AR9: =Scenarios!AR$119 -> 0 | AS9: =Scenarios!AS$119 -> 0 | AT9: =Scenarios!AT$119 -> 0 | AU9: =Scenarios!AU$119 -> 0 | AV9: =Scenarios!AV$119 -> 0 | AW9: =Scenarios!AW$119 -> 0 | AX9: =Scenarios!AX$119 -> 0 | AY9: =Scenarios!AY$119 -> 0
E10: RIIO-2 year | G10: flag | K10: =Scenarios!K$120 -> 0 | L10: =Scenarios!L$120 -> 0 | M10: =Scenarios!M$120 -> 0 | N10: =Scenarios!N$120 -> 0 | O10: =Scenarios!O$120 -> 0 | P10: =Scenarios!P$120 -> 0 | Q10: =Scenarios!Q$120 -> 0 | R10: =Scenarios!R$120 -> 0 | S10: =Scenarios!S$120 -> 0 | T10: =Scenarios!T$120 -> 0 | U10: =Scenarios!U$120 -> 0 | V10: =Scenarios!V$120 -> 0 | W10: =Scenarios!W$120 -> 0 | X10: =Scenarios!X$120 -> 0 | Y10: =Scenarios!Y$120 -> 0 | Z10: =Scenarios!Z$120 -> 0 | AA10: =Scenarios!AA$120 -> 0 | AB10: =Scenarios!AB$120 -> 0 | AC10: =Scenarios!AC$120 -> 0 | AD10: =Scenarios!AD$120 -> 0 | AE10: =Scenarios!AE$120 -> 0 | AF10: =Scenarios!AF$120 -> 0 | AG10: =Scenarios!AG$120 -> 0 | AH10: =Scenarios!AH$120 -> 0 | AI10: =Scenarios!AI$120 -> 0 | AJ10: =Scenarios!AJ$120 -> 0 | AK10: =Scenarios!AK$120 -> 0 | AL10: =Scenarios!AL$120 -> 0 | AM10: =Scenarios!AM$120 -> 0 | AN10: =Scenarios!AN$120 -> 0 | AO10: =Scenarios!AO$120 -> 0 | AP10: =Scenarios!AP$120 -> 1 | AQ10: =Scenarios!AQ$120 -> 1 | AR10: =Scenarios!AR$120 -> 1 | AS10: =Scenarios!AS$120 -> 1 | AT10: =Scenarios!AT$120 -> 1 | AU10: =Scenarios!AU$120 -> 0 | AV10: =Scenarios!AV$120 -> 0 | AW10: =Scenarios!AW$120 -> 0 | AX10: =Scenarios!AX$120 -> 0 | AY10: =Scenarios!AY$120 -> 0
E11: RIIO-3 year | G11: flag | K11: =Scenarios!K$121 -> 0 | L11: =Scenarios!L$121 -> 0 | M11: =Scenarios!M$121 -> 0 | N11: =Scenarios!N$121 -> 0 | O11: =Scenarios!O$121 -> 0 | P11: =Scenarios!P$121 -> 0 | Q11: =Scenarios!Q$121 -> 0 | R11: =Scenarios!R$121 -> 0 | S11: =Scenarios!S$121 -> 0 | T11: =Scenarios!T$121 -> 0 | U11: =Scenarios!U$121 -> 0 | V11: =Scenarios!V$121 -> 0 | W11: =Scenarios!W$121 -> 0 | X11: =Scenarios!X$121 -> 0 | Y11: =Scenarios!Y$121 -> 0 | Z11: =Scenarios!Z$121 -> 0 | AA11: =Scenarios!AA$121 -> 0 | AB11: =Scenarios!AB$121 -> 0 | AC11: =Scenarios!AC$121 -> 0 | AD11: =Scenarios!AD$121 -> 0 | AE11: =Scenarios!AE$121 -> 0 | AF11: =Scenarios!AF$121 -> 0 | AG11: =Scenarios!AG$121 -> 0 | AH11: =Scenarios!AH$121 -> 0 | AI11: =Scenarios!AI$121 -> 0 | AJ11: =Scenarios!AJ$121 -> 0 | AK11: =Scenarios!AK$121 -> 0 | AL11: =Scenarios!AL$121 -> 0 | AM11: =Scenarios!AM$121 -> 0 | AN11: =Scenarios!AN$121 -> 0 | AO11: =Scenarios!AO$121 -> 0 | AP11: =Scenarios!AP$121 -> 0 | AQ11: =Scenarios!AQ$121 -> 0 | AR11: =Scenarios!AR$121 -> 0 | AS11: =Scenarios!AS$121 -> 0 | AT11: =Scenarios!AT$121 -> 0 | AU11: =Scenarios!AU$121 -> 1 | AV11: =Scenarios!AV$121 -> 1 | AW11: =Scenarios!AW$121 -> 1 | AX11: =Scenarios!AX$121 -> 1 | AY11: =Scenarios!AY$121 -> 1
C13: Scenario operators
E15: User multiplier for allowed totex | G15: % | AP15: =Scenarios!AP130 -> 0 | AQ15: =Scenarios!AQ130 -> 0 | AR15: =Scenarios!AR130 -> 0 | AS15: =Scenarios!AS130 -> 0 | AT15: =Scenarios!AT130 -> 0 | AU15: =Scenarios!AU130 -> 1 | AV15: =Scenarios!AV130 -> 1 | AW15: =Scenarios!AW130 -> 1 | AX15: =Scenarios!AX130 -> 1 | AY15: =Scenarios!AY130 -> 1
E16: User multiplier for actual totex | G16: % | AP16: =Scenarios!AP131 -> 0 | AQ16: =Scenarios!AQ131 -> 0 | AR16: =Scenarios!AR131 -> 0 | AS16: =Scenarios!AS131 -> 0 | AT16: =Scenarios!AT131 -> 0 | AU16: =Scenarios!AU131 -> 1 | AV16: =Scenarios!AV131 -> 1 | AW16: =Scenarios!AW131 -> 1 | AX16: =Scenarios!AX131 -> 1 | AY16: =Scenarios!AY131 -> 1
B18: Totex
C20: Allowed totex aggregated by sub-category
C21: Note: Totex is the sum of a number of cost categories, with all totex allowances falling under one (or more) of them. They have significance in the model as each sub-category can have its own set of tax pool allocation rules.
D23: Capitalisation rate 1 totex
E25: Load related capex | G25: =price_label -> £m 23/24 prices | AP25: =(MainInputs!AP40 + SUMPRODUCT((MainInputs!AP$1023:AP$1538) * (MainInputs!$H$1023:$H$1538 = $E25) * (MainInputs!$BD$1023:$BD$1538 = "CapRate 1 (Baseline)")))*(AP$10+AP$11*AP$15) -> 0.4233531268 | AQ25: =(MainInputs!AQ40 + SUMPRODUCT((MainInputs!AQ$1023:AQ$1538) * (MainInputs!$H$1023:$H$1538 = $E25) * (MainInputs!$BD$1023:$BD$1538 = "CapRate 1 (Baseline)")))*(AQ$10+AQ$11*AQ$15) -> 1.718603016 | AR25: =(MainInputs!AR40 + SUMPRODUCT((MainInputs!AR$1023:AR$1538) * (MainInputs!$H$1023:$H$1538 = $E25) * (MainInputs!$BD$1023:$BD$1538 = "CapRate 1 (Baseline)")))*(AR$10+AR$11*AR$15) -> 0.9155851335 | AS25: =(MainInputs!AS40 + SUMPRODUCT((MainInputs!AS$1023:AS$1538) * (MainInputs!$H$1023:$H$1538 = $E25) * (MainInputs!$BD$1023:$BD$1538 = "CapRate 1 (Baseline)")))*(AS$10+AS$11*AS$15) -> 0.4069552372 | AT25: =(MainInputs!AT40 + SUMPRODUCT((MainInputs!AT$1023:AT$1538) * (MainInputs!$H$1023:$H$1538 = $E25) * (MainInputs!$BD$1023:$BD$1538 = "CapRate 1 (Baseline)")))*(AT$10+AT$11*AT$15) -> 0 | AU25: =(MainInputs!AU40 + SUMPRODUCT((MainInputs!AU$1023:AU$1538) * (MainInputs!$H$1023:$H$1538 = $E25) * (MainInputs!$BD$1023:$BD$1538 = "CapRate 1 (Baseline)")))*(AU$10+AU$11*AU$15) -> 6.083254348 | AV25: =(MainInputs!AV40 + SUMPRODUCT((MainInputs!AV$1023:AV$1538) * (MainInputs!$H$1023:$H$1538 = $E25) * (MainInputs!$BD$1023:$BD$1538 = "CapRate 1 (Baseline)")))*(AV$10+AV$11*AV$15) -> 8.025479167 | AW25: =(MainInputs!AW40 + SUMPRODUCT((MainInputs!AW$1023:AW$1538) * (MainInputs!$H$1023:$H$1538 = $E25) * (MainInputs!$BD$1023:$BD$1538 = "CapRate 1 (Baseline)")))*(AW$10+AW$11*AW$15) -> 6.781926984 | AX25: =(MainInputs!AX40 + SUMPRODUCT((MainInputs!AX$1023:AX$1538) * (MainInputs!$H$1023:$H$1538 = $E25) * (MainInputs!$BD$1023:$BD$1538 = "CapRate 1 (Baseline)")))*(AX$10+AX$11*AX$15) -> 9.34938017 | AY25: =(MainInputs!AY40 + SUMPRODUCT((MainInputs!AY$1023:AY$1538) * (MainInputs!$H$1023:$H$1538 = $E25) * (MainInputs!$BD$1023:$BD$1538 = "CapRate 1 (Baseline)")))*(AY$10+AY$11*AY$15) -> 9.295886368
E26: Asset replacement capex | G26: £m 23/24 prices | AP26: =(MainInputs!AP41 + SUMPRODUCT((MainInputs!AP$1023:AP$1538) * (MainInputs!$H$1023:$H$1538 = $E26) * (MainInputs!$BD$1023:$BD$1538 = "CapRate 1 (Baseline)")))*(AP$10+AP$11*AP$15) -> 135.6780601 | AQ26: =(MainInputs!AQ41 + SUMPRODUCT((MainInputs!AQ$1023:AQ$1538) * (MainInputs!$H$1023:$H$1538 = $E26) * (MainInputs!$BD$1023:$BD$1538 = "CapRate 1 (Baseline)")))*(AQ$10+AQ$11*AQ$15) -> 177.8191952 | AR26: =(MainInputs!AR41 + SUMPRODUCT((MainInputs!AR$1023:AR$1538) * (MainInputs!$H$1023:$H$1538 = $E26) * (MainInputs!$BD$1023:$BD$1538 = "CapRate 1 (Baseline)")))*(AR$10+AR$11*AR$15) -> 165.8971914 | AS26: =(MainInputs!AS41 + SUMPRODUCT((MainInputs!AS$1023:AS$1538) * (MainInputs!$H$1023:$H$1538 = $E26) * (MainInputs!$BD$1023:$BD$1538 = "CapRate 1 (Baseline)")))*(AS$10+AS$11*AS$15) -> 121.2938679 | AT26: =(MainInputs!AT41 + SUMPRODUCT((MainInputs!AT$1023:AT$1538) * (MainInputs!$H$1023:$H$1538 = $E26) * (MainInputs!$BD$1023:$BD$1538 = "CapRate 1 (Baseline)")))*(AT$10+AT$11*AT$15) -> 163.1844138 | AU26: =(MainInputs!AU41 + SUMPRODUCT((MainInputs!AU$1023:AU$1538) * (MainInputs!$H$1023:$H$1538 = $E26) * (MainInputs!$BD$1023:$BD$1538 = "CapRate 1 (Baseline)")))*(AU$10+AU$11*AU$15) -> 223.8486322 | AV26: =(MainInputs!AV41 + SUMPRODUCT((MainInputs!AV$1023:AV$1538) * (MainInputs!$H$1023:$H$1538 = $E26) * (MainInputs!$BD$1023:$BD$1538 = "CapRate 1 (Baseline)")))*(AV$10+AV$11*AV$15) -> 217.7331292 | AW26: =(MainInputs!AW41 + SUMPRODUCT((MainInputs!AW$1023:AW$1538) * (MainInputs!$H$1023:$H$1538 = $E26) * (MainInputs!$BD$1023:$BD$1538 = "CapRate 1 (Baseline)")))*(AW$10+AW$11*AW$15) -> 265.7432344 | AX26: =(MainInputs!AX41 + SUMPRODUCT((MainInputs!AX$1023:AX$1538) * (MainInputs!$H$1023:$H$1538 = $E26) * (MainInputs!$BD$1023:$BD$1538 = "CapRate 1 (Baseline)")))*(AX$10+AX$11*AX$15) -> 240.3673447 | AY26: =(MainInputs!AY41 + SUMPRODUCT((MainInputs!AY$1023:AY$1538) * (MainInputs!$H$1023:$H$1538 = $E26) * (MainInputs!$BD$1023:$BD$1538 = "CapRate 1 (Baseline)")))*(AY$10+AY$11*AY$15) -> 285.8549942
E27: Other capex | G27: £m 23/24 prices | AP27: =(MainInputs!AP42 + SUMPRODUCT((MainInputs!AP$1023:AP$1538) * (MainInputs!$H$1023:$H$1538 = $E27) * (MainInputs!$BD$1023:$BD$1538 = "CapRate 1 (Baseline)")))*(AP$10+AP$11*AP$15) -> 3.298762224 | AQ27: =(MainInputs!AQ42 + SUMPRODUCT((MainInputs!AQ$1023:AQ$1538) * (MainInputs!$H$1023:$H$1538 = $E27) * (MainInputs!$BD$1023:$BD$1538 = "CapRate 1 (Baseline)")))*(AQ$10+AQ$11*AQ$15) -> 10.34351773 | AR27: =(MainInputs!AR42 + SUMPRODUCT((MainInputs!AR$1023:AR$1538) * (MainInputs!$H$1023:$H$1538 = $E27) * (MainInputs!$BD$1023:$BD$1538 = "CapRate 1 (Baseline)")))*(AR$10+AR$11*AR$15) -> 24.55010894 | AS27: =(MainInputs!AS42 + SUMPRODUCT((MainInputs!AS$1023:AS$1538) * (MainInputs!$H$1023:$H$1538 = $E27) * (MainInputs!$BD$1023:$BD$1538 = "CapRate 1 (Baseline)")))*(AS$10+AS$11*AS$15) -> 51.01479435 | AT27: =(MainInputs!AT42 + SUMPRODUCT((MainInputs!AT$1023:AT$1538) * (MainInputs!$H$1023:$H$1538 = $E27) * (MainInputs!$BD$1023:$BD$1538 = "CapRate 1 (Baseline)")))*(AT$10+AT$11*AT$15) -> 86.20571395 | AU27: =(MainInputs!AU42 + SUMPRODUCT((MainInputs!AU$1023:AU$1538) * (MainInputs!$H$1023:$H$1538 = $E27) * (MainInputs!$BD$1023:$BD$1538 = "CapRate 1 (Baseline)")))*(AU$10+AU$11*AU$15) -> 65.00574982 | AV27: =(MainInputs!AV42 + SUMPRODUCT((MainInputs!AV$1023:AV$1538) * (MainInputs!$H$1023:$H$1538 = $E27) * (MainInputs!$BD$1023:$BD$1538 = "CapRate 1 (Baseline)")))*(AV$10+AV$11*AV$15) -> 71.33920727 | AW27: =(MainInputs!AW42 + SUMPRODUCT((MainInputs!AW$1023:AW$1538) * (MainInputs!$H$1023:$H$1538 = $E27) * (MainInputs!$BD$1023:$BD$1538 = "CapRate 1 (Baseline)")))*(AW$10+AW$11*AW$15) -> 63.30932476 | AX27: =(MainInputs!AX42 + SUMPRODUCT((MainInputs!AX$1023:AX$1538) * (MainInputs!$H$1023:$H$1538 = $E27) * (MainInputs!$BD$1023:$BD$1538 = "CapRate 1 (Baseline)")))*(AX$10+AX$11*AX$15) -> 53.83980537 | AY27: =(MainInputs!AY42 + SUMPRODUCT((MainInputs!AY$1023:AY$1538) * (MainInputs!$H$1023:$H$1538 = $E27) * (MainInputs!$BD$1023:$BD$1538 = "CapRate 1 (Baseline)")))*(AY$10+AY$11*AY$15) -> 48.54283277
E28: Non-load opex | G28: £m 23/24 prices | AP28: =(MainInputs!AP43 + SUMPRODUCT((MainInputs!AP$1023:AP$1538) * (MainInputs!$H$1023:$H$1538 = $E28) * (MainInputs!$BD$1023:$BD$1538 = "CapRate 1 (Baseline)")))*(AP$10+AP$11*AP$15) -> 56.68117256 | AQ28: =(MainInputs!AQ43 + SUMPRODUCT((MainInputs!AQ$1023:AQ$1538) * (MainInputs!$H$1023:$H$1538 = $E28) * (MainInputs!$BD$1023:$BD$1538 = "CapRate 1 (Baseline)")))*(AQ$10+AQ$11*AQ$15) -> 57.34766525 | AR28: =(MainInputs!AR43 + SUMPRODUCT((MainInputs!AR$1023:AR$1538) * (MainInputs!$H$1023:$H$1538 = $E28) * (MainInputs!$BD$1023:$BD$1538 = "CapRate 1 (Baseline)")))*(AR$10+AR$11*AR$15) -> 54.99596348 | AS28: =(MainInputs!AS43 + SUMPRODUCT((MainInputs!AS$1023:AS$1538) * (MainInputs!$H$1023:$H$1538 = $E28) * (MainInputs!$BD$1023:$BD$1538 = "CapRate 1 (Baseline)")))*(AS$10+AS$11*AS$15) -> 58.65695068 | AT28: =(MainInputs!AT43 + SUMPRODUCT((MainInputs!AT$1023:AT$1538) * (MainInputs!$H$1023:$H$1538 = $E28) * (MainInputs!$BD$1023:$BD$1538 = "CapRate 1 (Baseline)")))*(AT$10+AT$11*AT$15) -> 58.60587903 | AU28: =(MainInputs!AU43 + SUMPRODUCT((MainInputs!AU$1023:AU$1538) * (MainInputs!$H$1023:$H$1538 = $E28) * (MainInputs!$BD$1023:$BD$1538 = "CapRate 1 (Baseline)")))*(AU$10+AU$11*AU$15) -> 60.33990719 | AV28: =(MainInputs!AV43 + SUMPRODUCT((MainInputs!AV$1023:AV$1538) * (MainInputs!$H$1023:$H$1538 = $E28) * (MainInputs!$BD$1023:$BD$1538 = "CapRate 1 (Baseline)")))*(AV$10+AV$11*AV$15) -> 61.13764968 | AW28: =(MainInputs!AW43 + SUMPRODUCT((MainInputs!AW$1023:AW$1538) * (MainInputs!$H$1023:$H$1538 = $E28) * (MainInputs!$BD$1023:$BD$1538 = "CapRate 1 (Baseline)")))*(AW$10+AW$11*AW$15) -> 62.10549627 | AX28: =(MainInputs!AX43 + SUMPRODUCT((MainInputs!AX$1023:AX$1538) * (MainInputs!$H$1023:$H$1538 = $E28) * (MainInputs!$BD$1023:$BD$1538 = "CapRate 1 (Baseline)")))*(AX$10+AX$11*AX$15) -> 63.33808209 | AY28: =(MainInputs!AY43 + SUMPRODUCT((MainInputs!AY$1023:AY$1538) * (MainInputs!$H$1023:$H$1538 = $E28) * (MainInputs!$BD$1023:$BD$1538 = "CapRate 1 (Baseline)")))*(AY$10+AY$11*AY$15) -> 64.37399712
E29: Indirects (opex) | G29: £m 23/24 prices | AP29: =(MainInputs!AP44 + SUMPRODUCT((MainInputs!AP$1023:AP$1538) * (MainInputs!$H$1023:$H$1538 = $E29) * (MainInputs!$BD$1023:$BD$1538 = "CapRate 1 (Baseline)")))*(AP$10+AP$11*AP$15) -> 86.72857743 | AQ29: =(MainInputs!AQ44 + SUMPRODUCT((MainInputs!AQ$1023:AQ$1538) * (MainInputs!$H$1023:$H$1538 = $E29) * (MainInputs!$BD$1023:$BD$1538 = "CapRate 1 (Baseline)")))*(AQ$10+AQ$11*AQ$15) -> 88.89389065 | AR29: =(MainInputs!AR44 + SUMPRODUCT((MainInputs!AR$1023:AR$1538) * (MainInputs!$H$1023:$H$1538 = $E29) * (MainInputs!$BD$1023:$BD$1538 = "CapRate 1 (Baseline)")))*(AR$10+AR$11*AR$15) -> 84.72253412 | AS29: =(MainInputs!AS44 + SUMPRODUCT((MainInputs!AS$1023:AS$1538) * (MainInputs!$H$1023:$H$1538 = $E29) * (MainInputs!$BD$1023:$BD$1538 = "CapRate 1 (Baseline)")))*(AS$10+AS$11*AS$15) -> 78.71664643 | AT29: =(MainInputs!AT44 + SUMPRODUCT((MainInputs!AT$1023:AT$1538) * (MainInputs!$H$1023:$H$1538 = $E29) * (MainInputs!$BD$1023:$BD$1538 = "CapRate 1 (Baseline)")))*(AT$10+AT$11*AT$15) -> 79.43651452 | AU29: =(MainInputs!AU44 + SUMPRODUCT((MainInputs!AU$1023:AU$1538) * (MainInputs!$H$1023:$H$1538 = $E29) * (MainInputs!$BD$1023:$BD$1538 = "CapRate 1 (Baseline)")))*(AU$10+AU$11*AU$15) -> 152.0612724 | AV29: =(MainInputs!AV44 + SUMPRODUCT((MainInputs!AV$1023:AV$1538) * (MainInputs!$H$1023:$H$1538 = $E29) * (MainInputs!$BD$1023:$BD$1538 = "CapRate 1 (Baseline)")))*(AV$10+AV$11*AV$15) -> 156.0406188 | AW29: =(MainInputs!AW44 + SUMPRODUCT((MainInputs!AW$1023:AW$1538) * (MainInputs!$H$1023:$H$1538 = $E29) * (MainInputs!$BD$1023:$BD$1538 = "CapRate 1 (Baseline)")))*(AW$10+AW$11*AW$15) -> 156.6342136 | AX29: =(MainInputs!AX44 + SUMPRODUCT((MainInputs!AX$1023:AX$1538) * (MainInputs!$H$1023:$H$1538 = $E29) * (MainInputs!$BD$1023:$BD$1538 = "CapRate 1 (Baseline)")))*(AX$10+AX$11*AX$15) -> 146.5755327 | AY29: =(MainInputs!AY44 + SUMPRODUCT((MainInputs!AY$1023:AY$1538) * (MainInputs!$H$1023:$H$1538 = $E29) * (MainInputs!$BD$1023:$BD$1538 = "CapRate 1 (Baseline)")))*(AY$10+AY$11*AY$15) -> 142.5577216
E30: Non-operational capex | G30: £m 23/24 prices | AP30: =(MainInputs!AP45 + SUMPRODUCT((MainInputs!AP$1023:AP$1538) * (MainInputs!$H$1023:$H$1538 = $E30) * (MainInputs!$BD$1023:$BD$1538 = "CapRate 1 (Baseline)")))*(AP$10+AP$11*AP$15) -> 34.90890199 | AQ30: =(MainInputs!AQ45 + SUMPRODUCT((MainInputs!AQ$1023:AQ$1538) * (MainInputs!$H$1023:$H$1538 = $E30) * (MainInputs!$BD$1023:$BD$1538 = "CapRate 1 (Baseline)")))*(AQ$10+AQ$11*AQ$15) -> 33.32583669 | AR30: =(MainInputs!AR45 + SUMPRODUCT((MainInputs!AR$1023:AR$1538) * (MainInputs!$H$1023:$H$1538 = $E30) * (MainInputs!$BD$1023:$BD$1538 = "CapRate 1 (Baseline)")))*(AR$10+AR$11*AR$15) -> 28.45736966 | AS30: =(MainInputs!AS45 + SUMPRODUCT((MainInputs!AS$1023:AS$1538) * (MainInputs!$H$1023:$H$1538 = $E30) * (MainInputs!$BD$1023:$BD$1538 = "CapRate 1 (Baseline)")))*(AS$10+AS$11*AS$15) -> 25.50513112 | AT30: =(MainInputs!AT45 + SUMPRODUCT((MainInputs!AT$1023:AT$1538) * (MainInputs!$H$1023:$H$1538 = $E30) * (MainInputs!$BD$1023:$BD$1538 = "CapRate 1 (Baseline)")))*(AT$10+AT$11*AT$15) -> 23.80903804 | AU30: =(MainInputs!AU45 + SUMPRODUCT((MainInputs!AU$1023:AU$1538) * (MainInputs!$H$1023:$H$1538 = $E30) * (MainInputs!$BD$1023:$BD$1538 = "CapRate 1 (Baseline)")))*(AU$10+AU$11*AU$15) -> 71.57325263 | AV30: =(MainInputs!AV45 + SUMPRODUCT((MainInputs!AV$1023:AV$1538) * (MainInputs!$H$1023:$H$1538 = $E30) * (MainInputs!$BD$1023:$BD$1538 = "CapRate 1 (Baseline)")))*(AV$10+AV$11*AV$15) -> 69.95346689 | AW30: =(MainInputs!AW45 + SUMPRODUCT((MainInputs!AW$1023:AW$1538) * (MainInputs!$H$1023:$H$1538 = $E30) * (MainInputs!$BD$1023:$BD$1538 = "CapRate 1 (Baseline)")))*(AW$10+AW$11*AW$15) -> 45.03569219 | AX30: =(MainInputs!AX45 + SUMPRODUCT((MainInputs!AX$1023:AX$1538) * (MainInputs!$H$1023:$H$1538 = $E30) * (MainInputs!$BD$1023:$BD$1538 = "CapRate 1 (Baseline)")))*(AX$10+AX$11*AX$15) -> 33.71687294 | AY30: =(MainInputs!AY45 + SUMPRODUCT((MainInputs!AY$1023:AY$1538) * (MainInputs!$H$1023:$H$1538 = $E30) * (MainInputs!$BD$1023:$BD$1538 = "CapRate 1 (Baseline)")))*(AY$10+AY$11*AY$15) -> 35.08490895
D32: Capitalisation rate 2 totex
E34: Load related capex | G34: =price_label -> £m 23/24 prices | AP34: =(SUMPRODUCT((MainInputs!AP$1023:AP$1538) * (MainInputs!$H$1023:$H$1538 = $E34) * (MainInputs!$BD$1023:$BD$1538 = "CapRate 2 (UM)")))*(AP$10+AP$11*AP$15) -> 2.067389307 | AQ34: =(SUMPRODUCT((MainInputs!AQ$1023:AQ$1538) * (MainInputs!$H$1023:$H$1538 = $E34) * (MainInputs!$BD$1023:$BD$1538 = "CapRate 2 (UM)")))*(AQ$10+AQ$11*AQ$15) -> 2.067389307 | AR34: =(SUMPRODUCT((MainInputs!AR$1023:AR$1538) * (MainInputs!$H$1023:$H$1538 = $E34) * (MainInputs!$BD$1023:$BD$1538 = "CapRate 2 (UM)")))*(AR$10+AR$11*AR$15) -> 2.067389307 | AS34: =(SUMPRODUCT((MainInputs!AS$1023:AS$1538) * (MainInputs!$H$1023:$H$1538 = $E34) * (MainInputs!$BD$1023:$BD$1538 = "CapRate 2 (UM)")))*(AS$10+AS$11*AS$15) -> 2.067389307 | AT34: =(SUMPRODUCT((MainInputs!AT$1023:AT$1538) * (MainInputs!$H$1023:$H$1538 = $E34) * (MainInputs!$BD$1023:$BD$1538 = "CapRate 2 (UM)")))*(AT$10+AT$11*AT$15) -> 2.067389307 | AU34: =(SUMPRODUCT((MainInputs!AU$1023:AU$1538) * (MainInputs!$H$1023:$H$1538 = $E34) * (MainInputs!$BD$1023:$BD$1538 = "CapRate 2 (UM)")))*(AU$10+AU$11*AU$15) -> 0 | AV34: =(SUMPRODUCT((MainInputs!AV$1023:AV$1538) * (MainInputs!$H$1023:$H$1538 = $E34) * (MainInputs!$BD$1023:$BD$1538 = "CapRate 2 (UM)")))*(AV$10+AV$11*AV$15) -> 0 | AW34: =(SUMPRODUCT((MainInputs!AW$1023:AW$1538) * (MainInputs!$H$1023:$H$1538 = $E34) * (MainInputs!$BD$1023:$BD$1538 = "CapRate 2 (UM)")))*(AW$10+AW$11*AW$15) -> 0 | AX34: =(SUMPRODUCT((MainInputs!AX$1023:AX$1538) * (MainInputs!$H$1023:$H$1538 = $E34) * (MainInputs!$BD$1023:$BD$1538 = "CapRate 2 (UM)")))*(AX$10+AX$11*AX$15) -> 0 | AY34: =(SUMPRODUCT((MainInputs!AY$1023:AY$1538) * (MainInputs!$H$1023:$H$1538 = $E34) * (MainInputs!$BD$1023:$BD$1538 = "CapRate 2 (UM)")))*(AY$10+AY$11*AY$15) -> 0
E35: Asset replacement capex | G35: £m 23/24 prices | AP35: =(SUMPRODUCT((MainInputs!AP$1023:AP$1538) * (MainInputs!$H$1023:$H$1538 = $E35) * (MainInputs!$BD$1023:$BD$1538 = "CapRate 2 (UM)")))*(AP$10+AP$11*AP$15) -> 23.00242966 | AQ35: =(SUMPRODUCT((MainInputs!AQ$1023:AQ$1538) * (MainInputs!$H$1023:$H$1538 = $E35) * (MainInputs!$BD$1023:$BD$1538 = "CapRate 2 (UM)")))*(AQ$10+AQ$11*AQ$15) -> 43.39193689 | AR35: =(SUMPRODUCT((MainInputs!AR$1023:AR$1538) * (MainInputs!$H$1023:$H$1538 = $E35) * (MainInputs!$BD$1023:$BD$1538 = "CapRate 2 (UM)")))*(AR$10+AR$11*AR$15) -> 79.30560484 | AS35: =(SUMPRODUCT((MainInputs!AS$1023:AS$1538) * (MainInputs!$H$1023:$H$1538 = $E35) * (MainInputs!$BD$1023:$BD$1538 = "CapRate 2 (UM)")))*(AS$10+AS$11*AS$15) -> 113.2614043 | AT35: =(SUMPRODUCT((MainInputs!AT$1023:AT$1538) * (MainInputs!$H$1023:$H$1538 = $E35) * (MainInputs!$BD$1023:$BD$1538 = "CapRate 2 (UM)")))*(AT$10+AT$11*AT$15) -> 103.873893 | AU35: =(SUMPRODUCT((MainInputs!AU$1023:AU$1538) * (MainInputs!$H$1023:$H$1538 = $E35) * (MainInputs!$BD$1023:$BD$1538 = "CapRate 2 (UM)")))*(AU$10+AU$11*AU$15) -> 276.5938221 | AV35: =(SUMPRODUCT((MainInputs!AV$1023:AV$1538) * (MainInputs!$H$1023:$H$1538 = $E35) * (MainInputs!$BD$1023:$BD$1538 = "CapRate 2 (UM)")))*(AV$10+AV$11*AV$15) -> 269.2416929 | AW35: =(SUMPRODUCT((MainInputs!AW$1023:AW$1538) * (MainInputs!$H$1023:$H$1538 = $E35) * (MainInputs!$BD$1023:$BD$1538 = "CapRate 2 (UM)")))*(AW$10+AW$11*AW$15) -> 221.5874349 | AX35: =(SUMPRODUCT((MainInputs!AX$1023:AX$1538) * (MainInputs!$H$1023:$H$1538 = $E35) * (MainInputs!$BD$1023:$BD$1538 = "CapRate 2 (UM)")))*(AX$10+AX$11*AX$15) -> 121.3477572 | AY35: =(SUMPRODUCT((MainInputs!AY$1023:AY$1538) * (MainInputs!$H$1023:$H$1538 = $E35) * (MainInputs!$BD$1023:$BD$1538 = "CapRate 2 (UM)")))*(AY$10+AY$11*AY$15) -> 84.69658314
E36: Other capex | G36: £m 23/24 prices | AP36: =(SUMPRODUCT((MainInputs!AP$1023:AP$1538) * (MainInputs!$H$1023:$H$1538 = $E36) * (MainInputs!$BD$1023:$BD$1538 = "CapRate 2 (UM)")))*(AP$10+AP$11*AP$15) -> 38.32315798 | AQ36: =(SUMPRODUCT((MainInputs!AQ$1023:AQ$1538) * (MainInputs!$H$1023:$H$1538 = $E36) * (MainInputs!$BD$1023:$BD$1538 = "CapRate 2 (UM)")))*(AQ$10+AQ$11*AQ$15) -> 74.14531589 | AR36: =(SUMPRODUCT((MainInputs!AR$1023:AR$1538) * (MainInputs!$H$1023:$H$1538 = $E36) * (MainInputs!$BD$1023:$BD$1538 = "CapRate 2 (UM)")))*(AR$10+AR$11*AR$15) -> 92.86785932 | AS36: =(SUMPRODUCT((MainInputs!AS$1023:AS$1538) * (MainInputs!$H$1023:$H$1538 = $E36) * (MainInputs!$BD$1023:$BD$1538 = "CapRate 2 (UM)")))*(AS$10+AS$11*AS$15) -> 134.1456724 | AT36: =(SUMPRODUCT((MainInputs!AT$1023:AT$1538) * (MainInputs!$H$1023:$H$1538 = $E36) * (MainInputs!$BD$1023:$BD$1538 = "CapRate 2 (UM)")))*(AT$10+AT$11*AT$15) -> 123.3274819 | AU36: =(SUMPRODUCT((MainInputs!AU$1023:AU$1538) * (MainInputs!$H$1023:$H$1538 = $E36) * (MainInputs!$BD$1023:$BD$1538 = "CapRate 2 (UM)")))*(AU$10+AU$11*AU$15) -> 41.9244 | AV36: =(SUMPRODUCT((MainInputs!AV$1023:AV$1538) * (MainInputs!$H$1023:$H$1538 = $E36) * (MainInputs!$BD$1023:$BD$1538 = "CapRate 2 (UM)")))*(AV$10+AV$11*AV$15) -> 23.3058 | AW36: =(SUMPRODUCT((MainInputs!AW$1023:AW$1538) * (MainInputs!$H$1023:$H$1538 = $E36) * (MainInputs!$BD$1023:$BD$1538 = "CapRate 2 (UM)")))*(AW$10+AW$11*AW$15) -> 23.3058 | AX36: =(SUMPRODUCT((MainInputs!AX$1023:AX$1538) * (MainInputs!$H$1023:$H$1538 = $E36) * (MainInputs!$BD$1023:$BD$1538 = "CapRate 2 (UM)")))*(AX$10+AX$11*AX$15) -> 0 | AY36: =(SUMPRODUCT((MainInputs!AY$1023:AY$1538) * (MainInputs!$H$1023:$H$1538 = $E36) * (MainInputs!$BD$1023:$BD$1538 = "CapRate 2 (UM)")))*(AY$10+AY$11*AY$15) -> 0
E37: Non-load opex | G37: £m 23/24 prices | AP37: =(SUMPRODUCT((MainInputs!AP$1023:AP$1538) * (MainInputs!$H$1023:$H$1538 = $E37) * (MainInputs!$BD$1023:$BD$1538 = "CapRate 2 (UM)")))*(AP$10+AP$11*AP$15) -> 0 | AQ37: =(SUMPRODUCT((MainInputs!AQ$1023:AQ$1538) * (MainInputs!$H$1023:$H$1538 = $E37) * (MainInputs!$BD$1023:$BD$1538 = "CapRate 2 (UM)")))*(AQ$10+AQ$11*AQ$15) -> 0 | AR37: =(SUMPRODUCT((MainInputs!AR$1023:AR$1538) * (MainInputs!$H$1023:$H$1538 = $E37) * (MainInputs!$BD$1023:$BD$1538 = "CapRate 2 (UM)")))*(AR$10+AR$11*AR$15) -> 0 | AS37: =(SUMPRODUCT((MainInputs!AS$1023:AS$1538) * (MainInputs!$H$1023:$H$1538 = $E37) * (MainInputs!$BD$1023:$BD$1538 = "CapRate 2 (UM)")))*(AS$10+AS$11*AS$15) -> 0 | AT37: =(SUMPRODUCT((MainInputs!AT$1023:AT$1538) * (MainInputs!$H$1023:$H$1538 = $E37) * (MainInputs!$BD$1023:$BD$1538 = "CapRate 2 (UM)")))*(AT$10+AT$11*AT$15) -> 0 | AU37: =(SUMPRODUCT((MainInputs!AU$1023:AU$1538) * (MainInputs!$H$1023:$H$1538 = $E37) * (MainInputs!$BD$1023:$BD$1538 = "CapRate 2 (UM)")))*(AU$10+AU$11*AU$15) -> 3.1556 | AV37: =(SUMPRODUCT((MainInputs!AV$1023:AV$1538) * (MainInputs!$H$1023:$H$1538 = $E37) * (MainInputs!$BD$1023:$BD$1538 = "CapRate 2 (UM)")))*(AV$10+AV$11*AV$15) -> 1.7542 | AW37: =(SUMPRODUCT((MainInputs!AW$1023:AW$1538) * (MainInputs!$H$1023:$H$1538 = $E37) * (MainInputs!$BD$1023:$BD$1538 = "CapRate 2 (UM)")))*(AW$10+AW$11*AW$15) -> 1.7542 | AX37: =(SUMPRODUCT((MainInputs!AX$1023:AX$1538) * (MainInputs!$H$1023:$H$1538 = $E37) * (MainInputs!$BD$1023:$BD$1538 = "CapRate 2 (UM)")))*(AX$10+AX$11*AX$15) -> 0 | AY37: =(SUMPRODUCT((MainInputs!AY$1023:AY$1538) * (MainInputs!$H$1023:$H$1538 = $E37) * (MainInputs!$BD$1023:$BD$1538 = "CapRate 2 (UM)")))*(AY$10+AY$11*AY$15) -> 0
E38: Indirects (opex) | G38: £m 23/24 prices | AP38: =(SUMPRODUCT((MainInputs!AP$1023:AP$1538) * (MainInputs!$H$1023:$H$1538 = $E38) * (MainInputs!$BD$1023:$BD$1538 = "CapRate 2 (UM)")))*(AP$10+AP$11*AP$15) -> 5.432849093 | AQ38: =(SUMPRODUCT((MainInputs!AQ$1023:AQ$1538) * (MainInputs!$H$1023:$H$1538 = $E38) * (MainInputs!$BD$1023:$BD$1538 = "CapRate 2 (UM)")))*(AQ$10+AQ$11*AQ$15) -> 13.16083232 | AR38: =(SUMPRODUCT((MainInputs!AR$1023:AR$1538) * (MainInputs!$H$1023:$H$1538 = $E38) * (MainInputs!$BD$1023:$BD$1538 = "CapRate 2 (UM)")))*(AR$10+AR$11*AR$15) -> 18.57135668 | AS38: =(SUMPRODUCT((MainInputs!AS$1023:AS$1538) * (MainInputs!$H$1023:$H$1538 = $E38) * (MainInputs!$BD$1023:$BD$1538 = "CapRate 2 (UM)")))*(AS$10+AS$11*AS$15) -> 27.90512807 | AT38: =(SUMPRODUCT((MainInputs!AT$1023:AT$1538) * (MainInputs!$H$1023:$H$1538 = $E38) * (MainInputs!$BD$1023:$BD$1538 = "CapRate 2 (UM)")))*(AT$10+AT$11*AT$15) -> 34.32366113 | AU38: =(SUMPRODUCT((MainInputs!AU$1023:AU$1538) * (MainInputs!$H$1023:$H$1538 = $E38) * (MainInputs!$BD$1023:$BD$1538 = "CapRate 2 (UM)")))*(AU$10+AU$11*AU$15) -> 0 | AV38: =(SUMPRODUCT((MainInputs!AV$1023:AV$1538) * (MainInputs!$H$1023:$H$1538 = $E38) * (MainInputs!$BD$1023:$BD$1538 = "CapRate 2 (UM)")))*(AV$10+AV$11*AV$15) -> 0 | AW38: =(SUMPRODUCT((MainInputs!AW$1023:AW$1538) * (MainInputs!$H$1023:$H$1538 = $E38) * (MainInputs!$BD$1023:$BD$1538 = "CapRate 2 (UM)")))*(AW$10+AW$11*AW$15) -> 0 | AX38: =(SUMPRODUCT((MainInputs!AX$1023:AX$1538) * (MainInputs!$H$1023:$H$1538 = $E38) * (MainInputs!$BD$1023:$BD$1538 = "CapRate 2 (UM)")))*(AX$10+AX$11*AX$15) -> 0 | AY38: =(SUMPRODUCT((MainInputs!AY$1023:AY$1538) * (MainInputs!$H$1023:$H$1538 = $E38) * (MainInputs!$BD$1023:$BD$1538 = "CapRate 2 (UM)")))*(AY$10+AY$11*AY$15) -> 0
E39: Non-operational capex | G39: £m 23/24 prices | AP39: =(SUMPRODUCT((MainInputs!AP$1023:AP$1538) * (MainInputs!$H$1023:$H$1538 = $E39) * (MainInputs!$BD$1023:$BD$1538 = "CapRate 2 (UM)")))*(AP$10+AP$11*AP$15) -> 0 | AQ39: =(SUMPRODUCT((MainInputs!AQ$1023:AQ$1538) * (MainInputs!$H$1023:$H$1538 = $E39) * (MainInputs!$BD$1023:$BD$1538 = "CapRate 2 (UM)")))*(AQ$10+AQ$11*AQ$15) -> 0.6015355633 | AR39: =(SUMPRODUCT((MainInputs!AR$1023:AR$1538) * (MainInputs!$H$1023:$H$1538 = $E39) * (MainInputs!$BD$1023:$BD$1538 = "CapRate 2 (UM)")))*(AR$10+AR$11*AR$15) -> 2.00885479 | AS39: =(SUMPRODUCT((MainInputs!AS$1023:AS$1538) * (MainInputs!$H$1023:$H$1538 = $E39) * (MainInputs!$BD$1023:$BD$1538 = "CapRate 2 (UM)")))*(AS$10+AS$11*AS$15) -> 2.038744756 | AT39: =(SUMPRODUCT((MainInputs!AT$1023:AT$1538) * (MainInputs!$H$1023:$H$1538 = $E39) * (MainInputs!$BD$1023:$BD$1538 = "CapRate 2 (UM)")))*(AT$10+AT$11*AT$15) -> 1.612812742 | AU39: =(SUMPRODUCT((MainInputs!AU$1023:AU$1538) * (MainInputs!$H$1023:$H$1538 = $E39) * (MainInputs!$BD$1023:$BD$1538 = "CapRate 2 (UM)")))*(AU$10+AU$11*AU$15) -> 0 | AV39: =(SUMPRODUCT((MainInputs!AV$1023:AV$1538) * (MainInputs!$H$1023:$H$1538 = $E39) * (MainInputs!$BD$1023:$BD$1538 = "CapRate 2 (UM)")))*(AV$10+AV$11*AV$15) -> 39 | AW39: =(SUMPRODUCT((MainInputs!AW$1023:AW$1538) * (MainInputs!$H$1023:$H$1538 = $E39) * (MainInputs!$BD$1023:$BD$1538 = "CapRate 2 (UM)")))*(AW$10+AW$11*AW$15) -> 39 | AX39: =(SUMPRODUCT((MainInputs!AX$1023:AX$1538) * (MainInputs!$H$1023:$H$1538 = $E39) * (MainInputs!$BD$1023:$BD$1538 = "CapRate 2 (UM)")))*(AX$10+AX$11*AX$15) -> 0 | AY39: =(SUMPRODUCT((MainInputs!AY$1023:AY$1538) * (MainInputs!$H$1023:$H$1538 = $E39) * (MainInputs!$BD$1023:$BD$1538 = "CapRate 2 (UM)")))*(AY$10+AY$11*AY$15) -> 0
D41: Allowance
E43: Allowed load related capex expenditure | G43: =price_label -> £m 23/24 prices | AP43: =AP25 + AP34 -> 2.490742433 | AQ43: 3.785992322 | AR43: 2.98297444 | AS43: 2.474344544 | AT43: 2.067389307 | AU43: 6.083254348 | AV43: 8.025479167 | AW43: 6.781926984 | AX43: 9.34938017 | AY43: 9.295886368
E44: Allowed asset replacement capex expenditure | G44: £m 23/24 prices | AP44: =AP26 + AP35 -> 158.6804898 | AQ44: 221.2111321 | AR44: 245.2027962 | AS44: 234.5552722 | AT44: 267.0583069 | AU44: 500.4424543 | AV44: 486.974822 | AW44: 487.3306693 | AX44: 361.7151019 | AY44: 370.5515773
E45: Allowed other capex expenditure | G45: £m 23/24 prices | AP45: =AP27 + AP36 -> 41.6219202 | AQ45: 84.48883362 | AR45: 117.4179683 | AS45: 185.1604667 | AT45: 209.5331959 | AU45: 106.9301498 | AV45: 94.64500727 | AW45: 86.61512476 | AX45: 53.83980537 | AY45: 48.54283277
E46: Allowed non-load (opex) | G46: £m 23/24 prices | AP46: =AP28 + AP37 -> 56.68117256 | AQ46: 57.34766525 | AR46: 54.99596348 | AS46: 58.65695068 | AT46: 58.60587903 | AU46: 63.49550719 | AV46: 62.89184968 | AW46: 63.85969627 | AX46: 63.33808209 | AY46: 64.37399712
E47: Allowed indirects (opex) | G47: £m 23/24 prices | AP47: =AP29 + AP38 -> 92.16142652 | AQ47: 102.054723 | AR47: 103.2938908 | AS47: 106.6217745 | AT47: 113.7601757 | AU47: 152.0612724 | AV47: 156.0406188 | AW47: 156.6342136 | AX47: 146.5755327 | AY47: 142.5577216
E48: Allowed non-operational capex | G48: £m 23/24 prices | AP48: =AP30 + AP39 -> 34.90890199 | AQ48: 33.92737225 | AR48: 30.46622445 | AS48: 27.54387587 | AT48: 25.42185079 | AU48: 71.57325263 | AV48: 108.9534669 | AW48: 84.03569219 | AX48: 33.71687294 | AY48: 35.08490895
E49: Allowed totex | G49: £m 23/24 prices | AP49: =SUM(AP43:AP48) -> 386.5446535 | AQ49: 502.8157185 | AR49: 554.3598177 | AS49: 615.0126845 | AT49: 676.4467975 | AU49: 900.5858907 | AV49: 917.5312438 | AW49: 885.2573231 | AX49: 668.5347751 | AY49: 670.4069241
C51: Actual totex
D53: Source of actuals
D54: Note: If the actual totex inputs are zero, the model will use allowances as the forecast.
E56: Actual totex inputs | G56: text | AP56: =IF(MainInputs!AP238+MainInputs!AP247<>0,1,0) -> 1 | AQ56: =IF(MainInputs!AQ238+MainInputs!AQ247<>0,1,0) -> 1 | AR56: =IF(MainInputs!AR238+MainInputs!AR247<>0,1,0) -> 1 | AS56: =IF(MainInputs!AS238+MainInputs!AS247<>0,1,0) -> 1 | AT56: =IF(MainInputs!AT238+MainInputs!AT247<>0,1,0) -> 1 | AU56: =IF(MainInputs!AU238+MainInputs!AU247<>0,1,0) -> 0 | AV56: =IF(MainInputs!AV238+MainInputs!AV247<>0,1,0) -> 0 | AW56: =IF(MainInputs!AW238+MainInputs!AW247<>0,1,0) -> 0 | AX56: =IF(MainInputs!AX238+MainInputs!AX247<>0,1,0) -> 0 | AY56: =IF(MainInputs!AY238+MainInputs!AY247<>0,1,0) -> 0
E57: Allowances used as forecast actuals | G57: text | AP57: =1-AP56 -> 0 | AQ57: =1-AQ56 -> 0 | AR57: 0 | AS57: 0 | AT57: 0 | AU57: 1 | AV57: 1 | AW57: 1 | AX57: 1 | AY57: 1
D59: Actual totex (historic and forecasted)
D60: Note: Actuals are exported both to identify performance against the allowance and to generate writing down allowances used in the tax calculation.
E62: Capitalisation rate 1 totex
E64: Load related capex | G64: =price_label -> £m 23/24 prices | AP64: =(MainInputs!AP232*AP$56 + AP25*AP$57)*(AP$10+AP$11*AP$16) -> 6.333206675 | AQ64: =(MainInputs!AQ232*AQ$56 + AQ25*AQ$57)*(AQ$10+AQ$11*AQ$16) -> 5.028990414 | AR64: =(MainInputs!AR232*AR$56 + AR25*AR$57)*(AR$10+AR$11*AR$16) -> 2.92804283 | AS64: =(MainInputs!AS232*AS$56 + AS25*AS$57)*(AS$10+AS$11*AS$16) -> 4.75901775 | AT64: =(MainInputs!AT232*AT$56 + AT25*AT$57)*(AT$10+AT$11*AT$16) -> 3.058283135 | AU64: =(MainInputs!AU232*AU$56 + AU25*AU$57)*(AU$10+AU$11*AU$16) -> 6.083254348 | AV64: =(MainInputs!AV232*AV$56 + AV25*AV$57)*(AV$10+AV$11*AV$16) -> 8.025479167 | AW64: =(MainInputs!AW232*AW$56 + AW25*AW$57)*(AW$10+AW$11*AW$16) -> 6.781926984 | AX64: =(MainInputs!AX232*AX$56 + AX25*AX$57)*(AX$10+AX$11*AX$16) -> 9.34938017 | AY64: =(MainInputs!AY232*AY$56 + AY25*AY$57)*(AY$10+AY$11*AY$16) -> 9.295886368
E65: Asset replacement capex | G65: £m 23/24 prices | AP65: =(MainInputs!AP233*AP$56 + AP26*AP$57)*(AP$10+AP$11*AP$16) -> 130.9799173 | AQ65: =(MainInputs!AQ233*AQ$56 + AQ26*AQ$57)*(AQ$10+AQ$11*AQ$16) -> 172.3465259 | AR65: =(MainInputs!AR233*AR$56 + AR26*AR$57)*(AR$10+AR$11*AR$16) -> 178.2894361 | AS65: =(MainInputs!AS233*AS$56 + AS26*AS$57)*(AS$10+AS$11*AS$16) -> 195.0039422 | AT65: =(MainInputs!AT233*AT$56 + AT26*AT$57)*(AT$10+AT$11*AT$16) -> 266.9358335 | AU65: =(MainInputs!AU233*AU$56 + AU26*AU$57)*(AU$10+AU$11*AU$16) -> 223.8486322 | AV65: =(MainInputs!AV233*AV$56 + AV26*AV$57)*(AV$10+AV$11*AV$16) -> 217.7331292 | AW65: =(MainInputs!AW233*AW$56 + AW26*AW$57)*(AW$10+AW$11*AW$16) -> 265.7432344 | AX65: =(MainInputs!AX233*AX$56 + AX26*AX$57)*(AX$10+AX$11*AX$16) -> 240.3673447 | AY65: =(MainInputs!AY233*AY$56 + AY26*AY$57)*(AY$10+AY$11*AY$16) -> 285.8549942
E66: Other capex (net of disposals) | G66: £m 23/24 prices | AP66: =(MainInputs!AP234*AP$56 + AP27*AP$57)*(AP$10+AP$11*AP$16)-MainInputs!AP1568*AP11 -> 39.50071544 | AQ66: =(MainInputs!AQ234*AQ$56 + AQ27*AQ$57)*(AQ$10+AQ$11*AQ$16)-MainInputs!AQ1568*AQ11 -> 74.18616114 | AR66: =(MainInputs!AR234*AR$56 + AR27*AR$57)*(AR$10+AR$11*AR$16)-MainInputs!AR1568*AR11 -> 95.10785641 | AS66: =(MainInputs!AS234*AS$56 + AS27*AS$57)*(AS$10+AS$11*AS$16)-MainInputs!AS1568*AS11 -> 128.1212245 | AT66: =(MainInputs!AT234*AT$56 + AT27*AT$57)*(AT$10+AT$11*AT$16)-MainInputs!AT1568*AT11 -> 143.6825793 | AU66: =(MainInputs!AU234*AU$56 + AU27*AU$57)*(AU$10+AU$11*AU$16)-MainInputs!AU1568*AU11 -> 65.00574982 | AV66: =(MainInputs!AV234*AV$56 + AV27*AV$57)*(AV$10+AV$11*AV$16)-MainInputs!AV1568*AV11 -> 71.33920727 | AW66: =(MainInputs!AW234*AW$56 + AW27*AW$57)*(AW$10+AW$11*AW$16)-MainInputs!AW1568*AW11 -> 63.30932476 | AX66: =(MainInputs!AX234*AX$56 + AX27*AX$57)*(AX$10+AX$11*AX$16)-MainInputs!AX1568*AX11 -> 53.83980537 | AY66: =(MainInputs!AY234*AY$56 + AY27*AY$57)*(AY$10+AY$11*AY$16)-MainInputs!AY1568*AY11 -> 48.54283277
E67: Non-load opex | G67: £m 23/24 prices | AP67: =(MainInputs!AP235*AP$56 + AP28*AP$57)*(AP$10+AP$11*AP$16) -> 51.35377304 | AQ67: =(MainInputs!AQ235*AQ$56 + AQ28*AQ$57)*(AQ$10+AQ$11*AQ$16) -> 53.3382428 | AR67: =(MainInputs!AR235*AR$56 + AR28*AR$57)*(AR$10+AR$11*AR$16) -> 51.21164434 | AS67: =(MainInputs!AS235*AS$56 + AS28*AS$57)*(AS$10+AS$11*AS$16) -> 46.47422349 | AT67: =(MainInputs!AT235*AT$56 + AT28*AT$57)*(AT$10+AT$11*AT$16) -> 47.57001208 | AU67: =(MainInputs!AU235*AU$56 + AU28*AU$57)*(AU$10+AU$11*AU$16) -> 60.33990719 | AV67: =(MainInputs!AV235*AV$56 + AV28*AV$57)*(AV$10+AV$11*AV$16) -> 61.13764968 | AW67: =(MainInputs!AW235*AW$56 + AW28*AW$57)*(AW$10+AW$11*AW$16) -> 62.10549627 | AX67: =(MainInputs!AX235*AX$56 + AX28*AX$57)*(AX$10+AX$11*AX$16) -> 63.33808209 | AY67: =(MainInputs!AY235*AY$56 + AY28*AY$57)*(AY$10+AY$11*AY$16) -> 64.37399712
E68: Indirects (opex) | G68: £m 23/24 prices | AP68: =(MainInputs!AP236*AP$56 + AP29*AP$57)*(AP$10+AP$11*AP$16) -> 74.16997303 | AQ68: =(MainInputs!AQ236*AQ$56 + AQ29*AQ$57)*(AQ$10+AQ$11*AQ$16) -> 86.01776042 | AR68: =(MainInputs!AR236*AR$56 + AR29*AR$57)*(AR$10+AR$11*AR$16) -> 106.6234088 | AS68: =(MainInputs!AS236*AS$56 + AS29*AS$57)*(AS$10+AS$11*AS$16) -> 121.0846356 | AT68: =(MainInputs!AT236*AT$56 + AT29*AT$57)*(AT$10+AT$11*AT$16) -> 135.0285058 | AU68: =(MainInputs!AU236*AU$56 + AU29*AU$57)*(AU$10+AU$11*AU$16) -> 152.0612724 | AV68: =(MainInputs!AV236*AV$56 + AV29*AV$57)*(AV$10+AV$11*AV$16) -> 156.0406188 | AW68: =(MainInputs!AW236*AW$56 + AW29*AW$57)*(AW$10+AW$11*AW$16) -> 156.6342136 | AX68: =(MainInputs!AX236*AX$56 + AX29*AX$57)*(AX$10+AX$11*AX$16) -> 146.5755327 | AY68: =(MainInputs!AY236*AY$56 + AY29*AY$57)*(AY$10+AY$11*AY$16) -> 142.5577216
E69: Non-operational capex | G69: £m 23/24 prices | AP69: =(MainInputs!AP237*AP$56 + AP30*AP$57)*(AP$10+AP$11*AP$16) -> 39.13160515 | AQ69: =(MainInputs!AQ237*AQ$56 + AQ30*AQ$57)*(AQ$10+AQ$11*AQ$16) -> 10.36392968 | AR69: =(MainInputs!AR237*AR$56 + AR30*AR$57)*(AR$10+AR$11*AR$16) -> 24.35365683 | AS69: =(MainInputs!AS237*AS$56 + AS30*AS$57)*(AS$10+AS$11*AS$16) -> 29.70650511 | AT69: =(MainInputs!AT237*AT$56 + AT30*AT$57)*(AT$10+AT$11*AT$16) -> 40.70398344 | AU69: =(MainInputs!AU237*AU$56 + AU30*AU$57)*(AU$10+AU$11*AU$16) -> 71.57325263 | AV69: =(MainInputs!AV237*AV$56 + AV30*AV$57)*(AV$10+AV$11*AV$16) -> 69.95346689 | AW69: =(MainInputs!AW237*AW$56 + AW30*AW$57)*(AW$10+AW$11*AW$16) -> 45.03569219 | AX69: =(MainInputs!AX237*AX$56 + AX30*AX$57)*(AX$10+AX$11*AX$16) -> 33.71687294 | AY69: =(MainInputs!AY237*AY$56 + AY30*AY$57)*(AY$10+AY$11*AY$16) -> 35.08490895
E71: Capitalisation rate 2 totex
E73: Load related capex | G73: =price_label -> £m 23/24 prices | AP73: =(MainInputs!AP241*AP$56 + AP34*AP$57)*(AP$10+AP$11*AP$16) -> 0 | AQ73: =(MainInputs!AQ241*AQ$56 + AQ34*AQ$57)*(AQ$10+AQ$11*AQ$16) -> 0 | AR73: =(MainInputs!AR241*AR$56 + AR34*AR$57)*(AR$10+AR$11*AR$16) -> 0 | AS73: =(MainInputs!AS241*AS$56 + AS34*AS$57)*(AS$10+AS$11*AS$16) -> 0 | AT73: =(MainInputs!AT241*AT$56 + AT34*AT$57)*(AT$10+AT$11*AT$16) -> 0 | AU73: =(MainInputs!AU241*AU$56 + AU34*AU$57)*(AU$10+AU$11*AU$16) -> 0 | AV73: =(MainInputs!AV241*AV$56 + AV34*AV$57)*(AV$10+AV$11*AV$16) -> 0 | AW73: =(MainInputs!AW241*AW$56 + AW34*AW$57)*(AW$10+AW$11*AW$16) -> 0 | AX73: =(MainInputs!AX241*AX$56 + AX34*AX$57)*(AX$10+AX$11*AX$16) -> 0 | AY73: =(MainInputs!AY241*AY$56 + AY34*AY$57)*(AY$10+AY$11*AY$16) -> 0
E74: Asset replacement capex | G74: £m 23/24 prices | AP74: =(MainInputs!AP242*AP$56 + AP35*AP$57)*(AP$10+AP$11*AP$16) -> 20.46666796 | AQ74: =(MainInputs!AQ242*AQ$56 + AQ35*AQ$57)*(AQ$10+AQ$11*AQ$16) -> 20.10008638 | AR74: =(MainInputs!AR242*AR$56 + AR35*AR$57)*(AR$10+AR$11*AR$16) -> 22.22318386 | AS74: =(MainInputs!AS242*AS$56 + AS35*AS$57)*(AS$10+AS$11*AS$16) -> 80.37667189 | AT74: =(MainInputs!AT242*AT$56 + AT35*AT$57)*(AT$10+AT$11*AT$16) -> 168.9375154 | AU74: =(MainInputs!AU242*AU$56 + AU35*AU$57)*(AU$10+AU$11*AU$16) -> 276.5938221 | AV74: =(MainInputs!AV242*AV$56 + AV35*AV$57)*(AV$10+AV$11*AV$16) -> 269.2416929 | AW74: =(MainInputs!AW242*AW$56 + AW35*AW$57)*(AW$10+AW$11*AW$16) -> 221.5874349 | AX74: =(MainInputs!AX242*AX$56 + AX35*AX$57)*(AX$10+AX$11*AX$16) -> 121.3477572 | AY74: =(MainInputs!AY242*AY$56 + AY35*AY$57)*(AY$10+AY$11*AY$16) -> 84.69658314
E75: Other capex | G75: £m 23/24 prices | AP75: =(MainInputs!AP243*AP$56 + AP36*AP$57)*(AP$10+AP$11*AP$16) -> 0 | AQ75: =(MainInputs!AQ243*AQ$56 + AQ36*AQ$57)*(AQ$10+AQ$11*AQ$16) -> 0 | AR75: =(MainInputs!AR243*AR$56 + AR36*AR$57)*(AR$10+AR$11*AR$16) -> 8.529065005 | AS75: =(MainInputs!AS243*AS$56 + AS36*AS$57)*(AS$10+AS$11*AS$16) -> 16.90144203 | AT75: =(MainInputs!AT243*AT$56 + AT36*AT$57)*(AT$10+AT$11*AT$16) -> 108.0640719 | AU75: =(MainInputs!AU243*AU$56 + AU36*AU$57)*(AU$10+AU$11*AU$16) -> 41.9244 | AV75: =(MainInputs!AV243*AV$56 + AV36*AV$57)*(AV$10+AV$11*AV$16) -> 23.3058 | AW75: =(MainInputs!AW243*AW$56 + AW36*AW$57)*(AW$10+AW$11*AW$16) -> 23.3058 | AX75: =(MainInputs!AX243*AX$56 + AX36*AX$57)*(AX$10+AX$11*AX$16) -> 0 | AY75: =(MainInputs!AY243*AY$56 + AY36*AY$57)*(AY$10+AY$11*AY$16) -> 0
E76: Non-load opex | G76: £m 23/24 prices | AP76: =(MainInputs!AP244*AP$56 + AP37*AP$57)*(AP$10+AP$11*AP$16) -> 0 | AQ76: =(MainInputs!AQ244*AQ$56 + AQ37*AQ$57)*(AQ$10+AQ$11*AQ$16) -> 0 | AR76: =(MainInputs!AR244*AR$56 + AR37*AR$57)*(AR$10+AR$11*AR$16) -> 0 | AS76: =(MainInputs!AS244*AS$56 + AS37*AS$57)*(AS$10+AS$11*AS$16) -> 0 | AT76: =(MainInputs!AT244*AT$56 + AT37*AT$57)*(AT$10+AT$11*AT$16) -> 0 | AU76: =(MainInputs!AU244*AU$56 + AU37*AU$57)*(AU$10+AU$11*AU$16) -> 3.1556 | AV76: =(MainInputs!AV244*AV$56 + AV37*AV$57)*(AV$10+AV$11*AV$16) -> 1.7542 | AW76: =(MainInputs!AW244*AW$56 + AW37*AW$57)*(AW$10+AW$11*AW$16) -> 1.7542 | AX76: =(MainInputs!AX244*AX$56 + AX37*AX$57)*(AX$10+AX$11*AX$16) -> 0 | AY76: =(MainInputs!AY244*AY$56 + AY37*AY$57)*(AY$10+AY$11*AY$16) -> 0
E77: Indirects (opex) | G77: £m 23/24 prices | AP77: =(MainInputs!AP245*AP$56 + AP38*AP$57)*(AP$10+AP$11*AP$16) -> 0 | AQ77: =(MainInputs!AQ245*AQ$56 + AQ38*AQ$57)*(AQ$10+AQ$11*AQ$16) -> 0 | AR77: =(MainInputs!AR245*AR$56 + AR38*AR$57)*(AR$10+AR$11*AR$16) -> 0.7501508377 | AS77: =(MainInputs!AS245*AS$56 + AS38*AS$57)*(AS$10+AS$11*AS$16) -> 5.460105575 | AT77: =(MainInputs!AT245*AT$56 + AT38*AT$57)*(AT$10+AT$11*AT$16) -> 0 | AU77: =(MainInputs!AU245*AU$56 + AU38*AU$57)*(AU$10+AU$11*AU$16) -> 0 | AV77: =(MainInputs!AV245*AV$56 + AV38*AV$57)*(AV$10+AV$11*AV$16) -> 0 | AW77: =(MainInputs!AW245*AW$56 + AW38*AW$57)*(AW$10+AW$11*AW$16) -> 0 | AX77: =(MainInputs!AX245*AX$56 + AX38*AX$57)*(AX$10+AX$11*AX$16) -> 0 | AY77: =(MainInputs!AY245*AY$56 + AY38*AY$57)*(AY$10+AY$11*AY$16) -> 0
E78: Non-operational capex | G78: £m 23/24 prices | AP78: =(MainInputs!AP246*AP$56 + AP39*AP$57)*(AP$10+AP$11*AP$16) -> 0 | AQ78: =(MainInputs!AQ246*AQ$56 + AQ39*AQ$57)*(AQ$10+AQ$11*AQ$16) -> 0.3484184488 | AR78: =(MainInputs!AR246*AR$56 + AR39*AR$57)*(AR$10+AR$11*AR$16) -> 1.529204141 | AS78: =(MainInputs!AS246*AS$56 + AS39*AS$57)*(AS$10+AS$11*AS$16) -> 1.980568399 | AT78: =(MainInputs!AT246*AT$56 + AT39*AT$57)*(AT$10+AT$11*AT$16) -> 2.328172661 | AU78: =(MainInputs!AU246*AU$56 + AU39*AU$57)*(AU$10+AU$11*AU$16) -> 0 | AV78: =(MainInputs!AV246*AV$56 + AV39*AV$57)*(AV$10+AV$11*AV$16) -> 39 | AW78: =(MainInputs!AW246*AW$56 + AW39*AW$57)*(AW$10+AW$11*AW$16) -> 39 | AX78: =(MainInputs!AX246*AX$56 + AX39*AX$57)*(AX$10+AX$11*AX$16) -> 0 | AY78: =(MainInputs!AY246*AY$56 + AY39*AY$57)*(AY$10+AY$11*AY$16) -> 0
E80: Total actual
E82: Actual load related capex | G82: =price_label -> £m 23/24 prices | AP82: =SUM(AP64, AP73) -> 6.333206675 | AQ82: =SUM(AQ64, AQ73) -> 5.028990414 | AR82: 2.92804283 | AS82: 4.75901775 | AT82: 3.058283135 | AU82: 6.083254348 | AV82: 8.025479167 | AW82: 6.781926984 | AX82: 9.34938017 | AY82: 9.295886368
E83: Actual asset replacement capex | G83: £m 23/24 prices | AP83: =SUM(AP65, AP74) -> 151.4465853 | AQ83: 192.4466123 | AR83: 200.51262 | AS83: 275.3806141 | AT83: 435.8733489 | AU83: 500.4424543 | AV83: 486.974822 | AW83: 487.3306693 | AX83: 361.7151019 | AY83: 370.5515773
E84: Actual other capex | G84: £m 23/24 prices | AP84: =SUM(AP66, AP75) -> 39.50071544 | AQ84: 74.18616114 | AR84: 103.6369214 | AS84: 145.0226665 | AT84: 251.7466512 | AU84: 106.9301498 | AV84: 94.64500727 | AW84: 86.61512476 | AX84: 53.83980537 | AY84: 48.54283277
E85: Actual non-load opex | G85: £m 23/24 prices | AP85: =SUM(AP67, AP76) -> 51.35377304 | AQ85: 53.3382428 | AR85: 51.21164434 | AS85: 46.47422349 | AT85: 47.57001208 | AU85: 63.49550719 | AV85: 62.89184968 | AW85: 63.85969627 | AX85: 63.33808209 | AY85: 64.37399712
E86: Actual indirects (opex) | G86: £m 23/24 prices | AP86: =SUM(AP68, AP77) -> 74.16997303 | AQ86: 86.01776042 | AR86: 107.3735596 | AS86: 126.5447411 | AT86: 135.0285058 | AU86: 152.0612724 | AV86: 156.0406188 | AW86: 156.6342136 | AX86: 146.5755327 | AY86: 142.5577216
E87: Actual non-operational capex | G87: £m 23/24 prices | AP87: =SUM(AP69, AP78) -> 39.13160515 | AQ87: 10.71234813 | AR87: 25.88286097 | AS87: 31.68707351 | AT87: 43.03215611 | AU87: 71.57325263 | AV87: 108.9534669 | AW87: 84.03569219 | AX87: 33.71687294 | AY87: 35.08490895
E88: Actual totex | G88: £m 23/24 prices | AP88: =SUM(AP82:AP87) -> 361.9358586 | AQ88: 421.7301152 | AR88: 491.5456491 | AS88: 629.8683365 | AT88: 916.3089572 | AU88: 900.5858907 | AV88: 917.5312438 | AW88: 885.2573231 | AX88: 668.5347751 | AY88: 670.4069241
B90: End of sheet

Sheet TIM
A1: Totex Incentive Mechanism (TIM)
B2: =UserInterface!G17 -> NGGT
E3: Parameter | G3: Units | I3: Constant | AP3: Annual values
E4: PCFM year ending | I4: =UserInterface!$G$10 -> 2025-03-31 | K4: 1991-03-31 | L4: 1992-03-31 | M4: 1993-03-31 | N4: 1994-03-31 | O4: 1995-03-31 | P4: 1996-03-31 | Q4: 1997-03-31 | R4: 1998-03-31 | S4: 1999-03-31 | T4: 2000-03-31 | U4: 2001-03-31 | V4: 2002-03-31 | W4: 2003-03-31 | X4: 2004-03-31 | Y4: 2005-03-31 | Z4: 2006-03-31 | AA4: 2007-03-31 | AB4: 2008-03-31 | AC4: 2009-03-31 | AD4: 2010-03-31 | AE4: 2011-03-31 | AF4: 2012-03-31 | AG4: 2013-03-31 | AH4: 2014-03-31 | AI4: 2015-03-31 | AJ4: 2016-03-31 | AK4: 2017-03-31 | AL4: 2018-03-31 | AM4: 2019-03-31 | AN4: 2020-03-31 | AO4: 2021-03-31 | AP4: 2022-03-31 | AQ4: 2023-03-31 | AR4: 2024-03-31 | AS4: 2025-03-31 | AT4: 2026-03-31 | AU4: 2027-03-31 | AV4: 2028-03-31 | AW4: 2029-03-31 | AX4: 2030-03-31 | AY4: =EOMONTH(AX4,12) -> 2031-03-31
AP5: 2 | AQ5: 2 | AR5: 2 | AS5: 2 | AT5: 2 | AU5: 3 | AV5: 3 | AW5: 3 | AX5: 3 | AY5: 3
C7: Price control timeline
E9: Pre-RIIO-2 year | G9: flag | K9: =Scenarios!K$119 -> 1 | L9: =Scenarios!L$119 -> 1 | M9: =Scenarios!M$119 -> 1 | N9: =Scenarios!N$119 -> 1 | O9: =Scenarios!O$119 -> 1 | P9: =Scenarios!P$119 -> 1 | Q9: =Scenarios!Q$119 -> 1 | R9: =Scenarios!R$119 -> 1 | S9: =Scenarios!S$119 -> 1 | T9: =Scenarios!T$119 -> 1 | U9: =Scenarios!U$119 -> 1 | V9: =Scenarios!V$119 -> 1 | W9: =Scenarios!W$119 -> 1 | X9: =Scenarios!X$119 -> 1 | Y9: =Scenarios!Y$119 -> 1 | Z9: =Scenarios!Z$119 -> 1 | AA9: =Scenarios!AA$119 -> 1 | AB9: =Scenarios!AB$119 -> 1 | AC9: =Scenarios!AC$119 -> 1 | AD9: =Scenarios!AD$119 -> 1 | AE9: =Scenarios!AE$119 -> 1 | AF9: =Scenarios!AF$119 -> 1 | AG9: =Scenarios!AG$119 -> 1 | AH9: =Scenarios!AH$119 -> 1 | AI9: =Scenarios!AI$119 -> 1 | AJ9: =Scenarios!AJ$119 -> 1 | AK9: =Scenarios!AK$119 -> 1 | AL9: =Scenarios!AL$119 -> 1 | AM9: =Scenarios!AM$119 -> 1 | AN9: =Scenarios!AN$119 -> 1 | AO9: =Scenarios!AO$119 -> 1 | AP9: =Scenarios!AP$119 -> 0 | AQ9: =Scenarios!AQ$119 -> 0 | AR9: =Scenarios!AR$119 -> 0 | AS9: =Scenarios!AS$119 -> 0 | AT9: =Scenarios!AT$119 -> 0 | AU9: =Scenarios!AU$119 -> 0 | AV9: =Scenarios!AV$119 -> 0 | AW9: =Scenarios!AW$119 -> 0 | AX9: =Scenarios!AX$119 -> 0 | AY9: =Scenarios!AY$119 -> 0
E10: RIIO-2 year | G10: flag | K10: =Scenarios!K$120 -> 0 | L10: =Scenarios!L$120 -> 0 | M10: =Scenarios!M$120 -> 0 | N10: =Scenarios!N$120 -> 0 | O10: =Scenarios!O$120 -> 0 | P10: =Scenarios!P$120 -> 0 | Q10: =Scenarios!Q$120 -> 0 | R10: =Scenarios!R$120 -> 0 | S10: =Scenarios!S$120 -> 0 | T10: =Scenarios!T$120 -> 0 | U10: =Scenarios!U$120 -> 0 | V10: =Scenarios!V$120 -> 0 | W10: =Scenarios!W$120 -> 0 | X10: =Scenarios!X$120 -> 0 | Y10: =Scenarios!Y$120 -> 0 | Z10: =Scenarios!Z$120 -> 0 | AA10: =Scenarios!AA$120 -> 0 | AB10: =Scenarios!AB$120 -> 0 | AC10: =Scenarios!AC$120 -> 0 | AD10: =Scenarios!AD$120 -> 0 | AE10: =Scenarios!AE$120 -> 0 | AF10: =Scenarios!AF$120 -> 0 | AG10: =Scenarios!AG$120 -> 0 | AH10: =Scenarios!AH$120 -> 0 | AI10: =Scenarios!AI$120 -> 0 | AJ10: =Scenarios!AJ$120 -> 0 | AK10: =Scenarios!AK$120 -> 0 | AL10: =Scenarios!AL$120 -> 0 | AM10: =Scenarios!AM$120 -> 0 | AN10: =Scenarios!AN$120 -> 0 | AO10: =Scenarios!AO$120 -> 0 | AP10: =Scenarios!AP$120 -> 1 | AQ10: =Scenarios!AQ$120 -> 1 | AR10: =Scenarios!AR$120 -> 1 | AS10: =Scenarios!AS$120 -> 1 | AT10: =Scenarios!AT$120 -> 1 | AU10: =Scenarios!AU$120 -> 0 | AV10: =Scenarios!AV$120 -> 0 | AW10: =Scenarios!AW$120 -> 0 | AX10: =Scenarios!AX$120 -> 0 | AY10: =Scenarios!AY$120 -> 0
E11: RIIO-3 year | G11: flag | K11: =Scenarios!K$121 -> 0 | L11: =Scenarios!L$121 -> 0 | M11: =Scenarios!M$121 -> 0 | N11: =Scenarios!N$121 -> 0 | O11: =Scenarios!O$121 -> 0 | P11: =Scenarios!P$121 -> 0 | Q11: =Scenarios!Q$121 -> 0 | R11: =Scenarios!R$121 -> 0 | S11: =Scenarios!S$121 -> 0 | T11: =Scenarios!T$121 -> 0 | U11: =Scenarios!U$121 -> 0 | V11: =Scenarios!V$121 -> 0 | W11: =Scenarios!W$121 -> 0 | X11: =Scenarios!X$121 -> 0 | Y11: =Scenarios!Y$121 -> 0 | Z11: =Scenarios!Z$121 -> 0 | AA11: =Scenarios!AA$121 -> 0 | AB11: =Scenarios!AB$121 -> 0 | AC11: =Scenarios!AC$121 -> 0 | AD11: =Scenarios!AD$121 -> 0 | AE11: =Scenarios!AE$121 -> 0 | AF11: =Scenarios!AF$121 -> 0 | AG11: =Scenarios!AG$121 -> 0 | AH11: =Scenarios!AH$121 -> 0 | AI11: =Scenarios!AI$121 -> 0 | AJ11: =Scenarios!AJ$121 -> 0 | AK11: =Scenarios!AK$121 -> 0 | AL11: =Scenarios!AL$121 -> 0 | AM11: =Scenarios!AM$121 -> 0 | AN11: =Scenarios!AN$121 -> 0 | AO11: =Scenarios!AO$121 -> 0 | AP11: =Scenarios!AP$121 -> 0 | AQ11: =Scenarios!AQ$121 -> 0 | AR11: =Scenarios!AR$121 -> 0 | AS11: =Scenarios!AS$121 -> 0 | AT11: =Scenarios!AT$121 -> 0 | AU11: =Scenarios!AU$121 -> 1 | AV11: =Scenarios!AV$121 -> 1 | AW11: =Scenarios!AW$121 -> 1 | AX11: =Scenarios!AX$121 -> 1 | AY11: =Scenarios!AY$121 -> 1
C13: Scenario operators
E15: GT3 Funding Adjustment Rate (often referred to as 'sharing factor') | G15: % | AP15: =AP$11*MainInputs!$I474 -> 0 | AQ15: =AQ$11*MainInputs!$I474 -> 0 | AR15: =AR$11*MainInputs!$I474 -> 0 | AS15: =AS$11*MainInputs!$I474 -> 0 | AT15: =AT$11*MainInputs!$I474 -> 0 | AU15: =AU$11*MainInputs!$I474 -> 0.61 | AV15: =AV$11*MainInputs!$I474 -> 0.61 | AW15: =AW$11*MainInputs!$I474 -> 0.61 | AX15: =AX$11*MainInputs!$I474 -> 0.61 | AY15: =AY$11*MainInputs!$I474 -> 0.61
E16: RIIO-3 cap rates from Scenarios or Licensee Inputs? | G16: text | I16: =Scenarios!F20 -> Licensee inputs
E17: Capitalisation rate 1 | G17: % | AP17: =IF($I$16="Scenarios",Scenarios!$F21,IF($I$16="Licensee inputs",MainInputs!AP470,AP120))*AP$11 -> 0 | AQ17: =IF($I$16="Scenarios",Scenarios!$F21,IF($I$16="Licensee inputs",MainInputs!AQ470,AQ120))*AQ$11 -> 0 | AR17: =IF($I$16="Scenarios",Scenarios!$F21,IF($I$16="Licensee inputs",MainInputs!AR470,AR120))*AR$11 -> 0 | AS17: =IF($I$16="Scenarios",Scenarios!$F21,IF($I$16="Licensee inputs",MainInputs!AS470,AS120))*AS$11 -> 0 | AT17: =IF($I$16="Scenarios",Scenarios!$F21,IF($I$16="Licensee inputs",MainInputs!AT470,AT120))*AT$11 -> 0 | AU17: =IF($I$16="Scenarios",Scenarios!$F21,IF($I$16="Licensee inputs",MainInputs!AU470,AU120))*AU$11 -> 0.59 | AV17: =IF($I$16="Scenarios",Scenarios!$F21,IF($I$16="Licensee inputs",MainInputs!AV470,AV120))*AV$11 -> 0.59 | AW17: =IF($I$16="Scenarios",Scenarios!$F21,IF($I$16="Licensee inputs",MainInputs!AW470,AW120))*AW$11 -> 0.59 | AX17: =IF($I$16="Scenarios",Scenarios!$F21,IF($I$16="Licensee inputs",MainInputs!AX470,AX120))*AX$11 -> 0.59 | AY17: =IF($I$16="Scenarios",Scenarios!$F21,IF($I$16="Licensee inputs",MainInputs!AY470,AY120))*AY$11 -> 0.59
E18: Capitalisation rate 2 | G18: % | AP18: =IF($I$16="Scenarios",Scenarios!$F22,IF($I$16="Licensee inputs",MainInputs!AP471,AP121))*AP$11 -> 0 | AQ18: =IF($I$16="Scenarios",Scenarios!$F22,IF($I$16="Licensee inputs",MainInputs!AQ471,AQ121))*AQ$11 -> 0 | AR18: =IF($I$16="Scenarios",Scenarios!$F22,IF($I$16="Licensee inputs",MainInputs!AR471,AR121))*AR$11 -> 0 | AS18: =IF($I$16="Scenarios",Scenarios!$F22,IF($I$16="Licensee inputs",MainInputs!AS471,AS121))*AS$11 -> 0 | AT18: =IF($I$16="Scenarios",Scenarios!$F22,IF($I$16="Licensee inputs",MainInputs!AT471,AT121))*AT$11 -> 0 | AU18: =IF($I$16="Scenarios",Scenarios!$F22,IF($I$16="Licensee inputs",MainInputs!AU471,AU121))*AU$11 -> 0.9 | AV18: =IF($I$16="Scenarios",Scenarios!$F22,IF($I$16="Licensee inputs",MainInputs!AV471,AV121))*AV$11 -> 0.9 | AW18: =IF($I$16="Scenarios",Scenarios!$F22,IF($I$16="Licensee inputs",MainInputs!AW471,AW121))*AW$11 -> 0.9 | AX18: =IF($I$16="Scenarios",Scenarios!$F22,IF($I$16="Licensee inputs",MainInputs!AX471,AX121))*AX$11 -> 0.9 | AY18: =IF($I$16="Scenarios",Scenarios!$F22,IF($I$16="Licensee inputs",MainInputs!AY471,AY121))*AY$11 -> 0.9
B20: Efficiency incentive
C22: Post-TIM overspend (underspend)
C23: Note: Totex overspend (underspend) is identified and subject to the "efficiency incentive rate." Repex is separated at this stage in order to apply the repex capitalisation rate to any overspend (underspend)
D25: Capitalisation 1 totex
E27: Actual totex | G27: =price_label -> £m 23/24 prices | AP27: =SUM(Totex!AP64:AP69) -> 341.4691906 | AQ27: =SUM(Totex!AQ64:AQ69) -> 401.2816103 | AR27: =SUM(Totex!AR64:AR69) -> 458.5140453 | AS27: =SUM(Totex!AS64:AS69) -> 525.1495486 | AT27: =SUM(Totex!AT64:AT69) -> 636.9791973 | AU27: =SUM(Totex!AU64:AU69) -> 578.9120686 | AV27: =SUM(Totex!AV64:AV69) -> 584.229551 | AW27: =SUM(Totex!AW64:AW69) -> 599.6098882 | AX27: =SUM(Totex!AX64:AX69) -> 547.1870179 | AY27: =SUM(Totex!AY64:AY69) -> 585.7103409
E28: Less allowed totex | G28: =price_label -> £m 23/24 prices | AP28: =-(SUM(Totex!AP25:AP30)) -> -317.7188274 | AQ28: =-(SUM(Totex!AQ25:AQ30)) -> -369.4487085 | AR28: =-(SUM(Totex!AR25:AR30)) -> -359.5387527 | AS28: =-(SUM(Totex!AS25:AS30)) -> -335.5943457 | AT28: =-(SUM(Totex!AT25:AT30)) -> -411.2415594 | AU28: =-(SUM(Totex!AU25:AU30)) -> -578.9120686 | AV28: =-(SUM(Totex!AV25:AV30)) -> -584.229551 | AW28: =-(SUM(Totex!AW25:AW30)) -> -599.6098882 | AX28: =-(SUM(Totex!AX25:AX30)) -> -547.1870179 | AY28: =-(SUM(Totex!AY25:AY30)) -> -585.7103409
E29: Pre-TIM overspend (underspend) | G29: =price_label -> £m 23/24 prices | AP29: =SUM(AP27:AP28) -> 23.7503632 | AQ29: =SUM(AQ27:AQ28) -> 31.83290181 | AR29: =SUM(AR27:AR28) -> 98.97529254 | AS29: =SUM(AS27:AS28) -> 189.5552028 | AT29: =SUM(AT27:AT28) -> 225.7376379 | AU29: =SUM(AU27:AU28) -> 0 | AV29: 0 | AW29: 0 | AX29: 0 | AY29: 0
E31: TIM rate for allowance, Inverse of Sharing Factor | G31: % | AP31: =MainInputs!$I$473*AP10 + AP15*AP11 -> 0.61 | AQ31: =MainInputs!$I$473*AQ10 + AQ15*AQ11 -> 0.61 | AR31: =MainInputs!$I$473*AR10 + AR15*AR11 -> 0.61 | AS31: =MainInputs!$I$473*AS10 + AS15*AS11 -> 0.61 | AT31: =MainInputs!$I$473*AT10 + AT15*AT11 -> 0.61 | AU31: =MainInputs!$I$473*AU10 + AU15*AU11 -> 0.61 | AV31: =MainInputs!$I$473*AV10 + AV15*AV11 -> 0.61 | AW31: =MainInputs!$I$473*AW10 + AW15*AW11 -> 0.61 | AX31: =MainInputs!$I$473*AX10 + AX15*AX11 -> 0.61 | AY31: =MainInputs!$I$473*AY10 + AY15*AY11 -> 0.61
E33: Post-TIM overspend (underspend) | G33: =price_label -> £m 23/24 prices | AP33: =AP$31 * AP29 -> 14.48772155 | AQ33: =AQ$31 * AQ29 -> 19.41807011 | AR33: =AR$31 * AR29 -> 60.37492845 | AS33: =AS$31 * AS29 -> 115.6286737 | AT33: =AT$31 * AT29 -> 137.6999591 | AU33: =AU$31 * AU29 -> 0 | AV33: 0 | AW33: 0 | AX33: 0 | AY33: 0
D35: Capitalisation 2 totex
E37: Actual totex | G37: =price_label -> £m 23/24 prices | AP37: =SUM(Totex!AP73:AP78) -> 20.46666796 | AQ37: =SUM(Totex!AQ73:AQ78) -> 20.44850483 | AR37: =SUM(Totex!AR73:AR78) -> 33.03160384 | AS37: =SUM(Totex!AS73:AS78) -> 104.7187879 | AT37: =SUM(Totex!AT73:AT78) -> 279.32976 | AU37: =SUM(Totex!AU73:AU78) -> 321.6738221 | AV37: =SUM(Totex!AV73:AV78) -> 333.3016929 | AW37: =SUM(Totex!AW73:AW78) -> 285.6474349 | AX37: =SUM(Totex!AX73:AX78) -> 121.3477572 | AY37: =SUM(Totex!AY73:AY78) -> 84.69658314
E38: Less allowed totex | G38: =price_label -> £m 23/24 prices | AP38: =-(SUM(Totex!AP34:AP39)) -> -68.82582603 | AQ38: =-(SUM(Totex!AQ34:AQ39)) -> -133.36701 | AR38: =-(SUM(Totex!AR34:AR39)) -> -194.8210649 | AS38: =-(SUM(Totex!AS34:AS39)) -> -279.4183388 | AT38: =-(SUM(Totex!AT34:AT39)) -> -265.2052381 | AU38: =-(SUM(Totex!AU34:AU39)) -> -321.6738221 | AV38: =-(SUM(Totex!AV34:AV39)) -> -333.3016929 | AW38: =-(SUM(Totex!AW34:AW39)) -> -285.6474349 | AX38: =-(SUM(Totex!AX34:AX39)) -> -121.3477572 | AY38: =-(SUM(Totex!AY34:AY39)) -> -84.69658314
E39: Pre-TIM overspend (underspend) | G39: =price_label -> £m 23/24 prices | AP39: =SUM(AP37:AP38) -> -48.35915807 | AQ39: =SUM(AQ37:AQ38) -> -112.9185051 | AR39: =SUM(AR37:AR38) -> -161.7894611 | AS39: =SUM(AS37:AS38) -> -174.6995509 | AT39: =SUM(AT37:AT38) -> 14.12452184 | AU39: =SUM(AU37:AU38) -> 0 | AV39: 0 | AW39: 0 | AX39: 0 | AY39: 0
E41: TIM rate for allowance, Inverse of Sharing Factor | G41: % | AP41: =AP31 -> 0.61 | AQ41: =AQ31 -> 0.61 | AR41: 0.61 | AS41: 0.61 | AT41: 0.61 | AU41: =AU31 -> 0.61 | AV41: 0.61 | AW41: 0.61 | AX41: 0.61 | AY41: 0.61
E43: Post-TIM overspend (underspend) | G43: =price_label -> £m 23/24 prices | AP43: =AP$41 * AP39 -> -29.49908643 | AQ43: =AQ$41 * AQ39 -> -68.88028813 | AR43: -98.69157127 | AS43: -106.566726 | AT43: 8.615958325 | AU43: =AU$41 * AU39 -> 0 | AV43: 0 | AW43: 0 | AX43: 0 | AY43: 0
C45: Post-TIM totex
C46: Note: "Post-TIM overspend (underspend)" is added to the allowed totex value to give the Post-TIM totex allowance to be split into fast and slow money.
D48: Capitalisation 1 totex
E50: Allowed totex | G50: =price_label -> £m 23/24 prices | AP50: =-AP28 -> 317.7188274 | AQ50: 369.4487085 | AR50: 359.5387527 | AS50: 335.5943457 | AT50: 411.2415594 | AU50: 578.9120686 | AV50: 584.229551 | AW50: 599.6098882 | AX50: 547.1870179 | AY50: 585.7103409
E51: Post-TIM overspend (underspend) | G51: =price_label -> £m 23/24 prices | AP51: =AP33 -> 14.48772155 | AQ51: 19.41807011 | AR51: 60.37492845 | AS51: 115.6286737 | AT51: 137.6999591 | AU51: 0 | AV51: 0 | AW51: 0 | AX51: 0 | AY51: 0
E52: Post-TIM totex | G52: =price_label -> £m 23/24 prices | AP52: =SUM(AP50:AP51) -> 332.206549 | AQ52: =SUM(AQ50:AQ51) -> 388.8667786 | AR52: =SUM(AR50:AR51) -> 419.9136812 | AS52: =SUM(AS50:AS51) -> 451.2230195 | AT52: =SUM(AT50:AT51) -> 548.9415185 | AU52: =SUM(AU50:AU51) -> 578.9120686 | AV52: 584.229551 | AW52: 599.6098882 | AX52: 547.1870179 | AY52: 585.7103409
D54: Capitalisation 2 totex
E56: Allowed totex | G56: =price_label -> £m 23/24 prices | AP56: =-AP38 -> 68.82582603 | AQ56: 133.36701 | AR56: 194.8210649 | AS56: 279.4183388 | AT56: 265.2052381 | AU56: 321.6738221 | AV56: 333.3016929 | AW56: 285.6474349 | AX56: 121.3477572 | AY56: 84.69658314
E57: Post-TIM overspend (underspend) | G57: =price_label -> £m 23/24 prices | AP57: =AP43 -> -29.49908643 | AQ57: -68.88028813 | AR57: -98.69157127 | AS57: -106.566726 | AT57: 8.615958325 | AU57: 0 | AV57: 0 | AW57: 0 | AX57: 0 | AY57: 0
E58: Post-TIM totex | G58: =price_label -> £m 23/24 prices | AP58: =SUM(AP56:AP57) -> 39.32673961 | AQ58: =SUM(AQ56:AQ57) -> 64.48672184 | AR58: =SUM(AR56:AR57) -> 96.12949367 | AS58: =SUM(AS56:AS57) -> 172.8516127 | AT58: =SUM(AT56:AT57) -> 273.8211965 | AU58: =SUM(AU56:AU57) -> 321.6738221 | AV58: 333.3016929 | AW58: 285.6474349 | AX58: 121.3477572 | AY58: 84.69658314
B60: Capitalisation
B61: Note: Post-TIM totex (excluding repex) and repex are allocated into "fast" and "slow" elements based on a pre-set percentage split:
B62: - "fast money " is exported to the "Revenue" sheet where it is included as an element of "recalculated base revenue;" and
B63: - "slow money " is exported to the "Depn" sheet where it is added to RAV. Slow money is recovered over the life of the RAV through regulatory depreciation and return allowances.
C65: Separate capitalisation
D67: Capitalisation 1 totex
E69: Post-TIM totex | G69: =price_label -> £m 23/24 prices | AP69: =AP52 -> 332.206549 | AQ69: 388.8667786 | AR69: 419.9136812 | AS69: 451.2230195 | AT69: 548.9415185 | AU69: 578.9120686 | AV69: 584.229551 | AW69: 599.6098882 | AX69: 547.1870179 | AY69: 585.7103409
E70: Capitalisation rate 1 | G70: % | AP70: =MainInputs!AP470*AP$10 + AP17*AP$11 -> 0.65 | AQ70: =MainInputs!AQ470*AQ$10 + AQ17*AQ$11 -> 0.65 | AR70: =MainInputs!AR470*AR$10 + AR17*AR$11 -> 0.65 | AS70: =MainInputs!AS470*AS$10 + AS17*AS$11 -> 0.65 | AT70: =MainInputs!AT470*AT$10 + AT17*AT$11 -> 0.65 | AU70: =MainInputs!AU470*AU$10 + AU17*AU$11 -> 0.59 | AV70: =MainInputs!AV470*AV$10 + AV17*AV$11 -> 0.59 | AW70: =MainInputs!AW470*AW$10 + AW17*AW$11 -> 0.59 | AX70: =MainInputs!AX470*AX$10 + AX17*AX$11 -> 0.59 | AY70: =MainInputs!AY470*AY$10 + AY17*AY$11 -> 0.59
E71: Fast pot expenditure | G71: =price_label -> £m 23/24 prices | AP71: =AP69-AP72 -> 116.2722921 | AQ71: =AQ69-AQ72 -> 136.1033725 | AR71: =AR69-AR72 -> 146.9697884 | AS71: =AS69-AS72 -> 157.9280568 | AT71: =AT69-AT72 -> 192.1295315 | AU71: =AU69-AU72 -> 237.3539481 | AV71: 239.5341159 | AW71: 245.8400542 | AX71: 224.3466774 | AY71: 240.1412398
E72: Slow pot expenditure | G72: =price_label -> £m 23/24 prices | AP72: =AP69 * AP70 -> 215.9342568 | AQ72: =AQ69 * AQ70 -> 252.7634061 | AR72: =AR69 * AR70 -> 272.9438928 | AS72: =AS69 * AS70 -> 293.2949627 | AT72: =AT69 * AT70 -> 356.811987 | AU72: =AU69 * AU70 -> 341.5581205 | AV72: 344.6954351 | AW72: 353.769834 | AX72: 322.8403406 | AY72: 345.5691011
D74: Capitalisation 2 totex
E76: Post-TIM totex | G76: =price_label -> £m 23/24 prices | AP76: =AP58 -> 39.32673961 | AQ76: 64.48672184 | AR76: 96.12949367 | AS76: 172.8516127 | AT76: 273.8211965 | AU76: 321.6738221 | AV76: 333.3016929 | AW76: 285.6474349 | AX76: 121.3477572 | AY76: 84.69658314
E77: Capitalisation rate 2 | G77: % | AP77: =MainInputs!AP471*AP$10 + AP18*AP$11 -> 0.75 | AQ77: =MainInputs!AQ471*AQ$10 + AQ18*AQ$11 -> 0.75 | AR77: =MainInputs!AR471*AR$10 + AR18*AR$11 -> 0.75 | AS77: =MainInputs!AS471*AS$10 + AS18*AS$11 -> 0.75 | AT77: =MainInputs!AT471*AT$10 + AT18*AT$11 -> 0.75 | AU77: =MainInputs!AU471*AU$10 + AU18*AU$11 -> 0.9 | AV77: =MainInputs!AV471*AV$10 + AV18*AV$11 -> 0.9 | AW77: =MainInputs!AW471*AW$10 + AW18*AW$11 -> 0.9 | AX77: =MainInputs!AX471*AX$10 + AX18*AX$11 -> 0.9 | AY77: =MainInputs!AY471*AY$10 + AY18*AY$11 -> 0.9
E78: Fast pot expenditure | G78: =price_label -> £m 23/24 prices | AP78: =AP76-AP79 -> 9.831684902 | AQ78: =AQ76-AQ79 -> 16.12168046 | AR78: =AR76-AR79 -> 24.03237342 | AS78: =AS76-AS79 -> 43.21290319 | AT78: =AT76-AT79 -> 68.45529912 | AU78: =AU76-AU79 -> 32.16738221 | AV78: 33.33016929 | AW78: 28.56474349 | AX78: 12.13477572 | AY78: 8.469658314
E79: Slow pot expenditure | G79: =price_label -> £m 23/24 prices | AP79: =AP76 * AP77 -> 29.49505471 | AQ79: =AQ76 * AQ77 -> 48.36504138 | AR79: =AR76 * AR77 -> 72.09712025 | AS79: =AS76 * AS77 -> 129.6387096 | AT79: =AT76 * AT77 -> 205.3658973 | AU79: =AU76 * AU77 -> 289.5064399 | AV79: 299.9715236 | AW79: 257.0826914 | AX79: 109.2129815 | AY79: 76.22692482
C81: Totex
E83: Fast pot expenditure | G83: =price_label -> £m 23/24 prices | AP83: =AP71 + AP78 -> 126.1039771 | AQ83: =AQ71 + AQ78 -> 152.225053 | AR83: 171.0021618 | AS83: 201.14096 | AT83: 260.5848306 | AU83: 269.5213303 | AV83: 272.8642852 | AW83: 274.4047976 | AX83: 236.4814531 | AY83: 248.6108981
E85: Slow pot expenditure | G85: =price_label -> £m 23/24 prices | AP85: =AP72 + AP79 -> 245.4293116 | AQ85: =AQ72 + AQ79 -> 301.1284475 | AR85: 345.041013 | AS85: 422.9336722 | AT85: 562.1778844 | AU85: 631.0645604 | AV85: 644.6669586 | AW85: 610.8525254 | AX85: 432.0533221 | AY85: 421.796026
B89: Actual totex breakdown (for "Rating Simulator")
C91: Actual totex breakdown
D93: Capitalisation rate 1 actual totex
E95: Load related capex | G95: =price_label -> £m 23/24 prices | AP95: =Totex!AP64 -> 6.333206675 | AQ95: =Totex!AQ64 -> 5.028990414 | AR95: =Totex!AR64 -> 2.92804283 | AS95: =Totex!AS64 -> 4.75901775 | AT95: =Totex!AT64 -> 3.058283135 | AU95: =Totex!AU64 -> 6.083254348 | AV95: =Totex!AV64 -> 8.025479167 | AW95: =Totex!AW64 -> 6.781926984 | AX95: =Totex!AX64 -> 9.34938017 | AY95: =Totex!AY64 -> 9.295886368
E96: Asset replacement capex | G96: £m 23/24 prices | AP96: =Totex!AP65 -> 130.9799173 | AQ96: =Totex!AQ65 -> 172.3465259 | AR96: =Totex!AR65 -> 178.2894361 | AS96: =Totex!AS65 -> 195.0039422 | AT96: =Totex!AT65 -> 266.9358335 | AU96: =Totex!AU65 -> 223.8486322 | AV96: =Totex!AV65 -> 217.7331292 | AW96: =Totex!AW65 -> 265.7432344 | AX96: =Totex!AX65 -> 240.3673447 | AY96: =Totex!AY65 -> 285.8549942
E97: Other capex | G97: £m 23/24 prices | AP97: =Totex!AP66 -> 39.50071544 | AQ97: =Totex!AQ66 -> 74.18616114 | AR97: =Totex!AR66 -> 95.10785641 | AS97: =Totex!AS66 -> 128.1212245 | AT97: =Totex!AT66 -> 143.6825793 | AU97: =Totex!AU66 -> 65.00574982 | AV97: =Totex!AV66 -> 71.33920727 | AW97: =Totex!AW66 -> 63.30932476 | AX97: =Totex!AX66 -> 53.83980537 | AY97: =Totex!AY66 -> 48.54283277
E98: Non-load opex | G98: £m 23/24 prices | AP98: =Totex!AP67 -> 51.35377304 | AQ98: =Totex!AQ67 -> 53.3382428 | AR98: =Totex!AR67 -> 51.21164434 | AS98: =Totex!AS67 -> 46.47422349 | AT98: =Totex!AT67 -> 47.57001208 | AU98: =Totex!AU67 -> 60.33990719 | AV98: =Totex!AV67 -> 61.13764968 | AW98: =Totex!AW67 -> 62.10549627 | AX98: =Totex!AX67 -> 63.33808209 | AY98: =Totex!AY67 -> 64.37399712
E99: Indirects (opex) | G99: £m 23/24 prices | AP99: =Totex!AP68 -> 74.16997303 | AQ99: =Totex!AQ68 -> 86.01776042 | AR99: =Totex!AR68 -> 106.6234088 | AS99: =Totex!AS68 -> 121.0846356 | AT99: =Totex!AT68 -> 135.0285058 | AU99: =Totex!AU68 -> 152.0612724 | AV99: =Totex!AV68 -> 156.0406188 | AW99: =Totex!AW68 -> 156.6342136 | AX99: =Totex!AX68 -> 146.5755327 | AY99: =Totex!AY68 -> 142.5577216
E100: Non-operational capex | G100: £m 23/24 prices | AP100: =Totex!AP69 -> 39.13160515 | AQ100: =Totex!AQ69 -> 10.36392968 | AR100: =Totex!AR69 -> 24.35365683 | AS100: =Totex!AS69 -> 29.70650511 | AT100: =Totex!AT69 -> 40.70398344 | AU100: =Totex!AU69 -> 71.57325263 | AV100: =Totex!AV69 -> 69.95346689 | AW100: =Totex!AW69 -> 45.03569219 | AX100: =Totex!AX69 -> 33.71687294 | AY100: =Totex!AY69 -> 35.08490895
E101: Total capitalisation rate 1 actual totex | G101: £m 23/24 prices | AP101: =SUM(AP95:AP100) -> 341.4691906 | AQ101: 401.2816103 | AR101: 458.5140453 | AS101: 525.1495486 | AT101: 636.9791973 | AU101: 578.9120686 | AV101: 584.229551 | AW101: 599.6098882 | AX101: 547.1870179 | AY101: 585.7103409
D103: Capitalisation rate 2 actual totex
E105: Load related capex | G105: =price_label -> £m 23/24 prices | AP105: =Totex!AP73 -> 0 | AQ105: =Totex!AQ73 -> 0 | AR105: =Totex!AR73 -> 0 | AS105: =Totex!AS73 -> 0 | AT105: =Totex!AT73 -> 0 | AU105: =Totex!AU73 -> 0 | AV105: =Totex!AV73 -> 0 | AW105: =Totex!AW73 -> 0 | AX105: =Totex!AX73 -> 0 | AY105: =Totex!AY73 -> 0
E106: Asset replacement capex | G106: £m 23/24 prices | AP106: =Totex!AP74 -> 20.46666796 | AQ106: =Totex!AQ74 -> 20.10008638 | AR106: =Totex!AR74 -> 22.22318386 | AS106: =Totex!AS74 -> 80.37667189 | AT106: =Totex!AT74 -> 168.9375154 | AU106: =Totex!AU74 -> 276.5938221 | AV106: =Totex!AV74 -> 269.2416929 | AW106: =Totex!AW74 -> 221.5874349 | AX106: =Totex!AX74 -> 121.3477572 | AY106: =Totex!AY74 -> 84.69658314
E107: Other capex | G107: £m 23/24 prices | AP107: =Totex!AP75 -> 0 | AQ107: =Totex!AQ75 -> 0 | AR107: =Totex!AR75 -> 8.529065005 | AS107: =Totex!AS75 -> 16.90144203 | AT107: =Totex!AT75 -> 108.0640719 | AU107: =Totex!AU75 -> 41.9244 | AV107: =Totex!AV75 -> 23.3058 | AW107: =Totex!AW75 -> 23.3058 | AX107: =Totex!AX75 -> 0 | AY107: =Totex!AY75 -> 0
E108: Non-load opex | G108: £m 23/24 prices | AP108: =Totex!AP76 -> 0 | AQ108: =Totex!AQ76 -> 0 | AR108: =Totex!AR76 -> 0 | AS108: =Totex!AS76 -> 0 | AT108: =Totex!AT76 -> 0 | AU108: =Totex!AU76 -> 3.1556 | AV108: =Totex!AV76 -> 1.7542 | AW108: =Totex!AW76 -> 1.7542 | AX108: =Totex!AX76 -> 0 | AY108: =Totex!AY76 -> 0
E109: Indirects (opex) | G109: £m 23/24 prices | AP109: =Totex!AP77 -> 0 | AQ109: =Totex!AQ77 -> 0 | AR109: =Totex!AR77 -> 0.7501508377 | AS109: =Totex!AS77 -> 5.460105575 | AT109: =Totex!AT77 -> 0 | AU109: =Totex!AU77 -> 0 | AV109: =Totex!AV77 -> 0 | AW109: =Totex!AW77 -> 0 | AX109: =Totex!AX77 -> 0 | AY109: =Totex!AY77 -> 0
E110: Non-operational capex | G110: £m 23/24 prices | AP110: =Totex!AP78 -> 0 | AQ110: =Totex!AQ78 -> 0.3484184488 | AR110: =Totex!AR78 -> 1.529204141 | AS110: =Totex!AS78 -> 1.980568399 | AT110: =Totex!AT78 -> 2.328172661 | AU110: =Totex!AU78 -> 0 | AV110: =Totex!AV78 -> 39 | AW110: =Totex!AW78 -> 39 | AX110: =Totex!AX78 -> 0 | AY110: =Totex!AY78 -> 0
E111: Total capitalisation rate 2 actual totex | G111: £m 23/24 prices | AP111: =SUM(AP105:AP110) -> 20.46666796 | AQ111: 20.44850483 | AR111: 33.03160384 | AS111: 104.7187879 | AT111: 279.32976 | AU111: 321.6738221 | AV111: 333.3016929 | AW111: 285.6474349 | AX111: 121.3477572 | AY111: 84.69658314
G112: £m 23/24 prices
E113: Check | G113: =price_label -> £m 23/24 prices | AP113: =SUM(AP101, AP111) - Totex!AP88 -> 0 | AQ113: =SUM(AQ101, AQ111) - Totex!AQ88 -> 0 | AR113: =SUM(AR101, AR111) - Totex!AR88 -> 0 | AS113: =SUM(AS101, AS111) - Totex!AS88 -> 0 | AT113: =SUM(AT101, AT111) - Totex!AT88 -> 0 | AU113: =SUM(AU101, AU111) - Totex!AU88 -> 0 | AV113: =SUM(AV101, AV111) - Totex!AV88 -> 0 | AW113: =SUM(AW101, AW111) - Totex!AW88 -> 0 | AX113: =SUM(AX101, AX111) - Totex!AX88 -> 0 | AY113: =SUM(AY101, AY111) - Totex!AY88 -> 0
B115: Regulatory and natural capitalisation rates
E117: Regulatory capitalisation rate 1 | G117: % | AP117: =AP72/(AP71+AP72) -> 0.65 | AQ117: =AQ72/(AQ71+AQ72) -> 0.65 | AR117: 0.65 | AS117: 0.65 | AT117: 0.65 | AU117: 0.59 | AV117: 0.59 | AW117: 0.59 | AX117: 0.59 | AY117: 0.59
E118: Regulatory capitalisation rate 2 | G118: % | AP118: =AP79/(AP78+AP79) -> 0.75 | AQ118: =AQ79/(AQ78+AQ79) -> 0.75 | AR118: 0.75 | AS118: 0.75 | AT118: 0.75 | AU118: 0.9 | AV118: 0.9 | AW118: 0.9 | AX118: 0.9 | AY118: 0.9
E119: Overall regulatory capitalisation rate | G119: % | AP119: =AP85/(AP83+AP85) -> 0.6605849841 | AQ119: =AQ85/(AQ83+AQ85) -> 0.6642243794 | AR119: 0.6686281882 | AS119: 0.6776972663 | AT119: 0.6832807007 | AU119: 0.700726679 | AV119: 0.7026103612 | AW119: 0.6900282093 | AX119: 0.6462690321 | AY119: 0.629164185
E120: Natural capitalisation rate 1 (pre-TIM, allowance) | G120: % | AP120: =SUM(Totex!AP25,Totex!AP26,Totex!AP27,Totex!AP30)/SUM(Totex!AP25:AP30) -> 0.5486268436 | AQ120: =SUM(Totex!AQ25,Totex!AQ26,Totex!AQ27,Totex!AQ30)/SUM(Totex!AQ25:AQ30) -> 0.6041627633 | AR120: =SUM(Totex!AR25,Totex!AR26,Totex!AR27,Totex!AR30)/SUM(Totex!AR25:AR30) -> 0.6113951652 | AS120: =SUM(Totex!AS25,Totex!AS26,Totex!AS27,Totex!AS30)/SUM(Totex!AS25:AS30) -> 0.5906558056 | AT120: =SUM(Totex!AT25,Totex!AT26,Totex!AT27,Totex!AT30)/SUM(Totex!AT25:AT30) -> 0.6643277159 | AU120: =SUM(Totex!AU25,Totex!AU26,Totex!AU27,Totex!AU30)/SUM(Totex!AU25:AU30) -> 0.6331028646 | AV120: =SUM(Totex!AV25,Totex!AV26,Totex!AV27,Totex!AV30)/SUM(Totex!AV25:AV30) -> 0.6282655198 | AW120: =SUM(Totex!AW25,Totex!AW26,Totex!AW27,Totex!AW30)/SUM(Totex!AW25:AW30) -> 0.6351966267 | AX120: =SUM(Totex!AX25,Totex!AX26,Totex!AX27,Totex!AX30)/SUM(Totex!AX25:AX30) -> 0.6163768367 | AY120: =SUM(Totex!AY25,Totex!AY26,Totex!AY27,Totex!AY30)/SUM(Totex!AY25:AY30) -> 0.6466995642
E121: Natural capitalisation rate 2 (pre-TIM, allowance) | G121: % | AP121: =IF(SUM(Totex!AP34:AP39)=0,0,SUM(Totex!AP34,Totex!AP35,Totex!AP36,Totex!AP39)/SUM(Totex!AP34:AP39)) -> 0.9210638011 | AQ121: =IF(SUM(Totex!AQ34:AQ39)=0,0,SUM(Totex!AQ34,Totex!AQ35,Totex!AQ36,Totex!AQ39)/SUM(Totex!AQ34:AQ39)) -> 0.901318682 | AR121: =IF(SUM(Totex!AR34:AR39)=0,0,SUM(Totex!AR34,Totex!AR35,Totex!AR36,Totex!AR39)/SUM(Totex!AR34:AR39)) -> 0.9046748015 | AS121: =IF(SUM(Totex!AS34:AS39)=0,0,SUM(Totex!AS34,Totex!AS35,Totex!AS36,Totex!AS39)/SUM(Totex!AS34:AS39)) -> 0.9001313651 | AT121: =IF(SUM(Totex!AT34:AT39)=0,0,SUM(Totex!AT34,Totex!AT35,Totex!AT36,Totex!AT39)/SUM(Totex!AT34:AT39)) -> 0.8705769864 | AU121: =IF(SUM(Totex!AU34:AU39)=0,0,SUM(Totex!AU34,Totex!AU35,Totex!AU36,Totex!AU39)/SUM(Totex!AU34:AU39)) -> 0.9901900628 | AV121: =IF(SUM(Totex!AV34:AV39)=0,0,SUM(Totex!AV34,Totex!AV35,Totex!AV36,Totex!AV39)/SUM(Totex!AV34:AV39)) -> 0.9947369004 | AW121: =IF(SUM(Totex!AW34:AW39)=0,0,SUM(Totex!AW34,Totex!AW35,Totex!AW36,Totex!AW39)/SUM(Totex!AW34:AW39)) -> 0.9938588631 | AX121: =IF(SUM(Totex!AX34:AX39)=0,0,SUM(Totex!AX34,Totex!AX35,Totex!AX36,Totex!AX39)/SUM(Totex!AX34:AX39)) -> 1 | AY121: =IF(SUM(Totex!AY34:AY39)=0,0,SUM(Totex!AY34,Totex!AY35,Totex!AY36,Totex!AY39)/SUM(Totex!AY34:AY39)) -> 1
E122: Overall natural capitalisation rate (pre-TIM, allowance) | G122: % | AP122: =SUM(Totex!AP43,Totex!AP44,Totex!AP45,Totex!AP48)/SUM(Totex!AP43:AP48) -> 0.6149407378 | AQ122: =SUM(Totex!AQ43,Totex!AQ44,Totex!AQ45,Totex!AQ48)/SUM(Totex!AQ43:AQ48) -> 0.6829804989 | AR122: =SUM(Totex!AR43,Totex!AR44,Totex!AR45,Totex!AR48)/SUM(Totex!AR43:AR48) -> 0.7144636945 | AS122: =SUM(Totex!AS43,Totex!AS44,Totex!AS45,Totex!AS48)/SUM(Totex!AS43:AS48) -> 0.7312596482 | AT122: =SUM(Totex!AT43,Totex!AT44,Totex!AT45,Totex!AT48)/SUM(Totex!AT43:AT48) -> 0.7451890447 | AU122: =SUM(Totex!AU43,Totex!AU44,Totex!AU45,Totex!AU48)/SUM(Totex!AU43:AU48) -> 0.7606482826 | AV122: =SUM(Totex!AV43,Totex!AV44,Totex!AV45,Totex!AV48)/SUM(Totex!AV43:AV48) -> 0.7613896312 | AW122: =SUM(Totex!AW43,Totex!AW44,Totex!AW45,Totex!AW48)/SUM(Totex!AW43:AW48) -> 0.7509267598 | AX122: =SUM(Totex!AX43,Totex!AX44,Totex!AX45,Totex!AX48)/SUM(Totex!AX43:AX48) -> 0.6860094306 | AY122: =SUM(Totex!AY43,Totex!AY44,Totex!AY45,Totex!AY48)/SUM(Totex!AY43:AY48) -> 0.6913341565
B124: End of sheet

Sheet Depn
A1: Regulatory Depreciation
B2: =UserInterface!G17 -> NGGT
E3: Parameter | G3: Units | I3: Constant | AP3: Annual values
E4: PCFM year ending | I4: =UserInterface!$G$10 -> 2025-03-31 | K4: 1991-03-31 | L4: 1992-03-31 | M4: 1993-03-31 | N4: 1994-03-31 | O4: 1995-03-31 | P4: 1996-03-31 | Q4: 1997-03-31 | R4: 1998-03-31 | S4: 1999-03-31 | T4: 2000-03-31 | U4: 2001-03-31 | V4: 2002-03-31 | W4: 2003-03-31 | X4: 2004-03-31 | Y4: 2005-03-31 | Z4: 2006-03-31 | AA4: 2007-03-31 | AB4: 2008-03-31 | AC4: 2009-03-31 | AD4: 2010-03-31 | AE4: 2011-03-31 | AF4: 2012-03-31 | AG4: 2013-03-31 | AH4: 2014-03-31 | AI4: 2015-03-31 | AJ4: 2016-03-31 | AK4: 2017-03-31 | AL4: 2018-03-31 | AM4: 2019-03-31 | AN4: 2020-03-31 | AO4: 2021-03-31 | AP4: 2022-03-31 | AQ4: 2023-03-31 | AR4: 2024-03-31 | AS4: 2025-03-31 | AT4: 2026-03-31 | AU4: 2027-03-31 | AV4: 2028-03-31 | AW4: 2029-03-31 | AX4: 2030-03-31 | AY4: =EOMONTH(AX4,12) -> 2031-03-31 | AZ4: =EOMONTH(AY4,12) -> 2032-03-31 | BA4: 2033-03-31 | BB4: 2034-03-31 | BC4: 2035-03-31 | BD4: 2036-03-31 | BE4: 2037-03-31 | BF4: 2038-03-31 | BG4: 2039-03-31 | BH4: 2040-03-31 | BI4: 2041-03-31 | BJ4: 2042-03-31 | BK4: 2043-03-31 | BL4: 2044-03-31 | BM4: 2045-03-31 | BN4: 2046-03-31 | BO4: 2047-03-31 | BP4: 2048-03-31 | BQ4: 2049-03-31 | BR4: 2050-03-31 | BS4: 2051-03-31 | BT4: 2052-03-31 | BU4: 2053-03-31 | BV4: 2054-03-31 | BW4: 2055-03-31 | BX4: 2056-03-31 | BY4: =EOMONTH(BX4,12) -> 2057-03-31 | BZ4: =EOMONTH(BY4,12) -> 2058-03-31 | CA4: =EOMONTH(BZ4,12) -> 2059-03-31 | CB4: =EOMONTH(CA4,12) -> 2060-03-31 | CC4: =EOMONTH(CB4,12) -> 2061-03-31 | CD4: =EOMONTH(CC4,12) -> 2062-03-31 | CE4: =EOMONTH(CD4,12) -> 2063-03-31 | CF4: =EOMONTH(CE4,12) -> 2064-03-31 | CG4: =EOMONTH(CF4,12) -> 2065-03-31 | CH4: =EOMONTH(CG4,12) -> 2066-03-31 | CI4: =EOMONTH(CH4,12) -> 2067-03-31 | CJ4: =EOMONTH(CI4,12) -> 2068-03-31 | CK4: =EOMONTH(CJ4,12) -> 2069-03-31 | CL4: =EOMONTH(CK4,12) -> 2070-03-31 | CM4: =EOMONTH(CL4,12) -> 2071-03-31 | CN4: =EOMONTH(CM4,12) -> 2072-03-31 | CO4: =EOMONTH(CN4,12) -> 2073-03-31 | CP4: =EOMONTH(CO4,12) -> 2074-03-31 | CQ4: =EOMONTH(CP4,12) -> 2075-03-31 | CR4: =EOMONTH(CQ4,12) -> 2076-03-31 | CS4: =EOMONTH(CR4,12) -> 2077-03-31 | CT4: =EOMONTH(CS4,12) -> 2078-03-31 | CU4: =EOMONTH(CT4,12) -> 2079-03-31 | CV4: =EOMONTH(CU4,12) -> 2080-03-31 | CW4: 2081-03-31
AU5: =ROUNDUP(SUM($AU11:AU11)/5,0)+2 -> 3 | AV5: =ROUNDUP(SUM($AU11:AV11)/5,0)+2 -> 3 | AW5: =ROUNDUP(SUM($AU11:AW11)/5,0)+2 -> 3 | AX5: =ROUNDUP(SUM($AU11:AX11)/5,0)+2 -> 3 | AY5: =ROUNDUP(SUM($AU11:AY11)/5,0)+2 -> 3 | AZ5: =ROUNDUP(SUM($AU11:AZ11)/5,0)+2 -> 4 | BA5: =ROUNDUP(SUM($AU11:BA11)/5,0)+2 -> 4 | BB5: =ROUNDUP(SUM($AU11:BB11)/5,0)+2 -> 4 | BC5: =ROUNDUP(SUM($AU11:BC11)/5,0)+2 -> 4 | BD5: =ROUNDUP(SUM($AU11:BD11)/5,0)+2 -> 4 | BE5: =ROUNDUP(SUM($AU11:BE11)/5,0)+2 -> 5 | BF5: =ROUNDUP(SUM($AU11:BF11)/5,0)+2 -> 5 | BG5: =ROUNDUP(SUM($AU11:BG11)/5,0)+2 -> 5 | BH5: =ROUNDUP(SUM($AU11:BH11)/5,0)+2 -> 5 | BI5: =ROUNDUP(SUM($AU11:BI11)/5,0)+2 -> 5 | BJ5: =ROUNDUP(SUM($AU11:BJ11)/5,0)+2 -> 6 | BK5: =ROUNDUP(SUM($AU11:BK11)/5,0)+2 -> 6 | BL5: =ROUNDUP(SUM($AU11:BL11)/5,0)+2 -> 6 | BM5: =ROUNDUP(SUM($AU11:BM11)/5,0)+2 -> 6 | BN5: =ROUNDUP(SUM($AU11:BN11)/5,0)+2 -> 6 | BO5: =ROUNDUP(SUM($AU11:BO11)/5,0)+2 -> 7 | BP5: =ROUNDUP(SUM($AU11:BP11)/5,0)+2 -> 7 | BQ5: =ROUNDUP(SUM($AU11:BQ11)/5,0)+2 -> 7 | BR5: =ROUNDUP(SUM($AU11:BR11)/5,0)+2 -> 7 | BS5: =ROUNDUP(SUM($AU11:BS11)/5,0)+2 -> 7 | BT5: =ROUNDUP(SUM($AU11:BT11)/5,0)+2 -> 8 | BU5: =ROUNDUP(SUM($AU11:BU11)/5,0)+2 -> 8 | BV5: =ROUNDUP(SUM($AU11:BV11)/5,0)+2 -> 8 | BW5: =ROUNDUP(SUM($AU11:BW11)/5,0)+2 -> 8 | BX5: =ROUNDUP(SUM($AU11:BX11)/5,0)+2 -> 8 | BY5: =ROUNDUP(SUM($AU11:BY11)/5,0)+2 -> 9 | BZ5: =ROUNDUP(SUM($AU11:BZ11)/5,0)+2 -> 9 | CA5: =ROUNDUP(SUM($AU11:CA11)/5,0)+2 -> 9 | CB5: =ROUNDUP(SUM($AU11:CB11)/5,0)+2 -> 9 | CC5: =ROUNDUP(SUM($AU11:CC11)/5,0)+2 -> 9 | CD5: =ROUNDUP(SUM($AU11:CD11)/5,0)+2 -> 10 | CE5: =ROUNDUP(SUM($AU11:CE11)/5,0)+2 -> 10 | CF5: =ROUNDUP(SUM($AU11:CF11)/5,0)+2 -> 10 | CG5: =ROUNDUP(SUM($AU11:CG11)/5,0)+2 -> 10 | CH5: =ROUNDUP(SUM($AU11:CH11)/5,0)+2 -> 10 | CI5: =ROUNDUP(SUM($AU11:CI11)/5,0)+2 -> 11 | CJ5: =ROUNDUP(SUM($AU11:CJ11)/5,0)+2 -> 11 | CK5: =ROUNDUP(SUM($AU11:CK11)/5,0)+2 -> 11 | CL5: =ROUNDUP(SUM($AU11:CL11)/5,0)+2 -> 11 | CM5: =ROUNDUP(SUM($AU11:CM11)/5,0)+2 -> 11 | CN5: =ROUNDUP(SUM($AU11:CN11)/5,0)+2 -> 12 | CO5: =ROUNDUP(SUM($AU11:CO11)/5,0)+2 -> 12 | CP5: =ROUNDUP(SUM($AU11:CP11)/5,0)+2 -> 12 | CQ5: =ROUNDUP(SUM($AU11:CQ11)/5,0)+2 -> 12 | CR5: =ROUNDUP(SUM($AU11:CR11)/5,0)+2 -> 12 | CS5: =ROUNDUP(SUM($AU11:CS11)/5,0)+2 -> 13 | CT5: =ROUNDUP(SUM($AU11:CT11)/5,0)+2 -> 13 | CU5: =ROUNDUP(SUM($AU11:CU11)/5,0)+2 -> 13 | CV5: =ROUNDUP(SUM($AU11:CV11)/5,0)+2 -> 13 | CW5: =ROUNDUP(SUM($AU11:CW11)/5,0)+2 -> 13
C7: Price control timeline
E9: Pre-RIIO-2 year | G9: flag | K9: =Scenarios!K$119 -> 1 | L9: =Scenarios!L$119 -> 1 | M9: =Scenarios!M$119 -> 1 | N9: =Scenarios!N$119 -> 1 | O9: =Scenarios!O$119 -> 1 | P9: =Scenarios!P$119 -> 1 | Q9: =Scenarios!Q$119 -> 1 | R9: =Scenarios!R$119 -> 1 | S9: =Scenarios!S$119 -> 1 | T9: =Scenarios!T$119 -> 1 | U9: =Scenarios!U$119 -> 1 | V9: =Scenarios!V$119 -> 1 | W9: =Scenarios!W$119 -> 1 | X9: =Scenarios!X$119 -> 1 | Y9: =Scenarios!Y$119 -> 1 | Z9: =Scenarios!Z$119 -> 1 | AA9: =Scenarios!AA$119 -> 1 | AB9: =Scenarios!AB$119 -> 1 | AC9: =Scenarios!AC$119 -> 1 | AD9: =Scenarios!AD$119 -> 1 | AE9: =Scenarios!AE$119 -> 1 | AF9: =Scenarios!AF$119 -> 1 | AG9: =Scenarios!AG$119 -> 1 | AH9: =Scenarios!AH$119 -> 1 | AI9: =Scenarios!AI$119 -> 1 | AJ9: =Scenarios!AJ$119 -> 1 | AK9: =Scenarios!AK$119 -> 1 | AL9: =Scenarios!AL$119 -> 1 | AM9: =Scenarios!AM$119 -> 1 | AN9: =Scenarios!AN$119 -> 1 | AO9: =Scenarios!AO$119 -> 1 | AP9: =Scenarios!AP$119 -> 0 | AQ9: =Scenarios!AQ$119 -> 0 | AR9: =Scenarios!AR$119 -> 0 | AS9: =Scenarios!AS$119 -> 0 | AT9: =Scenarios!AT$119 -> 0 | AU9: =Scenarios!AU$119 -> 0 | AV9: =Scenarios!AV$119 -> 0 | AW9: =Scenarios!AW$119 -> 0 | AX9: =Scenarios!AX$119 -> 0 | AY9: =Scenarios!AY$119 -> 0
E10: RIIO-2 year | G10: flag | K10: =Scenarios!K$120 -> 0 | L10: =Scenarios!L$120 -> 0 | M10: =Scenarios!M$120 -> 0 | N10: =Scenarios!N$120 -> 0 | O10: =Scenarios!O$120 -> 0 | P10: =Scenarios!P$120 -> 0 | Q10: =Scenarios!Q$120 -> 0 | R10: =Scenarios!R$120 -> 0 | S10: =Scenarios!S$120 -> 0 | T10: =Scenarios!T$120 -> 0 | U10: =Scenarios!U$120 -> 0 | V10: =Scenarios!V$120 -> 0 | W10: =Scenarios!W$120 -> 0 | X10: =Scenarios!X$120 -> 0 | Y10: =Scenarios!Y$120 -> 0 | Z10: =Scenarios!Z$120 -> 0 | AA10: =Scenarios!AA$120 -> 0 | AB10: =Scenarios!AB$120 -> 0 | AC10: =Scenarios!AC$120 -> 0 | AD10: =Scenarios!AD$120 -> 0 | AE10: =Scenarios!AE$120 -> 0 | AF10: =Scenarios!AF$120 -> 0 | AG10: =Scenarios!AG$120 -> 0 | AH10: =Scenarios!AH$120 -> 0 | AI10: =Scenarios!AI$120 -> 0 | AJ10: =Scenarios!AJ$120 -> 0 | AK10: =Scenarios!AK$120 -> 0 | AL10: =Scenarios!AL$120 -> 0 | AM10: =Scenarios!AM$120 -> 0 | AN10: =Scenarios!AN$120 -> 0 | AO10: =Scenarios!AO$120 -> 0 | AP10: =Scenarios!AP$120 -> 1 | AQ10: =Scenarios!AQ$120 -> 1 | AR10: =Scenarios!AR$120 -> 1 | AS10: =Scenarios!AS$120 -> 1 | AT10: =Scenarios!AT$120 -> 1 | AU10: =Scenarios!AU$120 -> 0 | AV10: =Scenarios!AV$120 -> 0 | AW10: =Scenarios!AW$120 -> 0 | AX10: =Scenarios!AX$120 -> 0 | AY10: =Scenarios!AY$120 -> 0
E11: RIIO-3 year | G11: flag | K11: =Scenarios!K$121 -> 0 | L11: =Scenarios!L$121 -> 0 | M11: =Scenarios!M$121 -> 0 | N11: =Scenarios!N$121 -> 0 | O11: =Scenarios!O$121 -> 0 | P11: =Scenarios!P$121 -> 0 | Q11: =Scenarios!Q$121 -> 0 | R11: =Scenarios!R$121 -> 0 | S11: =Scenarios!S$121 -> 0 | T11: =Scenarios!T$121 -> 0 | U11: =Scenarios!U$121 -> 0 | V11: =Scenarios!V$121 -> 0 | W11: =Scenarios!W$121 -> 0 | X11: =Scenarios!X$121 -> 0 | Y11: =Scenarios!Y$121 -> 0 | Z11: =Scenarios!Z$121 -> 0 | AA11: =Scenarios!AA$121 -> 0 | AB11: =Scenarios!AB$121 -> 0 | AC11: =Scenarios!AC$121 -> 0 | AD11: =Scenarios!AD$121 -> 0 | AE11: =Scenarios!AE$121 -> 0 | AF11: =Scenarios!AF$121 -> 0 | AG11: =Scenarios!AG$121 -> 0 | AH11: =Scenarios!AH$121 -> 0 | AI11: =Scenarios!AI$121 -> 0 | AJ11: =Scenarios!AJ$121 -> 0 | AK11: =Scenarios!AK$121 -> 0 | AL11: =Scenarios!AL$121 -> 0 | AM11: =Scenarios!AM$121 -> 0 | AN11: =Scenarios!AN$121 -> 0 | AO11: =Scenarios!AO$121 -> 0 | AP11: =Scenarios!AP$121 -> 0 | AQ11: =Scenarios!AQ$121 -> 0 | AR11: =Scenarios!AR$121 -> 0 | AS11: =Scenarios!AS$121 -> 0 | AT11: =Scenarios!AT$121 -> 0 | AU11: =Scenarios!AU$121 -> 1 | AV11: =Scenarios!AV$121 -> 1 | AW11: =Scenarios!AW$121 -> 1 | AX11: =Scenarios!AX$121 -> 1 | AY11: =Scenarios!AY$121 -> 1 | AZ11: 1 | BA11: 1 | BB11: 1 | BC11: 1 | BD11: 1 | BE11: 1 | BF11: 1 | BG11: 1 | BH11: 1 | BI11: 1 | BJ11: 1 | BK11: 1 | BL11: 1 | BM11: 1 | BN11: 1 | BO11: 1 | BP11: 1 | BQ11: 1 | BR11: 1 | BS11: 1 | BT11: 1 | BU11: 1 | BV11: 1 | BW11: 1 | BX11: 1 | BY11: 1 | BZ11: 1 | CA11: 1 | CB11: 1 | CC11: 1 | CD11: 1 | CE11: 1 | CF11: 1 | CG11: 1 | CH11: 1 | CI11: 1 | CJ11: 1 | CK11: 1 | CL11: 1 | CM11: 1 | CN11: 1 | CO11: 1 | CP11: 1 | CQ11: 1 | CR11: 1 | CS11: 1 | CT11: 1 | CU11: 1 | CV11: 1 | CW11: 1
C13: Scenario operators
E15: Profile of depreciation factors | G15: scalar | I15: =Scenarios!F26 -> Base case | AU15: =IFERROR(INDEX(Scenarios!$AT$246:$AX$246,,MATCH(AU5,Scenarios!$AT$245:$AX$245,0)),1) -> 1 | AV15: =IFERROR(INDEX(Scenarios!$AT$246:$AX$246,,MATCH(AV5,Scenarios!$AT$245:$AX$245,0)),1) -> 1 | AW15: =IFERROR(INDEX(Scenarios!$AT$246:$AX$246,,MATCH(AW5,Scenarios!$AT$245:$AX$245,0)),1) -> 1 | AX15: =IFERROR(INDEX(Scenarios!$AT$246:$AX$246,,MATCH(AX5,Scenarios!$AT$245:$AX$245,0)),1) -> 1 | AY15: =IFERROR(INDEX(Scenarios!$AT$246:$AX$246,,MATCH(AY5,Scenarios!$AT$245:$AX$245,0)),1) -> 1 | AZ15: =IFERROR(INDEX(Scenarios!$AT$246:$AX$246,,MATCH(AZ5,Scenarios!$AT$245:$AX$245,0)),1) -> 1 | BA15: =IFERROR(INDEX(Scenarios!$AT$246:$AX$246,,MATCH(BA5,Scenarios!$AT$245:$AX$245,0)),1) -> 1 | BB15: =IFERROR(INDEX(Scenarios!$AT$246:$AX$246,,MATCH(BB5,Scenarios!$AT$245:$AX$245,0)),1) -> 1 | BC15: =IFERROR(INDEX(Scenarios!$AT$246:$AX$246,,MATCH(BC5,Scenarios!$AT$245:$AX$245,0)),1) -> 1 | BD15: =IFERROR(INDEX(Scenarios!$AT$246:$AX$246,,MATCH(BD5,Scenarios!$AT$245:$AX$245,0)),1) -> 1 | BE15: =IFERROR(INDEX(Scenarios!$AT$246:$AX$246,,MATCH(BE5,Scenarios!$AT$245:$AX$245,0)),1) -> 1 | BF15: =IFERROR(INDEX(Scenarios!$AT$246:$AX$246,,MATCH(BF5,Scenarios!$AT$245:$AX$245,0)),1) -> 1 | BG15: =IFERROR(INDEX(Scenarios!$AT$246:$AX$246,,MATCH(BG5,Scenarios!$AT$245:$AX$245,0)),1) -> 1 | BH15: =IFERROR(INDEX(Scenarios!$AT$246:$AX$246,,MATCH(BH5,Scenarios!$AT$245:$AX$245,0)),1) -> 1 | BI15: =IFERROR(INDEX(Scenarios!$AT$246:$AX$246,,MATCH(BI5,Scenarios!$AT$245:$AX$245,0)),1) -> 1 | BJ15: =IFERROR(INDEX(Scenarios!$AT$246:$AX$246,,MATCH(BJ5,Scenarios!$AT$245:$AX$245,0)),1) -> 1 | BK15: =IFERROR(INDEX(Scenarios!$AT$246:$AX$246,,MATCH(BK5,Scenarios!$AT$245:$AX$245,0)),1) -> 1 | BL15: =IFERROR(INDEX(Scenarios!$AT$246:$AX$246,,MATCH(BL5,Scenarios!$AT$245:$AX$245,0)),1) -> 1 | BM15: =IFERROR(INDEX(Scenarios!$AT$246:$AX$246,,MATCH(BM5,Scenarios!$AT$245:$AX$245,0)),1) -> 1 | BN15: =IFERROR(INDEX(Scenarios!$AT$246:$AX$246,,MATCH(BN5,Scenarios!$AT$245:$AX$245,0)),1) -> 1 | BO15: =IFERROR(INDEX(Scenarios!$AT$246:$AX$246,,MATCH(BO5,Scenarios!$AT$245:$AX$245,0)),1) -> 1 | BP15: =IFERROR(INDEX(Scenarios!$AT$246:$AX$246,,MATCH(BP5,Scenarios!$AT$245:$AX$245,0)),1) -> 1 | BQ15: =IFERROR(INDEX(Scenarios!$AT$246:$AX$246,,MATCH(BQ5,Scenarios!$AT$245:$AX$245,0)),1) -> 1 | BR15: =IFERROR(INDEX(Scenarios!$AT$246:$AX$246,,MATCH(BR5,Scenarios!$AT$245:$AX$245,0)),1) -> 1 | BS15: =IFERROR(INDEX(Scenarios!$AT$246:$AX$246,,MATCH(BS5,Scenarios!$AT$245:$AX$245,0)),1) -> 1 | BT15: =IFERROR(INDEX(Scenarios!$AT$246:$AX$246,,MATCH(BT5,Scenarios!$AT$245:$AX$245,0)),1) -> 1 | BU15: =IFERROR(INDEX(Scenarios!$AT$246:$AX$246,,MATCH(BU5,Scenarios!$AT$245:$AX$245,0)),1) -> 1 | BV15: =IFERROR(INDEX(Scenarios!$AT$246:$AX$246,,MATCH(BV5,Scenarios!$AT$245:$AX$245,0)),1) -> 1 | BW15: =IFERROR(INDEX(Scenarios!$AT$246:$AX$246,,MATCH(BW5,Scenarios!$AT$245:$AX$245,0)),1) -> 1 | BX15: =IFERROR(INDEX(Scenarios!$AT$246:$AX$246,,MATCH(BX5,Scenarios!$AT$245:$AX$245,0)),1) -> 1 | BY15: =IFERROR(INDEX(Scenarios!$AT$246:$AX$246,,MATCH(BY5,Scenarios!$AT$245:$AX$245,0)),1) -> 1 | BZ15: =IFERROR(INDEX(Scenarios!$AT$246:$AX$246,,MATCH(BZ5,Scenarios!$AT$245:$AX$245,0)),1) -> 1 | CA15: =IFERROR(INDEX(Scenarios!$AT$246:$AX$246,,MATCH(CA5,Scenarios!$AT$245:$AX$245,0)),1) -> 1 | CB15: =IFERROR(INDEX(Scenarios!$AT$246:$AX$246,,MATCH(CB5,Scenarios!$AT$245:$AX$245,0)),1) -> 1 | CC15: =IFERROR(INDEX(Scenarios!$AT$246:$AX$246,,MATCH(CC5,Scenarios!$AT$245:$AX$245,0)),1) -> 1 | CD15: =IFERROR(INDEX(Scenarios!$AT$246:$AX$246,,MATCH(CD5,Scenarios!$AT$245:$AX$245,0)),1) -> 1 | CE15: =IFERROR(INDEX(Scenarios!$AT$246:$AX$246,,MATCH(CE5,Scenarios!$AT$245:$AX$245,0)),1) -> 1 | CF15: =IFERROR(INDEX(Scenarios!$AT$246:$AX$246,,MATCH(CF5,Scenarios!$AT$245:$AX$245,0)),1) -> 1 | CG15: =IFERROR(INDEX(Scenarios!$AT$246:$AX$246,,MATCH(CG5,Scenarios!$AT$245:$AX$245,0)),1) -> 1 | CH15: =IFERROR(INDEX(Scenarios!$AT$246:$AX$246,,MATCH(CH5,Scenarios!$AT$245:$AX$245,0)),1) -> 1 | CI15: =IFERROR(INDEX(Scenarios!$AT$246:$AX$246,,MATCH(CI5,Scenarios!$AT$245:$AX$245,0)),1) -> 1 | CJ15: =IFERROR(INDEX(Scenarios!$AT$246:$AX$246,,MATCH(CJ5,Scenarios!$AT$245:$AX$245,0)),1) -> 1 | CK15: =IFERROR(INDEX(Scenarios!$AT$246:$AX$246,,MATCH(CK5,Scenarios!$AT$245:$AX$245,0)),1) -> 1 | CL15: =IFERROR(INDEX(Scenarios!$AT$246:$AX$246,,MATCH(CL5,Scenarios!$AT$245:$AX$245,0)),1) -> 1 | CM15: =IFERROR(INDEX(Scenarios!$AT$246:$AX$246,,MATCH(CM5,Scenarios!$AT$245:$AX$245,0)),1) -> 1 | CN15: =IFERROR(INDEX(Scenarios!$AT$246:$AX$246,,MATCH(CN5,Scenarios!$AT$245:$AX$245,0)),1) -> 1 | CO15: =IFERROR(INDEX(Scenarios!$AT$246:$AX$246,,MATCH(CO5,Scenarios!$AT$245:$AX$245,0)),1) -> 1 | CP15: =IFERROR(INDEX(Scenarios!$AT$246:$AX$246,,MATCH(CP5,Scenarios!$AT$245:$AX$245,0)),1) -> 1 | CQ15: =IFERROR(INDEX(Scenarios!$AT$246:$AX$246,,MATCH(CQ5,Scenarios!$AT$245:$AX$245,0)),1) -> 1 | CR15: =IFERROR(INDEX(Scenarios!$AT$246:$AX$246,,MATCH(CR5,Scenarios!$AT$245:$AX$245,0)),1) -> 1 | CS15: =IFERROR(INDEX(Scenarios!$AT$246:$AX$246,,MATCH(CS5,Scenarios!$AT$245:$AX$245,0)),1) -> 1 | CT15: =IFERROR(INDEX(Scenarios!$AT$246:$AX$246,,MATCH(CT5,Scenarios!$AT$245:$AX$245,0)),1) -> 1 | CU15: =IFERROR(INDEX(Scenarios!$AT$246:$AX$246,,MATCH(CU5,Scenarios!$AT$245:$AX$245,0)),1) -> 1 | CV15: =IFERROR(INDEX(Scenarios!$AT$246:$AX$246,,MATCH(CV5,Scenarios!$AT$245:$AX$245,0)),1) -> 1 | CW15: =IFERROR(INDEX(Scenarios!$AT$246:$AX$246,,MATCH(CW5,Scenarios!$AT$245:$AX$245,0)),1) -> 1
E16: RIIO-3 treatment: asset life input or custom profile? | G16: text | I16: =Scenarios!F27 -> Asset life input
E17: If asset life input: Sum of Digits or Straight Line? | G17: text | I17: =Scenarios!F28 -> Sum of Digits
E18: If asset life input: base case or terminate? | G18: text | I18: =Scenarios!F29 -> Base case
E19: If base case, RIIO-3 additions asset life | G19: years | I19: =Scenarios!F30 -> 45
E20: If terminate, input year of final depreciation | G20: years | I20: =IF(I18="Terminate",Scenarios!F31,9999) -> 9999
E21: Post-vesting treatment: status quo, accelerate or terminate? | G21: text | I21: =Scenarios!F32 -> Status quo
E22: If accelerate, pre-RIIO-3 additions accelerated asset life | G22: years | I22: =IF(I21="Status quo", MainInputs!I1557,Scenarios!F33) -> 45
E23: If terminate, input year of final depreciation | G23: year | I23: =IF(OR(I21="Terminate",I21="RIIO3 reset"),Scenarios!F34,9999) -> 9999
E24: Pre-vesting treatment: status quo or terminate? | G24: text | I24: =Scenarios!F35 -> Status quo
E25: If terminate, input year of final depreciation | G25: year | I25: =Scenarios!F36 -> 2060
E27: SSMC cost of debt inflation approach: additions | G27: text | I27: =Scenarios!F55 -> Option 1 | AP27: ='Return&RAV'!AP65*AP11 -> 0 | AQ27: ='Return&RAV'!AQ65*AQ11 -> 0 | AR27: ='Return&RAV'!AR65*AR11 -> 0 | AS27: ='Return&RAV'!AS65*AS11 -> 0 | AT27: ='Return&RAV'!AT65*AT11 -> 0 | AU27: ='Return&RAV'!AU65*AU11 -> 633.9750183 | AV27: ='Return&RAV'!AV65*AV11 -> 653.318141 | AW27: ='Return&RAV'!AW65*AW11 -> 624.3441618 | AX27: ='Return&RAV'!AX65*AX11 -> 445.4138548 | AY27: ='Return&RAV'!AY65*AY11 -> 438.6059297
B29: Regulatory depreciation
C31: Net RAV additions (after disposals)
C32: Note: Additions to RAV are combined before feeding into the depreciation calculations. Disposals are treated as negative additions. Pre-RIIO values are used to build up the post-vesting RAV from vesting.
E34: Slow money | G34: =price_label -> £m 23/24 prices | AP34: =TIM!AP85*AP10 + AP27*AP11 -> 245.4293116 | AQ34: =TIM!AQ85*AQ10 + AQ27*AQ11 -> 301.1284475 | AR34: =TIM!AR85*AR10 + AR27*AR11 -> 345.041013 | AS34: =TIM!AS85*AS10 + AS27*AS11 -> 422.9336722 | AT34: =TIM!AT85*AT10 + AT27*AT11 -> 562.1778844 | AU34: =TIM!AU85*AU10 + AU27*AU11 -> 633.9750183 | AV34: =TIM!AV85*AV10 + AV27*AV11 -> 653.318141 | AW34: =TIM!AW85*AW10 + AW27*AW11 -> 624.3441618 | AX34: =TIM!AX85*AX10 + AX27*AX11 -> 445.4138548 | AY34: =TIM!AY85*AY10 + AY27*AY11 -> 438.6059297
E35: RIIO-1 net RAV additions | G35: £m 23/24 prices | AH35: =MainInputs!AH1564 -> 262.1306167 | AI35: =MainInputs!AI1564 -> 208.3748605 | AJ35: =MainInputs!AJ1564 -> 197.0112514 | AK35: =MainInputs!AK1564 -> 222.9497936 | AL35: =MainInputs!AL1564 -> 283.5390249 | AM35: =MainInputs!AM1564 -> 255.4088354 | AN35: =MainInputs!AN1564 -> 215.81535 | AO35: =MainInputs!AO1564 -> 179.7363984
E36: Net adjustments | G36: £m 23/24 prices | AP36: =SUM(MainInputs!AP1565:AP1566) -> 0 | AQ36: =SUM(MainInputs!AQ1565:AQ1566) -> 0 | AR36: =SUM(MainInputs!AR1565:AR1566) -> 0 | AS36: =SUM(MainInputs!AS1565:AS1566) -> 0 | AT36: =SUM(MainInputs!AT1565:AT1566) -> 0 | AU36: =SUM(MainInputs!AU1565:AU1566) -> 0 | AV36: =SUM(MainInputs!AV1565:AV1566) -> 0 | AW36: =SUM(MainInputs!AW1565:AW1566) -> 0 | AX36: =SUM(MainInputs!AX1565:AX1566) -> 0 | AY36: =SUM(MainInputs!AY1565:AY1566) -> 0
E37: Pre-RIIO net RAV additions (after disposals) | G37: £m 23/24 prices | W37: =MainInputs!W1562 -> 0 | X37: =MainInputs!X1562 -> 489.5072736 | Y37: =MainInputs!Y1562 -> 157.6097677 | Z37: =MainInputs!Z1562 -> 490.594175 | AA37: =MainInputs!AA1562 -> 884.8612014 | AB37: =MainInputs!AB1562 -> 957.9204795 | AC37: =MainInputs!AC1562 -> 405.1758457 | AD37: =MainInputs!AD1562 -> 201.4567989 | AE37: =MainInputs!AE1562 -> 163.4998048 | AF37: =MainInputs!AF1562 -> 165.3576047 | AG37: =MainInputs!AG1562 -> -47.03410257
E38: Net RAV additions (after disposals) | G38: £m 23/24 prices | J38: > | W38: =SUM(W34:W37) -> 0 | X38: 489.5072736 | Y38: 157.6097677 | Z38: 490.594175 | AA38: 884.8612014 | AB38: 957.9204795 | AC38: 405.1758457 | AD38: 201.4567989 | AE38: 163.4998048 | AF38: 165.3576047 | AG38: -47.03410257 | AH38: 262.1306167 | AI38: 208.3748605 | AJ38: 197.0112514 | AK38: 222.9497936 | AL38: 283.5390249 | AM38: 255.4088354 | AN38: 215.81535 | AO38: 179.7363984 | AP38: 245.4293116 | AQ38: 301.1284475 | AR38: 345.041013 | AS38: 422.9336722 | AT38: 562.1778844 | AU38: 633.9750183 | AV38: 653.318141 | AW38: 624.3441618 | AX38: 445.4138548 | AY38: 438.6059297 | AZ38: 0 | BA38: 0 | BB38: 0 | BC38: 0 | BD38: 0 | BE38: 0 | BF38: 0 | BG38: 0 | BH38: 0 | BI38: 0 | BJ38: 0 | BK38: 0 | BL38: 0 | BM38: 0 | BN38: 0 | BO38: 0 | BP38: 0 | BQ38: 0 | BR38: 0 | BS38: 0 | BT38: 0 | BU38: 0 | BV38: 0 | BW38: 0 | BX38: 0 | BY38: 0 | BZ38: 0 | CA38: 0 | CB38: 0 | CC38: 0 | CD38: 0 | CE38: 0 | CF38: 0 | CG38: 0 | CH38: 0 | CI38: =SUM(CI34:CI37) -> 0 | CJ38: 0 | CK38: 0 | CL38: 0 | CM38: 0 | CN38: 0 | CO38: 0 | CP38: 0 | CQ38: 0 | CR38: 0 | CS38: 0 | CT38: 0 | CU38: 0 | CV38: 0 | CW38: 0
C40: Net depreciation additions (after disposals)
E42: Pre-RIIO transfers to depreciation | G42: =price_label -> £m 23/24 prices | J42: > | V42: =MainInputs!V1563 -> 0 | W42: =MainInputs!W1563 -> 0 | X42: =MainInputs!X1563 -> 5.576772511 | Y42: =MainInputs!Y1563 -> 0 | Z42: =MainInputs!Z1563 -> 0 | AA42: =MainInputs!AA1563 -> 0 | AB42: =MainInputs!AB1563 -> 0 | AC42: =MainInputs!AC1563 -> 0 | AD42: =MainInputs!AD1563 -> 0 | AE42: =MainInputs!AE1563 -> 0 | AF42: =MainInputs!AF1563 -> 0 | AG42: =MainInputs!AG1563 -> -13.59198268
C44: Depreciation for Return&RAV tab
E46: Total calculated depreciation | G46: =price_label -> £m 23/24 prices | X46: =X765 -> 0 | Y46: =Y765 -> 10.87793941 | Z46: 14.3803787 | AA46: 25.28247147 | AB46: 44.94605373 | AC46: 66.23317549 | AD46: 75.23708317 | AE46: 79.71390093 | AF46: 83.34722992 | AG46: 87.02184336 | AH46: 85.97664108 | AI46: 91.8017659 | AJ46: 96.43231835 | AK46: 100.8103462 | AL46: 105.764786 | AM46: 112.0656532 | AN46: 117.7414051 | AO46: 122.5373018 | AP46: 236.1468961 | AQ46: 241.3163686 | AR46: 248.6704129 | AS46: 257.6427538 | AT46: 269.6683591 | AU46: 287.339429 | AV46: 307.5889464 | AW46: 328.0669329 | AX46: 346.6539559 | AY46: 356.8581693 | AZ46: 366.3360344 | BA46: 356.3203026 | BB46: 346.3045708 | BC46: 336.288839 | BD46: 326.2731072 | BE46: 316.2573754 | BF46: 306.2416436 | BG46: 296.2259118 | BH46: 286.21018 | BI46: 276.1944482 | BJ46: 220.1946327 | BK46: 210.1789009 | BL46: 200.1631691 | BM46: 190.1474373 | BN46: 180.1317055 | BO46: 170.1159737 | BP46: 160.1002419 | BQ46: 150.0845101 | BR46: 140.0687783 | BS46: 130.5260004 | BT46: 121.1355024 | BU46: 112.2190085 | BV46: 104.157453 | BW46: 97.02142447 | BX46: 90.2768702 | BY46: 83.72696018 | BZ46: 77.33502098 | CA46: 71.10284759 | CB46: 64.82523062 | CC46: 58.80087994 | CD46: 52.97785763 | CE46: 47.34518436 | CF46: 41.92792152 | CG46: 36.78460942 | CH46: 31.88806915 | CI46: 27.20004612 | CJ46: 22.68568145 | CK46: =CK765 -> 18.40844655 | CL46: 14.42215701 | CM46: 10.76924043 | CN46: 7.524955414 | CO46: 4.823837438 | CP46: 2.735255711 | CQ46: 1.277899241 | CR46: 0.4237738452 | CS46: 0 | CT46: 0 | CU46: 0 | CV46: 0 | CW46: 0
E47: Override depreciation profile input | G47: =price_label -> £m 23/24 prices | AU47: =MainInputs!AU1574 -> 0 | AV47: =MainInputs!AV1574 -> 0 | AW47: =MainInputs!AW1574 -> 0 | AX47: =MainInputs!AX1574 -> 0 | AY47: =MainInputs!AY1574 -> 0 | AZ47: =MainInputs!AZ1574 -> 0 | BA47: =MainInputs!BA1574 -> 0 | BB47: =MainInputs!BB1574 -> 0 | BC47: =MainInputs!BC1574 -> 0 | BD47: =MainInputs!BD1574 -> 0 | BE47: =MainInputs!BE1574 -> 0 | BF47: =MainInputs!BF1574 -> 0 | BG47: =MainInputs!BG1574 -> 0 | BH47: =MainInputs!BH1574 -> 0 | BI47: =MainInputs!BI1574 -> 0 | BJ47: =MainInputs!BJ1574 -> 0 | BK47: =MainInputs!BK1574 -> 0 | BL47: =MainInputs!BL1574 -> 0 | BM47: =MainInputs!BM1574 -> 0 | BN47: =MainInputs!BN1574 -> 0 | BO47: =MainInputs!BO1574 -> 0 | BP47: =MainInputs!BP1574 -> 0 | BQ47: =MainInputs!BQ1574 -> 0 | BR47: =MainInputs!BR1574 -> 0 | BS47: =MainInputs!BS1574 -> 0 | BT47: =MainInputs!BT1574 -> 0 | BU47: =MainInputs!BU1574 -> 0 | BV47: =MainInputs!BV1574 -> 0 | BW47: =MainInputs!BW1574 -> 0 | BX47: =MainInputs!BX1574 -> 0 | BY47: =MainInputs!BY1574 -> 0 | BZ47: =MainInputs!BZ1574 -> 0 | CA47: =MainInputs!CA1574 -> 0 | CB47: =MainInputs!CB1574 -> 0 | CC47: =MainInputs!CC1574 -> 0 | CD47: =MainInputs!CD1574 -> 0 | CE47: =MainInputs!CE1574 -> 0 | CF47: =MainInputs!CF1574 -> 0 | CG47: =MainInputs!CG1574 -> 0 | CH47: =MainInputs!CH1574 -> 0 | CI47: =MainInputs!CI1574 -> 0 | CJ47: =MainInputs!CJ1574 -> 0 | CK47: =MainInputs!CK1574 -> 0 | CL47: =MainInputs!CL1574 -> 0 | CM47: =MainInputs!CM1574 -> 0 | CN47: =MainInputs!CN1574 -> 0 | CO47: =MainInputs!CO1574 -> 0 | CP47: =MainInputs!CP1574 -> 0 | CQ47: =MainInputs!CQ1574 -> 0 | CR47: =MainInputs!CR1574 -> 0 | CS47: =MainInputs!CS1574 -> 0 | CT47: =MainInputs!CT1574 -> 0 | CU47: =MainInputs!CU1574 -> 0 | CV47: =MainInputs!CV1574 -> 0 | CW47: =MainInputs!CW1574 -> 0
E48: Selected depreciation for Return & RAV tab | G48: =price_label -> £m 23/24 prices | I48: =I16 -> Asset life input | X48: =X46*(X9+X10) + IF($I48="Asset life input",X46,X47)*X11 -> 0 | Y48: 10.87793941 | Z48: 14.3803787 | AA48: 25.28247147 | AB48: 44.94605373 | AC48: 66.23317549 | AD48: 75.23708317 | AE48: 79.71390093 | AF48: 83.34722992 | AG48: 87.02184336 | AH48: 85.97664108 | AI48: 91.8017659 | AJ48: 96.43231835 | AK48: 100.8103462 | AL48: 105.764786 | AM48: 112.0656532 | AN48: 117.7414051 | AO48: 122.5373018 | AP48: 236.1468961 | AQ48: 241.3163686 | AR48: 248.6704129 | AS48: 257.6427538 | AT48: 269.6683591 | AU48: 287.339429 | AV48: 307.5889464 | AW48: 328.0669329 | AX48: 346.6539559 | AY48: 356.8581693 | AZ48: 366.3360344 | BA48: 356.3203026 | BB48: 346.3045708 | BC48: 336.288839 | BD48: =BD46*(BD9+BD10) + IF($I48="Asset life input",BD46,BD47)*BD11 -> 326.2731072 | BE48: 316.2573754 | BF48: 306.2416436 | BG48: 296.2259118 | BH48: 286.21018 | BI48: 276.1944482 | BJ48: 220.1946327 | BK48: 210.1789009 | BL48: 200.1631691 | BM48: 190.1474373 | BN48: 180.1317055 | BO48: 170.1159737 | BP48: 160.1002419 | BQ48: 150.0845101 | BR48: 140.0687783 | BS48: 130.5260004 | BT48: 121.1355024 | BU48: 112.2190085 | BV48: 104.157453 | BW48: 97.02142447 | BX48: 90.2768702 | BY48: 83.72696018 | BZ48: 77.33502098 | CA48: 71.10284759 | CB48: 64.82523062 | CC48: 58.80087994 | CD48: 52.97785763 | CE48: 47.34518436 | CF48: 41.92792152 | CG48: 36.78460942 | CH48: 31.88806915 | CI48: 27.20004612 | CJ48: =CJ46*(CJ9+CJ10) + IF($I48="Asset life input",CJ46,CJ47)*CJ11 -> 22.68568145 | CK48: 18.40844655 | CL48: 14.42215701 | CM48: 10.76924043 | CN48: 7.524955414 | CO48: 4.823837438 | CP48: 2.735255711 | CQ48: 1.277899241 | CR48: 0.4237738452 | CS48: 0 | CT48: 0 | CU48: 0 | CV48: 0 | CW48: 0
B50: Detailed depreciation calculation
C52: Pre-vesting depreciation
C53: Note: The following depreciation factor is used to depreciate the pre-vesting balance on the "Return&RAV" sheet.
E55: Pre-vesting asset life | G55: years | I55: =MainInputs!I1547 -> 56
E56: Sum of digits | G56: integer | I56: =I55 * (1 + I55) / 2 -> 1596
E57: Asset remaining at start if RIIO-1 | G57: % | I57: =1-((I55-AH62)*(I55+AH62+1)/2)/I56 -> 0.6484962406
E58: Asset life outstanding at end of RIIO-2 | G58: integer | I58: =MainInputs!AT1549 -> 33
E59: Scenario-driven asset life at start of RIIO-3 | G59: integer | I59: =IF(I24="Status quo",I58-1,I25-YEAR(AT4)) -> 32
E60: Sum of digits for remaining asset life RIIO-3 onwards | G60: integer | I60: =I59 * (1 + I59) / 2 -> 528
E62: Years of pre-vesting depreciation remaining | G62: years | AH62: =MainInputs!AH1549*(AH9+AH10) + $I59*(AH11-AG11) + MAX((AG62-1)*(AH11-AG10),0) -> 45 | AI62: =MainInputs!AI1549*(AI9+AI10) + $I59*(AI11-AH11) + MAX((AH62-1)*(AI11-AH10),0) -> 44 | AJ62: =MainInputs!AJ1549*(AJ9+AJ10) + $I59*(AJ11-AI11) + MAX((AI62-1)*(AJ11-AI10),0) -> 43 | AK62: =MainInputs!AK1549*(AK9+AK10) + $I59*(AK11-AJ11) + MAX((AJ62-1)*(AK11-AJ10),0) -> 42 | AL62: =MainInputs!AL1549*(AL9+AL10) + $I59*(AL11-AK11) + MAX((AK62-1)*(AL11-AK10),0) -> 41 | AM62: =MainInputs!AM1549*(AM9+AM10) + $I59*(AM11-AL11) + MAX((AL62-1)*(AM11-AL10),0) -> 40 | AN62: =MainInputs!AN1549*(AN9+AN10) + $I59*(AN11-AM11) + MAX((AM62-1)*(AN11-AM10),0) -> 39 | AO62: =MainInputs!AO1549*(AO9+AO10) + $I59*(AO11-AN11) + MAX((AN62-1)*(AO11-AN10),0) -> 38 | AP62: =MainInputs!AP1549*(AP9+AP10) + $I59*(AP11-AO11) + MAX((AO62-1)*(AP11-AO10),0) -> 37 | AQ62: =MainInputs!AQ1549*(AQ9+AQ10) + $I59*(AQ11-AP11) + MAX((AP62-1)*(AQ11-AP10),0) -> 36 | AR62: =MainInputs!AR1549*(AR9+AR10) + $I59*(AR11-AQ11) + MAX((AQ62-1)*(AR11-AQ10),0) -> 35 | AS62: =MainInputs!AS1549*(AS9+AS10) + $I59*(AS11-AR11) + MAX((AR62-1)*(AS11-AR10),0) -> 34 | AT62: =MainInputs!AT1549*(AT9+AT10) + $I59*(AT11-AS11) + MAX((AS62-1)*(AT11-AS10),0) -> 33 | AU62: =MainInputs!AU1549*(AU9+AU10) + $I59*(AU11-AT11) + MAX((AT62-1)*(AU11-AT10),0) -> 32 | AV62: =MainInputs!AV1549*(AV9+AV10) + $I59*(AV11-AU11) + MAX((AU62-1)*(AV11-AU10),0) -> 31 | AW62: =MainInputs!AW1549*(AW9+AW10) + $I59*(AW11-AV11) + MAX((AV62-1)*(AW11-AV10),0) -> 30 | AX62: =MainInputs!AX1549*(AX9+AX10) + $I59*(AX11-AW11) + MAX((AW62-1)*(AX11-AW10),0) -> 29 | AY62: =MainInputs!AY1549*(AY9+AY10) + $I59*(AY11-AX11) + MAX((AX62-1)*(AY11-AX10),0) -> 28 | AZ62: =MainInputs!AZ1549*(AZ9+AZ10) + $I59*(AZ11-AY11) + MAX((AY62-1)*(AZ11-AY10),0) -> 27 | BA62: =MainInputs!BA1549*(BA9+BA10) + $I59*(BA11-AZ11) + MAX((AZ62-1)*(BA11-AZ10),0) -> 26 | BB62: =MainInputs!BB1549*(BB9+BB10) + $I59*(BB11-BA11) + MAX((BA62-1)*(BB11-BA10),0) -> 25 | BC62: =MainInputs!BC1549*(BC9+BC10) + $I59*(BC11-BB11) + MAX((BB62-1)*(BC11-BB10),0) -> 24 | BD62: =MainInputs!BD1549*(BD9+BD10) + $I59*(BD11-BC11) + MAX((BC62-1)*(BD11-BC10),0) -> 23 | BE62: =MainInputs!BE1549*(BE9+BE10) + $I59*(BE11-BD11) + MAX((BD62-1)*(BE11-BD10),0) -> 22 | BF62: =MainInputs!BF1549*(BF9+BF10) + $I59*(BF11-BE11) + MAX((BE62-1)*(BF11-BE10),0) -> 21 | BG62: =MainInputs!BG1549*(BG9+BG10) + $I59*(BG11-BF11) + MAX((BF62-1)*(BG11-BF10),0) -> 20 | BH62: =MainInputs!BH1549*(BH9+BH10) + $I59*(BH11-BG11) + MAX((BG62-1)*(BH11-BG10),0) -> 19 | BI62: =MainInputs!BI1549*(BI9+BI10) + $I59*(BI11-BH11) + MAX((BH62-1)*(BI11-BH10),0) -> 18 | BJ62: =MainInputs!BJ1549*(BJ9+BJ10) + $I59*(BJ11-BI11) + MAX((BI62-1)*(BJ11-BI10),0) -> 17 | BK62: =MainInputs!BK1549*(BK9+BK10) + $I59*(BK11-BJ11) + MAX((BJ62-1)*(BK11-BJ10),0) -> 16 | BL62: =MainInputs!BL1549*(BL9+BL10) + $I59*(BL11-BK11) + MAX((BK62-1)*(BL11-BK10),0) -> 15 | BM62: =MainInputs!BM1549*(BM9+BM10) + $I59*(BM11-BL11) + MAX((BL62-1)*(BM11-BL10),0) -> 14 | BN62: =MainInputs!BN1549*(BN9+BN10) + $I59*(BN11-BM11) + MAX((BM62-1)*(BN11-BM10),0) -> 13 | BO62: =MainInputs!BO1549*(BO9+BO10) + $I59*(BO11-BN11) + MAX((BN62-1)*(BO11-BN10),0) -> 12 | BP62: =MainInputs!BP1549*(BP9+BP10) + $I59*(BP11-BO11) + MAX((BO62-1)*(BP11-BO10),0) -> 11 | BQ62: =MainInputs!BQ1549*(BQ9+BQ10) + $I59*(BQ11-BP11) + MAX((BP62-1)*(BQ11-BP10),0) -> 10 | BR62: =MainInputs!BR1549*(BR9+BR10) + $I59*(BR11-BQ11) + MAX((BQ62-1)*(BR11-BQ10),0) -> 9 | BS62: =MainInputs!BS1549*(BS9+BS10) + $I59*(BS11-BR11) + MAX((BR62-1)*(BS11-BR10),0) -> 8 | BT62: =MainInputs!BT1549*(BT9+BT10) + $I59*(BT11-BS11) + MAX((BS62-1)*(BT11-BS10),0) -> 7 | BU62: =MainInputs!BU1549*(BU9+BU10) + $I59*(BU11-BT11) + MAX((BT62-1)*(BU11-BT10),0) -> 6 | BV62: =MainInputs!BV1549*(BV9+BV10) + $I59*(BV11-BU11) + MAX((BU62-1)*(BV11-BU10),0) -> 5 | BW62: =MainInputs!BW1549*(BW9+BW10) + $I59*(BW11-BV11) + MAX((BV62-1)*(BW11-BV10),0) -> 4 | BX62: =MainInputs!BX1549*(BX9+BX10) + $I59*(BX11-BW11) + MAX((BW62-1)*(BX11-BW10),0) -> 3 | BY62: =MainInputs!BY1549*(BY9+BY10) + $I59*(BY11-BX11) + MAX((BX62-1)*(BY11-BX10),0) -> 2 | BZ62: =MainInputs!BZ1549*(BZ9+BZ10) + $I59*(BZ11-BY11) + MAX((BY62-1)*(BZ11-BY10),0) -> 1 | CA62: =MainInputs!CA1549*(CA9+CA10) + $I59*(CA11-BZ11) + MAX((BZ62-1)*(CA11-BZ10),0) -> 0 | CB62: =MainInputs!CB1549*(CB9+CB10) + $I59*(CB11-CA11) + MAX((CA62-1)*(CB11-CA10),0) -> 0 | CC62: =MainInputs!CC1549*(CC9+CC10) + $I59*(CC11-CB11) + MAX((CB62-1)*(CC11-CB10),0) -> 0 | CD62: =MainInputs!CD1549*(CD9+CD10) + $I59*(CD11-CC11) + MAX((CC62-1)*(CD11-CC10),0) -> 0 | CE62: =MainInputs!CE1549*(CE9+CE10) + $I59*(CE11-CD11) + MAX((CD62-1)*(CE11-CD10),0) -> 0 | CF62: =MainInputs!CF1549*(CF9+CF10) + $I59*(CF11-CE11) + MAX((CE62-1)*(CF11-CE10),0) -> 0 | CG62: =MainInputs!CG1549*(CG9+CG10) + $I59*(CG11-CF11) + MAX((CF62-1)*(CG11-CF10),0) -> 0 | CH62: =MainInputs!CH1549*(CH9+CH10) + $I59*(CH11-CG11) + MAX((CG62-1)*(CH11-CG10),0) -> 0 | CI62: =MainInputs!CI1549*(CI9+CI10) + $I59*(CI11-CH11) + MAX((CH62-1)*(CI11-CH10),0) -> 0 | CJ62: =MainInputs!CJ1549*(CJ9+CJ10) + $I59*(CJ11-CI11) + MAX((CI62-1)*(CJ11-CI10),0) -> 0 | CK62: =MainInputs!CK1549*(CK9+CK10) + $I59*(CK11-CJ11) + MAX((CJ62-1)*(CK11-CJ10),0) -> 0 | CL62: =MainInputs!CL1549*(CL9+CL10) + $I59*(CL11-CK11) + MAX((CK62-1)*(CL11-CK10),0) -> 0 | CM62: =MainInputs!CM1549*(CM9+CM10) + $I59*(CM11-CL11) + MAX((CL62-1)*(CM11-CL10),0) -> 0 | CN62: =MainInputs!CN1549*(CN9+CN10) + $I59*(CN11-CM11) + MAX((CM62-1)*(CN11-CM10),0) -> 0 | CO62: =MainInputs!CO1549*(CO9+CO10) + $I59*(CO11-CN11) + MAX((CN62-1)*(CO11-CN10),0) -> 0 | CP62: =MainInputs!CP1549*(CP9+CP10) + $I59*(CP11-CO11) + MAX((CO62-1)*(CP11-CO10),0) -> 0 | CQ62: =MainInputs!CQ1549*(CQ9+CQ10) + $I59*(CQ11-CP11) + MAX((CP62-1)*(CQ11-CP10),0) -> 0 | CR62: =MainInputs!CR1549*(CR9+CR10) + $I59*(CR11-CQ11) + MAX((CQ62-1)*(CR11-CQ10),0) -> 0 | CS62: =MainInputs!CS1549*(CS9+CS10) + $I59*(CS11-CR11) + MAX((CR62-1)*(CS11-CR10),0) -> 0 | CT62: =MainInputs!CT1549*(CT9+CT10) + $I59*(CT11-CS11) + MAX((CS62-1)*(CT11-CS10),0) -> 0 | CU62: =MainInputs!CU1549*(CU9+CU10) + $I59*(CU11-CT11) + MAX((CT62-1)*(CU11-CT10),0) -> 0 | CV62: =MainInputs!CV1549*(CV9+CV10) + $I59*(CV11-CU11) + MAX((CU62-1)*(CV11-CU10),0) -> 0 | CW62: =MainInputs!CW1549*(CW9+CW10) + $I59*(CW11-CV11) + MAX((CV62-1)*(CW11-CV10),0) -> 0
... 70 more rows

Sheet Return&RAV
A1: Return & RAV
B2: =UserInterface!G17 -> NGGT
E3: Parameter | G3: Units | I3: Constant | AP3: Annual values
E4: PCFM year ending | I4: =UserInterface!$G$10 -> 2025-03-31 | K4: 1991-03-31 | L4: 1992-03-31 | M4: 1993-03-31 | N4: 1994-03-31 | O4: 1995-03-31 | P4: 1996-03-31 | Q4: 1997-03-31 | R4: 1998-03-31 | S4: 1999-03-31 | T4: 2000-03-31 | U4: 2001-03-31 | V4: 2002-03-31 | W4: 2003-03-31 | X4: 2004-03-31 | Y4: 2005-03-31 | Z4: 2006-03-31 | AA4: 2007-03-31 | AB4: 2008-03-31 | AC4: 2009-03-31 | AD4: 2010-03-31 | AE4: 2011-03-31 | AF4: 2012-03-31 | AG4: 2013-03-31 | AH4: 2014-03-31 | AI4: 2015-03-31 | AJ4: 2016-03-31 | AK4: 2017-03-31 | AL4: 2018-03-31 | AM4: 2019-03-31 | AN4: 2020-03-31 | AO4: 2021-03-31 | AP4: 2022-03-31 | AQ4: 2023-03-31 | AR4: 2024-03-31 | AS4: 2025-03-31 | AT4: 2026-03-31 | AU4: 2027-03-31 | AV4: 2028-03-31 | AW4: 2029-03-31 | AX4: 2030-03-31 | AY4: =EOMONTH(AX4,12) -> 2031-03-31
AP5: 2 | AQ5: 2 | AR5: 2 | AS5: 2 | AT5: 2 | AU5: 3 | AV5: 3 | AW5: 3 | AX5: 3 | AY5: 3
C7: Price control timeline
E9: Pre-RIIO-2 year | G9: flag | K9: =Scenarios!K$119 -> 1 | L9: =Scenarios!L$119 -> 1 | M9: =Scenarios!M$119 -> 1 | N9: =Scenarios!N$119 -> 1 | O9: =Scenarios!O$119 -> 1 | P9: =Scenarios!P$119 -> 1 | Q9: =Scenarios!Q$119 -> 1 | R9: =Scenarios!R$119 -> 1 | S9: =Scenarios!S$119 -> 1 | T9: =Scenarios!T$119 -> 1 | U9: =Scenarios!U$119 -> 1 | V9: =Scenarios!V$119 -> 1 | W9: =Scenarios!W$119 -> 1 | X9: =Scenarios!X$119 -> 1 | Y9: =Scenarios!Y$119 -> 1 | Z9: =Scenarios!Z$119 -> 1 | AA9: =Scenarios!AA$119 -> 1 | AB9: =Scenarios!AB$119 -> 1 | AC9: =Scenarios!AC$119 -> 1 | AD9: =Scenarios!AD$119 -> 1 | AE9: =Scenarios!AE$119 -> 1 | AF9: =Scenarios!AF$119 -> 1 | AG9: =Scenarios!AG$119 -> 1 | AH9: =Scenarios!AH$119 -> 1 | AI9: =Scenarios!AI$119 -> 1 | AJ9: =Scenarios!AJ$119 -> 1 | AK9: =Scenarios!AK$119 -> 1 | AL9: =Scenarios!AL$119 -> 1 | AM9: =Scenarios!AM$119 -> 1 | AN9: =Scenarios!AN$119 -> 1 | AO9: =Scenarios!AO$119 -> 1 | AP9: =Scenarios!AP$119 -> 0 | AQ9: =Scenarios!AQ$119 -> 0 | AR9: =Scenarios!AR$119 -> 0 | AS9: =Scenarios!AS$119 -> 0 | AT9: =Scenarios!AT$119 -> 0 | AU9: =Scenarios!AU$119 -> 0 | AV9: =Scenarios!AV$119 -> 0 | AW9: =Scenarios!AW$119 -> 0 | AX9: =Scenarios!AX$119 -> 0 | AY9: =Scenarios!AY$119 -> 0
E10: RIIO-2 year | G10: flag | K10: =Scenarios!K$120 -> 0 | L10: =Scenarios!L$120 -> 0 | M10: =Scenarios!M$120 -> 0 | N10: =Scenarios!N$120 -> 0 | O10: =Scenarios!O$120 -> 0 | P10: =Scenarios!P$120 -> 0 | Q10: =Scenarios!Q$120 -> 0 | R10: =Scenarios!R$120 -> 0 | S10: =Scenarios!S$120 -> 0 | T10: =Scenarios!T$120 -> 0 | U10: =Scenarios!U$120 -> 0 | V10: =Scenarios!V$120 -> 0 | W10: =Scenarios!W$120 -> 0 | X10: =Scenarios!X$120 -> 0 | Y10: =Scenarios!Y$120 -> 0 | Z10: =Scenarios!Z$120 -> 0 | AA10: =Scenarios!AA$120 -> 0 | AB10: =Scenarios!AB$120 -> 0 | AC10: =Scenarios!AC$120 -> 0 | AD10: =Scenarios!AD$120 -> 0 | AE10: =Scenarios!AE$120 -> 0 | AF10: =Scenarios!AF$120 -> 0 | AG10: =Scenarios!AG$120 -> 0 | AH10: =Scenarios!AH$120 -> 0 | AI10: =Scenarios!AI$120 -> 0 | AJ10: =Scenarios!AJ$120 -> 0 | AK10: =Scenarios!AK$120 -> 0 | AL10: =Scenarios!AL$120 -> 0 | AM10: =Scenarios!AM$120 -> 0 | AN10: =Scenarios!AN$120 -> 0 | AO10: =Scenarios!AO$120 -> 0 | AP10: =Scenarios!AP$120 -> 1 | AQ10: =Scenarios!AQ$120 -> 1 | AR10: =Scenarios!AR$120 -> 1 | AS10: =Scenarios!AS$120 -> 1 | AT10: =Scenarios!AT$120 -> 1 | AU10: =Scenarios!AU$120 -> 0 | AV10: =Scenarios!AV$120 -> 0 | AW10: =Scenarios!AW$120 -> 0 | AX10: =Scenarios!AX$120 -> 0 | AY10: =Scenarios!AY$120 -> 0
E11: RIIO-3 year | G11: flag | K11: =Scenarios!K$121 -> 0 | L11: =Scenarios!L$121 -> 0 | M11: =Scenarios!M$121 -> 0 | N11: =Scenarios!N$121 -> 0 | O11: =Scenarios!O$121 -> 0 | P11: =Scenarios!P$121 -> 0 | Q11: =Scenarios!Q$121 -> 0 | R11: =Scenarios!R$121 -> 0 | S11: =Scenarios!S$121 -> 0 | T11: =Scenarios!T$121 -> 0 | U11: =Scenarios!U$121 -> 0 | V11: =Scenarios!V$121 -> 0 | W11: =Scenarios!W$121 -> 0 | X11: =Scenarios!X$121 -> 0 | Y11: =Scenarios!Y$121 -> 0 | Z11: =Scenarios!Z$121 -> 0 | AA11: =Scenarios!AA$121 -> 0 | AB11: =Scenarios!AB$121 -> 0 | AC11: =Scenarios!AC$121 -> 0 | AD11: =Scenarios!AD$121 -> 0 | AE11: =Scenarios!AE$121 -> 0 | AF11: =Scenarios!AF$121 -> 0 | AG11: =Scenarios!AG$121 -> 0 | AH11: =Scenarios!AH$121 -> 0 | AI11: =Scenarios!AI$121 -> 0 | AJ11: =Scenarios!AJ$121 -> 0 | AK11: =Scenarios!AK$121 -> 0 | AL11: =Scenarios!AL$121 -> 0 | AM11: =Scenarios!AM$121 -> 0 | AN11: =Scenarios!AN$121 -> 0 | AO11: =Scenarios!AO$121 -> 0 | AP11: =Scenarios!AP$121 -> 0 | AQ11: =Scenarios!AQ$121 -> 0 | AR11: =Scenarios!AR$121 -> 0 | AS11: =Scenarios!AS$121 -> 0 | AT11: =Scenarios!AT$121 -> 0 | AU11: =Scenarios!AU$121 -> 1 | AV11: =Scenarios!AV$121 -> 1 | AW11: =Scenarios!AW$121 -> 1 | AX11: =Scenarios!AX$121 -> 1 | AY11: =Scenarios!AY$121 -> 1
E13: Price control base year | G13: flag | I13: =Scenarios!F14 -> 2024 | K13: =IF(YEAR(K4)=$I13,1,0) -> 0 | L13: 0 | M13: 0 | N13: 0 | O13: 0 | P13: 0 | Q13: 0 | R13: 0 | S13: 0 | T13: 0 | U13: 0 | V13: 0 | W13: 0 | X13: 0 | Y13: 0 | Z13: 0 | AA13: 0 | AB13: 0 | AC13: 0 | AD13: 0 | AE13: 0 | AF13: 0 | AG13: 0 | AH13: 0 | AI13: 0 | AJ13: 0 | AK13: 0 | AL13: 0 | AM13: 0 | AN13: 0 | AO13: 0 | AP13: 0 | AQ13: 0 | AR13: 1 | AS13: 0 | AT13: 0 | AU13: 0 | AV13: 0 | AW13: 0 | AX13: 0 | AY13: 0
C15: Scenario operators
E17: Override depreciation profile flag | G17: flag | I17: =Scenarios!F27 -> Asset life input | AP17: =IF($I17="Custom profile",1,0)*AP11 -> 0 | AQ17: =IF($I17="Custom profile",1,0)*AQ11 -> 0 | AR17: 0 | AS17: 0 | AT17: 0 | AU17: 0 | AV17: 0 | AW17: 0 | AX17: 0 | AY17: 0
C19: New proposed cost of capital arrangements
D21: Inflation
E23: Combined RPI-CPIH price index (financial year average, FYE for 25/26) | G23: index value | I23: =Scenarios!F55 -> Option 1 | AG23: =IF($I$23="Option 1", IF(AND(AG10=1,AH11=1),'Annual Inflation'!AG51,MainInputs!AG369),MainInputs!AG369) -> 244.675 | AH23: =IF($I$23="Option 1", IF(AND(AH10=1,AI11=1),'Annual Inflation'!AH51,MainInputs!AH369),MainInputs!AH369) -> 251.7333333 | AI23: =IF($I$23="Option 1", IF(AND(AI10=1,AJ11=1),'Annual Inflation'!AI51,MainInputs!AI369),MainInputs!AI369) -> 256.6666667 | AJ23: =IF($I$23="Option 1", IF(AND(AJ10=1,AK11=1),'Annual Inflation'!AJ51,MainInputs!AJ369),MainInputs!AJ369) -> 259.4333333 | AK23: =IF($I$23="Option 1", IF(AND(AK10=1,AL11=1),'Annual Inflation'!AK51,MainInputs!AK369),MainInputs!AK369) -> 264.9916667 | AL23: =IF($I$23="Option 1", IF(AND(AL10=1,AM11=1),'Annual Inflation'!AL51,MainInputs!AL369),MainInputs!AL369) -> 274.9083333 | AM23: =IF($I$23="Option 1", IF(AND(AM10=1,AN11=1),'Annual Inflation'!AM51,MainInputs!AM369),MainInputs!AM369) -> 283.3083333 | AN23: =IF($I$23="Option 1", IF(AND(AN10=1,AO11=1),'Annual Inflation'!AN51,MainInputs!AN369),MainInputs!AN369) -> 290.6416667 | AO23: =IF($I$23="Option 1", IF(AND(AO10=1,AP11=1),'Annual Inflation'!AO51,MainInputs!AO369),MainInputs!AO369) -> 294.1666667 | AP23: =IF($I$23="Option 1", IF(AND(AP10=1,AQ11=1),'Annual Inflation'!AP51,MainInputs!AP369),MainInputs!AP369) -> 307.328214 | AQ23: =IF($I$23="Option 1", IF(AND(AQ10=1,AR11=1),'Annual Inflation'!AQ51,MainInputs!AQ369),MainInputs!AQ369) -> 334.2935818 | AR23: =IF($I$23="Option 1", IF(AND(AR10=1,AS11=1),'Annual Inflation'!AR51,MainInputs!AR369),MainInputs!AR369) -> 352.8365174 | AS23: =IF($I$23="Option 1", IF(AND(AS10=1,AT11=1),'Annual Inflation'!AS51,MainInputs!AS369),MainInputs!AS369) -> 364.1796318 | AT23: =IF($I$23="Option 1", IF(AND(AT10=1,AU11=1),'Annual Inflation'!AT51,MainInputs!AT369),MainInputs!AT369) -> 381.9870893 | AU23: =IF($I$23="Option 1", IF(AND(AU10=1,AV11=1),'Annual Inflation'!AU51,MainInputs!AU369),MainInputs!AU369) -> 386.2085403 | AV23: =IF($I$23="Option 1", IF(AND(AV10=1,AW11=1),'Annual Inflation'!AV51,MainInputs!AV369),MainInputs!AV369) -> 394.3691688 | AW23: =IF($I$23="Option 1", IF(AND(AW10=1,AX11=1),'Annual Inflation'!AW51,MainInputs!AW369),MainInputs!AW369) -> 402.4954241 | AX23: =IF($I$23="Option 1", IF(AND(AX10=1,AY11=1),'Annual Inflation'!AX51,MainInputs!AX369),MainInputs!AX369) -> 410.8810239 | AY23: =IF($I$23="Option 1", IF(AND(AY10=1,AZ11=1),'Annual Inflation'!AY51,MainInputs!AY369),MainInputs!AY369) -> 419.4575059
E24: Combined RPI-CPIH inflation (financial year average, FYE fr 25/26) | G24: annual % | AH24: =AH23/AG23-1 -> 0.02884779129 | AI24: =AI23/AH23-1 -> 0.01959745763 | AJ24: 0.01077922078 | AK24: 0.02142490042 | AL24: 0.03742256046 | AM24: 0.03055563976 | AN24: 0.02588463688 | AO24: 0.01212833673 | AP24: 0.04474180389 | AQ24: 0.08774127008 | AR24: 0.05546901456 | AS24: 0.03214835729 | AT24: 0.04889745588 | AU24: 0.01105129256 | AV24: 0.02113010877 | AW24: 0.02060570636 | AX24: 0.02083402526 | AY24: 0.02087339517
E25: Combined RPI-CPIH real to nominal prices conversion factor (FYE for 25/26) | G25: scalar | AG25: =AG23/SUMPRODUCT($AG$13:$AY$13,$AG$23:$AY$23) -> 0.6934514654 | AH25: =AH23/SUMPRODUCT($AG$13:$AY$13,$AG$23:$AY$23) -> 0.7134560085 | AI25: 0.7274379324 | AJ25: 0.7352791465 | AK25: 0.751032429 | AL25: 0.7791379855 | AM25: 0.8029450451 | AN25: 0.823728986 | AO25: 0.8337194485 | AP25: 0.8710215606 | AQ25: 0.9474460986 | AR25: 1 | AS25: 1.032148357 | AT25: 1.082617786 | AU25: 1.094582112 | AV25: 1.117710751 | AW25: 1.140741971 | AX25: 1.164508218 | AY25: 1.188815458
E27: CPIH inflation (financial year average) | G27: annual % | AP27: =MainInputs!AP367 -> 0.03673718781 | AQ27: =MainInputs!AQ367 -> 0.08774127008 | AR27: =MainInputs!AR367 -> 0.05546901456 | AS27: =MainInputs!AS367 -> 0.03214835729 | AT27: =MainInputs!AT367 -> 0.03777928836 | AU27: =MainInputs!AU367 -> 0.02188311179 | AV27: =MainInputs!AV367 -> 0.02113010877 | AW27: =MainInputs!AW367 -> 0.02060570636 | AX27: =MainInputs!AX367 -> 0.02083402526 | AY27: =MainInputs!AY367 -> 0.02087339517
E28: Forecast debt inflation (CPIH long term) | G28: annual % | AP28: =MainInputs!AP372 -> 0.02 | AQ28: =MainInputs!AQ372 -> 0.02 | AR28: =MainInputs!AR372 -> 0.02 | AS28: =MainInputs!AS372 -> 0.016 | AT28: =MainInputs!AT372 -> 0.02 | AU28: =MainInputs!AU372 -> 0.0208 | AV28: =MainInputs!AV372 -> 0.0208 | AW28: =MainInputs!AW372 -> 0.0208 | AX28: =MainInputs!AX372 -> 0.0208 | AY28: =MainInputs!AY372 -> 0.0208
D30: Notional structure
E32: Equity | G32: % | AP32: =(1-MainInputs!AP352) -> 0.4 | AQ32: =(1-MainInputs!AQ352) -> 0.4 | AR32: =(1-MainInputs!AR352) -> 0.4 | AS32: =(1-MainInputs!AS352) -> 0.4 | AT32: =(1-MainInputs!AT352) -> 0.4 | AU32: =(1-MainInputs!AU352) -> 0.4 | AV32: =(1-MainInputs!AV352) -> 0.4 | AW32: =(1-MainInputs!AW352) -> 0.4 | AX32: =(1-MainInputs!AX352) -> 0.4 | AY32: =(1-MainInputs!AY352) -> 0.4
E33: Inflation linked debt | G33: % | AP33: =MainInputs!AP466*(1-AP32) -> 0.18 | AQ33: =MainInputs!AQ466*(1-AQ32) -> 0.18 | AR33: =MainInputs!AR466*(1-AR32) -> 0.18 | AS33: =MainInputs!AS466*(1-AS32) -> 0.18 | AT33: =MainInputs!AT466*(1-AT32) -> 0.18 | AU33: =MainInputs!AU466*(1-AU32) -> 0.18 | AV33: =MainInputs!AV466*(1-AV32) -> 0.18 | AW33: =MainInputs!AW466*(1-AW32) -> 0.18 | AX33: =MainInputs!AX466*(1-AX32) -> 0.18 | AY33: =MainInputs!AY466*(1-AY32) -> 0.18
E34: Fixed rate debt | G34: % | AP34: =1-(AP32+AP33) -> 0.42 | AQ34: =1-(AQ32+AQ33) -> 0.42 | AR34: 0.42 | AS34: 0.42 | AT34: 0.42 | AU34: 0.42 | AV34: 0.42 | AW34: 0.42 | AX34: 0.42 | AY34: =1-(AY32+AY33) -> 0.42
D36: Real WACC elements
E38: Equity | G38: annual real % | AP38: =MainInputs!AP351 -> 0.045181881 | AQ38: =MainInputs!AQ351 -> 0.045568105 | AR38: =MainInputs!AR351 -> 0.052833944 | AS38: =MainInputs!AS351 -> 0.055875458 | AT38: =MainInputs!AT351 -> 0.054475396 | AU38: =MainInputs!AU351 -> 0.06118 | AV38: =MainInputs!AV351 -> 0.06118 | AW38: =MainInputs!AW351 -> 0.06118 | AX38: =MainInputs!AX351 -> 0.06118 | AY38: =MainInputs!AY351 -> 0.06118
E39: Inflation linked debt | G39: annual real % | AP39: =MainInputs!AP350 -> 0.0205 | AQ39: =MainInputs!AQ350 -> 0.019 | AR39: =MainInputs!AR350 -> 0.0192 | AS39: =MainInputs!AS350 -> 0.0211 | AT39: =MainInputs!AT350 -> 0.0226 | AU39: =MainInputs!AU350 -> 0.02943603764 | AV39: =MainInputs!AV350 -> 0.03037696394 | AW39: =MainInputs!AW350 -> 0.03128527444 | AX39: =MainInputs!AX350 -> 0.03249896211 | AY39: =MainInputs!AY350 -> 0.03379126065
E41: Vanilla WACC (current approach) | G41: annual real % | AP41: =AP38*AP32 + AP39*(1-AP32) -> 0.0303727524 | AQ41: 0.029627242 | AR41: 0.0326535776 | AS41: 0.0350101832 | AT41: 0.0353501584 | AU41: 0.04213362259 | AV41: 0.04269817836 | AW41: 0.04324316467 | AX41: 0.04397137727 | AY41: 0.04474675639
E42: Check: equal to MainInputs' CAPM calculated Vanilla allowed return on capital | AP42: =AP41-MainInputs!AP354 -> 0 | AQ42: =AQ41-MainInputs!AQ354 -> 0 | AR42: =AR41-MainInputs!AR354 -> 0 | AS42: =AS41-MainInputs!AS354 -> 0 | AT42: =AT41-MainInputs!AT354 -> 0 | AU42: =AU41-MainInputs!AU354 -> 0 | AV42: =AV41-MainInputs!AV354 -> 0 | AW42: =AW41-MainInputs!AW354 -> 0 | AX42: =AX41-MainInputs!AX354 -> 0 | AY42: =AY41-MainInputs!AY354 -> 0
D44: Nominal WACC elements
E46: Fixed rate debt | G46: nominal % | AP46: =(1+AP28)*(1+AP39)-1 -> 0.04091 | AQ46: 0.03938 | AR46: 0.039584 | AS46: 0.0374376 | AT46: 0.043052 | AU46: 0.05084830723 | AV46: 0.05180880479 | AW46: 0.05273600815 | AX46: 0.05397494053 | AY46: 0.05529411887
E48: Nominal WACC | G48: nominal % | AP48: =((1+AP38)*(1+AP24)-1)*AP32 + ((1+AP39)*(1+AP24)-1)*AP33 + AP46*AP34 -> 0.06586890345 | AQ48: =((1+AQ38)*(1+AQ24)-1)*AQ32 + ((1+AQ39)*(1+AQ24)-1)*AQ33 + AQ46*AQ34 -> 0.09097613515 | AR48: 0.07475084568 | AS48: 0.06135864356 | AT48: 0.07356492097 | AU48: 0.05786552786 | AV48: 0.06458764697 | AW48: 0.06482408329 | AX48: 0.06570674827 | AY48: 0.06652230067
D50: RAV indexation
E52: Inflation applied to indexed portion of capital structure | G52: annual % | AP52: =AP24*AP10 + AP24*(AP32+AP33)*AP11 -> 0.04474180389 | AQ52: 0.08774127008 | AR52: 0.05546901456 | AS52: 0.03214835729 | AT52: 0.04889745588 | AU52: 0.006409749686 | AV52: 0.01225546309 | AW52: 0.01195130969 | AX52: 0.01208373465 | AY52: 0.0121065692
E53: Inflation index | G53: scalar | AP53: =(1+AP52)*AO53 + AP$13 -> 0 | AQ53: 0 | AR53: 1 | AS53: 1.032148357 | AT53: 1.082617786 | AU53: 1.089557095 | AV53: 1.102910122 | AW53: 1.116091342 | AX53: 1.129577894 | AY53: 1.143253207
E54: Semi-nominal WACC | G54: semi-nominal % | AP54: =AP32*AP38+AP33*AP39+AP34*AP46 -> 0.0389449524 | AQ54: 0.038186842 | AR54: 0.0412148576 | AS54: 0.0418719752 | AT54: 0.0439399984 | AU54: 0.05112677581 | AV54: 0.05169955152 | AW54: 0.05225247282 | AX54: 0.0529912882 | AY54: 0.05377795684
E56: RAV inflation (splice pre-RIIO-3, splice or semi-nominal in RIIO-3) | G56: annual % | I56: =Scenarios!F55 -> Option 1 | AH56: =AH24*(AH9+AH10) + IF($I56="Status quo",AH24,AH52)*AH11 -> 0.02884779129 | AI56: 0.01959745763 | AJ56: 0.01077922078 | AK56: 0.02142490042 | AL56: 0.03742256046 | AM56: 0.03055563976 | AN56: 0.02588463688 | AO56: 0.01212833673 | AP56: 0.04474180389 | AQ56: 0.08774127008 | AR56: 0.05546901456 | AS56: 0.03214835729 | AT56: 0.04889745588 | AU56: 0.006409749686 | AV56: 0.01225546309 | AW56: 0.01195130969 | AX56: 0.01208373465 | AY56: 0.0121065692
C58: Re-basing RIIO-3 additions for depreciation
E60: Pre-RIIO-3 slow money additions | G60: =price_label -> £m 23/24 prices | AH60: =MainInputs!AH1562+MainInputs!AH1564+TIM!AH85*AH10 -> 262.1306167 | AI60: =MainInputs!AI1562+MainInputs!AI1564+TIM!AI85*AI10 -> 208.3748605 | AJ60: =MainInputs!AJ1562+MainInputs!AJ1564+TIM!AJ85*AJ10 -> 197.0112514 | AK60: =MainInputs!AK1562+MainInputs!AK1564+TIM!AK85*AK10 -> 222.9497936 | AL60: =MainInputs!AL1562+MainInputs!AL1564+TIM!AL85*AL10 -> 283.5390249 | AM60: =MainInputs!AM1562+MainInputs!AM1564+TIM!AM85*AM10 -> 255.4088354 | AN60: =MainInputs!AN1562+MainInputs!AN1564+TIM!AN85*AN10 -> 215.81535 | AO60: =MainInputs!AO1562+MainInputs!AO1564+TIM!AO85*AO10 -> 179.7363984 | AP60: =MainInputs!AP1562+MainInputs!AP1564+TIM!AP85*AP10 -> 245.4293116 | AQ60: =MainInputs!AQ1562+MainInputs!AQ1564+TIM!AQ85*AQ10 -> 301.1284475 | AR60: =MainInputs!AR1562+MainInputs!AR1564+TIM!AR85*AR10 -> 345.041013 | AS60: =MainInputs!AS1562+MainInputs!AS1564+TIM!AS85*AS10 -> 422.9336722 | AT60: =MainInputs!AT1562+MainInputs!AT1564+TIM!AT85*AT10 -> 562.1778844 | AU60: =MainInputs!AU1562+MainInputs!AU1564+TIM!AU85*AU10 -> 0 | AV60: =MainInputs!AV1562+MainInputs!AV1564+TIM!AV85*AV10 -> 0 | AW60: =MainInputs!AW1562+MainInputs!AW1564+TIM!AW85*AW10 -> 0 | AX60: =MainInputs!AX1562+MainInputs!AX1564+TIM!AX85*AX10 -> 0 | AY60: =MainInputs!AY1562+MainInputs!AY1564+TIM!AY85*AY10 -> 0
E61: RIIO-3 slow money additions | G61: =price_label -> £m 23/24 prices | AP61: =TIM!AP85*AP11 -> 0 | AQ61: =TIM!AQ85*AQ11 -> 0 | AR61: =TIM!AR85*AR11 -> 0 | AS61: =TIM!AS85*AS11 -> 0 | AT61: =TIM!AT85*AT11 -> 0 | AU61: =TIM!AU85*AU11 -> 631.0645604 | AV61: =TIM!AV85*AV11 -> 644.6669586 | AW61: =TIM!AW85*AW11 -> 610.8525254 | AX61: =TIM!AX85*AX11 -> 432.0533221 | AY61: =TIM!AY85*AY11 -> 421.796026
E62: RIIO-3 slow money additions (nominal) | G62: £m nominal | AP62: =AP61*TOpf -> 0 | AQ62: 0 | AR62: 0 | AS62: 0 | AT62: 0 | AU62: 690.7519793 | AV62: 720.5511905 | AW62: 696.8251136 | AX62: 503.129644 | AY62: =AY61*TOpf -> 501.4376357
... 53 more rows

Sheet TaxPools
A1: Tax Pools
B2: =UserInterface!G17 -> NGGT
E3: Parameter | G3: Units | I3: Constant | AP3: Annual values
E4: PCFM year ending | I4: =UserInterface!$G$10 -> 2025-03-31 | K4: 1991-03-31 | L4: 1992-03-31 | M4: 1993-03-31 | N4: 1994-03-31 | O4: 1995-03-31 | P4: 1996-03-31 | Q4: 1997-03-31 | R4: 1998-03-31 | S4: 1999-03-31 | T4: 2000-03-31 | U4: 2001-03-31 | V4: 2002-03-31 | W4: 2003-03-31 | X4: 2004-03-31 | Y4: 2005-03-31 | Z4: 2006-03-31 | AA4: 2007-03-31 | AB4: 2008-03-31 | AC4: 2009-03-31 | AD4: 2010-03-31 | AE4: 2011-03-31 | AF4: 2012-03-31 | AG4: 2013-03-31 | AH4: 2014-03-31 | AI4: 2015-03-31 | AJ4: 2016-03-31 | AK4: 2017-03-31 | AL4: 2018-03-31 | AM4: 2019-03-31 | AN4: 2020-03-31 | AO4: 2021-03-31 | AP4: 2022-03-31 | AQ4: 2023-03-31 | AR4: 2024-03-31 | AS4: 2025-03-31 | AT4: 2026-03-31 | AU4: 2027-03-31 | AV4: 2028-03-31 | AW4: 2029-03-31 | AX4: 2030-03-31 | AY4: =EOMONTH(AX4,12) -> 2031-03-31
AP5: 2 | AQ5: 2 | AR5: 2 | AS5: 2 | AT5: 2 | AU5: 3 | AV5: 3 | AW5: 3 | AX5: 3 | AY5: 3
B7: Tax pool additions
B8: Note: Actual totex is combined with other expenditure and allocated to tax pools. Each cost sub-category can have its own percentage split between each pool.
C10: Expenditure categories allocated to tax pools
D12: Actual totex
E14: Load related capex | G14: =price_label -> £m 23/24 prices | AP14: =Totex!AP82 -> 6.333206675 | AQ14: =Totex!AQ82 -> 5.028990414 | AR14: =Totex!AR82 -> 2.92804283 | AS14: =Totex!AS82 -> 4.75901775 | AT14: =Totex!AT82 -> 3.058283135 | AU14: =Totex!AU82 -> 6.083254348 | AV14: =Totex!AV82 -> 8.025479167 | AW14: =Totex!AW82 -> 6.781926984 | AX14: =Totex!AX82 -> 9.34938017 | AY14: =Totex!AY82 -> 9.295886368
E15: Asset replacement capex | G15: £m 23/24 prices | AP15: =Totex!AP83 -> 151.4465853 | AQ15: =Totex!AQ83 -> 192.4466123 | AR15: =Totex!AR83 -> 200.51262 | AS15: =Totex!AS83 -> 275.3806141 | AT15: =Totex!AT83 -> 435.8733489 | AU15: =Totex!AU83 -> 500.4424543 | AV15: =Totex!AV83 -> 486.974822 | AW15: =Totex!AW83 -> 487.3306693 | AX15: =Totex!AX83 -> 361.7151019 | AY15: =Totex!AY83 -> 370.5515773
E16: Other capex | G16: £m 23/24 prices | AP16: =Totex!AP84 -> 39.50071544 | AQ16: =Totex!AQ84 -> 74.18616114 | AR16: =Totex!AR84 -> 103.6369214 | AS16: =Totex!AS84 -> 145.0226665 | AT16: =Totex!AT84 -> 251.7466512 | AU16: =Totex!AU84 -> 106.9301498 | AV16: =Totex!AV84 -> 94.64500727 | AW16: =Totex!AW84 -> 86.61512476 | AX16: =Totex!AX84 -> 53.83980537 | AY16: =Totex!AY84 -> 48.54283277
E17: Non-load opex | G17: £m 23/24 prices | AP17: =Totex!AP85 -> 51.35377304 | AQ17: =Totex!AQ85 -> 53.3382428 | AR17: =Totex!AR85 -> 51.21164434 | AS17: =Totex!AS85 -> 46.47422349 | AT17: =Totex!AT85 -> 47.57001208 | AU17: =Totex!AU85 -> 63.49550719 | AV17: =Totex!AV85 -> 62.89184968 | AW17: =Totex!AW85 -> 63.85969627 | AX17: =Totex!AX85 -> 63.33808209 | AY17: =Totex!AY85 -> 64.37399712
E18: Indirects (opex) | G18: £m 23/24 prices | AP18: =Totex!AP86 -> 74.16997303 | AQ18: =Totex!AQ86 -> 86.01776042 | AR18: =Totex!AR86 -> 107.3735596 | AS18: =Totex!AS86 -> 126.5447411 | AT18: =Totex!AT86 -> 135.0285058 | AU18: =Totex!AU86 -> 152.0612724 | AV18: =Totex!AV86 -> 156.0406188 | AW18: =Totex!AW86 -> 156.6342136 | AX18: =Totex!AX86 -> 146.5755327 | AY18: =Totex!AY86 -> 142.5577216
E19: Non-operational capex | G19: £m 23/24 prices | AP19: =Totex!AP87 -> 39.13160515 | AQ19: =Totex!AQ87 -> 10.71234813 | AR19: =Totex!AR87 -> 25.88286097 | AS19: =Totex!AS87 -> 31.68707351 | AT19: =Totex!AT87 -> 43.03215611 | AU19: =Totex!AU87 -> 71.57325263 | AV19: =Totex!AV87 -> 108.9534669 | AW19: =Totex!AW87 -> 84.03569219 | AX19: =Totex!AX87 -> 33.71687294 | AY19: =Totex!AY87 -> 35.08490895
E20: Actual totex | G20: £m 23/24 prices | AP20: =SUM(AP14:AP19) -> 361.9358586 | AQ20: 421.7301152 | AR20: 491.5456491 | AS20: 629.8683365 | AT20: 916.3089572 | AU20: 900.5858907 | AV20: 917.5312438 | AW20: 885.2573231 | AX20: 668.5347751 | AY20: 670.4069241
D22: Non-totex items
E24: Pass-through expenditure and "Other revenue associated costs" | G24: =price_label -> £m 23/24 prices | AP24: =SUM(MainInputs!AP259, MainInputs!AP283) -> 146.7670433 | AQ24: =SUM(MainInputs!AQ259, MainInputs!AQ283) -> 173.4391132 | AR24: =SUM(MainInputs!AR259, MainInputs!AR283) -> 161.9609422 | AS24: =SUM(MainInputs!AS259, MainInputs!AS283) -> 165.0848424 | AT24: =SUM(MainInputs!AT259, MainInputs!AT283) -> 172.051676 | AU24: =SUM(MainInputs!AU259, MainInputs!AU283) -> 159.460608 | AV24: =SUM(MainInputs!AV259, MainInputs!AV283) -> 165.9600036 | AW24: =SUM(MainInputs!AW259, MainInputs!AW283) -> 165.1165646 | AX24: =SUM(MainInputs!AX259, MainInputs!AX283) -> 163.0566247 | AY24: =SUM(MainInputs!AY259, MainInputs!AY283) -> 163.4337296
C26: Tax pool allocation
E28: Allocation to "General" tax pool | G28: % | AP28: =MainInputs!AP406 -> 0.1887099532 | AQ28: =MainInputs!AQ406 -> 0.1971837893 | AR28: =MainInputs!AR406 -> 0.1738615481 | AS28: =MainInputs!AS406 -> 0.159199049 | AT28: =MainInputs!AT406 -> 0.2724774754 | AU28: =MainInputs!AU406 -> 0.2575 | AV28: =MainInputs!AV406 -> 0.2581 | AW28: =MainInputs!AW406 -> 0.2573 | AX28: =MainInputs!AX406 -> 0.2313 | AY28: =MainInputs!AY406 -> 0.2324
E29: Allocation to "Special Rate" tax pool | G29: % | AP29: =MainInputs!AP407 -> 0.4221706393 | AQ29: =MainInputs!AQ407 -> 0.4915798216 | AR29: =MainInputs!AR407 -> 0.5421590878 | AS29: =MainInputs!AS407 -> 0.5628022718 | AT29: =MainInputs!AT407 -> 0.4876326001 | AU29: =MainInputs!AU407 -> 0.46087 | AV29: =MainInputs!AV407 -> 0.4618 | AW29: =MainInputs!AW407 -> 0.46057 | AX29: =MainInputs!AX407 -> 0.4137 | AY29: =MainInputs!AY407 -> 0.4159
E30: Allocation to "Structures and Buildings" tax pool | G30: % | AP30: =MainInputs!AP408 -> 0.009146896236 | AQ30: =MainInputs!AQ408 -> 0.01148650688 | AR30: =MainInputs!AR408 -> 0.01181862343 | AS30: =MainInputs!AS408 -> 0 | AT30: =MainInputs!AT408 -> 0 | AU30: =MainInputs!AU408 -> 0 | AV30: =MainInputs!AV408 -> 0 | AW30: =MainInputs!AW408 -> 0 | AX30: =MainInputs!AX408 -> 0 | AY30: =MainInputs!AY408 -> 0
E31: Allocation to "Deferred Revenue" tax pool | G31: % | AP31: =MainInputs!AP409 -> 0 | AQ31: =MainInputs!AQ409 -> 0 | AR31: =MainInputs!AR409 -> 0 | AS31: =MainInputs!AS409 -> 0.002242240127 | AT31: =MainInputs!AT409 -> 0.0007852376814 | AU31: =MainInputs!AU409 -> 0.0007 | AV31: =MainInputs!AV409 -> 0.0007 | AW31: =MainInputs!AW409 -> 0.0007 | AX31: =MainInputs!AX409 -> 0.0007 | AY31: =MainInputs!AY409 -> 0.0007
E32: Allocation to "Revenue" tax pool | G32: % | AP32: =MainInputs!AP410 -> 0.3786414542 | AQ32: =MainInputs!AQ410 -> 0.2981510398 | AR32: =MainInputs!AR410 -> 0.2704506164 | AS32: =MainInputs!AS410 -> 0.2525866244 | AT32: =MainInputs!AT410 -> 0.2147623186 | AU32: =MainInputs!AU410 -> 0.2579 | AV32: =MainInputs!AV410 -> 0.2563 | AW32: =MainInputs!AW410 -> 0.2584 | AX32: =MainInputs!AX410 -> 0.3336 | AY32: =MainInputs!AY410 -> 0.3302
E33: Allocation to "Non Qualifying" tax pool | G33: % | AP33: =MainInputs!AP411 -> 0.001331057168 | AQ33: =MainInputs!AQ411 -> 0.00159884245 | AR33: =MainInputs!AR411 -> 0.001710124303 | AS33: =MainInputs!AS411 -> 0.02316981464 | AT33: =MainInputs!AT411 -> 0.02434236812 | AU33: =MainInputs!AU411 -> 0.023 | AV33: =MainInputs!AV411 -> 0.0231 | AW33: =MainInputs!AW411 -> 0.023 | AX33: =MainInputs!AX411 -> 0.0207 | AY33: =MainInputs!AY411 -> 0.0208
E34: Allocation check | G34: % | AP34: =SUM(AP28:AP33) -> 1 | AQ34: =SUM(AQ28:AQ33) -> 1 | AR34: 1 | AS34: 1 | AT34: 1 | AU34: =SUM(AU28:AU33) -> 0.99997 | AV34: 1 | AW34: 0.99997 | AX34: 1 | AY34: 1
E36: General pool additions qualifying for super-deduction/first year allowance | G36: % | AP36: =MainInputs!AP414 -> 0 | AQ36: =MainInputs!AQ414 -> 0 | AR36: =MainInputs!AR414 -> 0 | AS36: =MainInputs!AS414 -> 0 | AT36: =MainInputs!AT414 -> 0 | AU36: =MainInputs!AU414 -> 1 | AV36: =MainInputs!AV414 -> 1 | AW36: =MainInputs!AW414 -> 1 | AX36: =MainInputs!AX414 -> 1 | AY36: =MainInputs!AY414 -> 1
E37: Special rate pool additions qualifying for first year allowance | G37: % | AP37: =MainInputs!AP415 -> 0 | AQ37: =MainInputs!AQ415 -> 0 | AR37: =MainInputs!AR415 -> 0 | AS37: =MainInputs!AS415 -> 0 | AT37: =MainInputs!AT415 -> 0 | AU37: =MainInputs!AU415 -> 1 | AV37: =MainInputs!AV415 -> 1 | AW37: =MainInputs!AW415 -> 1 | AX37: =MainInputs!AX415 -> 1 | AY37: =MainInputs!AY415 -> 1
E39: General pool additions | G39: =price_label -> £m 23/24 prices | AP39: =AP28*AP$20 -> 68.30089893 | AQ39: 83.15834216 | AR39: 85.46088752 | AS39: 100.2744402 | AT39: 249.6735514 | AU39: =AU28*AU$20 -> 231.9008669 | AV39: 236.814814 | AW39: 227.7767092 | AX39: 154.6320935 | AY39: 155.8025692
E40: Special Rate pool additions | G40: £m 23/24 prices | AP40: 152.7986928 | AQ40: 207.3140148 | AR40: 266.4959407 | AS40: 354.4913307 | AT40: 446.8221193 | AU40: =AU29*AU$20 -> 415.0530195 | AV40: 423.7159284 | AW40: 407.7229653 | AX40: 276.5728365 | AY40: 278.8222397
E41: Structures and Buildings pool additions | G41: £m 23/24 prices | AP41: 3.310589743 | AQ41: 4.844205868 | AR41: 5.809392925 | AS41: 0 | AT41: 0 | AU41: =AU30*AU$20 -> 0 | AV41: 0 | AW41: 0 | AX41: 0 | AY41: 0
E42: Deferred revenue pool additions | G42: £m 23/24 prices | AP42: 0 | AQ42: 0 | AR42: 0 | AS42: 1.412316059 | AT42: 0.719520321 | AU42: =AU31*AU$20 -> 0.6304101235 | AV42: 0.6422718707 | AW42: 0.6196801261 | AX42: 0.4679743426 | AY42: 0.4692848468
E43: Revenue pool additions | G43: £m 23/24 prices | AP43: =AP32*AP$20 +AP24 -> 283.8109631 | AQ43: =AQ32*AQ$20 +AQ24 -> 299.1783855 | AR43: 294.899766 | AS43: 324.1811593 | AT43: 368.8403122 | AU43: =AU32*AU$20 +AU24 -> 391.7217092 | AV43: 401.1232614 | AW43: 393.8670569 | AX43: 386.0798257 | AY43: 384.802096
E44: Non-qualifying expenditure | G44: £m 23/24 prices | AP44: =AP33*AP$20 -> 0.4817573189 | AQ44: =AQ33*AQ$20 -> 0.6742800106 | AR44: =AR33*AR$20 -> 0.8406041606 | AS44: =AS33*AS$20 -> 14.59393261 | AT44: =AT33*AT$20 -> 22.30512995 | AU44: =AU33*AU$20 -> 20.71347549 | AV44: 21.19497173 | AW44: 20.36091843 | AX44: 13.83866985 | AY44: 13.94446402
B46: Capital allowances
B47: Note: Special, General and deferred revenue capital allowances are calculated for the tax allowance calculation.
B48: When "non-core" assets are transferred to the RAV their tax book value is moved into the "Transfer" line.
C50: General pool
E52: Capital allowance rate | G52: % | AP52: =MainInputs!AP418 -> 0.18 | AQ52: =MainInputs!AQ418 -> 0.18 | AR52: =MainInputs!AR418 -> 0.18 | AS52: =MainInputs!AS418 -> 0.18 | AT52: =MainInputs!AT418 -> 0.18 | AU52: =MainInputs!AU418 -> 0.14 | AV52: =MainInputs!AV418 -> 0.14 | AW52: =MainInputs!AW418 -> 0.14 | AX52: =MainInputs!AX418 -> 0.14 | AY52: =MainInputs!AY418 -> 0.14
E54: Opening balance brought forward | G54: £m nominal | AP54: =MainInputs!$AP$399 -> 214.3581445 | AQ54: =AP62 -> 224.556754 | AR54: =AQ62 -> 248.7427367 | AS54: =AR62 -> 221.2168341 | AT54: =AS62 -> 208.8023442 | AU54: =AT62 -> 321.3474776 | AV54: =AU62 -> 133.3408307 | AW54: 114.6731144 | AX54: 98.61887839 | AY54: 84.81223541
E55: Transfer | G55: £m nominal | AP55: =-NonCore!AP17 -> 0 | AQ55: =-NonCore!AQ17 -> 0 | AR55: =-NonCore!AR17 -> 0 | AS55: =-NonCore!AS17 -> 0 | AT55: =-NonCore!AT17 -> 0 | AU55: =-NonCore!AU17 -> 0 | AV55: =-NonCore!AV17 -> 0 | AW55: =-NonCore!AW17 -> 0 | AX55: =-NonCore!AX17 -> 0 | AY55: =-NonCore!AY17 -> 0
E56: Revisions | G56: £m nominal | AP56: =MainInputs!AP393 -> 0 | AQ56: =MainInputs!AQ393 -> 0 | AR56: =MainInputs!AR393 -> -64.42699725 | AS56: =MainInputs!AS393 -> -70.07792777 | AT56: =MainInputs!AT393 -> -84.86844093 | AU56: =MainInputs!AU393 -> -166.3 | AV56: =MainInputs!AV393 -> 0 | AW56: =MainInputs!AW393 -> 0 | AX56: =MainInputs!AX393 -> 0 | AY56: =MainInputs!AY393 -> 0
E57: Capex additions | G57: £m nominal | AP57: =AP39 * TOpf -> 59.49155557 | AQ57: 78.78804684 | AR57: 85.46088752 | AS57: 103.4980987 | AT57: 267.9532645 | AU57: 253.8345406 | AV57: 264.6904636 | AW57: 259.8344521 | AX57: 180.0703436 | AY57: 185.2205026
E58: Transfers out to Super deduction | G58: £m nominal | AP58: =-AP57*AP36 -> 0 | AQ58: =-AQ57*AQ36 -> 0 | AR58: 0 | AS58: 0 | AT58: 0 | AU58: -253.8345406 | AV58: -264.6904636 | AW58: -259.8344521 | AX58: -180.0703436 | AY58: -185.2205026
E59: Transfers in from Super deduction | G59: £m nominal | AP59: =-AP67 -> 0 | AQ59: =-AQ67 -> 0 | AR59: 0 | AS59: 0 | AT59: 0 | AU59: 0 | AV59: 0 | AW59: 0 | AX59: 0 | AY59: 0
E60: Tax book value pre-depreciation | G60: £m nominal | AP60: =SUM(AP54:AP59) -> 273.8497001 | AQ60: =SUM(AQ54:AQ59) -> 303.3448009 | AR60: 269.776627 | AS60: 254.6370051 | AT60: 391.8871678 | AU60: 155.0474776 | AV60: 133.3408307 | AW60: 114.6731144 | AX60: 98.61887839 | AY60: 84.81223541
E61: General pool capital allowance (reducing balance) | G61: £m nominal | AP61: =-AP60*AP52 -> -49.29294601 | AQ61: =-AQ60*AQ52 -> -54.60206416 | AR61: -48.55979286 | AS61: -45.83466091 | AT61: -70.5396902 | AU61: =-AU60*AU52 -> -21.70664686 | AV61: -18.6677163 | AW61: -16.05423602 | AX61: -13.80664297 | AY61: -11.87371296
E62: Closing balance carried forward | G62: £m nominal | AP62: =SUM(AP60:AP61) -> 224.556754 | AQ62: =SUM(AQ60:AQ61) -> 248.7427367 | AR62: =SUM(AR60:AR61) -> 221.2168341 | AS62: =SUM(AS60:AS61) -> 208.8023442 | AT62: =SUM(AT60:AT61) -> 321.3474776 | AU62: =SUM(AU60:AU61) -> 133.3408307 | AV62: 114.6731144 | AW62: 98.61887839 | AX62: 84.81223541 | AY62: 72.93852246
E64: Super deduction allowance rate | G64: % | AP64: =MainInputs!AP423 -> 0 | AQ64: =MainInputs!AQ423 -> 0 | AR64: =MainInputs!AR423 -> 0 | AS64: =MainInputs!AS423 -> 0 | AT64: =MainInputs!AT423 -> 0 | AU64: =MainInputs!AU423 -> 1 | AV64: =MainInputs!AV423 -> 1 | AW64: =MainInputs!AW423 -> 1 | AX64: =MainInputs!AX423 -> 1 | AY64: =MainInputs!AY423 -> 1
E66: Opening balance brought forward | G66: £m nominal | AP66: =AO72 -> 0 | AQ66: =AP72 -> 0 | AR66: 0 | AS66: 0 | AT66: 0 | AU66: 0 | AV66: 0 | AW66: 0 | AX66: 0 | AY66: 0
E67: Transfer | G67: £m nominal | AP67: =-AP66 -> 0 | AQ67: =-AQ66 -> 0 | AR67: 0 | AS67: 0 | AT67: 0 | AU67: 0 | AV67: 0 | AW67: 0 | AX67: 0 | AY67: 0
E68: Revisions | G68: £m nominal
E69: Capex additions | G69: £m nominal | AP69: =-AP58 -> 0 | AQ69: 0 | AR69: 0 | AS69: 0 | AT69: 0 | AU69: 253.8345406 | AV69: 264.6904636 | AW69: 259.8344521 | AX69: 180.0703436 | AY69: 185.2205026
E70: Tax book value pre-depreciation | G70: £m nominal | AP70: =SUM(AP66:AP69) -> 0 | AQ70: =SUM(AQ66:AQ69) -> 0 | AR70: 0 | AS70: 0 | AT70: 0 | AU70: 253.8345406 | AV70: 264.6904636 | AW70: 259.8344521 | AX70: 180.0703436 | AY70: 185.2205026
E71: General pool capital allowance (reducing balance) | G71: £m nominal | AP71: =AP70*-AP64 -> 0 | AQ71: =AQ70*-AQ64 -> 0 | AR71: 0 | AS71: 0 | AT71: 0 | AU71: -253.8345406 | AV71: -264.6904636 | AW71: -259.8344521 | AX71: -180.0703436 | AY71: -185.2205026
E72: Closing balance carried forward (limited to 0) | G72: £m nominal | AP72: =MAX(SUM(AP70:AP71),0) -> 0 | AQ72: =MAX(SUM(AQ70:AQ71),0) -> 0 | AR72: 0 | AS72: 0 | AT72: 0 | AU72: 0 | AV72: 0 | AW72: 0 | AX72: 0 | AY72: 0
C74: Special Rates pool
E76: Capital allowance rate | G76: % | AP76: =MainInputs!AP419 -> 0.06 | AQ76: =MainInputs!AQ419 -> 0.06 | AR76: =MainInputs!AR419 -> 0.06 | AS76: =MainInputs!AS419 -> 0.06 | AT76: =MainInputs!AT419 -> 0.06 | AU76: =MainInputs!AU419 -> 0.06 | AV76: =MainInputs!AV419 -> 0.06 | AW76: =MainInputs!AW419 -> 0.06 | AX76: =MainInputs!AX419 -> 0.06 | AY76: =MainInputs!AY419 -> 0.06
E78: Opening balance brought forward | G78: £m nominal | AP78: =MainInputs!$AP$400 -> 1571.321872 | AQ78: =AP86 -> 1602.148058 | AR78: =AQ86 -> 1690.652898 | AS78: =AR86 -> 1781.875073 | AT78: =AS86 -> 1908.674234 | AU78: =AT86 -> 2093.58645 | AV78: 1822.459263 | AW78: 1926.637224 | AX78: 2033.62716 | AY78: 2130.209678
E79: Transfer | G79: £m nominal | AP79: =-NonCore!AP18 -> 0 | AQ79: =-NonCore!AQ18 -> 0 | AR79: =-NonCore!AR18 -> 0 | AS79: =-NonCore!AS18 -> 0 | AT79: =-NonCore!AT18 -> 0 | AU79: =-NonCore!AU18 -> 0 | AV79: =-NonCore!AV18 -> 0 | AW79: =-NonCore!AW18 -> 0 | AX79: =-NonCore!AX18 -> 0 | AY79: =-NonCore!AY18 -> 0
E80: Revisions | G80: £m nominal | AP80: =MainInputs!AP394 -> 0 | AQ80: =MainInputs!AQ394 -> 0 | AR80: =MainInputs!AR394 -> -61.53705846 | AS80: =MainInputs!AS394 -> -117.2582139 | AT80: =MainInputs!AT394 -> -160.9905637 | AU80: =MainInputs!AU394 -> -154.8 | AV80: =MainInputs!AV394 -> 0 | AW80: =MainInputs!AW394 -> 0 | AX80: =MainInputs!AX394 -> 0 | AY80: =MainInputs!AY394 -> 0
E81: Capex additions | G81: £m nominal | AP81: =AP40 * TOpf -> 133.0909559 | AQ81: 196.4188545 | AR81: 266.4959407 | AS81: 365.8876447 | AT81: 479.5359576 | AU81: 454.3096106 | AV81: 473.5918485 | AW81: 465.1066989 | AX81: 322.0713408 | AY81: 331.4681886
E82: Transfers out to First year | G82: £m nominal | AP82: =-AP81*AP37 -> 0 | AQ82: 0 | AR82: 0 | AS82: 0 | AT82: 0 | AU82: -454.3096106 | AV82: -473.5918485 | AW82: -465.1066989 | AX82: -322.0713408 | AY82: -331.4681886
E83: Transfers in from to First year | G83: £m nominal | AP83: =-AP91 -> 0 | AQ83: =-AQ91 -> 0 | AR83: 0 | AS83: 0 | AT83: 0 | AU83: 0 | AV83: 227.1548053 | AW83: 236.7959243 | AX83: 232.5533494 | AY83: 161.0356704
E84: Tax book value pre-depreciation | G84: £m nominal | AP84: =SUM(AP78:AP83) -> 1704.412828 | AQ84: =SUM(AQ78:AQ83) -> 1798.566912 | AR84: 1895.61178 | AS84: 2030.504504 | AT84: 2227.219628 | AU84: 1938.78645 | AV84: 2049.614068 | AW84: 2163.433148 | AX84: 2266.180509 | AY84: 2291.245349
E85: Special Rates capital allowance (reducing balance) | G85: £m nominal | AP85: =-AP84*AP76 -> -102.2647697 | AQ85: =-AQ84*AQ76 -> -107.9140147 | AR85: -113.7367068 | AS85: -121.8302702 | AT85: -133.6331777 | AU85: =-AU84*AU76 -> -116.327187 | AV85: -122.9768441 | AW85: -129.8059889 | AX85: -135.9708305 | AY85: -137.4747209
E86: Closing balance carried forward | G86: £m nominal | AP86: =SUM(AP84:AP85) -> 1602.148058 | AQ86: =SUM(AQ84:AQ85) -> 1690.652898 | AR86: =SUM(AR84:AR85) -> 1781.875073 | AS86: =SUM(AS84:AS85) -> 1908.674234 | AT86: =SUM(AT84:AT85) -> 2093.58645 | AU86: =SUM(AU84:AU85) -> 1822.459263 | AV86: 1926.637224 | AW86: 2033.62716 | AX86: 2130.209678 | AY86: 2153.770628
E88: First year Capital allowance rate | G88: % | AP88: =MainInputs!AP424 -> 0 | AQ88: =MainInputs!AQ424 -> 0 | AR88: =MainInputs!AR424 -> 0 | AS88: =MainInputs!AS424 -> 0 | AT88: =MainInputs!AT424 -> 0 | AU88: =MainInputs!AU424 -> 0.5 | AV88: =MainInputs!AV424 -> 0.5 | AW88: =MainInputs!AW424 -> 0.5 | AX88: =MainInputs!AX424 -> 0.5 | AY88: =MainInputs!AY424 -> 0.5
E90: Opening balance brought forward | G90: £m nominal | AP90: =AO96 -> 0 | AQ90: =AP96 -> 0 | AR90: 0 | AS90: 0 | AT90: 0 | AU90: 0 | AV90: 227.1548053 | AW90: 236.7959243 | AX90: 232.5533494 | AY90: 161.0356704
E91: Transfer | G91: £m nominal | AP91: =-AP90 -> 0 | AQ91: =-AQ90 -> 0 | AR91: 0 | AS91: 0 | AT91: 0 | AU91: 0 | AV91: -227.1548053 | AW91: -236.7959243 | AX91: -232.5533494 | AY91: -161.0356704
E92: Revisions | G92: £m nominal
E93: Capex additions | G93: £m nominal | AP93: =-AP82 -> 0 | AQ93: =-AQ82 -> 0 | AR93: 0 | AS93: 0 | AT93: 0 | AU93: 454.3096106 | AV93: 473.5918485 | AW93: 465.1066989 | AX93: 322.0713408 | AY93: 331.4681886
E94: Tax book value pre-depreciation | G94: £m nominal | AP94: =SUM(AP90:AP93) -> 0 | AQ94: =SUM(AQ90:AQ93) -> 0 | AR94: 0 | AS94: 0 | AT94: 0 | AU94: 454.3096106 | AV94: 473.5918485 | AW94: 465.1066989 | AX94: 322.0713408 | AY94: 331.4681886
E95: General pool capital allowance (reducing balance) | G95: £m nominal | AP95: =AP94*-AP88 -> 0 | AQ95: =AQ94*-AQ88 -> 0 | AR95: 0 | AS95: 0 | AT95: 0 | AU95: -227.1548053 | AV95: -236.7959243 | AW95: -232.5533494 | AX95: -161.0356704 | AY95: -165.7340943
E96: Closing balance carried forward | G96: £m nominal | AP96: =SUM(AP94:AP95) -> 0 | AQ96: 0 | AR96: 0 | AS96: 0 | AT96: 0 | AU96: 227.1548053 | AV96: 236.7959243 | AW96: 232.5533494 | AX96: 161.0356704 | AY96: 165.7340943
C98: Structures and Buildings pool
E100: Capital allowance rate | G100: % | AP100: =MainInputs!AP420 -> 0.03 | AQ100: =MainInputs!AQ420 -> 0.03 | AR100: =MainInputs!AR420 -> 0.03 | AS100: =MainInputs!AS420 -> 0.03 | AT100: =MainInputs!AT420 -> 0.03 | AU100: =MainInputs!AU420 -> 0.03 | AV100: =MainInputs!AV420 -> 0.03 | AW100: =MainInputs!AW420 -> 0.03 | AX100: =MainInputs!AX420 -> 0.03 | AY100: =MainInputs!AY420 -> 0.03
E102: Opening balance brought forward | G102: £m nominal | AP102: =MainInputs!$AP$401 -> 0 | AQ102: =AP107 -> 2.883595044 | AR102: =AQ107 -> 7.386711143 | AS102: =AR107 -> 12.9719075 | AT102: =AS107 -> 12.57342914 | AU102: =AT107 -> 12.17495078 | AV102: 11.77244739 | AW102: 11.369944 | AX102: 10.96744061 | AY102: 10.56493722
E103: Revisions | G103: £m nominal
E104: Capex additions | G104: £m nominal | AP104: =AP41 * TOpf -> 2.883595044 | AQ104: 4.58962395 | AR104: 5.809392925 | AS104: 0 | AT104: 0 | AU104: 0 | AV104: 0 | AW104: 0 | AX104: 0 | AY104: 0
E105: Tax book value pre-depreciation | G105: £m nominal | AP105: =SUM(AP102:AP104) -> 2.883595044 | AQ105: =SUM(AQ102:AQ104) -> 7.473218995 | AR105: =SUM(AR102:AR104) -> 13.19610407 | AS105: =SUM(AS102:AS104) -> 12.9719075 | AT105: =SUM(AT102:AT104) -> 12.57342914 | AU105: =SUM(AU102:AU104) -> 12.17495078 | AV105: 11.77244739 | AW105: 11.369944 | AX105: 10.96744061 | AY105: 10.56493722
E106: Structures and Buildings capital allowance (straight line) | G106: £m nominal | AP106: =(-($AH$102+SUM($AG104:AO104))*AP100*MainInputs!AP$10+(-SUM(OFFSET(AO104,,-MIN(YEAR(AO$4)-YEAR($AO$4),ROUNDUP(1/AP100-1,0))):AO104)/ROUND(1/AP100,0)*MainInputs!AP$11)) -> 0 | AQ106: =(-($AH$102+SUM($AG104:AP104))*AQ100*MainInputs!AQ$10+(-SUM(OFFSET(AP104,,-MIN(YEAR(AP$4)-YEAR($AO$4),ROUNDUP(1/AQ100-1,0))):AP104)/ROUND(1/AQ100,0)*MainInputs!AQ$11)) -> -0.08650785132 | AR106: =(-($AH$102+SUM($AG104:AQ104))*AR100*MainInputs!AR$10+(-SUM(OFFSET(AQ104,,-MIN(YEAR(AQ$4)-YEAR($AO$4),ROUNDUP(1/AR100-1,0))):AQ104)/ROUND(1/AR100,0)*MainInputs!AR$11)) -> -0.2241965698 | AS106: =(-($AH$102+SUM($AG104:AR104))*AS100*MainInputs!AS$10+(-SUM(OFFSET(AR104,,-MIN(YEAR(AR$4)-YEAR($AO$4),ROUNDUP(1/AS100-1,0))):AR104)/ROUND(1/AS100,0)*MainInputs!AS$11)) -> -0.3984783576 | AT106: =(-($AH$102+SUM($AG104:AS104))*AT100*MainInputs!AT$10+(-SUM(OFFSET(AS104,,-MIN(YEAR(AS$4)-YEAR($AO$4),ROUNDUP(1/AT100-1,0))):AS104)/ROUND(1/AT100,0)*MainInputs!AT$11)) -> -0.3984783576 | AU106: =(-($AH$102+SUM($AG104:AT104))*AU100*MainInputs!AU$10+(-SUM(OFFSET(AT104,,-MIN(YEAR(AT$4)-YEAR($AO$4),ROUNDUP(1/AU100-1,0))):AT104)/ROUND(1/AU100,0)*MainInputs!AU$11)) -> -0.4025033915 | AV106: =(-($AH$102+SUM($AG104:AU104))*AV100*MainInputs!AV$10+(-SUM(OFFSET(AU104,,-MIN(YEAR(AU$4)-YEAR($AO$4),ROUNDUP(1/AV100-1,0))):AU104)/ROUND(1/AV100,0)*MainInputs!AV$11)) -> -0.4025033915 | AW106: =(-($AH$102+SUM($AG104:AV104))*AW100*MainInputs!AW$10+(-SUM(OFFSET(AV104,,-MIN(YEAR(AV$4)-YEAR($AO$4),ROUNDUP(1/AW100-1,0))):AV104)/ROUND(1/AW100,0)*MainInputs!AW$11)) -> -0.4025033915 | AX106: =(-($AH$102+SUM($AG104:AW104))*AX100*MainInputs!AX$10+(-SUM(OFFSET(AW104,,-MIN(YEAR(AW$4)-YEAR($AO$4),ROUNDUP(1/AX100-1,0))):AW104)/ROUND(1/AX100,0)*MainInputs!AX$11)) -> -0.4025033915 | AY106: =(-($AH$102+SUM($AG104:AX104))*AY100*MainInputs!AY$10+(-SUM(OFFSET(AX104,,-MIN(YEAR(AX$4)-YEAR($AO$4),ROUNDUP(1/AY100-1,0))):AX104)/ROUND(1/AY100,0)*MainInputs!AY$11)) -> -0.4025033915
E107: Closing balance carried forward | G107: £m nominal | AP107: =AP105 + AP106 -> 2.883595044 | AQ107: =AQ105 + AQ106 -> 7.386711143 | AR107: =AR105 + AR106 -> 12.9719075 | AS107: =AS105 + AS106 -> 12.57342914 | AT107: =AT105 + AT106 -> 12.17495078 | AU107: =AU105 + AU106 -> 11.77244739 | AV107: 11.369944 | AW107: 10.96744061 | AX107: 10.56493722 | AY107: 10.16243383
C109: Deferred revenue expenditure
E111: Capital allowance rate | G111: % | AP111: =MainInputs!AP421 -> 0.0222 | AQ111: =MainInputs!AQ421 -> 0.0222 | AR111: =MainInputs!AR421 -> 0.0222 | AS111: =MainInputs!AS421 -> 0.0222 | AT111: =MainInputs!AT421 -> 0.0222 | AU111: =MainInputs!AU421 -> 0.0222 | AV111: =MainInputs!AV421 -> 0.0222 | AW111: =MainInputs!AW421 -> 0.0222 | AX111: =MainInputs!AX421 -> 0.0222 | AY111: =MainInputs!AY421 -> 0.0222
E113: Opening balance brought forward | G113: £m nominal | AP113: =MainInputs!$AP$402 -> 0 | AQ113: =AP119 -> 0 | AR113: =AQ119 -> 0 | AS113: =AR119 -> 0 | AT113: =AS119 -> 1.4577197 | AU113: =AT119 -> 2.197557932 | AV113: =AU119 -> 2.838039814 | AW113: 3.491026101 | AX113: 4.117080582 | AY113: 4.565491122
E114: Transfer | G114: £m nominal
E115: Revisions | G115: £m nominal
E116: Capex additions | G116: £m nominal | AO116: =MainInputs!$AO$403 -> 0 | AP116: =AP42 * TOpf -> 0 | AQ116: 0 | AR116: 0 | AS116: 1.4577197 | AT116: 0.7721996096 | AU116: 0.6900356444 | AV116: 0.7178741749 | AW116: 0.7068951282 | AX116: 0.5449599676 | AY116: 0.55789308
E117: Tax book value pre-depreciation | G117: £m nominal | AP117: =SUM(AP113:AP116) -> 0 | AQ117: =SUM(AQ113:AQ116) -> 0 | AR117: =SUM(AR113:AR116) -> 0 | AS117: =SUM(AS113:AS116) -> 1.4577197 | AT117: =SUM(AT113:AT116) -> 2.22991931 | AU117: =SUM(AU113:AU116) -> 2.887593577 | AV117: 3.555913989 | AW117: 4.197921229 | AX117: 4.66204055 | AY117: 5.123384202
E118: Deferred revenue expenditure capital allowance (straight line) | G118: £m nominal | AP118: =(-(SUM($AO116:AO116))*AP111*MainInputs!AP$10)+(-SUM(OFFSET(AO116,,-MIN(YEAR(AO$4)-YEAR($AO$4),ROUNDUP(1/AP111-1,0))):AO116)/ROUND(1/AP111,0)*MainInputs!AP$11) -> 0 | AQ118: =(-(SUM($AO116:AP116))*AQ111*MainInputs!AQ$10)+(-SUM(OFFSET(AP116,,-MIN(YEAR(AP$4)-YEAR($AO$4),ROUNDUP(1/AQ111-1,0))):AP116)/ROUND(1/AQ111,0)*MainInputs!AQ$11) -> 0 | AR118: =(-(SUM($AO116:AQ116))*AR111*MainInputs!AR$10)+(-SUM(OFFSET(AQ116,,-MIN(YEAR(AQ$4)-YEAR($AO$4),ROUNDUP(1/AR111-1,0))):AQ116)/ROUND(1/AR111,0)*MainInputs!AR$11) -> 0 | AS118: =(-(SUM($AO116:AR116))*AS111*MainInputs!AS$10)+(-SUM(OFFSET(AR116,,-MIN(YEAR(AR$4)-YEAR($AO$4),ROUNDUP(1/AS111-1,0))):AR116)/ROUND(1/AS111,0)*MainInputs!AS$11) -> 0 | AT118: =(-(SUM($AO116:AS116))*AT111*MainInputs!AT$10)+(-SUM(OFFSET(AS116,,-MIN(YEAR(AS$4)-YEAR($AO$4),ROUNDUP(1/AT111-1,0))):AS116)/ROUND(1/AT111,0)*MainInputs!AT$11) -> -0.03236137734 | AU118: =(-(SUM($AO116:AT116))*AU111*MainInputs!AU$10)+(-SUM(OFFSET(AT116,,-MIN(YEAR(AT$4)-YEAR($AO$4),ROUNDUP(1/AU111-1,0))):AT116)/ROUND(1/AU111,0)*MainInputs!AU$11) -> -0.04955376243 | AV118: =(-(SUM($AO116:AU116))*AV111*MainInputs!AV$10)+(-SUM(OFFSET(AU116,,-MIN(YEAR(AU$4)-YEAR($AO$4),ROUNDUP(1/AV111-1,0))):AU116)/ROUND(1/AV111,0)*MainInputs!AV$11) -> -0.06488788787 | AW118: =(-(SUM($AO116:AV116))*AW111*MainInputs!AW$10)+(-SUM(OFFSET(AV116,,-MIN(YEAR(AV$4)-YEAR($AO$4),ROUNDUP(1/AW111-1,0))):AV116)/ROUND(1/AW111,0)*MainInputs!AW$11) -> -0.08084064731 | AX118: =(-(SUM($AO116:AW116))*AX111*MainInputs!AX$10)+(-SUM(OFFSET(AW116,,-MIN(YEAR(AW$4)-YEAR($AO$4),ROUNDUP(1/AX111-1,0))):AW116)/ROUND(1/AX111,0)*MainInputs!AX$11) -> -0.09654942794 | AY118: =(-(SUM($AO116:AX116))*AY111*MainInputs!AY$10)+(-SUM(OFFSET(AX116,,-MIN(YEAR(AX$4)-YEAR($AO$4),ROUNDUP(1/AY111-1,0))):AX116)/ROUND(1/AY111,0)*MainInputs!AY$11) -> -0.1086596494
E119: Closing balance carried forward | G119: £m nominal | AP119: =AP117+AP118 -> 0 | AQ119: =AQ117+AQ118 -> 0 | AR119: =AR117+AR118 -> 0 | AS119: =AS117+AS118 -> 1.4577197 | AT119: =AT117+AT118 -> 2.197557932 | AU119: =AU117+AU118 -> 2.838039814 | AV119: 3.491026101 | AW119: 4.117080582 | AX119: 4.565491122 | AY119: 5.014724552
C121: Total capital allowances
E123: General pool | G123: £m nominal | AP123: =-AP61-AP71 -> 49.29294601 | AQ123: 54.60206416 | AR123: 48.55979286 | AS123: 45.83466091 | AT123: 70.5396902 | AU123: 275.5411875 | AV123: 283.3581799 | AW123: 275.8886881 | AX123: 193.8769865 | AY123: 197.0942155
E124: Special Rates pool | G124: £m nominal | AP124: =-AP85-AP95 -> 102.2647697 | AQ124: 107.9140147 | AR124: 113.7367068 | AS124: 121.8302702 | AT124: 133.6331777 | AU124: =-AU85-AU95 -> 343.4819923 | AV124: =-AV85-AV95 -> 359.7727684 | AW124: 362.3593383 | AX124: 297.006501 | AY124: 303.2088152
E125: Structures and Buildings pool | G125: £m nominal | AP125: =-AP106 -> 0 | AQ125: 0.08650785132 | AR125: 0.2241965698 | AS125: 0.3984783576 | AT125: 0.3984783576 | AU125: 0.4025033915 | AV125: 0.4025033915 | AW125: 0.4025033915 | AX125: 0.4025033915 | AY125: 0.4025033915
E126: Deferred revenue expenditure | G126: £m nominal | AP126: =-AP118 -> 0 | AQ126: 0 | AR126: 0 | AS126: 0 | AT126: 0.03236137734 | AU126: 0.04955376243 | AV126: 0.06488788787 | AW126: 0.08084064731 | AX126: 0.09654942794 | AY126: 0.1086596494
E127: Capital allowances | G127: £m nominal | AP127: =SUM(AP123:AP126) -> 151.5577157 | AQ127: =SUM(AQ123:AQ126) -> 162.6025868 | AR127: 162.5206962 | AS127: 168.0634095 | AT127: 204.6037076 | AU127: 619.4752369 | AV127: 643.5983396 | AW127: 638.7313705 | AX127: 491.3825403 | AY127: 500.8141938
B129: End of sheet

Sheet NonCore
A1: Non-Core Calculations
B2: =UserInterface!G17 -> NGGT
E3: Parameter | G3: Units | I3: Constant | AP3: Annual values
E4: PCFM year ending | I4: =UserInterface!$G$10 -> 2025-03-31 | K4: 1991-03-31 | L4: 1992-03-31 | M4: 1993-03-31 | N4: 1994-03-31 | O4: 1995-03-31 | P4: 1996-03-31 | Q4: 1997-03-31 | R4: 1998-03-31 | S4: 1999-03-31 | T4: 2000-03-31 | U4: 2001-03-31 | V4: 2002-03-31 | W4: 2003-03-31 | X4: 2004-03-31 | Y4: 2005-03-31 | Z4: 2006-03-31 | AA4: 2007-03-31 | AB4: 2008-03-31 | AC4: 2009-03-31 | AD4: 2010-03-31 | AE4: 2011-03-31 | AF4: 2012-03-31 | AG4: 2013-03-31 | AH4: 2014-03-31 | AI4: 2015-03-31 | AJ4: 2016-03-31 | AK4: 2017-03-31 | AL4: 2018-03-31 | AM4: 2019-03-31 | AN4: 2020-03-31 | AO4: 2021-03-31 | AP4: 2022-03-31 | AQ4: 2023-03-31 | AR4: 2024-03-31 | AS4: 2025-03-31 | AT4: 2026-03-31 | AU4: 2027-03-31 | AV4: 2028-03-31 | AW4: 2029-03-31 | AX4: 2030-03-31 | AY4: =EOMONTH(AX4,12) -> 2031-03-31
AP5: 2 | AQ5: 2 | AR5: 2 | AS5: 2 | AT5: 2 | AU5: 3 | AV5: 3 | AW5: 3 | AX5: 3 | AY5: 3
B7: Non-Core
C9: Exported values
E11: Capex | G11: =price_label -> £m 23/24 prices | AH11: =AH113 + AH217 + AH321 + AH425 + AH529 + AH609 + AH689 + AH769 + AH849 + AH929 + AH1009 + AH1089 + AH1169 + AH1249 -> 2.598381507 | AI11: 3.167782494 | AJ11: 3.196492956 | AK11: 3.225463629 | AL11: 22.7828781 | AM11: 30.21459457 | AN11: 1.325584241 | AO11: 0 | AP11: =AP113 + AP217 + AP321 + AP425 + AP529 + AP609 + AP689 + AP769 + AP849 + AP929 + AP1009 + AP1089 + AP1169 + AP1249 -> 0 | AQ11: =AQ113 + AQ217 + AQ321 + AQ425 + AQ529 + AQ609 + AQ689 + AQ769 + AQ849 + AQ929 + AQ1009 + AQ1089 + AQ1169 + AQ1249 -> 0 | AR11: =AR113 + AR217 + AR321 + AR425 + AR529 + AR609 + AR689 + AR769 + AR849 + AR929 + AR1009 + AR1089 + AR1169 + AR1249 -> 0 | AS11: =AS113 + AS217 + AS321 + AS425 + AS529 + AS609 + AS689 + AS769 + AS849 + AS929 + AS1009 + AS1089 + AS1169 + AS1249 -> 0 | AT11: =AT113 + AT217 + AT321 + AT425 + AT529 + AT609 + AT689 + AT769 + AT849 + AT929 + AT1009 + AT1089 + AT1169 + AT1249 -> 0 | AU11: =AU113 + AU217 + AU321 + AU425 + AU529 + AU609 + AU689 + AU769 + AU849 + AU929 + AU1009 + AU1089 + AU1169 + AU1249 -> 0 | AV11: 0 | AW11: 0 | AX11: 0 | AY11: 0
E12: Cost transferred to RAV | G12: £m 23/24 prices | AH12: =-AH111 - AH215 - AH319 - AH423 - AH527 - AH607 - AH687 - AH767 - AH847 - AH927 - AH1007 - AH1087 - AH1167 - AH1247 -> 435.5461222 | AI12: =-AI111 - AI215 - AI319 - AI423 - AI527 - AI607 - AI687 - AI767 - AI847 - AI927 - AI1007 - AI1087 - AI1167 - AI1247 -> 2.598381507 | AJ12: 3.167782494 | AK12: =-AK111 - AK215 - AK319 - AK423 - AK527 - AK607 - AK687 - AK767 - AK847 - AK927 - AK1007 - AK1087 - AK1167 - AK1247 -> 26.28386805 | AL12: 512.0697714 | AM12: 22.7828781 | AN12: 30.21459457 | AO12: 1.325584241 | AP12: =-AP111 - AP215 - AP319 - AP423 - AP527 - AP607 - AP687 - AP767 - AP847 - AP927 - AP1007 - AP1087 - AP1167 - AP1247 -> 0 | AQ12: =-AQ111 - AQ215 - AQ319 - AQ423 - AQ527 - AQ607 - AQ687 - AQ767 - AQ847 - AQ927 - AQ1007 - AQ1087 - AQ1167 - AQ1247 -> 0 | AR12: =-AR111 - AR215 - AR319 - AR423 - AR527 - AR607 - AR687 - AR767 - AR847 - AR927 - AR1007 - AR1087 - AR1167 - AR1247 -> 0 | AS12: =-AS111 - AS215 - AS319 - AS423 - AS527 - AS607 - AS687 - AS767 - AS847 - AS927 - AS1007 - AS1087 - AS1167 - AS1247 -> 0 | AT12: =-AT111 - AT215 - AT319 - AT423 - AT527 - AT607 - AT687 - AT767 - AT847 - AT927 - AT1007 - AT1087 - AT1167 - AT1247 -> 0 | AU12: =-AU111 - AU215 - AU319 - AU423 - AU527 - AU607 - AU687 - AU767 - AU847 - AU927 - AU1007 - AU1087 - AU1167 - AU1247 -> 0 | AV12: 0 | AW12: 0 | AX12: 0 | AY12: 0
E13: Regulatory depreciation | G13: £m 23/24 prices | AH13: =AH122 + AH226 + AH330 + AH434 + AH538 + AH618 + AH698 + AH778 + AH858 + AH938 + AH1018 + AH1098 + AH1178 + AH1258 -> 11.82070406 | AI13: 11.82070406 | AJ13: 11.82070406 | AK13: 11.30765128 | AL13: 0 | AM13: 0 | AN13: 0 | AO13: 0 | AP13: =AP33 -> 0 | AQ13: =AQ33 -> 0 | AR13: 0 | AS13: 0 | AT13: 0 | AU13: 0 | AV13: 0 | AW13: 0 | AX13: 0 | AY13: 0
E14: Accumulated depreciation transferred to RAV | G14: £m 23/24 prices | AH14: =- AH120 - AH224 - AH328 - AH432 - AH536 - AH616 - AH696 - AH776 - AH856 - AH936 - AH1016 - AH1096 - AH1176 - AH1256 -> 44.8670247 | AI14: 0 | AJ14: 0 | AK14: 2.319523585 | AL14: 86.51218651 | AM14: 0 | AN14: 0 | AO14: 0 | AP14: =- AP120 - AP224 - AP328 - AP432 - AP536 - AP616 - AP696 - AP776 - AP856 - AP936 - AP1016 - AP1096 - AP1176 - AP1256 -> 0 | AQ14: =- AQ120 - AQ224 - AQ328 - AQ432 - AQ536 - AQ616 - AQ696 - AQ776 - AQ856 - AQ936 - AQ1016 - AQ1096 - AQ1176 - AQ1256 -> 0 | AR14: =- AR120 - AR224 - AR328 - AR432 - AR536 - AR616 - AR696 - AR776 - AR856 - AR936 - AR1016 - AR1096 - AR1176 - AR1256 -> 0 | AS14: =- AS120 - AS224 - AS328 - AS432 - AS536 - AS616 - AS696 - AS776 - AS856 - AS936 - AS1016 - AS1096 - AS1176 - AS1256 -> 0 | AT14: =- AT120 - AT224 - AT328 - AT432 - AT536 - AT616 - AT696 - AT776 - AT856 - AT936 - AT1016 - AT1096 - AT1176 - AT1256 -> 0 | AU14: =- AU120 - AU224 - AU328 - AU432 - AU536 - AU616 - AU696 - AU776 - AU856 - AU936 - AU1016 - AU1096 - AU1176 - AU1256 -> 0 | AV14: 0 | AW14: 0 | AX14: 0 | AY14: 0
E15: Opening RAV after transfers | G15: £m 23/24 prices | AH15: =(AH112 - AH121) + (AH216 - AH225) + (AH320 - AH329) + (AH424 - AH433) + (AH528 - AH537) + (AH608 - AH617) + (AH688 - AH697) + (AH768 - AH777) + (AH848 - AH857) + (AH928 - AH937) + (AH1008 - AH1017) + (AH1088 - AH1097) + (AH1168 - AH1177) + (AH1248 - AH1257) -> 489.8697362 | AI15: 478.0490321 | AJ15: 466.2283281 | AK15: 433.6397725 | AL15: 0 | AM15: 0 | AN15: 0 | AO15: 0 | AP15: =(AP112 - AP121) + (AP216 - AP225) + (AP320 - AP329) + (AP424 - AP433) + (AP528 - AP537) + (AP608 - AP617) + (AP688 - AP697) + (AP768 - AP777) + (AP848 - AP857) + (AP928 - AP937) + (AP1008 - AP1017) + (AP1088 - AP1097) + (AP1168 - AP1177) + (AP1248 - AP1257) -> 0 | AQ15: =(AQ112 - AQ121) + (AQ216 - AQ225) + (AQ320 - AQ329) + (AQ424 - AQ433) + (AQ528 - AQ537) + (AQ608 - AQ617) + (AQ688 - AQ697) + (AQ768 - AQ777) + (AQ848 - AQ857) + (AQ928 - AQ937) + (AQ1008 - AQ1017) + (AQ1088 - AQ1097) + (AQ1168 - AQ1177) + (AQ1248 - AQ1257) -> 0 | AR15: =(AR112 - AR121) + (AR216 - AR225) + (AR320 - AR329) + (AR424 - AR433) + (AR528 - AR537) + (AR608 - AR617) + (AR688 - AR697) + (AR768 - AR777) + (AR848 - AR857) + (AR928 - AR937) + (AR1008 - AR1017) + (AR1088 - AR1097) + (AR1168 - AR1177) + (AR1248 - AR1257) -> 0 | AS15: =(AS112 - AS121) + (AS216 - AS225) + (AS320 - AS329) + (AS424 - AS433) + (AS528 - AS537) + (AS608 - AS617) + (AS688 - AS697) + (AS768 - AS777) + (AS848 - AS857) + (AS928 - AS937) + (AS1008 - AS1017) + (AS1088 - AS1097) + (AS1168 - AS1177) + (AS1248 - AS1257) -> 0 | AT15: =(AT112 - AT121) + (AT216 - AT225) + (AT320 - AT329) + (AT424 - AT433) + (AT528 - AT537) + (AT608 - AT617) + (AT688 - AT697) + (AT768 - AT777) + (AT848 - AT857) + (AT928 - AT937) + (AT1008 - AT1017) + (AT1088 - AT1097) + (AT1168 - AT1177) + (AT1248 - AT1257) -> 0 | AU15: =(AU112 - AU121) + (AU216 - AU225) + (AU320 - AU329) + (AU424 - AU433) + (AU528 - AU537) + (AU608 - AU617) + (AU688 - AU697) + (AU768 - AU777) + (AU848 - AU857) + (AU928 - AU937) + (AU1008 - AU1017) + (AU1088 - AU1097) + (AU1168 - AU1177) + (AU1248 - AU1257) -> 0 | AV15: 0 | AW15: 0 | AX15: 0 | AY15: 0
E16: Net value after regulatory depreciation | G16: £m 23/24 prices | AH16: =AH128 + AH232 + AH336 + AH440 + AH544 + AH624 + AH704 + AH784 + AH864 + AH944 + AH1024 + AH1104 + AH1184 + AH1264 -> 480.6474136 | AI16: 469.3961106 | AJ16: 457.604117 | AK16: 425.5575848 | AL16: 22.7828781 | AM16: 30.21459457 | AN16: 1.325584241 | AO16: 0 | AP16: =AP128 + AP232 + AP336 + AP440 + AP544 + AP624 + AP704 + AP784 + AP864 + AP944 + AP1024 + AP1104 + AP1184 + AP1264 -> 0 | AQ16: =AQ128 + AQ232 + AQ336 + AQ440 + AQ544 + AQ624 + AQ704 + AQ784 + AQ864 + AQ944 + AQ1024 + AQ1104 + AQ1184 + AQ1264 -> 0 | AR16: =AR128 + AR232 + AR336 + AR440 + AR544 + AR624 + AR704 + AR784 + AR864 + AR944 + AR1024 + AR1104 + AR1184 + AR1264 -> 0 | AS16: =AS128 + AS232 + AS336 + AS440 + AS544 + AS624 + AS704 + AS784 + AS864 + AS944 + AS1024 + AS1104 + AS1184 + AS1264 -> 0 | AT16: =AT128 + AT232 + AT336 + AT440 + AT544 + AT624 + AT704 + AT784 + AT864 + AT944 + AT1024 + AT1104 + AT1184 + AT1264 -> 0 | AU16: =AU128 + AU232 + AU336 + AU440 + AU544 + AU624 + AU704 + AU784 + AU864 + AU944 + AU1024 + AU1104 + AU1184 + AU1264 -> 0 | AV16: 0 | AW16: 0 | AX16: 0 | AY16: 0
E17: General pool capital allowance transfer | G17: £m nominal | AH17: =AH137+AH241+AH345+AH449+AH553+AH633+AH713+AH793+AH873+AH953+AH1033+AH1113+AH1193+AH1273 -> -1.494550619 | AI17: -0.04864452279 | AJ17: -0.06046654148 | AK17: -0.1554969966 | AL17: -0.5190593892 | AM17: -0.4657863908 | AN17: -0.6365996921 | AO17: -0.02865203755 | AP17: =AP137+AP241+AP345+AP449+AP553+AP633+AP713+AP793+AP873+AP953+AP1033+AP1113+AP1193+AP1273 -> 0 | AQ17: =AQ137+AQ241+AQ345+AQ449+AQ553+AQ633+AQ713+AQ793+AQ873+AQ953+AQ1033+AQ1113+AQ1193+AQ1273 -> 0 | AR17: =AR137+AR241+AR345+AR449+AR553+AR633+AR713+AR793+AR873+AR953+AR1033+AR1113+AR1193+AR1273 -> 0 | AS17: =AS137+AS241+AS345+AS449+AS553+AS633+AS713+AS793+AS873+AS953+AS1033+AS1113+AS1193+AS1273 -> 0 | AT17: =AT137+AT241+AT345+AT449+AT553+AT633+AT713+AT793+AT873+AT953+AT1033+AT1113+AT1193+AT1273 -> 0 | AU17: =AU137+AU241+AU345+AU449+AU553+AU633+AU713+AU793+AU873+AU953+AU1033+AU1113+AU1193+AU1273 -> 0 | AV17: 0 | AW17: 0 | AX17: 0 | AY17: 0
E18: Special Rate capital allowance transfer | G18: £m nominal | AH18: =AH148+AH252+AH356+AH460+AH564+AH644+AH724+AH804+AH884+AH964+AH1044+AH1124+AH1204+AH1284 -> -149.2923705 | AI18: -1.62195373 | AJ18: -2.016135155 | AK18: -11.00670618 | AL18: -64.6181595 | AM18: -15.53070995 | AN18: -21.22613577 | AO18: -0.9761128982 | AP18: =AP148+AP252+AP356+AP460+AP564+AP644+AP724+AP804+AP884+AP964+AP1044+AP1124+AP1204+AP1284 -> 0 | AQ18: =AQ148+AQ252+AQ356+AQ460+AQ564+AQ644+AQ724+AQ804+AQ884+AQ964+AQ1044+AQ1124+AQ1204+AQ1284 -> 0 | AR18: =AR148+AR252+AR356+AR460+AR564+AR644+AR724+AR804+AR884+AR964+AR1044+AR1124+AR1204+AR1284 -> 0 | AS18: =AS148+AS252+AS356+AS460+AS564+AS644+AS724+AS804+AS884+AS964+AS1044+AS1124+AS1204+AS1284 -> 0 | AT18: =AT148+AT252+AT356+AT460+AT564+AT644+AT724+AT804+AT884+AT964+AT1044+AT1124+AT1204+AT1284 -> 0 | AU18: =AU148+AU252+AU356+AU460+AU564+AU644+AU724+AU804+AU884+AU964+AU1044+AU1124+AU1204+AU1284 -> 0 | AV18: 0 | AW18: 0 | AX18: 0 | AY18: 0
E19: Dividends | G19: £m nominal | AP19: =AP170+AP274+AP378+AP482+AP586+AP666+AP746+AP826+AP906+AP986+AP1066+AP1146+AP1226+AP1306 -> 0 | AQ19: =AQ170+AQ274+AQ378+AQ482+AQ586+AQ666+AQ746+AQ826+AQ906+AQ986+AQ1066+AQ1146+AQ1226+AQ1306 -> 0 | AR19: =AR170+AR274+AR378+AR482+AR586+AR666+AR746+AR826+AR906+AR986+AR1066+AR1146+AR1226+AR1306 -> 0 | AS19: =AS170+AS274+AS378+AS482+AS586+AS666+AS746+AS826+AS906+AS986+AS1066+AS1146+AS1226+AS1306 -> 0 | AT19: =AT170+AT274+AT378+AT482+AT586+AT666+AT746+AT826+AT906+AT986+AT1066+AT1146+AT1226+AT1306 -> 0 | AU19: =AU170+AU274+AU378+AU482+AU586+AU666+AU746+AU826+AU906+AU986+AU1066+AU1146+AU1226+AU1306 -> 0 | AV19: 0 | AW19: 0 | AX19: 0 | AY19: 0
E20: Interest paid (excluding principal inflation accretion) | G20: £m nominal | AP20: =AP172+AP276+AP380+AP484+AP588+AP668+AP748+AP828+AP908+AP988+AP1068+AP1148+AP1228+AP1308 -> 0 | AQ20: 0 | AR20: 0 | AS20: 0 | AT20: 0 | AU20: =AU172+AU276+AU380+AU484+AU588+AU668+AU748+AU828+AU908+AU988+AU1068+AU1148+AU1228+AU1308 -> 0 | AV20: 0 | AW20: 0 | AX20: 0 | AY20: 0
E21: interest paid (principal inflation accretion) | G21: £m nominal | AP21: 0 | AQ21: 0 | AR21: 0 | AS21: 0 | AT21: 0 | AU21: =AU173+AU277+AU381+AU485+AU589+AU669+AU749+AU829+AU909+AU989+AU1069+AU1149+AU1229+AU1309 -> 0 | AV21: 0 | AW21: 0 | AX21: 0 | AY21: 0
E22: Tax | G22: £m nominal | AP22: =-AP70 -> 0 | AQ22: =-AQ70 -> 0 | AR22: =-AR70 -> 0 | AS22: =-AS70 -> 0 | AT22: =-AT70 -> 0 | AU22: =-AU70 -> 0 | AV22: 0 | AW22: 0 | AX22: 0 | AY22: 0
E23: Closing total net debt | G23: £m nominal | AP23: =AP174+AP278+AP382+AP486+AP590+AP670+AP750+AP830+AP910+AP990+AP1070+AP1150+AP1230+AP1310 -> 0 | AQ23: =AQ174+AQ278+AQ382+AQ486+AQ590+AQ670+AQ750+AQ830+AQ910+AQ990+AQ1070+AQ1150+AQ1230+AQ1310 -> 0 | AR23: =AR174+AR278+AR382+AR486+AR590+AR670+AR750+AR830+AR910+AR990+AR1070+AR1150+AR1230+AR1310 -> 0 | AS23: =AS174+AS278+AS382+AS486+AS590+AS670+AS750+AS830+AS910+AS990+AS1070+AS1150+AS1230+AS1310 -> 0 | AT23: =AT174+AT278+AT382+AT486+AT590+AT670+AT750+AT830+AT910+AT990+AT1070+AT1150+AT1230+AT1310 -> 0 | AU23: =AU174+AU278+AU382+AU486+AU590+AU670+AU750+AU830+AU910+AU990+AU1070+AU1150+AU1230+AU1310 -> 0 | AV23: 0 | AW23: 0 | AX23: 0 | AY23: 0
E24: Net debt transfer from core net debt | G24: £m nominal | AQ24: =AQ167+AQ271+AQ375+AQ479+AQ583+AQ663+AQ743+AQ823+AQ903+AQ983+AQ1063+AQ1143+AQ1223+AQ1303 -> 0 | AR24: =AR167+AR271+AR375+AR479+AR583+AR663+AR743+AR823+AR903+AR983+AR1063+AR1143+AR1223+AR1303 -> 0 | AS24: =AS167+AS271+AS375+AS479+AS583+AS663+AS743+AS823+AS903+AS983+AS1063+AS1143+AS1223+AS1303 -> 0 | AT24: =AT167+AT271+AT375+AT479+AT583+AT663+AT743+AT823+AT903+AT983+AT1063+AT1143+AT1223+AT1303 -> 0 | AU24: =AU167+AU271+AU375+AU479+AU583+AU663+AU743+AU823+AU903+AU983+AU1063+AU1143+AU1223+AU1303 -> 0 | AV24: 0 | AW24: 0 | AX24: 0 | AY24: 0
C27: Non-core RAV summary
E29: Opening RAV (before transfers) | G29: =price_label -> £m 23/24 prices | AH29: =NonCore!AH110+NonCore!AH214+NonCore!AH318+NonCore!AH422+NonCore!AH526+NonCore!AH606+NonCore!AH686+NonCore!AH766+NonCore!AH846+NonCore!AH926+NonCore!AH1006+NonCore!AH1086+NonCore!AH1166+NonCore!AH1246 -(NonCore!AH119+NonCore!AH223+NonCore!AH327+NonCore!AH431+NonCore!AH535+NonCore!AH615+NonCore!AH695+NonCore!AH775+NonCore!AH855+NonCore!AH935+NonCore!AH1015+NonCore!AH1095+NonCore!AH1175+NonCore!AH1255) -> 880.5488336 | AI29: =AH34 -> 480.6474136 | AJ29: =AI34 -> 469.3961106 | AK29: 457.604117 | AL29: 425.5575848 | AM29: 22.7828781 | AN29: 30.21459457 | AO29: 1.325584241 | AP29: =AO34 -> 0 | AQ29: =AP34 -> 0 | AR29: =AQ34 -> 0 | AS29: =AR34 -> 0 | AT29: =AS34 -> 0 | AU29: =AT34 -> 0 | AV29: 0 | AW29: 0 | AX29: 0 | AY29: 0
E30: Transfers | G30: £m 23/24 prices | AH30: =NonCore!AH111+NonCore!AH215+NonCore!AH319+NonCore!AH423+NonCore!AH527+NonCore!AH607+NonCore!AH687+NonCore!AH767+NonCore!AH847+NonCore!AH927+NonCore!AH1007+NonCore!AH1087+NonCore!AH1167+NonCore!AH1247-(NonCore!AH120+NonCore!AH224+NonCore!AH328+NonCore!AH432+NonCore!AH536+NonCore!AH616+NonCore!AH696+NonCore!AH776+NonCore!AH856+NonCore!AH936+NonCore!AH1016+NonCore!AH1096+NonCore!AH1176+NonCore!AH1256) -> -390.6790974 | AI30: =NonCore!AI111+NonCore!AI215+NonCore!AI319+NonCore!AI423+NonCore!AI527+NonCore!AI607+NonCore!AI687+NonCore!AI767+NonCore!AI847+NonCore!AI927+NonCore!AI1007+NonCore!AI1087+NonCore!AI1167+NonCore!AI1247-(NonCore!AI120+NonCore!AI224+NonCore!AI328+NonCore!AI432+NonCore!AI536+NonCore!AI616+NonCore!AI696+NonCore!AI776+NonCore!AI856+NonCore!AI936+NonCore!AI1016+NonCore!AI1096+NonCore!AI1176+NonCore!AI1256) -> -2.598381507 | AJ30: =NonCore!AJ111+NonCore!AJ215+NonCore!AJ319+NonCore!AJ423+NonCore!AJ527+NonCore!AJ607+NonCore!AJ687+NonCore!AJ767+NonCore!AJ847+NonCore!AJ927+NonCore!AJ1007+NonCore!AJ1087+NonCore!AJ1167+NonCore!AJ1247-(NonCore!AJ120+NonCore!AJ224+NonCore!AJ328+NonCore!AJ432+NonCore!AJ536+NonCore!AJ616+NonCore!AJ696+NonCore!AJ776+NonCore!AJ856+NonCore!AJ936+NonCore!AJ1016+NonCore!AJ1096+NonCore!AJ1176+NonCore!AJ1256) -> -3.167782494 | AK30: =NonCore!AK111+NonCore!AK215+NonCore!AK319+NonCore!AK423+NonCore!AK527+NonCore!AK607+NonCore!AK687+NonCore!AK767+NonCore!AK847+NonCore!AK927+NonCore!AK1007+NonCore!AK1087+NonCore!AK1167+NonCore!AK1247-(NonCore!AK120+NonCore!AK224+NonCore!AK328+NonCore!AK432+NonCore!AK536+NonCore!AK616+NonCore!AK696+NonCore!AK776+NonCore!AK856+NonCore!AK936+NonCore!AK1016+NonCore!AK1096+NonCore!AK1176+NonCore!AK1256) -> -23.96434447 | AL30: =NonCore!AL111+NonCore!AL215+NonCore!AL319+NonCore!AL423+NonCore!AL527+NonCore!AL607+NonCore!AL687+NonCore!AL767+NonCore!AL847+NonCore!AL927+NonCore!AL1007+NonCore!AL1087+NonCore!AL1167+NonCore!AL1247-(NonCore!AL120+NonCore!AL224+NonCore!AL328+NonCore!AL432+NonCore!AL536+NonCore!AL616+NonCore!AL696+NonCore!AL776+NonCore!AL856+NonCore!AL936+NonCore!AL1016+NonCore!AL1096+NonCore!AL1176+NonCore!AL1256) -> -425.5575848 | AM30: =NonCore!AM111+NonCore!AM215+NonCore!AM319+NonCore!AM423+NonCore!AM527+NonCore!AM607+NonCore!AM687+NonCore!AM767+NonCore!AM847+NonCore!AM927+NonCore!AM1007+NonCore!AM1087+NonCore!AM1167+NonCore!AM1247-(NonCore!AM120+NonCore!AM224+NonCore!AM328+NonCore!AM432+NonCore!AM536+NonCore!AM616+NonCore!AM696+NonCore!AM776+NonCore!AM856+NonCore!AM936+NonCore!AM1016+NonCore!AM1096+NonCore!AM1176+NonCore!AM1256) -> -22.7828781 | AN30: =NonCore!AN111+NonCore!AN215+NonCore!AN319+NonCore!AN423+NonCore!AN527+NonCore!AN607+NonCore!AN687+NonCore!AN767+NonCore!AN847+NonCore!AN927+NonCore!AN1007+NonCore!AN1087+NonCore!AN1167+NonCore!AN1247-(NonCore!AN120+NonCore!AN224+NonCore!AN328+NonCore!AN432+NonCore!AN536+NonCore!AN616+NonCore!AN696+NonCore!AN776+NonCore!AN856+NonCore!AN936+NonCore!AN1016+NonCore!AN1096+NonCore!AN1176+NonCore!AN1256) -> -30.21459457 | AO30: =NonCore!AO111+NonCore!AO215+NonCore!AO319+NonCore!AO423+NonCore!AO527+NonCore!AO607+NonCore!AO687+NonCore!AO767+NonCore!AO847+NonCore!AO927+NonCore!AO1007+NonCore!AO1087+NonCore!AO1167+NonCore!AO1247-(NonCore!AO120+NonCore!AO224+NonCore!AO328+NonCore!AO432+NonCore!AO536+NonCore!AO616+NonCore!AO696+NonCore!AO776+NonCore!AO856+NonCore!AO936+NonCore!AO1016+NonCore!AO1096+NonCore!AO1176+NonCore!AO1256) -> -1.325584241 | AP30: =NonCore!AP111+NonCore!AP215+NonCore!AP319+NonCore!AP423+NonCore!AP527+NonCore!AP607+NonCore!AP687+NonCore!AP767+NonCore!AP847+NonCore!AP927+NonCore!AP1007+NonCore!AP1087+NonCore!AP1167+NonCore!AP1247-(NonCore!AP120+NonCore!AP224+NonCore!AP328+NonCore!AP432+NonCore!AP536+NonCore!AP616+NonCore!AP696+NonCore!AP776+NonCore!AP856+NonCore!AP936+NonCore!AP1016+NonCore!AP1096+NonCore!AP1176+NonCore!AP1256) -> 0 | AQ30: =NonCore!AQ111+NonCore!AQ215+NonCore!AQ319+NonCore!AQ423+NonCore!AQ527+NonCore!AQ607+NonCore!AQ687+NonCore!AQ767+NonCore!AQ847+NonCore!AQ927+NonCore!AQ1007+NonCore!AQ1087+NonCore!AQ1167+NonCore!AQ1247-(NonCore!AQ120+NonCore!AQ224+NonCore!AQ328+NonCore!AQ432+NonCore!AQ536+NonCore!AQ616+NonCore!AQ696+NonCore!AQ776+NonCore!AQ856+NonCore!AQ936+NonCore!AQ1016+NonCore!AQ1096+NonCore!AQ1176+NonCore!AQ1256) -> 0 | AR30: =NonCore!AR111+NonCore!AR215+NonCore!AR319+NonCore!AR423+NonCore!AR527+NonCore!AR607+NonCore!AR687+NonCore!AR767+NonCore!AR847+NonCore!AR927+NonCore!AR1007+NonCore!AR1087+NonCore!AR1167+NonCore!AR1247-(NonCore!AR120+NonCore!AR224+NonCore!AR328+NonCore!AR432+NonCore!AR536+NonCore!AR616+NonCore!AR696+NonCore!AR776+NonCore!AR856+NonCore!AR936+NonCore!AR1016+NonCore!AR1096+NonCore!AR1176+NonCore!AR1256) -> 0 | AS30: =NonCore!AS111+NonCore!AS215+NonCore!AS319+NonCore!AS423+NonCore!AS527+NonCore!AS607+NonCore!AS687+NonCore!AS767+NonCore!AS847+NonCore!AS927+NonCore!AS1007+NonCore!AS1087+NonCore!AS1167+NonCore!AS1247-(NonCore!AS120+NonCore!AS224+NonCore!AS328+NonCore!AS432+NonCore!AS536+NonCore!AS616+NonCore!AS696+NonCore!AS776+NonCore!AS856+NonCore!AS936+NonCore!AS1016+NonCore!AS1096+NonCore!AS1176+NonCore!AS1256) -> 0 | AT30: =NonCore!AT111+NonCore!AT215+NonCore!AT319+NonCore!AT423+NonCore!AT527+NonCore!AT607+NonCore!AT687+NonCore!AT767+NonCore!AT847+NonCore!AT927+NonCore!AT1007+NonCore!AT1087+NonCore!AT1167+NonCore!AT1247-(NonCore!AT120+NonCore!AT224+NonCore!AT328+NonCore!AT432+NonCore!AT536+NonCore!AT616+NonCore!AT696+NonCore!AT776+NonCore!AT856+NonCore!AT936+NonCore!AT1016+NonCore!AT1096+NonCore!AT1176+NonCore!AT1256) -> 0 | AU30: =NonCore!AU111+NonCore!AU215+NonCore!AU319+NonCore!AU423+NonCore!AU527+NonCore!AU607+NonCore!AU687+NonCore!AU767+NonCore!AU847+NonCore!AU927+NonCore!AU1007+NonCore!AU1087+NonCore!AU1167+NonCore!AU1247-(NonCore!AU120+NonCore!AU224+NonCore!AU328+NonCore!AU432+NonCore!AU536+NonCore!AU616+NonCore!AU696+NonCore!AU776+NonCore!AU856+NonCore!AU936+NonCore!AU1016+NonCore!AU1096+NonCore!AU1176+NonCore!AU1256) -> 0 | AV30: =NonCore!AV111+NonCore!AV215+NonCore!AV319+NonCore!AV423+NonCore!AV527+NonCore!AV607+NonCore!AV687+NonCore!AV767+NonCore!AV847+NonCore!AV927+NonCore!AV1007+NonCore!AV1087+NonCore!AV1167+NonCore!AV1247-(NonCore!AV120+NonCore!AV224+NonCore!AV328+NonCore!AV432+NonCore!AV536+NonCore!AV616+NonCore!AV696+NonCore!AV776+NonCore!AV856+NonCore!AV936+NonCore!AV1016+NonCore!AV1096+NonCore!AV1176+NonCore!AV1256) -> 0 | AW30: =NonCore!AW111+NonCore!AW215+NonCore!AW319+NonCore!AW423+NonCore!AW527+NonCore!AW607+NonCore!AW687+NonCore!AW767+NonCore!AW847+NonCore!AW927+NonCore!AW1007+NonCore!AW1087+NonCore!AW1167+NonCore!AW1247-(NonCore!AW120+NonCore!AW224+NonCore!AW328+NonCore!AW432+NonCore!AW536+NonCore!AW616+NonCore!AW696+NonCore!AW776+NonCore!AW856+NonCore!AW936+NonCore!AW1016+NonCore!AW1096+NonCore!AW1176+NonCore!AW1256) -> 0 | AX30: =NonCore!AX111+NonCore!AX215+NonCore!AX319+NonCore!AX423+NonCore!AX527+NonCore!AX607+NonCore!AX687+NonCore!AX767+NonCore!AX847+NonCore!AX927+NonCore!AX1007+NonCore!AX1087+NonCore!AX1167+NonCore!AX1247-(NonCore!AX120+NonCore!AX224+NonCore!AX328+NonCore!AX432+NonCore!AX536+NonCore!AX616+NonCore!AX696+NonCore!AX776+NonCore!AX856+NonCore!AX936+NonCore!AX1016+NonCore!AX1096+NonCore!AX1176+NonCore!AX1256) -> 0 | AY30: =NonCore!AY111+NonCore!AY215+NonCore!AY319+NonCore!AY423+NonCore!AY527+NonCore!AY607+NonCore!AY687+NonCore!AY767+NonCore!AY847+NonCore!AY927+NonCore!AY1007+NonCore!AY1087+NonCore!AY1167+NonCore!AY1247-(NonCore!AY120+NonCore!AY224+NonCore!AY328+NonCore!AY432+NonCore!AY536+NonCore!AY616+NonCore!AY696+NonCore!AY776+NonCore!AY856+NonCore!AY936+NonCore!AY1016+NonCore!AY1096+NonCore!AY1176+NonCore!AY1256) -> 0
E31: Opening RAV (after transfers) | G31: £m 23/24 prices | AH31: =SUM(AH29:AH30) -> 489.8697362 | AI31: =SUM(AI29:AI30) -> 478.0490321 | AJ31: 466.2283281 | AK31: 433.6397725 | AL31: 0 | AM31: 0 | AN31: 0 | AO31: 0 | AP31: =SUM(AP29:AP30) -> 0 | AQ31: =SUM(AQ29:AQ30) -> 0 | AR31: =SUM(AR29:AR30) -> 0 | AS31: =SUM(AS29:AS30) -> 0 | AT31: =SUM(AT29:AT30) -> 0 | AU31: =SUM(AU29:AU30) -> 0 | AV31: 0 | AW31: 0 | AX31: 0 | AY31: 0
E32: Net additions (after disposals) | G32: £m 23/24 prices | AH32: =AH113+AH217+AH321+AH425+AH529+AH609+AH689+AH769+AH849+AH929+AH1009+AH1089+AH1169+AH1249 -> 2.598381507 | AI32: =AI113+AI217+AI321+AI425+AI529+AI609+AI689+AI769+AI849+AI929+AI1009+AI1089+AI1169+AI1249 -> 3.167782494 | AJ32: 3.196492956 | AK32: 3.225463629 | AL32: 22.7828781 | AM32: 30.21459457 | AN32: 1.325584241 | AO32: 0 | AP32: 0 | AQ32: 0 | AR32: 0 | AS32: 0 | AT32: 0 | AU32: 0 | AV32: 0 | AW32: 0 | AX32: 0 | AY32: 0
E33: Depreciation | G33: £m 23/24 prices | AH33: =-(AH122+AH226+AH330+AH434+AH538+AH618+AH698+AH778+AH858+AH938+AH1018+AH1098+AH1178+AH1258) -> -11.82070406 | AI33: =-(AI122+AI226+AI330+AI434+AI538+AI618+AI698+AI778+AI858+AI938+AI1018+AI1098+AI1178+AI1258) -> -11.82070406 | AJ33: -11.82070406 | AK33: -11.30765128 | AL33: 0 | AM33: 0 | AN33: 0 | AO33: 0 | AP33: 0 | AQ33: 0 | AR33: 0 | AS33: 0 | AT33: 0 | AU33: 0 | AV33: 0 | AW33: 0 | AX33: 0 | AY33: 0
E34: Closing RAV | G34: £m 23/24 prices | AH34: =SUM(AH31:AH33) -> 480.6474136 | AI34: =SUM(AI31:AI33) -> 469.3961106 | AJ34: 457.604117 | AK34: 425.5575848 | AL34: 22.7828781 | AM34: 30.21459457 | AN34: 1.325584241 | AO34: 0 | AP34: =SUM(AP31:AP33) -> 0 | AQ34: =SUM(AQ31:AQ33) -> 0 | AR34: =SUM(AR31:AR33) -> 0 | AS34: =SUM(AS31:AS33) -> 0 | AT34: =SUM(AT31:AT33) -> 0 | AU34: =SUM(AU31:AU33) -> 0 | AV34: 0 | AW34: 0 | AX34: 0 | AY34: 0
B37: Revenue driver
B38: Note: Revenue driver projects are held outside the RAV. They are transferred into the core based on project specific transfer dates.
B39: Holding 'Revenue Drivers' outside the core allows the core tax calculation to avoid double counting the tax already allowed in the 'Revenue Drivers' pre-tax revenues.
C41: Common imports
E43: Post-vesting asset life | G43: years | J43: > | K43: =MainInputs!K1554 -> 45 | L43: =MainInputs!L1554 -> 45 | M43: =MainInputs!M1554 -> 45 | N43: =MainInputs!N1554 -> 45 | O43: =MainInputs!O1554 -> 45 | P43: =MainInputs!P1554 -> 45 | Q43: =MainInputs!Q1554 -> 45 | R43: =MainInputs!R1554 -> 45 | S43: =MainInputs!S1554 -> 45 | T43: =MainInputs!T1554 -> 45 | U43: =MainInputs!U1554 -> 45 | V43: =MainInputs!V1554 -> 45 | W43: =MainInputs!W1554 -> 45 | X43: =MainInputs!X1554 -> 45 | Y43: =MainInputs!Y1554 -> 45 | Z43: =MainInputs!Z1554 -> 45 | AA43: =MainInputs!AA1554 -> 45 | AB43: =MainInputs!AB1554 -> 45 | AC43: =MainInputs!AC1554 -> 45 | AD43: =MainInputs!AD1554 -> 45 | AE43: =MainInputs!AE1554 -> 45 | AF43: =MainInputs!AF1554 -> 45 | AG43: =MainInputs!AG1554 -> 45 | AH43: =MainInputs!AH1554 -> 45 | AI43: =MainInputs!AI1554 -> 45 | AJ43: =MainInputs!AJ1554 -> 45 | AK43: =MainInputs!AK1554 -> 45 | AL43: =MainInputs!AL1554 -> 45 | AM43: =MainInputs!AM1554 -> 45 | AN43: =MainInputs!AN1554 -> 45 | AO43: =MainInputs!AO1554 -> 45 | AP43: =MainInputs!AP1554 -> 45 | AQ43: =MainInputs!AQ1554 -> 45 | AR43: =MainInputs!AR1554 -> 45 | AS43: =MainInputs!AS1554 -> 45 | AT43: =MainInputs!AT1554 -> 45 | AU43: =MainInputs!AU1554 -> 45 | AV43: =MainInputs!AV1554 -> 45 | AW43: =MainInputs!AW1554 -> 45 | AX43: =MainInputs!AX1554 -> 45 | AY43: =MainInputs!AY1554 -> 45
E44: General pool capital allowance rate | G44: % | J44: > | V44: =MainInputs!V1578 -> 0.25 | W44: =MainInputs!W1578 -> 0.25 | X44: =MainInputs!X1578 -> 0.25 | Y44: =MainInputs!Y1578 -> 0.25 | Z44: =MainInputs!Z1578 -> 0.25 | AA44: =MainInputs!AA1578 -> 0.25 | AB44: =MainInputs!AB1578 -> 0.25 | AC44: =MainInputs!AC1578 -> 0.2 | AD44: =MainInputs!AD1578 -> 0.2 | AE44: =MainInputs!AE1578 -> 0.2 | AF44: =MainInputs!AF1578 -> 0.2 | AG44: =MainInputs!AG1578 -> 0.18 | AH44: =MainInputs!AH1578 -> 0.18 | AI44: =MainInputs!AI1578 -> 0.18 | AJ44: =MainInputs!AJ1578 -> 0.18 | AK44: =MainInputs!AK1578 -> 0.18 | AL44: =MainInputs!AL1578 -> 0.18 | AM44: =MainInputs!AM1578 -> 0.18 | AN44: =MainInputs!AN1578 -> 0.18 | AO44: =MainInputs!AO1578 -> 0.18 | AP44: =MainInputs!AP1578 -> 0 | AQ44: =MainInputs!AQ1578 -> 0 | AR44: =MainInputs!AR1578 -> 0 | AS44: =MainInputs!AS1578 -> 0 | AT44: =MainInputs!AT1578 -> 0 | AU44: =MainInputs!AU1578 -> 0 | AV44: =MainInputs!AV1578 -> 0 | AW44: =MainInputs!AW1578 -> 0 | AX44: =MainInputs!AX1578 -> 0 | AY44: =MainInputs!AY1578 -> 0
E45: Special Rate capital allowance rate | G45: % | J45: > | V45: =MainInputs!V1579 -> 0.06 | W45: =MainInputs!W1579 -> 0.06 | X45: =MainInputs!X1579 -> 0.06 | Y45: =MainInputs!Y1579 -> 0.06 | Z45: =MainInputs!Z1579 -> 0.06 | AA45: =MainInputs!AA1579 -> 0.06 | AB45: =MainInputs!AB1579 -> 0.06 | AC45: =MainInputs!AC1579 -> 0.1 | AD45: =MainInputs!AD1579 -> 0.1 | AE45: =MainInputs!AE1579 -> 0.1 | AF45: =MainInputs!AF1579 -> 0.1 | AG45: =MainInputs!AG1579 -> 0.08 | AH45: =MainInputs!AH1579 -> 0.08 | AI45: =MainInputs!AI1579 -> 0.08 | AJ45: =MainInputs!AJ1579 -> 0.08 | AK45: =MainInputs!AK1579 -> 0.08 | AL45: =MainInputs!AL1579 -> 0.08 | AM45: =MainInputs!AM1579 -> 0.08 | AN45: =MainInputs!AN1579 -> 0.06 | AO45: =MainInputs!AO1579 -> 0.06 | AP45: =MainInputs!AP1579 -> 0 | AQ45: =MainInputs!AQ1579 -> 0 | AR45: =MainInputs!AR1579 -> 0 | AS45: =MainInputs!AS1579 -> 0 | AT45: =MainInputs!AT1579 -> 0 | AU45: =MainInputs!AU1579 -> 0 | AV45: =MainInputs!AV1579 -> 0 | AW45: =MainInputs!AW1579 -> 0 | AX45: =MainInputs!AX1579 -> 0 | AY45: =MainInputs!AY1579 -> 0
E46: Corporation tax rate | G46: % | AP46: =MainInputs!AP$417 -> 0.19 | AQ46: =MainInputs!AQ$417 -> 0.19 | AR46: =MainInputs!AR$417 -> 0.25 | AS46: =MainInputs!AS$417 -> 0.25 | AT46: =MainInputs!AT$417 -> 0.25 | AU46: =MainInputs!AU$417 -> 0.25 | AV46: =MainInputs!AV$417 -> 0.25 | AW46: =MainInputs!AW$417 -> 0.25 | AX46: =MainInputs!AX$417 -> 0.25 | AY46: =MainInputs!AY$417 -> 0.25
E47: Overall gearing at start of year (after equity issuance) | G47: % | AP47: ='Finance&Tax'!AP$167 -> 0.6 | AQ47: ='Finance&Tax'!AQ$167 -> 0.5680019 | AR47: ='Finance&Tax'!AR$167 -> 0.5239572183 | AS47: ='Finance&Tax'!AS$167 -> 0.4930648366 | AT47: ='Finance&Tax'!AT$167 -> 0.4770936672 | AU47: ='Finance&Tax'!AU$167 -> 0.6 | AV47: ='Finance&Tax'!AV$167 -> 0.6 | AW47: ='Finance&Tax'!AW$167 -> 0.6 | AX47: ='Finance&Tax'!AX$167 -> 0.6 | AY47: ='Finance&Tax'!AY$167 -> 0.6
E48: Forecast cost of debt | G48: annual nominal % | AP48: ='Finance&Tax'!AP$197 -> 0.04603409005 | AQ48: ='Finance&Tax'!AQ$197 -> 0.06008850626 | AR48: ='Finance&Tax'!AR$197 -> 0.05042900589 | AS48: ='Finance&Tax'!AS$197 -> 0.04238432629 | AT48: ='Finance&Tax'!AT$197 -> 0.04850633008 | AU48: ='Finance&Tax'!AU$197 -> 0.05118280552 | AV48: ='Finance&Tax'!AV$197 -> 0.05191084573 | AW48: ='Finance&Tax'!AW$197 -> 0.0526758965 | AX48: ='Finance&Tax'!AX$197 -> 0.05398547984 | AY48: ='Finance&Tax'!AY$197 -> 0.05531688146
E49: Share of interest as principal inflation accretion | G49: % | AP49: ='Finance&Tax'!AP$228 -> 0.2394129292 | AQ49: ='Finance&Tax'!AQ$228 -> 0.4380601659 | AR49: ='Finance&Tax'!AR$228 -> 0.3299827961 | AS49: ='Finance&Tax'!AS$228 -> 0.2275489086 | AT49: ='Finance&Tax'!AT$228 -> 0.2336558236 | AU49: ='Finance&Tax'!AU$228 -> 0.1282644331 | AV49: ='Finance&Tax'!AV$228 -> 0.1221138385 | AW49: ='Finance&Tax'!AW$228 -> 0.1173537105 | AX49: ='Finance&Tax'!AX$228 -> 0.1157757159 | AY49: ='Finance&Tax'!AY$228 -> 0.1132026677
E50: Assumed dividends as % of notional equity portion of RAV | G50: % | AP50: =MainInputs!AP463 -> 0.03 | AQ50: =MainInputs!AQ463 -> 0.03 | AR50: =MainInputs!AR463 -> 0.03 | AS50: =MainInputs!AS463 -> 0.03 | AT50: =MainInputs!AT463 -> 0.03 | AU50: =MainInputs!AU463 -> 0.03 | AV50: =MainInputs!AV463 -> 0.03 | AW50: =MainInputs!AW463 -> 0.03 | AX50: =MainInputs!AX463 -> 0.03 | AY50: =MainInputs!AY463 -> 0.03
D52: Tax pool allocations
E54: Allocation to "General" pool | G54: % | J54: > | V54: =MainInputs!V1581 -> 0.019 | W54: =MainInputs!W1581 -> 0.019 | X54: =MainInputs!X1581 -> 0.019 | Y54: =MainInputs!Y1581 -> 0.019 | Z54: =MainInputs!Z1581 -> 0.019 | AA54: =MainInputs!AA1581 -> 0.019 | AB54: =MainInputs!AB1581 -> 0.019 | AC54: =MainInputs!AC1581 -> 0.019 | AD54: =MainInputs!AD1581 -> 0.019 | AE54: =MainInputs!AE1581 -> 0.019 | AF54: =MainInputs!AF1581 -> 0.019 | AG54: =MainInputs!AG1581 -> 0.019 | AH54: =MainInputs!AH1581 -> 0.032 | AI54: =MainInputs!AI1581 -> 0.032 | AJ54: =MainInputs!AJ1581 -> 0.032 | AK54: =MainInputs!AK1581 -> 0.032 | AL54: =MainInputs!AL1581 -> 0.032 | AM54: =MainInputs!AM1581 -> 0.032 | AN54: =MainInputs!AN1581 -> 0.032 | AO54: =MainInputs!AO1581 -> 0.032 | AP54: =MainInputs!AP1581 -> 0.032 | AQ54: =MainInputs!AQ1581 -> 0.032 | AR54: =MainInputs!AR1581 -> 0.032 | AS54: =MainInputs!AS1581 -> 0.032 | AT54: =MainInputs!AT1581 -> 0.032 | AU54: =MainInputs!AU1581 -> 0 | AV54: =MainInputs!AV1581 -> 0 | AW54: =MainInputs!AW1581 -> 0 | AX54: =MainInputs!AX1581 -> 0 | AY54: =MainInputs!AY1581 -> 0
E55: Allocation to "Special Rate" pool | G55: % | J55: > | V55: =MainInputs!V1582 -> 0.964 | W55: =MainInputs!W1582 -> 0.964 | X55: =MainInputs!X1582 -> 0.964 | Y55: =MainInputs!Y1582 -> 0.964 | Z55: =MainInputs!Z1582 -> 0.964 | AA55: =MainInputs!AA1582 -> 0.964 | AB55: =MainInputs!AB1582 -> 0.964 | AC55: =MainInputs!AC1582 -> 0.964 | AD55: =MainInputs!AD1582 -> 0.964 | AE55: =MainInputs!AE1582 -> 0.964 | AF55: =MainInputs!AF1582 -> 0.964 | AG55: =MainInputs!AG1582 -> 0.964 | AH55: =MainInputs!AH1582 -> 0.951 | AI55: =MainInputs!AI1582 -> 0.951 | AJ55: =MainInputs!AJ1582 -> 0.951 | AK55: =MainInputs!AK1582 -> 0.951 | AL55: =MainInputs!AL1582 -> 0.951 | AM55: =MainInputs!AM1582 -> 0.951 | AN55: =MainInputs!AN1582 -> 0.951 | AO55: =MainInputs!AO1582 -> 0.951 | AP55: =MainInputs!AP1582 -> 0.951 | AQ55: =MainInputs!AQ1582 -> 0.951 | AR55: =MainInputs!AR1582 -> 0.951 | AS55: =MainInputs!AS1582 -> 0.951 | AT55: =MainInputs!AT1582 -> 0.951 | AU55: =MainInputs!AU1582 -> 0 | AV55: =MainInputs!AV1582 -> 0 | AW55: =MainInputs!AW1582 -> 0 | AX55: =MainInputs!AX1582 -> 0 | AY55: =MainInputs!AY1582 -> 0
E56: Allocation to "Revenue" pool | G56: % | J56: > | V56: =MainInputs!V1583 -> 0.004 | W56: =MainInputs!W1583 -> 0.004 | X56: =MainInputs!X1583 -> 0.004 | Y56: =MainInputs!Y1583 -> 0.004 | Z56: =MainInputs!Z1583 -> 0.004 | AA56: =MainInputs!AA1583 -> 0.004 | AB56: =MainInputs!AB1583 -> 0.004 | AC56: =MainInputs!AC1583 -> 0.004 | AD56: =MainInputs!AD1583 -> 0.004 | AE56: =MainInputs!AE1583 -> 0.004 | AF56: =MainInputs!AF1583 -> 0.004 | AG56: =MainInputs!AG1583 -> 0.004 | AH56: =MainInputs!AH1583 -> 0 | AI56: =MainInputs!AI1583 -> 0 | AJ56: =MainInputs!AJ1583 -> 0 | AK56: =MainInputs!AK1583 -> 0 | AL56: =MainInputs!AL1583 -> 0 | AM56: =MainInputs!AM1583 -> 0 | AN56: =MainInputs!AN1583 -> 0 | AO56: =MainInputs!AO1583 -> 0 | AP56: =MainInputs!AP1583 -> 0 | AQ56: =MainInputs!AQ1583 -> 0 | AR56: =MainInputs!AR1583 -> 0 | AS56: =MainInputs!AS1583 -> 0 | AT56: =MainInputs!AT1583 -> 0 | AU56: =MainInputs!AU1583 -> 0 | AV56: =MainInputs!AV1583 -> 0 | AW56: =MainInputs!AW1583 -> 0 | AX56: =MainInputs!AX1583 -> 0 | AY56: =MainInputs!AY1583 -> 0
E57: Allocation to "Non Qualifying" pool | G57: % | J57: > | V57: =MainInputs!V1584 -> 0.013 | W57: =MainInputs!W1584 -> 0.013 | X57: =MainInputs!X1584 -> 0.013 | Y57: =MainInputs!Y1584 -> 0.013 | Z57: =MainInputs!Z1584 -> 0.013 | AA57: =MainInputs!AA1584 -> 0.013 | AB57: =MainInputs!AB1584 -> 0.013 | AC57: =MainInputs!AC1584 -> 0.013 | AD57: =MainInputs!AD1584 -> 0.013 | AE57: =MainInputs!AE1584 -> 0.013 | AF57: =MainInputs!AF1584 -> 0.013 | AG57: =MainInputs!AG1584 -> 0.013 | AH57: =MainInputs!AH1584 -> 0.017 | AI57: =MainInputs!AI1584 -> 0.017 | AJ57: =MainInputs!AJ1584 -> 0.017 | AK57: =MainInputs!AK1584 -> 0.017 | AL57: =MainInputs!AL1584 -> 0.017 | AM57: =MainInputs!AM1584 -> 0.017 | AN57: =MainInputs!AN1584 -> 0.017 | AO57: =MainInputs!AO1584 -> 0.017 | AP57: =MainInputs!AP1584 -> 0.0025 | AQ57: =MainInputs!AQ1584 -> 0.0025 | AR57: =MainInputs!AR1584 -> 0.0025 | AS57: =MainInputs!AS1584 -> 0.0025 | AT57: =MainInputs!AT1584 -> 0.0025 | AU57: =MainInputs!AU1584 -> 0 | AV57: =MainInputs!AV1584 -> 0 | AW57: =MainInputs!AW1584 -> 0 | AX57: =MainInputs!AX1584 -> 0 | AY57: =MainInputs!AY1584 -> 0
C59: Tax calculation
E61: Corporation tax rate | G61: % | AP61: =AP46 -> 0.19 | AQ61: =AQ46 -> 0.19 | AR61: =AR46 -> 0.25 | AS61: =AS46 -> 0.25 | AT61: =AT46 -> 0.25 | AU61: =AU46 -> 0.25 | AV61: 0.25 | AW61: 0.25 | AX61: 0.25 | AY61: 0.25
... 52 more rows

Sheet SystemOperator
A1: SystemOperator
B2: =UserInterface!G17 -> NGGT
E3: Parameter | F3: Licence condition | G3: Units | H3: Term | I3: Constant | AP3: Annual values
E4: PCFM year ending | F4: =Cover!C4 -> Model Version | I4: =UserInterface!$G$10 -> 2025-03-31 | K4: 1991-03-31 | L4: 1992-03-31 | M4: 1993-03-31 | N4: 1994-03-31 | O4: 1995-03-31 | P4: 1996-03-31 | Q4: 1997-03-31 | R4: 1998-03-31 | S4: 1999-03-31 | T4: 2000-03-31 | U4: 2001-03-31 | V4: 2002-03-31 | W4: 2003-03-31 | X4: 2004-03-31 | Y4: 2005-03-31 | Z4: 2006-03-31 | AA4: 2007-03-31 | AB4: 2008-03-31 | AC4: 2009-03-31 | AD4: 2010-03-31 | AE4: 2011-03-31 | AF4: 2012-03-31 | AG4: 2013-03-31 | AH4: 2014-03-31 | AI4: 2015-03-31 | AJ4: 2016-03-31 | AK4: 2017-03-31 | AL4: 2018-03-31 | AM4: 2019-03-31 | AN4: 2020-03-31 | AO4: 2021-03-31 | AP4: 2022-03-31 | AQ4: 2023-03-31 | AR4: 2024-03-31 | AS4: 2025-03-31 | AT4: 2026-03-31 | AU4: 2027-03-31 | AV4: 2028-03-31 | AW4: 2029-03-31 | AX4: 2030-03-31 | AY4: =EOMONTH(AX4,12) -> 2031-03-31
AP5: 2 | AQ5: 2 | AR5: 2 | AS5: 2 | AT5: 2 | AU5: 3 | AV5: 3 | AW5: 3 | AX5: 3 | AY5: 3
C7: Price control timeline
E9: Pre-RIIO-2 year | G9: flag | K9: =Scenarios!K$119 -> 1 | L9: =Scenarios!L$119 -> 1 | M9: =Scenarios!M$119 -> 1 | N9: =Scenarios!N$119 -> 1 | O9: =Scenarios!O$119 -> 1 | P9: =Scenarios!P$119 -> 1 | Q9: =Scenarios!Q$119 -> 1 | R9: =Scenarios!R$119 -> 1 | S9: =Scenarios!S$119 -> 1 | T9: =Scenarios!T$119 -> 1 | U9: =Scenarios!U$119 -> 1 | V9: =Scenarios!V$119 -> 1 | W9: =Scenarios!W$119 -> 1 | X9: =Scenarios!X$119 -> 1 | Y9: =Scenarios!Y$119 -> 1 | Z9: =Scenarios!Z$119 -> 1 | AA9: =Scenarios!AA$119 -> 1 | AB9: =Scenarios!AB$119 -> 1 | AC9: =Scenarios!AC$119 -> 1 | AD9: =Scenarios!AD$119 -> 1 | AE9: =Scenarios!AE$119 -> 1 | AF9: =Scenarios!AF$119 -> 1 | AG9: =Scenarios!AG$119 -> 1 | AH9: =Scenarios!AH$119 -> 1 | AI9: =Scenarios!AI$119 -> 1 | AJ9: =Scenarios!AJ$119 -> 1 | AK9: =Scenarios!AK$119 -> 1 | AL9: =Scenarios!AL$119 -> 1 | AM9: =Scenarios!AM$119 -> 1 | AN9: =Scenarios!AN$119 -> 1 | AO9: =Scenarios!AO$119 -> 1 | AP9: =Scenarios!AP$119 -> 0 | AQ9: =Scenarios!AQ$119 -> 0 | AR9: =Scenarios!AR$119 -> 0 | AS9: =Scenarios!AS$119 -> 0 | AT9: =Scenarios!AT$119 -> 0 | AU9: =Scenarios!AU$119 -> 0 | AV9: =Scenarios!AV$119 -> 0 | AW9: =Scenarios!AW$119 -> 0 | AX9: =Scenarios!AX$119 -> 0 | AY9: =Scenarios!AY$119 -> 0
E10: RIIO-2 year | G10: flag | K10: =Scenarios!K$120 -> 0 | L10: =Scenarios!L$120 -> 0 | M10: =Scenarios!M$120 -> 0 | N10: =Scenarios!N$120 -> 0 | O10: =Scenarios!O$120 -> 0 | P10: =Scenarios!P$120 -> 0 | Q10: =Scenarios!Q$120 -> 0 | R10: =Scenarios!R$120 -> 0 | S10: =Scenarios!S$120 -> 0 | T10: =Scenarios!T$120 -> 0 | U10: =Scenarios!U$120 -> 0 | V10: =Scenarios!V$120 -> 0 | W10: =Scenarios!W$120 -> 0 | X10: =Scenarios!X$120 -> 0 | Y10: =Scenarios!Y$120 -> 0 | Z10: =Scenarios!Z$120 -> 0 | AA10: =Scenarios!AA$120 -> 0 | AB10: =Scenarios!AB$120 -> 0 | AC10: =Scenarios!AC$120 -> 0 | AD10: =Scenarios!AD$120 -> 0 | AE10: =Scenarios!AE$120 -> 0 | AF10: =Scenarios!AF$120 -> 0 | AG10: =Scenarios!AG$120 -> 0 | AH10: =Scenarios!AH$120 -> 0 | AI10: =Scenarios!AI$120 -> 0 | AJ10: =Scenarios!AJ$120 -> 0 | AK10: =Scenarios!AK$120 -> 0 | AL10: =Scenarios!AL$120 -> 0 | AM10: =Scenarios!AM$120 -> 0 | AN10: =Scenarios!AN$120 -> 0 | AO10: =Scenarios!AO$120 -> 0 | AP10: =Scenarios!AP$120 -> 1 | AQ10: =Scenarios!AQ$120 -> 1 | AR10: =Scenarios!AR$120 -> 1 | AS10: =Scenarios!AS$120 -> 1 | AT10: =Scenarios!AT$120 -> 1 | AU10: =Scenarios!AU$120 -> 0 | AV10: =Scenarios!AV$120 -> 0 | AW10: =Scenarios!AW$120 -> 0 | AX10: =Scenarios!AX$120 -> 0 | AY10: =Scenarios!AY$120 -> 0
E11: RIIO-3 year | G11: flag | K11: =Scenarios!K$121 -> 0 | L11: =Scenarios!L$121 -> 0 | M11: =Scenarios!M$121 -> 0 | N11: =Scenarios!N$121 -> 0 | O11: =Scenarios!O$121 -> 0 | P11: =Scenarios!P$121 -> 0 | Q11: =Scenarios!Q$121 -> 0 | R11: =Scenarios!R$121 -> 0 | S11: =Scenarios!S$121 -> 0 | T11: =Scenarios!T$121 -> 0 | U11: =Scenarios!U$121 -> 0 | V11: =Scenarios!V$121 -> 0 | W11: =Scenarios!W$121 -> 0 | X11: =Scenarios!X$121 -> 0 | Y11: =Scenarios!Y$121 -> 0 | Z11: =Scenarios!Z$121 -> 0 | AA11: =Scenarios!AA$121 -> 0 | AB11: =Scenarios!AB$121 -> 0 | AC11: =Scenarios!AC$121 -> 0 | AD11: =Scenarios!AD$121 -> 0 | AE11: =Scenarios!AE$121 -> 0 | AF11: =Scenarios!AF$121 -> 0 | AG11: =Scenarios!AG$121 -> 0 | AH11: =Scenarios!AH$121 -> 0 | AI11: =Scenarios!AI$121 -> 0 | AJ11: =Scenarios!AJ$121 -> 0 | AK11: =Scenarios!AK$121 -> 0 | AL11: =Scenarios!AL$121 -> 0 | AM11: =Scenarios!AM$121 -> 0 | AN11: =Scenarios!AN$121 -> 0 | AO11: =Scenarios!AO$121 -> 0 | AP11: =Scenarios!AP$121 -> 0 | AQ11: =Scenarios!AQ$121 -> 0 | AR11: =Scenarios!AR$121 -> 0 | AS11: =Scenarios!AS$121 -> 0 | AT11: =Scenarios!AT$121 -> 0 | AU11: =Scenarios!AU$121 -> 1 | AV11: =Scenarios!AV$121 -> 1 | AW11: =Scenarios!AW$121 -> 1 | AX11: =Scenarios!AX$121 -> 1 | AY11: =Scenarios!AY$121 -> 1
E13: Price conversion: RIIO2 inputs to base price | I13: =INDEX('Annual Inflation'!$AH$41:$AY$41,,MATCH('Annual Inflation'!$I$22,'Annual Inflation'!$AH$4:$AY$4,0))/'Annual Inflation'!AM41 -> 1.245415245
E14: Price conversion: RIIO3 inputs to base price | I14: =INDEX('Annual Inflation'!$AH$41:$AY$41,,MATCH('Annual Inflation'!$I$22,'Annual Inflation'!$AH$4:$AY$4,0))/'Annual Inflation'!AR41 -> 1
C16: Scenario operators
E18: RIIO-3 Funding Adjustment Rate ('sharing factor') | G18: % | I18: =Scenarios!$F19 -> 0.39
E19: RIIO-3 cap rates from Scenarios, Licensee Inputs or Natural? | G19: % | I19: =Scenarios!F20 -> Licensee inputs | AP19: =IF($I$19="Scenarios",Scenarios!$F23,IF($I$19="Licensee inputs",'NGGT SO'!AP171,AP619))*AP$11 -> 0 | AQ19: =IF($I$19="Scenarios",Scenarios!$F23,IF($I$19="Licensee inputs",'NGGT SO'!AQ171,AQ619))*AQ$11 -> 0 | AR19: =IF($I$19="Scenarios",Scenarios!$F23,IF($I$19="Licensee inputs",'NGGT SO'!AR171,AR619))*AR$11 -> 0 | AS19: =IF($I$19="Scenarios",Scenarios!$F23,IF($I$19="Licensee inputs",'NGGT SO'!AS171,AS619))*AS$11 -> 0 | AT19: =IF($I$19="Scenarios",Scenarios!$F23,IF($I$19="Licensee inputs",'NGGT SO'!AT171,AT619))*AT$11 -> 0 | AU19: =IF($I$19="Scenarios",Scenarios!$F23,IF($I$19="Licensee inputs",'NGGT SO'!AU171,AU619))*AU$11 -> 0.39 | AV19: =IF($I$19="Scenarios",Scenarios!$F23,IF($I$19="Licensee inputs",'NGGT SO'!AV171,AV619))*AV$11 -> 0.39 | AW19: =IF($I$19="Scenarios",Scenarios!$F23,IF($I$19="Licensee inputs",'NGGT SO'!AW171,AW619))*AW$11 -> 0.39 | AX19: =IF($I$19="Scenarios",Scenarios!$F23,IF($I$19="Licensee inputs",'NGGT SO'!AX171,AX619))*AX$11 -> 0.39 | AY19: =IF($I$19="Scenarios",Scenarios!$F23,IF($I$19="Licensee inputs",'NGGT SO'!AY171,AY619))*AY$11 -> 0.39
E20: Corporation tax rate | G20: % | AU20: =Scenarios!$F62 -> 0.25 | AV20: =Scenarios!$F62 -> 0.25 | AW20: =Scenarios!$F62 -> 0.25 | AX20: =Scenarios!$F62 -> 0.25 | AY20: =Scenarios!$F62 -> 0.25
B22: Totex allowance
C24: Non-variant allowances
E26: Non-variant allowed non-operational capex | G26: =price_label -> £m 23/24 prices | AP26: =AP$10*$I$13*'NGGT SO'!AP466 + AP$11*$I$14*'NGGT SO'!AP11 -> 29.52806319 | AQ26: =AQ$10*$I$13*'NGGT SO'!AQ466 + AQ$11*$I$14*'NGGT SO'!AQ11 -> 31.2044062 | AR26: =AR$10*$I$13*'NGGT SO'!AR466 + AR$11*$I$14*'NGGT SO'!AR11 -> 42.64240015 | AS26: =AS$10*$I$13*'NGGT SO'!AS466 + AS$11*$I$14*'NGGT SO'!AS11 -> 33.28292299 | AT26: =AT$10*$I$13*'NGGT SO'!AT466 + AT$11*$I$14*'NGGT SO'!AT11 -> 19.6035353 | AU26: =AU$10*$I$13*'NGGT SO'!AU466 + AU$11*$I$14*'NGGT SO'!AU13 -> 40.14913785 | AV26: =AV$10*$I$13*'NGGT SO'!AV466 + AV$11*$I$14*'NGGT SO'!AV13 -> 43.41438566 | AW26: =AW$10*$I$13*'NGGT SO'!AW466 + AW$11*$I$14*'NGGT SO'!AW13 -> 29.9740763 | AX26: =AX$10*$I$13*'NGGT SO'!AX466 + AX$11*$I$14*'NGGT SO'!AX13 -> 32.00605888 | AY26: =AY$10*$I$13*'NGGT SO'!AY466 + AY$11*$I$14*'NGGT SO'!AY13 -> 27.49860152
E27: Non-variant allowed controllable opex | G27: =price_label -> £m 23/24 prices | AP27: =AP$10*$I$13*'NGGT SO'!AP467 + AP$11*$I$14*'NGGT SO'!AP12 -> 74.76638955 | AQ27: =AQ$10*$I$13*'NGGT SO'!AQ467 + AQ$11*$I$14*'NGGT SO'!AQ12 -> 74.60241773 | AR27: =AR$10*$I$13*'NGGT SO'!AR467 + AR$11*$I$14*'NGGT SO'!AR12 -> 73.61404154 | AS27: =AS$10*$I$13*'NGGT SO'!AS467 + AS$11*$I$14*'NGGT SO'!AS12 -> 74.45536912 | AT27: =AT$10*$I$13*'NGGT SO'!AT467 + AT$11*$I$14*'NGGT SO'!AT12 -> 73.31235122 | AU27: =AU$10*$I$13*'NGGT SO'!AU467 + AU$11*$I$14*'NGGT SO'!AU14 -> 71.74939029 | AV27: =AV$10*$I$13*'NGGT SO'!AV467 + AV$11*$I$14*'NGGT SO'!AV14 -> 72.19403921 | AW27: =AW$10*$I$13*'NGGT SO'!AW467 + AW$11*$I$14*'NGGT SO'!AW14 -> 72.41213487 | AX27: =AX$10*$I$13*'NGGT SO'!AX467 + AX$11*$I$14*'NGGT SO'!AX14 -> 71.19225447 | AY27: =AY$10*$I$13*'NGGT SO'!AY467 + AY$11*$I$14*'NGGT SO'!AY14 -> 70.51999223
E28: Total | G28: =price_label -> £m 23/24 prices | AP28: =SUM(AP26:AP27) -> 104.2944527 | AQ28: =SUM(AQ26:AQ27) -> 105.8068239 | AR28: 116.2564417 | AS28: 107.7382921 | AT28: 92.91588651 | AU28: 111.8985281 | AV28: 115.6084249 | AW28: 102.3862112 | AX28: 103.1983134 | AY28: 98.01859374
C30: Variant allowances (including Real Price Effects)
C31: Note: In the table below RPEs are aggregated in three groups: RPE non-variant allowances, PCDs and UMs.
E33: ='NGGT SO'!E19 -> Cyber resilience term Price Control Deliverable | F33: SpC 3.13 | G33: =price_label -> £m 23/24 prices | H33: FIOCt | I33: ='NGGT SO'!I19 -> PCD | AP33: =AP$10*$I$13*'NGGT SO'!AP472 + AP$11*$I$14*'NGGT SO'!AP19 -> 0 | AQ33: =AQ$10*$I$13*'NGGT SO'!AQ472 + AQ$11*$I$14*'NGGT SO'!AQ19 -> 0 | AR33: =AR$10*$I$13*'NGGT SO'!AR472 + AR$11*$I$14*'NGGT SO'!AR19 -> 0 | AS33: =AS$10*$I$13*'NGGT SO'!AS472 + AS$11*$I$14*'NGGT SO'!AS19 -> 0 | AT33: =AT$10*$I$13*'NGGT SO'!AT472 + AT$11*$I$14*'NGGT SO'!AT19 -> 0 | AU33: =AU$10*$I$13*'NGGT SO'!AU472 + AU$11*$I$14*'NGGT SO'!AU19 -> 12.74091821 | AV33: =AV$10*$I$13*'NGGT SO'!AV472 + AV$11*$I$14*'NGGT SO'!AV19 -> 11.10843177 | AW33: =AW$10*$I$13*'NGGT SO'!AW472 + AW$11*$I$14*'NGGT SO'!AW19 -> 10.99848311 | AX33: =AX$10*$I$13*'NGGT SO'!AX472 + AX$11*$I$14*'NGGT SO'!AX19 -> 8.315732549 | AY33: =AY$10*$I$13*'NGGT SO'!AY472 + AY$11*$I$14*'NGGT SO'!AY19 -> 5.812991723 | BC33: ='NGGT SO'!BB472 -> TIM | BD33: ='NGGT SO'!BC472 -> RPEs Apply | BE33: ='NGGT SO'!BD472 -> PCD | BF33: ='NGGT SO'!BE472 -> Fast/Slow Split
E34: ='NGGT SO'!E20 -> Cyber resilience Re-Opener | F34: SpC 3.2 | G34: £m 23/24 prices | H34: CROTt | I34: ='NGGT SO'!I20 -> PCD | AP34: =AP$10*$I$13*'NGGT SO'!AP473 + AP$11*$I$14*'NGGT SO'!AP20 -> 0 | AQ34: =AQ$10*$I$13*'NGGT SO'!AQ473 + AQ$11*$I$14*'NGGT SO'!AQ20 -> 0 | AR34: =AR$10*$I$13*'NGGT SO'!AR473 + AR$11*$I$14*'NGGT SO'!AR20 -> 0 | AS34: =AS$10*$I$13*'NGGT SO'!AS473 + AS$11*$I$14*'NGGT SO'!AS20 -> 0 | AT34: =AT$10*$I$13*'NGGT SO'!AT473 + AT$11*$I$14*'NGGT SO'!AT20 -> 0 | AU34: =AU$10*$I$13*'NGGT SO'!AU473 + AU$11*$I$14*'NGGT SO'!AU20 -> 0 | AV34: =AV$10*$I$13*'NGGT SO'!AV473 + AV$11*$I$14*'NGGT SO'!AV20 -> 0 | AW34: =AW$10*$I$13*'NGGT SO'!AW473 + AW$11*$I$14*'NGGT SO'!AW20 -> 0 | AX34: =AX$10*$I$13*'NGGT SO'!AX473 + AX$11*$I$14*'NGGT SO'!AX20 -> 0 | AY34: =AY$10*$I$13*'NGGT SO'!AY473 + AY$11*$I$14*'NGGT SO'!AY20 -> 0 | BC34: ='NGGT SO'!BB473 -> Non-Tim | BD34: ='NGGT SO'!BC473 -> RPEs Don’t Apply | BE34: ='NGGT SO'!BD473 -> PCD | BF34: ='NGGT SO'!BE473 -> Fast/Slow Split
E35: ='NGGT SO'!E21 -> Cyber Use it or lose it allowance | F35: SpC 3.3 | G35: £m 23/24 prices | H35: CRITt | I35: ='NGGT SO'!I21 -> PCD | AP35: =AP$10*$I$13*'NGGT SO'!AP474 + AP$11*$I$14*'NGGT SO'!AP21 -> 4.790228618 | AQ35: =AQ$10*$I$13*'NGGT SO'!AQ474 + AQ$11*$I$14*'NGGT SO'!AQ21 -> 2.008169101 | AR35: =AR$10*$I$13*'NGGT SO'!AR474 + AR$11*$I$14*'NGGT SO'!AR21 -> 2.578009557 | AS35: =AS$10*$I$13*'NGGT SO'!AS474 + AS$11*$I$14*'NGGT SO'!AS21 -> 0.8595856021 | AT35: =AT$10*$I$13*'NGGT SO'!AT474 + AT$11*$I$14*'NGGT SO'!AT21 -> 0 | AU35: =AU$10*$I$13*'NGGT SO'!AU474 + AU$11*$I$14*'NGGT SO'!AU21 -> 1.120841845 | AV35: =AV$10*$I$13*'NGGT SO'!AV474 + AV$11*$I$14*'NGGT SO'!AV21 -> 1.063803494 | AW35: =AW$10*$I$13*'NGGT SO'!AW474 + AW$11*$I$14*'NGGT SO'!AW21 -> 1.192498515 | AX35: =AX$10*$I$13*'NGGT SO'!AX474 + AX$11*$I$14*'NGGT SO'!AX21 -> 0 | AY35: =AY$10*$I$13*'NGGT SO'!AY474 + AY$11*$I$14*'NGGT SO'!AY21 -> 0 | BC35: ='NGGT SO'!BB474 -> TIM | BD35: ='NGGT SO'!BC474 -> RPEs Apply | BE35: ='NGGT SO'!BD474 -> PCD | BF35: ='NGGT SO'!BE474 -> Fast/Slow Split
E36: ='NGGT SO'!E22 -> Spare PCD 1 | G36: £m 23/24 prices | I36: ='NGGT SO'!I22 -> PCD | AP36: =AP$10*$I$13*'NGGT SO'!AP475 + AP$11*$I$14*'NGGT SO'!AP22 -> 0 | AQ36: =AQ$10*$I$13*'NGGT SO'!AQ475 + AQ$11*$I$14*'NGGT SO'!AQ22 -> 0 | AR36: =AR$10*$I$13*'NGGT SO'!AR475 + AR$11*$I$14*'NGGT SO'!AR22 -> 0 | AS36: =AS$10*$I$13*'NGGT SO'!AS475 + AS$11*$I$14*'NGGT SO'!AS22 -> 0 | AT36: =AT$10*$I$13*'NGGT SO'!AT475 + AT$11*$I$14*'NGGT SO'!AT22 -> 0 | AU36: =AU$10*$I$13*'NGGT SO'!AU475 + AU$11*$I$14*'NGGT SO'!AU22 -> 0 | AV36: =AV$10*$I$13*'NGGT SO'!AV475 + AV$11*$I$14*'NGGT SO'!AV22 -> 0 | AW36: =AW$10*$I$13*'NGGT SO'!AW475 + AW$11*$I$14*'NGGT SO'!AW22 -> 0 | AX36: =AX$10*$I$13*'NGGT SO'!AX475 + AX$11*$I$14*'NGGT SO'!AX22 -> 0 | AY36: =AY$10*$I$13*'NGGT SO'!AY475 + AY$11*$I$14*'NGGT SO'!AY22 -> 0 | BC36: ='NGGT SO'!BB475 -> 0 | BD36: ='NGGT SO'!BC475 -> 0 | BE36: ='NGGT SO'!BD475 -> PCD | BF36: ='NGGT SO'!BE475 -> 0
E37: ='NGGT SO'!E23 -> Spare PCD 2 | G37: £m 23/24 prices | I37: ='NGGT SO'!I23 -> PCD | AP37: =AP$10*$I$13*'NGGT SO'!AP476 + AP$11*$I$14*'NGGT SO'!AP23 -> 0 | AQ37: =AQ$10*$I$13*'NGGT SO'!AQ476 + AQ$11*$I$14*'NGGT SO'!AQ23 -> 0 | AR37: =AR$10*$I$13*'NGGT SO'!AR476 + AR$11*$I$14*'NGGT SO'!AR23 -> 0 | AS37: =AS$10*$I$13*'NGGT SO'!AS476 + AS$11*$I$14*'NGGT SO'!AS23 -> 0 | AT37: =AT$10*$I$13*'NGGT SO'!AT476 + AT$11*$I$14*'NGGT SO'!AT23 -> 0 | AU37: =AU$10*$I$13*'NGGT SO'!AU476 + AU$11*$I$14*'NGGT SO'!AU23 -> 0 | AV37: =AV$10*$I$13*'NGGT SO'!AV476 + AV$11*$I$14*'NGGT SO'!AV23 -> 0 | AW37: =AW$10*$I$13*'NGGT SO'!AW476 + AW$11*$I$14*'NGGT SO'!AW23 -> 0 | AX37: =AX$10*$I$13*'NGGT SO'!AX476 + AX$11*$I$14*'NGGT SO'!AX23 -> 0 | AY37: =AY$10*$I$13*'NGGT SO'!AY476 + AY$11*$I$14*'NGGT SO'!AY23 -> 0 | BC37: ='NGGT SO'!BB476 -> 0 | BD37: ='NGGT SO'!BC476 -> 0 | BE37: ='NGGT SO'!BD476 -> PCD | BF37: ='NGGT SO'!BE476 -> 0
E38: ='NGGT SO'!E24 -> Spare PCD 3 | G38: £m 23/24 prices | I38: ='NGGT SO'!I24 -> PCD | AP38: =AP$10*$I$13*'NGGT SO'!AP477 + AP$11*$I$14*'NGGT SO'!AP24 -> 0 | AQ38: =AQ$10*$I$13*'NGGT SO'!AQ477 + AQ$11*$I$14*'NGGT SO'!AQ24 -> 0 | AR38: =AR$10*$I$13*'NGGT SO'!AR477 + AR$11*$I$14*'NGGT SO'!AR24 -> 0 | AS38: =AS$10*$I$13*'NGGT SO'!AS477 + AS$11*$I$14*'NGGT SO'!AS24 -> 0 | AT38: =AT$10*$I$13*'NGGT SO'!AT477 + AT$11*$I$14*'NGGT SO'!AT24 -> 0 | AU38: =AU$10*$I$13*'NGGT SO'!AU477 + AU$11*$I$14*'NGGT SO'!AU24 -> 0 | AV38: =AV$10*$I$13*'NGGT SO'!AV477 + AV$11*$I$14*'NGGT SO'!AV24 -> 0 | AW38: =AW$10*$I$13*'NGGT SO'!AW477 + AW$11*$I$14*'NGGT SO'!AW24 -> 0 | AX38: =AX$10*$I$13*'NGGT SO'!AX477 + AX$11*$I$14*'NGGT SO'!AX24 -> 0 | AY38: =AY$10*$I$13*'NGGT SO'!AY477 + AY$11*$I$14*'NGGT SO'!AY24 -> 0 | BC38: ='NGGT SO'!BB477 -> 0 | BD38: ='NGGT SO'!BC477 -> 0 | BE38: ='NGGT SO'!BD477 -> PCD | BF38: ='NGGT SO'!BE477 -> 0
E39: ='NGGT SO'!E25 -> Decarbonisation and Environmental Policy Re-opener | F39: SpC 3.7 | G39: £m 23/24 prices | H39: NOITREt | I39: ='NGGT SO'!I25 -> UM | AP39: =AP$10*$I$13*'NGGT SO'!AP478 + AP$11*$I$14*'NGGT SO'!AP25 -> 0.006227076225 | AQ39: =AQ$10*$I$13*'NGGT SO'!AQ478 + AQ$11*$I$14*'NGGT SO'!AQ25 -> 0.9103985441 | AR39: =AR$10*$I$13*'NGGT SO'!AR478 + AR$11*$I$14*'NGGT SO'!AR25 -> 10.18500587 | AS39: =AS$10*$I$13*'NGGT SO'!AS478 + AS$11*$I$14*'NGGT SO'!AS25 -> 11.39268504 | AT39: =AT$10*$I$13*'NGGT SO'!AT478 + AT$11*$I$14*'NGGT SO'!AT25 -> 5.073074459 | AU39: =AU$10*$I$13*'NGGT SO'!AU478 + AU$11*$I$14*'NGGT SO'!AU25 -> 0 | AV39: =AV$10*$I$13*'NGGT SO'!AV478 + AV$11*$I$14*'NGGT SO'!AV25 -> 0 | AW39: =AW$10*$I$13*'NGGT SO'!AW478 + AW$11*$I$14*'NGGT SO'!AW25 -> 0 | AX39: =AX$10*$I$13*'NGGT SO'!AX478 + AX$11*$I$14*'NGGT SO'!AX25 -> 0 | AY39: =AY$10*$I$13*'NGGT SO'!AY478 + AY$11*$I$14*'NGGT SO'!AY25 -> 0 | BC39: ='NGGT SO'!BB478 -> TIM | BD39: ='NGGT SO'!BC478 -> RPEs Don’t Apply | BE39: ='NGGT SO'!BD478 -> UM | BF39: ='NGGT SO'!BE478 -> Fast/Slow Split
E40: ='NGGT SO'!E26 -> Digitalisation Re-opener | F40: SpC 3.6 | G40: £m 23/24 prices | H40: NZt | I40: ='NGGT SO'!I26 -> UM | AP40: =AP$10*$I$13*'NGGT SO'!AP479 + AP$11*$I$14*'NGGT SO'!AP26 -> 0 | AQ40: =AQ$10*$I$13*'NGGT SO'!AQ479 + AQ$11*$I$14*'NGGT SO'!AQ26 -> 0 | AR40: =AR$10*$I$13*'NGGT SO'!AR479 + AR$11*$I$14*'NGGT SO'!AR26 -> 0 | AS40: =AS$10*$I$13*'NGGT SO'!AS479 + AS$11*$I$14*'NGGT SO'!AS26 -> 0 | AT40: =AT$10*$I$13*'NGGT SO'!AT479 + AT$11*$I$14*'NGGT SO'!AT26 -> 0 | AU40: =AU$10*$I$13*'NGGT SO'!AU479 + AU$11*$I$14*'NGGT SO'!AU26 -> 0 | AV40: =AV$10*$I$13*'NGGT SO'!AV479 + AV$11*$I$14*'NGGT SO'!AV26 -> 0 | AW40: =AW$10*$I$13*'NGGT SO'!AW479 + AW$11*$I$14*'NGGT SO'!AW26 -> 0 | AX40: =AX$10*$I$13*'NGGT SO'!AX479 + AX$11*$I$14*'NGGT SO'!AX26 -> 0 | AY40: =AY$10*$I$13*'NGGT SO'!AY479 + AY$11*$I$14*'NGGT SO'!AY26 -> 0 | BC40: ='NGGT SO'!BB479 -> TIM | BD40: ='NGGT SO'!BC479 -> RPEs Don’t Apply | BE40: ='NGGT SO'!BD479 -> UM | BF40: ='NGGT SO'!BE479 -> Fast/Slow Split
E41: ='NGGT SO'!E27 -> Funded Incremental Obligated Capacity Price Control Deliverable | F41: SpC 3.2 | G41: £m 23/24 prices | H41: CROTREt | I41: ='NGGT SO'!I27 -> UM | AP41: =AP$10*$I$13*'NGGT SO'!AP480 + AP$11*$I$14*'NGGT SO'!AP27 -> 0 | AQ41: =AQ$10*$I$13*'NGGT SO'!AQ480 + AQ$11*$I$14*'NGGT SO'!AQ27 -> 0 | AR41: =AR$10*$I$13*'NGGT SO'!AR480 + AR$11*$I$14*'NGGT SO'!AR27 -> 0 | AS41: =AS$10*$I$13*'NGGT SO'!AS480 + AS$11*$I$14*'NGGT SO'!AS27 -> 11.24765603 | AT41: =AT$10*$I$13*'NGGT SO'!AT480 + AT$11*$I$14*'NGGT SO'!AT27 -> 14.62383977 | AU41: =AU$10*$I$13*'NGGT SO'!AU480 + AU$11*$I$14*'NGGT SO'!AU27 -> 0 | AV41: =AV$10*$I$13*'NGGT SO'!AV480 + AV$11*$I$14*'NGGT SO'!AV27 -> 0 | AW41: =AW$10*$I$13*'NGGT SO'!AW480 + AW$11*$I$14*'NGGT SO'!AW27 -> 0 | AX41: =AX$10*$I$13*'NGGT SO'!AX480 + AX$11*$I$14*'NGGT SO'!AX27 -> 0 | AY41: =AY$10*$I$13*'NGGT SO'!AY480 + AY$11*$I$14*'NGGT SO'!AY27 -> 0 | BC41: ='NGGT SO'!BB480 -> TIM | BD41: ='NGGT SO'!BC480 -> RPEs Don’t Apply | BE41: ='NGGT SO'!BD480 -> UM | BF41: ='NGGT SO'!BE480 -> Fast/Slow Split
E42: ='NGGT SO'!E28 -> Funded Incremental Obligated Capacity Price Control Deliverable -Re-Opener Element | F42: SpC 3.3 | G42: £m 23/24 prices | H42: CRITREt | I42: ='NGGT SO'!I28 -> UM | AP42: =AP$10*$I$13*'NGGT SO'!AP481 + AP$11*$I$14*'NGGT SO'!AP28 -> 0 | AQ42: =AQ$10*$I$13*'NGGT SO'!AQ481 + AQ$11*$I$14*'NGGT SO'!AQ28 -> 0 | AR42: =AR$10*$I$13*'NGGT SO'!AR481 + AR$11*$I$14*'NGGT SO'!AR28 -> 0 | AS42: =AS$10*$I$13*'NGGT SO'!AS481 + AS$11*$I$14*'NGGT SO'!AS28 -> 0.925343527 | AT42: =AT$10*$I$13*'NGGT SO'!AT481 + AT$11*$I$14*'NGGT SO'!AT28 -> 1.193107805 | AU42: =AU$10*$I$13*'NGGT SO'!AU481 + AU$11*$I$14*'NGGT SO'!AU28 -> 0 | AV42: =AV$10*$I$13*'NGGT SO'!AV481 + AV$11*$I$14*'NGGT SO'!AV28 -> 0 | AW42: =AW$10*$I$13*'NGGT SO'!AW481 + AW$11*$I$14*'NGGT SO'!AW28 -> 0 | AX42: =AX$10*$I$13*'NGGT SO'!AX481 + AX$11*$I$14*'NGGT SO'!AX28 -> 0 | AY42: =AY$10*$I$13*'NGGT SO'!AY481 + AY$11*$I$14*'NGGT SO'!AY28 -> 0 | BC42: ='NGGT SO'!BB481 -> Non-Tim | BD42: ='NGGT SO'!BC481 -> RPEs Don’t Apply | BE42: ='NGGT SO'!BD481 -> UM | BF42: ='NGGT SO'!BE481 -> Fast/Slow Split
E43: ='NGGT SO'!E29 -> Office, gas national control centre and emergency control room relocation Re-opener | F43: SpC 3.13 | G43: £m 23/24 prices | H43: FIOCREt | I43: ='NGGT SO'!I29 -> UM | AP43: =AP$10*$I$13*'NGGT SO'!AP482 + AP$11*$I$14*'NGGT SO'!AP29 -> 0 | AQ43: =AQ$10*$I$13*'NGGT SO'!AQ482 + AQ$11*$I$14*'NGGT SO'!AQ29 -> 0 | AR43: =AR$10*$I$13*'NGGT SO'!AR482 + AR$11*$I$14*'NGGT SO'!AR29 -> 0 | AS43: =AS$10*$I$13*'NGGT SO'!AS482 + AS$11*$I$14*'NGGT SO'!AS29 -> 0 | AT43: =AT$10*$I$13*'NGGT SO'!AT482 + AT$11*$I$14*'NGGT SO'!AT29 -> 0 | AU43: =AU$10*$I$13*'NGGT SO'!AU482 + AU$11*$I$14*'NGGT SO'!AU29 -> 0 | AV43: =AV$10*$I$13*'NGGT SO'!AV482 + AV$11*$I$14*'NGGT SO'!AV29 -> 26 | AW43: =AW$10*$I$13*'NGGT SO'!AW482 + AW$11*$I$14*'NGGT SO'!AW29 -> 26 | AX43: =AX$10*$I$13*'NGGT SO'!AX482 + AX$11*$I$14*'NGGT SO'!AX29 -> 0 | AY43: =AY$10*$I$13*'NGGT SO'!AY482 + AY$11*$I$14*'NGGT SO'!AY29 -> 0 | BC43: ='NGGT SO'!BB482 -> TIM | BD43: ='NGGT SO'!BC482 -> RPEs Don’t Apply | BE43: ='NGGT SO'!BD482 -> UM | BF43: ='NGGT SO'!BE482 -> Fast/Slow Split
E44: ='NGGT SO'!E30 -> Network decarbonisation and emissions compliance Re-opener | G44: £m 23/24 prices | H44: FSOTAt | I44: ='NGGT SO'!I30 -> UM | AP44: =AP$10*$I$13*'NGGT SO'!AP483 + AP$11*$I$14*'NGGT SO'!AP30 -> 0 | AQ44: =AQ$10*$I$13*'NGGT SO'!AQ483 + AQ$11*$I$14*'NGGT SO'!AQ30 -> 0 | AR44: =AR$10*$I$13*'NGGT SO'!AR483 + AR$11*$I$14*'NGGT SO'!AR30 -> 0 | AS44: =AS$10*$I$13*'NGGT SO'!AS483 + AS$11*$I$14*'NGGT SO'!AS30 -> 1.44410054 | AT44: =AT$10*$I$13*'NGGT SO'!AT483 + AT$11*$I$14*'NGGT SO'!AT30 -> 1.390530784 | AU44: =AU$10*$I$13*'NGGT SO'!AU483 + AU$11*$I$14*'NGGT SO'!AU30 -> 0 | AV44: =AV$10*$I$13*'NGGT SO'!AV483 + AV$11*$I$14*'NGGT SO'!AV30 -> 0 | AW44: =AW$10*$I$13*'NGGT SO'!AW483 + AW$11*$I$14*'NGGT SO'!AW30 -> 0 | AX44: =AX$10*$I$13*'NGGT SO'!AX483 + AX$11*$I$14*'NGGT SO'!AX30 -> 0 | AY44: =AY$10*$I$13*'NGGT SO'!AY483 + AY$11*$I$14*'NGGT SO'!AY30 -> 0 | BC44: ='NGGT SO'!BB483 -> 0 | BD44: ='NGGT SO'!BC483 -> 0 | BE44: ='NGGT SO'!BD483 -> UM | BF44: ='NGGT SO'!BE483 -> 0
E45: ='NGGT SO'!E31 -> Spare UM 2 | G45: £m 23/24 prices | H45: 0 | I45: ='NGGT SO'!I31 -> UM | AP45: =AP$10*$I$13*'NGGT SO'!AP484 + AP$11*$I$14*'NGGT SO'!AP31 -> 0 | AQ45: =AQ$10*$I$13*'NGGT SO'!AQ484 + AQ$11*$I$14*'NGGT SO'!AQ31 -> 0 | AR45: =AR$10*$I$13*'NGGT SO'!AR484 + AR$11*$I$14*'NGGT SO'!AR31 -> 0 | AS45: =AS$10*$I$13*'NGGT SO'!AS484 + AS$11*$I$14*'NGGT SO'!AS31 -> 0 | AT45: =AT$10*$I$13*'NGGT SO'!AT484 + AT$11*$I$14*'NGGT SO'!AT31 -> 0 | AU45: =AU$10*$I$13*'NGGT SO'!AU484 + AU$11*$I$14*'NGGT SO'!AU31 -> 0 | AV45: =AV$10*$I$13*'NGGT SO'!AV484 + AV$11*$I$14*'NGGT SO'!AV31 -> 0 | AW45: =AW$10*$I$13*'NGGT SO'!AW484 + AW$11*$I$14*'NGGT SO'!AW31 -> 0 | AX45: =AX$10*$I$13*'NGGT SO'!AX484 + AX$11*$I$14*'NGGT SO'!AX31 -> 0 | AY45: =AY$10*$I$13*'NGGT SO'!AY484 + AY$11*$I$14*'NGGT SO'!AY31 -> 0 | BC45: ='NGGT SO'!BB484 -> 0 | BD45: ='NGGT SO'!BC484 -> 0 | BE45: ='NGGT SO'!BD484 -> UM | BF45: ='NGGT SO'!BE484 -> 0
E46: ='NGGT SO'!E32 -> Spare UM 3 | G46: £m 23/24 prices | H46: 0 | I46: ='NGGT SO'!I32 -> UM | AP46: =AP$10*$I$13*'NGGT SO'!AP485 + AP$11*$I$14*'NGGT SO'!AP32 -> 0 | AQ46: =AQ$10*$I$13*'NGGT SO'!AQ485 + AQ$11*$I$14*'NGGT SO'!AQ32 -> 0 | AR46: =AR$10*$I$13*'NGGT SO'!AR485 + AR$11*$I$14*'NGGT SO'!AR32 -> 0 | AS46: =AS$10*$I$13*'NGGT SO'!AS485 + AS$11*$I$14*'NGGT SO'!AS32 -> 0 | AT46: =AT$10*$I$13*'NGGT SO'!AT485 + AT$11*$I$14*'NGGT SO'!AT32 -> 0 | AU46: =AU$10*$I$13*'NGGT SO'!AU485 + AU$11*$I$14*'NGGT SO'!AU32 -> 0 | AV46: =AV$10*$I$13*'NGGT SO'!AV485 + AV$11*$I$14*'NGGT SO'!AV32 -> 0 | AW46: =AW$10*$I$13*'NGGT SO'!AW485 + AW$11*$I$14*'NGGT SO'!AW32 -> 0 | AX46: =AX$10*$I$13*'NGGT SO'!AX485 + AX$11*$I$14*'NGGT SO'!AX32 -> 0 | AY46: =AY$10*$I$13*'NGGT SO'!AY485 + AY$11*$I$14*'NGGT SO'!AY32 -> 0 | BC46: ='NGGT SO'!BB485 -> 0 | BD46: ='NGGT SO'!BC485 -> 0 | BE46: ='NGGT SO'!BD485 -> UM | BF46: ='NGGT SO'!BE485 -> 0
E47: ='NGGT SO'!E33 -> RIIO3 Variant Activity 1 | G47: £m 23/24 prices | I47: ='NGGT SO'!I33 -> UM | AU47: =AU$10*$I$13*'NGGT SO'!AU486 + AU$11*$I$14*'NGGT SO'!AU33 -> 0 | AV47: =AV$10*$I$13*'NGGT SO'!AV486 + AV$11*$I$14*'NGGT SO'!AV33 -> 0 | AW47: =AW$10*$I$13*'NGGT SO'!AW486 + AW$11*$I$14*'NGGT SO'!AW33 -> 0 | AX47: =AX$10*$I$13*'NGGT SO'!AX486 + AX$11*$I$14*'NGGT SO'!AX33 -> 0 | AY47: =AY$10*$I$13*'NGGT SO'!AY486 + AY$11*$I$14*'NGGT SO'!AY33 -> 0 | BC47: ='NGGT SO'!AP103 -> 0 | BD47: ='NGGT SO'!AQ103 -> 0 | BE47: ='NGGT SO'!AR103 -> 0 | BF47: ='NGGT SO'!AS103 -> 0
E48: ='NGGT SO'!E34 -> RIIO3 Variant Activity 2 | G48: £m 23/24 prices | I48: ='NGGT SO'!I34 -> UM | AU48: =AU$10*$I$13*'NGGT SO'!AU487 + AU$11*$I$14*'NGGT SO'!AU34 -> 0 | AV48: =AV$10*$I$13*'NGGT SO'!AV487 + AV$11*$I$14*'NGGT SO'!AV34 -> 0 | AW48: =AW$10*$I$13*'NGGT SO'!AW487 + AW$11*$I$14*'NGGT SO'!AW34 -> 0 | AX48: =AX$10*$I$13*'NGGT SO'!AX487 + AX$11*$I$14*'NGGT SO'!AX34 -> 0 | AY48: =AY$10*$I$13*'NGGT SO'!AY487 + AY$11*$I$14*'NGGT SO'!AY34 -> 0 | BC48: ='NGGT SO'!AP104 -> 0 | BD48: ='NGGT SO'!AQ104 -> 0 | BE48: ='NGGT SO'!AR104 -> 0 | BF48: ='NGGT SO'!AS104 -> 0
E49: ='NGGT SO'!E35 -> RIIO3 Variant Activity 3 | G49: £m 23/24 prices | I49: ='NGGT SO'!I35 -> 0 | AU49: =AU$10*$I$13*'NGGT SO'!AU488 + AU$11*$I$14*'NGGT SO'!AU35 -> 0 | AV49: =AV$10*$I$13*'NGGT SO'!AV488 + AV$11*$I$14*'NGGT SO'!AV35 -> 0 | AW49: =AW$10*$I$13*'NGGT SO'!AW488 + AW$11*$I$14*'NGGT SO'!AW35 -> 0 | AX49: =AX$10*$I$13*'NGGT SO'!AX488 + AX$11*$I$14*'NGGT SO'!AX35 -> 0 | AY49: =AY$10*$I$13*'NGGT SO'!AY488 + AY$11*$I$14*'NGGT SO'!AY35 -> 0 | BC49: ='NGGT SO'!AP105 -> 0 | BD49: ='NGGT SO'!AQ105 -> 0 | BE49: ='NGGT SO'!AR105 -> 0 | BF49: ='NGGT SO'!AS105 -> 0
E50: ='NGGT SO'!E36 -> RIIO3 Variant Activity 4 | G50: £m 23/24 prices | I50: ='NGGT SO'!I36 -> 0 | AU50: =AU$10*$I$13*'NGGT SO'!AU489 + AU$11*$I$14*'NGGT SO'!AU36 -> 0 | AV50: =AV$10*$I$13*'NGGT SO'!AV489 + AV$11*$I$14*'NGGT SO'!AV36 -> 0 | AW50: =AW$10*$I$13*'NGGT SO'!AW489 + AW$11*$I$14*'NGGT SO'!AW36 -> 0 | AX50: =AX$10*$I$13*'NGGT SO'!AX489 + AX$11*$I$14*'NGGT SO'!AX36 -> 0 | AY50: =AY$10*$I$13*'NGGT SO'!AY489 + AY$11*$I$14*'NGGT SO'!AY36 -> 0 | BC50: ='NGGT SO'!AP106 -> 0 | BD50: ='NGGT SO'!AQ106 -> 0 | BE50: ='NGGT SO'!AR106 -> 0 | BF50: ='NGGT SO'!AS106 -> 0
E51: ='NGGT SO'!E37 -> RIIO3 Variant Activity 5 | G51: £m 23/24 prices | I51: ='NGGT SO'!I37 -> 0 | AU51: =AU$10*$I$13*'NGGT SO'!AU490 + AU$11*$I$14*'NGGT SO'!AU37 -> 0 | AV51: =AV$10*$I$13*'NGGT SO'!AV490 + AV$11*$I$14*'NGGT SO'!AV37 -> 0 | AW51: =AW$10*$I$13*'NGGT SO'!AW490 + AW$11*$I$14*'NGGT SO'!AW37 -> 0 | AX51: =AX$10*$I$13*'NGGT SO'!AX490 + AX$11*$I$14*'NGGT SO'!AX37 -> 0 | AY51: =AY$10*$I$13*'NGGT SO'!AY490 + AY$11*$I$14*'NGGT SO'!AY37 -> 0 | BC51: ='NGGT SO'!AP107 -> 0 | BD51: ='NGGT SO'!AQ107 -> 0 | BE51: ='NGGT SO'!AR107 -> 0 | BF51: ='NGGT SO'!AS107 -> 0
E52: ='NGGT SO'!E38 -> RIIO3 Variant Activity 6 | G52: £m 23/24 prices | I52: ='NGGT SO'!I38 -> 0 | AU52: =AU$10*$I$13*'NGGT SO'!AU491 + AU$11*$I$14*'NGGT SO'!AU38 -> 0 | AV52: =AV$10*$I$13*'NGGT SO'!AV491 + AV$11*$I$14*'NGGT SO'!AV38 -> 0 | AW52: =AW$10*$I$13*'NGGT SO'!AW491 + AW$11*$I$14*'NGGT SO'!AW38 -> 0 | AX52: =AX$10*$I$13*'NGGT SO'!AX491 + AX$11*$I$14*'NGGT SO'!AX38 -> 0 | AY52: =AY$10*$I$13*'NGGT SO'!AY491 + AY$11*$I$14*'NGGT SO'!AY38 -> 0 | BC52: ='NGGT SO'!AP108 -> 0 | BD52: ='NGGT SO'!AQ108 -> 0 | BE52: ='NGGT SO'!AR108 -> 0 | BF52: ='NGGT SO'!AS108 -> 0
E53: ='NGGT SO'!E39 -> RIIO3 Variant Activity 7 | G53: £m 23/24 prices | I53: ='NGGT SO'!I39 -> 0 | AU53: =AU$10*$I$13*'NGGT SO'!AU492 + AU$11*$I$14*'NGGT SO'!AU39 -> 0 | AV53: =AV$10*$I$13*'NGGT SO'!AV492 + AV$11*$I$14*'NGGT SO'!AV39 -> 0 | AW53: =AW$10*$I$13*'NGGT SO'!AW492 + AW$11*$I$14*'NGGT SO'!AW39 -> 0 | AX53: =AX$10*$I$13*'NGGT SO'!AX492 + AX$11*$I$14*'NGGT SO'!AX39 -> 0 | AY53: =AY$10*$I$13*'NGGT SO'!AY492 + AY$11*$I$14*'NGGT SO'!AY39 -> 0 | BC53: ='NGGT SO'!AP109 -> 0 | BD53: ='NGGT SO'!AQ109 -> 0 | BE53: ='NGGT SO'!AR109 -> 0 | BF53: ='NGGT SO'!AS109 -> 0
E54: ='NGGT SO'!E40 -> RIIO3 Variant Activity 8 | G54: £m 23/24 prices | I54: ='NGGT SO'!I40 -> 0 | AU54: =AU$10*$I$13*'NGGT SO'!AU493 + AU$11*$I$14*'NGGT SO'!AU40 -> 0 | AV54: =AV$10*$I$13*'NGGT SO'!AV493 + AV$11*$I$14*'NGGT SO'!AV40 -> 0 | AW54: =AW$10*$I$13*'NGGT SO'!AW493 + AW$11*$I$14*'NGGT SO'!AW40 -> 0 | AX54: =AX$10*$I$13*'NGGT SO'!AX493 + AX$11*$I$14*'NGGT SO'!AX40 -> 0 | AY54: =AY$10*$I$13*'NGGT SO'!AY493 + AY$11*$I$14*'NGGT SO'!AY40 -> 0 | BC54: ='NGGT SO'!AP110 -> 0 | BD54: ='NGGT SO'!AQ110 -> 0 | BE54: ='NGGT SO'!AR110 -> 0 | BF54: ='NGGT SO'!AS110 -> 0
E55: ='NGGT SO'!E41 -> RIIO3 Variant Activity 9 | G55: £m 23/24 prices | I55: ='NGGT SO'!I41 -> 0 | AU55: =AU$10*$I$13*'NGGT SO'!AU494 + AU$11*$I$14*'NGGT SO'!AU41 -> 0 | AV55: =AV$10*$I$13*'NGGT SO'!AV494 + AV$11*$I$14*'NGGT SO'!AV41 -> 0 | AW55: =AW$10*$I$13*'NGGT SO'!AW494 + AW$11*$I$14*'NGGT SO'!AW41 -> 0 | AX55: =AX$10*$I$13*'NGGT SO'!AX494 + AX$11*$I$14*'NGGT SO'!AX41 -> 0 | AY55: =AY$10*$I$13*'NGGT SO'!AY494 + AY$11*$I$14*'NGGT SO'!AY41 -> 0 | BC55: ='NGGT SO'!AP111 -> 0 | BD55: ='NGGT SO'!AQ111 -> 0 | BE55: ='NGGT SO'!AR111 -> 0 | BF55: ='NGGT SO'!AS111 -> 0
E56: ='NGGT SO'!E42 -> RIIO3 Variant Activity 10 | G56: £m 23/24 prices | I56: ='NGGT SO'!I42 -> 0 | AU56: =AU$10*$I$13*'NGGT SO'!AU495 + AU$11*$I$14*'NGGT SO'!AU42 -> 0 | AV56: =AV$10*$I$13*'NGGT SO'!AV495 + AV$11*$I$14*'NGGT SO'!AV42 -> 0 | AW56: =AW$10*$I$13*'NGGT SO'!AW495 + AW$11*$I$14*'NGGT SO'!AW42 -> 0 | AX56: =AX$10*$I$13*'NGGT SO'!AX495 + AX$11*$I$14*'NGGT SO'!AX42 -> 0 | AY56: =AY$10*$I$13*'NGGT SO'!AY495 + AY$11*$I$14*'NGGT SO'!AY42 -> 0 | BC56: ='NGGT SO'!AP112 -> 0 | BD56: ='NGGT SO'!AQ112 -> 0 | BE56: ='NGGT SO'!AR112 -> 0 | BF56: ='NGGT SO'!AS112 -> 0
E57: ='NGGT SO'!E43 -> RIIO3 Variant Activity 11 | G57: £m 23/24 prices | I57: ='NGGT SO'!I43 -> 0 | AU57: =AU$10*$I$13*'NGGT SO'!AU496 + AU$11*$I$14*'NGGT SO'!AU43 -> 0 | AV57: =AV$10*$I$13*'NGGT SO'!AV496 + AV$11*$I$14*'NGGT SO'!AV43 -> 0 | AW57: =AW$10*$I$13*'NGGT SO'!AW496 + AW$11*$I$14*'NGGT SO'!AW43 -> 0 | AX57: =AX$10*$I$13*'NGGT SO'!AX496 + AX$11*$I$14*'NGGT SO'!AX43 -> 0 | AY57: =AY$10*$I$13*'NGGT SO'!AY496 + AY$11*$I$14*'NGGT SO'!AY43 -> 0 | BC57: ='NGGT SO'!AP113 -> 0 | BD57: ='NGGT SO'!AQ113 -> 0 | BE57: ='NGGT SO'!AR113 -> 0 | BF57: ='NGGT SO'!AS113 -> 0
E58: ='NGGT SO'!E44 -> RIIO3 Variant Activity 12 | G58: £m 23/24 prices | I58: ='NGGT SO'!I44 -> 0 | AU58: =AU$10*$I$13*'NGGT SO'!AU497 + AU$11*$I$14*'NGGT SO'!AU44 -> 0 | AV58: =AV$10*$I$13*'NGGT SO'!AV497 + AV$11*$I$14*'NGGT SO'!AV44 -> 0 | AW58: =AW$10*$I$13*'NGGT SO'!AW497 + AW$11*$I$14*'NGGT SO'!AW44 -> 0 | AX58: =AX$10*$I$13*'NGGT SO'!AX497 + AX$11*$I$14*'NGGT SO'!AX44 -> 0 | AY58: =AY$10*$I$13*'NGGT SO'!AY497 + AY$11*$I$14*'NGGT SO'!AY44 -> 0 | BC58: ='NGGT SO'!AP114 -> 0 | BD58: ='NGGT SO'!AQ114 -> 0 | BE58: ='NGGT SO'!AR114 -> 0 | BF58: ='NGGT SO'!AS114 -> 0
E59: ='NGGT SO'!E45 -> RIIO3 Variant Activity 13 | G59: £m 23/24 prices | I59: ='NGGT SO'!I45 -> 0 | AU59: =AU$10*$I$13*'NGGT SO'!AU498 + AU$11*$I$14*'NGGT SO'!AU45 -> 0 | AV59: =AV$10*$I$13*'NGGT SO'!AV498 + AV$11*$I$14*'NGGT SO'!AV45 -> 0 | AW59: =AW$10*$I$13*'NGGT SO'!AW498 + AW$11*$I$14*'NGGT SO'!AW45 -> 0 | AX59: =AX$10*$I$13*'NGGT SO'!AX498 + AX$11*$I$14*'NGGT SO'!AX45 -> 0 | AY59: =AY$10*$I$13*'NGGT SO'!AY498 + AY$11*$I$14*'NGGT SO'!AY45 -> 0 | BC59: ='NGGT SO'!AP115 -> 0 | BD59: ='NGGT SO'!AQ115 -> 0 | BE59: ='NGGT SO'!AR115 -> 0 | BF59: ='NGGT SO'!AS115 -> 0
E60: ='NGGT SO'!E46 -> RIIO3 Variant Activity 14 | G60: £m 23/24 prices | I60: ='NGGT SO'!I46 -> 0 | AU60: =AU$10*$I$13*'NGGT SO'!AU499 + AU$11*$I$14*'NGGT SO'!AU46 -> 0 | AV60: =AV$10*$I$13*'NGGT SO'!AV499 + AV$11*$I$14*'NGGT SO'!AV46 -> 0 | AW60: =AW$10*$I$13*'NGGT SO'!AW499 + AW$11*$I$14*'NGGT SO'!AW46 -> 0 | AX60: =AX$10*$I$13*'NGGT SO'!AX499 + AX$11*$I$14*'NGGT SO'!AX46 -> 0 | AY60: =AY$10*$I$13*'NGGT SO'!AY499 + AY$11*$I$14*'NGGT SO'!AY46 -> 0 | BC60: ='NGGT SO'!AP116 -> 0 | BD60: ='NGGT SO'!AQ116 -> 0 | BE60: ='NGGT SO'!AR116 -> 0 | BF60: ='NGGT SO'!AS116 -> 0
E61: ='NGGT SO'!E47 -> RIIO3 Variant Activity 15 | G61: £m 23/24 prices | I61: ='NGGT SO'!I47 -> 0 | AU61: =AU$10*$I$13*'NGGT SO'!AU501 + AU$11*$I$14*'NGGT SO'!AU47 -> 0 | AV61: =AV$10*$I$13*'NGGT SO'!AV501 + AV$11*$I$14*'NGGT SO'!AV47 -> 0 | AW61: =AW$10*$I$13*'NGGT SO'!AW501 + AW$11*$I$14*'NGGT SO'!AW47 -> 0 | AX61: =AX$10*$I$13*'NGGT SO'!AX501 + AX$11*$I$14*'NGGT SO'!AX47 -> 0 | AY61: =AY$10*$I$13*'NGGT SO'!AY501 + AY$11*$I$14*'NGGT SO'!AY47 -> 0 | BC61: ='NGGT SO'!AP117 -> 0 | BD61: ='NGGT SO'!AQ117 -> 0 | BE61: ='NGGT SO'!AR117 -> 0 | BF61: ='NGGT SO'!AS117 -> 0
E62: ='NGGT SO'!E48 -> RIIO3 Variant Activity 16 | G62: £m 23/24 prices | I62: ='NGGT SO'!I48 -> 0 | AU62: =AU$10*$I$13*'NGGT SO'!AU502 + AU$11*$I$14*'NGGT SO'!AU48 -> 0 | AV62: =AV$10*$I$13*'NGGT SO'!AV502 + AV$11*$I$14*'NGGT SO'!AV48 -> 0 | AW62: =AW$10*$I$13*'NGGT SO'!AW502 + AW$11*$I$14*'NGGT SO'!AW48 -> 0 | AX62: =AX$10*$I$13*'NGGT SO'!AX502 + AX$11*$I$14*'NGGT SO'!AX48 -> 0 | AY62: =AY$10*$I$13*'NGGT SO'!AY502 + AY$11*$I$14*'NGGT SO'!AY48 -> 0 | BC62: ='NGGT SO'!AP118 -> 0 | BD62: ='NGGT SO'!AQ118 -> 0 | BE62: ='NGGT SO'!AR118 -> 0 | BF62: ='NGGT SO'!AS118 -> 0
... 62 more rows

Sheet Finance&Tax
A1: Finance & Tax
B2: =UserInterface!G17 -> NGGT
E3: Parameter | G3: Units | I3: Constant | AP3: Annual values
E4: PCFM year ending | I4: =UserInterface!$G$10 -> 2025-03-31 | K4: 1991-03-31 | L4: 1992-03-31 | M4: 1993-03-31 | N4: 1994-03-31 | O4: 1995-03-31 | P4: 1996-03-31 | Q4: 1997-03-31 | R4: 1998-03-31 | S4: 1999-03-31 | T4: 2000-03-31 | U4: 2001-03-31 | V4: 2002-03-31 | W4: 2003-03-31 | X4: 2004-03-31 | Y4: 2005-03-31 | Z4: 2006-03-31 | AA4: 2007-03-31 | AB4: 2008-03-31 | AC4: 2009-03-31 | AD4: 2010-03-31 | AE4: 2011-03-31 | AF4: 2012-03-31 | AG4: 2013-03-31 | AH4: 2014-03-31 | AI4: 2015-03-31 | AJ4: 2016-03-31 | AK4: 2017-03-31 | AL4: 2018-03-31 | AM4: 2019-03-31 | AN4: 2020-03-31 | AO4: 2021-03-31 | AP4: 2022-03-31 | AQ4: 2023-03-31 | AR4: 2024-03-31 | AS4: 2025-03-31 | AT4: 2026-03-31 | AU4: 2027-03-31 | AV4: 2028-03-31 | AW4: 2029-03-31 | AX4: 2030-03-31 | AY4: =EOMONTH(AX4,12) -> 2031-03-31
AP5: 2 | AQ5: 2 | AR5: 2 | AS5: 2 | AT5: 2 | AU5: 3 | AV5: 3 | AW5: 3 | AX5: 3 | AY5: 3
C7: Price control timeline
E9: Pre-RIIO-2 year | G9: flag | K9: =Scenarios!K$119 -> 1 | L9: =Scenarios!L$119 -> 1 | M9: =Scenarios!M$119 -> 1 | N9: =Scenarios!N$119 -> 1 | O9: =Scenarios!O$119 -> 1 | P9: =Scenarios!P$119 -> 1 | Q9: =Scenarios!Q$119 -> 1 | R9: =Scenarios!R$119 -> 1 | S9: =Scenarios!S$119 -> 1 | T9: =Scenarios!T$119 -> 1 | U9: =Scenarios!U$119 -> 1 | V9: =Scenarios!V$119 -> 1 | W9: =Scenarios!W$119 -> 1 | X9: =Scenarios!X$119 -> 1 | Y9: =Scenarios!Y$119 -> 1 | Z9: =Scenarios!Z$119 -> 1 | AA9: =Scenarios!AA$119 -> 1 | AB9: =Scenarios!AB$119 -> 1 | AC9: =Scenarios!AC$119 -> 1 | AD9: =Scenarios!AD$119 -> 1 | AE9: =Scenarios!AE$119 -> 1 | AF9: =Scenarios!AF$119 -> 1 | AG9: =Scenarios!AG$119 -> 1 | AH9: =Scenarios!AH$119 -> 1 | AI9: =Scenarios!AI$119 -> 1 | AJ9: =Scenarios!AJ$119 -> 1 | AK9: =Scenarios!AK$119 -> 1 | AL9: =Scenarios!AL$119 -> 1 | AM9: =Scenarios!AM$119 -> 1 | AN9: =Scenarios!AN$119 -> 1 | AO9: =Scenarios!AO$119 -> 1 | AP9: =Scenarios!AP$119 -> 0 | AQ9: =Scenarios!AQ$119 -> 0 | AR9: =Scenarios!AR$119 -> 0 | AS9: =Scenarios!AS$119 -> 0 | AT9: =Scenarios!AT$119 -> 0 | AU9: =Scenarios!AU$119 -> 0 | AV9: =Scenarios!AV$119 -> 0 | AW9: =Scenarios!AW$119 -> 0 | AX9: =Scenarios!AX$119 -> 0 | AY9: =Scenarios!AY$119 -> 0
E10: RIIO-2 year | G10: flag | K10: =Scenarios!K$120 -> 0 | L10: =Scenarios!L$120 -> 0 | M10: =Scenarios!M$120 -> 0 | N10: =Scenarios!N$120 -> 0 | O10: =Scenarios!O$120 -> 0 | P10: =Scenarios!P$120 -> 0 | Q10: =Scenarios!Q$120 -> 0 | R10: =Scenarios!R$120 -> 0 | S10: =Scenarios!S$120 -> 0 | T10: =Scenarios!T$120 -> 0 | U10: =Scenarios!U$120 -> 0 | V10: =Scenarios!V$120 -> 0 | W10: =Scenarios!W$120 -> 0 | X10: =Scenarios!X$120 -> 0 | Y10: =Scenarios!Y$120 -> 0 | Z10: =Scenarios!Z$120 -> 0 | AA10: =Scenarios!AA$120 -> 0 | AB10: =Scenarios!AB$120 -> 0 | AC10: =Scenarios!AC$120 -> 0 | AD10: =Scenarios!AD$120 -> 0 | AE10: =Scenarios!AE$120 -> 0 | AF10: =Scenarios!AF$120 -> 0 | AG10: =Scenarios!AG$120 -> 0 | AH10: =Scenarios!AH$120 -> 0 | AI10: =Scenarios!AI$120 -> 0 | AJ10: =Scenarios!AJ$120 -> 0 | AK10: =Scenarios!AK$120 -> 0 | AL10: =Scenarios!AL$120 -> 0 | AM10: =Scenarios!AM$120 -> 0 | AN10: =Scenarios!AN$120 -> 0 | AO10: =Scenarios!AO$120 -> 0 | AP10: =Scenarios!AP$120 -> 1 | AQ10: =Scenarios!AQ$120 -> 1 | AR10: =Scenarios!AR$120 -> 1 | AS10: =Scenarios!AS$120 -> 1 | AT10: =Scenarios!AT$120 -> 1 | AU10: =Scenarios!AU$120 -> 0 | AV10: =Scenarios!AV$120 -> 0 | AW10: =Scenarios!AW$120 -> 0 | AX10: =Scenarios!AX$120 -> 0 | AY10: =Scenarios!AY$120 -> 0
E11: RIIO-3 year | G11: flag | K11: =Scenarios!K$121 -> 0 | L11: =Scenarios!L$121 -> 0 | M11: =Scenarios!M$121 -> 0 | N11: =Scenarios!N$121 -> 0 | O11: =Scenarios!O$121 -> 0 | P11: =Scenarios!P$121 -> 0 | Q11: =Scenarios!Q$121 -> 0 | R11: =Scenarios!R$121 -> 0 | S11: =Scenarios!S$121 -> 0 | T11: =Scenarios!T$121 -> 0 | U11: =Scenarios!U$121 -> 0 | V11: =Scenarios!V$121 -> 0 | W11: =Scenarios!W$121 -> 0 | X11: =Scenarios!X$121 -> 0 | Y11: =Scenarios!Y$121 -> 0 | Z11: =Scenarios!Z$121 -> 0 | AA11: =Scenarios!AA$121 -> 0 | AB11: =Scenarios!AB$121 -> 0 | AC11: =Scenarios!AC$121 -> 0 | AD11: =Scenarios!AD$121 -> 0 | AE11: =Scenarios!AE$121 -> 0 | AF11: =Scenarios!AF$121 -> 0 | AG11: =Scenarios!AG$121 -> 0 | AH11: =Scenarios!AH$121 -> 0 | AI11: =Scenarios!AI$121 -> 0 | AJ11: =Scenarios!AJ$121 -> 0 | AK11: =Scenarios!AK$121 -> 0 | AL11: =Scenarios!AL$121 -> 0 | AM11: =Scenarios!AM$121 -> 0 | AN11: =Scenarios!AN$121 -> 0 | AO11: =Scenarios!AO$121 -> 0 | AP11: =Scenarios!AP$121 -> 0 | AQ11: =Scenarios!AQ$121 -> 0 | AR11: =Scenarios!AR$121 -> 0 | AS11: =Scenarios!AS$121 -> 0 | AT11: =Scenarios!AT$121 -> 0 | AU11: =Scenarios!AU$121 -> 1 | AV11: =Scenarios!AV$121 -> 1 | AW11: =Scenarios!AW$121 -> 1 | AX11: =Scenarios!AX$121 -> 1 | AY11: =Scenarios!AY$121 -> 1
E13: Start of RIIO-2 | G13: flag | AP13: =MAX( (AP10 - AP9) * (AO9 - AO10), 0) -> 1 | AQ13: =MAX( (AQ10 - AQ9) * (AP9 - AP10), 0) -> 0 | AR13: 0 | AS13: 0 | AT13: 0 | AU13: 0 | AV13: 0 | AW13: 0 | AX13: 0 | AY13: 0
E14: Start of RIIO-3 | G14: flag | AP14: =MAX( (AP11 - AP10) * (AO10 - AO11), 0) -> 0 | AQ14: =MAX( (AQ11 - AQ10) * (AP10 - AP11), 0) -> 0 | AR14: 0 | AS14: 0 | AT14: 0 | AU14: 1 | AV14: 0 | AW14: 0 | AX14: 0 | AY14: =AY5-AX5 -> 0
E15: RIIO-2 regearing period | G15: flag | AP15: =(1 - AP13) * AP10 -> 0 | AQ15: =(1 - AQ13) * AQ10 -> 1 | AR15: 1 | AS15: 1 | AT15: 1 | AU15: 0 | AV15: 0 | AW15: 0 | AX15: 0 | AY15: 0
E16: RIIO-3 regearing period | G16: flag | AP16: =(1 - AP14) * AP11 -> 0 | AQ16: =(1 - AQ14) * AQ11 -> 0 | AR16: 0 | AS16: 0 | AT16: 0 | AU16: 0 | AV16: 1 | AW16: 1 | AX16: 1 | AY16: 1
C18: Scenario operators
E20: Include tax clawback revenue impact? | G20: flag | I20: =Scenarios!F63 -> Exclude | AP20: =IF($I20="Include",1,0)*AP11 + AP10 -> 1 | AQ20: =IF($I20="Include",1,0)*AQ11 + AQ10 -> 1 | AR20: 1 | AS20: 1 | AT20: 1 | AU20: 0 | AV20: 0 | AW20: 0 | AX20: 0 | AY20: 0
E22: Cost of Debt allowance (Real) | G22: annual real % | AP22: =MainInputs!AP350 -> 0.0205 | AQ22: =MainInputs!AQ350 -> 0.019 | AR22: =MainInputs!AR350 -> 0.0192 | AS22: =MainInputs!AS350 -> 0.0211 | AT22: =MainInputs!AT350 -> 0.0226 | AU22: =MainInputs!AU350 -> 0.02943603764 | AV22: =MainInputs!AV350 -> 0.03037696394 | AW22: =MainInputs!AW350 -> 0.03128527444 | AX22: =MainInputs!AX350 -> 0.03249896211 | AY22: =MainInputs!AY350 -> 0.03379126065
E23: Forecast Debt inflation (CPIH long term) | G23: % | AP23: =MainInputs!AP372 -> 0.02 | AQ23: =MainInputs!AQ372 -> 0.02 | AR23: =MainInputs!AR372 -> 0.02 | AS23: =MainInputs!AS372 -> 0.016 | AT23: =MainInputs!AT372 -> 0.02 | AU23: =MainInputs!AU372 -> 0.0208 | AV23: =MainInputs!AV372 -> 0.0208 | AW23: =MainInputs!AW372 -> 0.0208 | AX23: =MainInputs!AX372 -> 0.0208 | AY23: =MainInputs!AY372 -> 0.0208
E24: Cost of Debt allowance (Nominal) | G24: annual nominal % | AP24: =(1+AP22)*(1+AP23)-1 -> 0.04091 | AQ24: =(1+AQ22)*(1+AQ23)-1 -> 0.03938 | AR24: 0.039584 | AS24: 0.0374376 | AT24: 0.043052 | AU24: 0.05084830723 | AV24: 0.05180880479 | AW24: 0.05273600815 | AX24: 0.05397494053 | AY24: 0.05529411887
E25: Cost of debt allowance (nominal) net of headroom | G25: annual nominal % | I25: =Scenarios!F59 -> 0 | AP25: =AP24-$I25*AP11 -> 0.04091 | AQ25: =AQ24-$I25*AQ11 -> 0.03938 | AR25: 0.039584 | AS25: 0.0374376 | AT25: 0.043052 | AU25: 0.05084830723 | AV25: 0.05180880479 | AW25: 0.05273600815 | AX25: 0.05397494053 | AY25: 0.05529411887
E26: Cost of debt allowance (real) net of headroom | G26: annual real % | AP26: =(1+AP25)/(1+AP23)-1 -> 0.0205 | AQ26: =(1+AQ25)/(1+AQ23)-1 -> 0.019 | AR26: 0.0192 | AS26: 0.0211 | AT26: 0.0226 | AU26: 0.02943603764 | AV26: 0.03037696394 | AW26: 0.03128527444 | AX26: 0.03249896211 | AY26: 0.03379126065
B28: Net debt
B29: Note: Net debt is calculated to generate interest paid (for the tax calculation) and gearing levels (for equity issuance calculations).
B30: "Core" net debt is distinct from "Non-core" net debt. Non-core net debt relates to assets held outside the main RAV and receiving a pre-tax income.
C32: Core net debt
C33: Note: The company opens the price control at its notionally geared level. Any equity issuance required to reach this level is not shown.
C34: Equity issuance (if any) occurs at the start of the year and may be followed by transfers to or from non-core net debt (to equalise opening gearing levels across the company).
C35: Start of year transfers may also include net debt accompanying non-core assets transferred to core RAV.
C36: A sub-total is taken before tax and interest on in-year cash flow. This allows the calculation of interest on in-year cash flow to be solved analytically.
E38: Opening balance brought forward (before equity issuance and transfers) | G38: £m nominal | AP38: =AO65 -> 0 | AQ38: =AP65 -> -3662.694077 | AR38: =AQ65 -> -3634.10491 | AS38: =AR65 -> -3592.340003 | AT38: =AS65 -> -3607.359666 | AU38: =AT65 -> -3905.81814 | AV38: -5059.088632 | AW38: -5287.063345 | AX38: -5482.155733 | AY38: -5540.089242
E39: Start of price control notional debt re-set | G39: £m nominal | AP39: =-AP106 * (AP95+AP96) * (AP13+AP14) -> -3771.505054 | AQ39: 0 | AR39: 0 | AS39: 0 | AT39: 0 | AU39: -4872.447539 | AV39: 0 | AW39: 0 | AX39: 0 | AY39: 0
E40: Equity issuance | G40: £m nominal | AP40: =AP133 -> 0 | AQ40: =AQ133 -> 0 | AR40: =AR133 -> 0 | AS40: =AS133 -> 0 | AT40: =AT133 -> 0 | AU40: =AU133 -> 0 | AV40: 0 | AW40: 0 | AX40: 0 | AY40: 0
E41: Opening balance brought forward (after equity issuance, before transfers) | G41: £m nominal | AP41: =(AP13+AP14)*AP39 + (AP15+AP16)*AP38 + AP40 -> -3771.505054 | AQ41: =(AQ13+AQ14)*AQ39 + (AQ15+AQ16)*AQ38 + AQ40 -> -3662.694077 | AR41: -3634.10491 | AS41: -3592.340003 | AT41: -3607.359666 | AU41: -4872.447539 | AV41: -5059.088632 | AW41: -5287.063345 | AX41: -5482.155733 | AY41: -5540.089242
E42: Transfer from non-core debt | G42: £m nominal | AP42: =-AP78 -> 0 | AQ42: =-AQ78 -> 0 | AR42: 0 | AS42: 0 | AT42: 0 | AU42: 0 | AV42: 0 | AW42: 0 | AX42: 0 | AY42: 0
E43: Opening balance brought forward (after equity issuance and transfers) | G43: £m nominal | AP43: =SUM(AP41:AP41) -> -3771.505054 | AQ43: -3662.694077 | AR43: -3634.10491 | AS43: -3592.340003 | AT43: -3607.359666 | AU43: -4872.447539 | AV43: -5059.088632 | AW43: -5287.063345 | AX43: -5482.155733 | AY43: -5540.089242
E44: Add TO calculated revenue (except tax allowance) | G44: £m nominal | AP44: =Revenue!AP22 * TOpf -> 774.28489 | AQ44: =Revenue!AQ22 * TOpf -> 857.9431595 | AR44: =Revenue!AR22 * TOpf -> 936.3984409 | AS44: =Revenue!AS22 * TOpf -> 1024.642413 | AT44: =Revenue!AT22 * TOpf -> 1152.300241 | AU44: =Revenue!AU22 * TOpf -> 1318.922666 | AV44: =Revenue!AV22 * TOpf -> 1386.47198 | AW44: =Revenue!AW22 * TOpf -> 1444.154636 | AX44: =Revenue!AX22 * TOpf -> 1448.723412 | AY44: =Revenue!AY22 * TOpf -> 1499.426913
